{"text_format":"2","workbook":"xlsx","n_sheets":2,"sheets":["总库","看板"],"not_rendered":{"charts":2,"images":0,"macros":0,"external_links":1,"defined_names":1,"comments":0,"pivot_tables":0},"unopened":[],"bounds":{"document_bytes":16777216,"sheet_cells":100000,"run_cost":"one","rows_first":2000,"rows_last":500,"rows_between":2000,"halvings":0,"cell_chars":16384,"cell_head_chars":4096},"cells_cut":0,"cells_raw":0,"read":"whole","date_system":"1900"}

{"sheet":"总库","index":0,"n_rows":658,"n_cols":11,"rows_kept":658,"cut":false,"hidden":false,"merged":[[0,1,0,6]]}
[null,"吉林省工业技术研究院技术供应库"]
[null,"序号","产业分类","所属领域","项目名称","项目简介","项目来源","团队负责人","联系电话","年份","月"]
[null,{"$f":"ROW()-2","v":1},"生物医药及先进医疗器械","医药、医疗器械","低负荷睡眠监测系统","满足医院对患者的睡眠检测需求","长春理工大学","刘建华",13756256520]
[null,{"$f":"ROW()-2","v":2},"生物医药及先进医疗器械","医药、医疗器械","单细胞多维信息纳米监测系统","在纳米微米尺度上监测细胞，病毒","长春理工大学","刘建华",13756256520]
[null,3,"生物医药及先进医疗器械","医药、医疗器械","低阈值自启动全保偏飞秒光纤激光器","用于精密加工领域、精密光谱学、双光子光谱学，光频梳的产生与应用","长春理工大学","刘建华",13756256520]
[null,4,"生物医药及先进医疗器械","医药、医疗器械","心血管健康监测系统","生理参数实时监测，心血管疾病早期监测","长春理工大学","刘建华",13756256520]
[null,5,"光电子及智能传感器","光电信息","新型低维量子材料与激光响应","夜视成像，中长波大气污染监测","长春理工大学","刘建华",13756256520]
[null,6,"光电子及智能传感器","光电信息","快照光谱仪","光谱和成像双重信息","长春理工大学","刘建华",13756256520]
[null,7,"光电子及智能传感器","现代农业","免耕作业信息监测装备及云服务平台","监测农机位置，监测播种质量，一键求助报警，数据可视化展示","长春理工大学","刘建华",13756256520]
[null,8,"光电子及智能传感器","光电信息","新型智能消防单兵近眼显示系统","图像全色彩，宽温，近眼显示，AR头盔解","长春理工大学","刘建华",13756256520]
[null,9,"光电子及智能传感器","光电信息","光电技术超精密","主要应用于光电技术曲面加工工艺及检测","长春理工大学","刘建华",13756256520]
[null,10,"生物医药及先进医疗器械","医药、医疗器械","除垢泡腾片技术研发","增加部分药物的稳定性和溶解性，便于运输和储存","长春理工大学","刘建华",13756256520]
[null,11,"人工智能机智能机器人","信息技术","产业大数据可视化、VR展示与体验技术","构建的大数据智能分析可视化系统，对虚拟现实（VR）的大规模复杂场景建模、模型优化等关键技术","长春工程学院","张华",13844073446]
[null,{"$f":"ROW()-2","v":12},"汽车电子及新型汽车零部件","汽车工业技术","汽车电子助力转向器总成性能测试","采用模块化设计方法自主开发电子助力转向器总成性能试验台，以解决目前转向器总成自动检测存在的系统稳定性、可靠性、集成度等主要技术问题","长春工程学院","闫占辉",13596053152]
[null,13,"其他","环保与资源","城镇污水低温生物处理强化技术","城镇低温污水稳定处理技术、城镇污水处理节能降耗技术、污水处理厂污染物深度减排技术","长春工程学院","艾胜书",13504317239]
[null,14,"其他","环保与资源","灌区闸门远程自动控制节水减排系统","控制策略、控制模式、实现手段上更加先进、智能、可靠、环保","长春工程学院","刘鸿涛",15526898753]
[null,15,"其他","环保与资源","吉林西部盐碱土固化技术研究与应用","优化了不同结构形式的固化配比，研发了固化设备及相应的施工工艺，为实现吉林西部渠系盐碱土固化材料的工程应用","长春工程学院","高金花",13578745796]
[null,16,"其他","建筑工程","基于BIM软件的一体化钢结构厂房建造技术","通过可视化模型，完成结构与机电单元的模块划分","长春工程学院","韩风毅",13578750908]
[null,17,"其他","建筑工程","基于BIM技术的数字装饰智慧建造技术","把BIM与装饰工程结合，项目全面“数字化”","长春工程学院","韩风毅",13578750908]
[null,18,"其他","信息技术","基于区块链跨链技术的多领域能量交易系统和支付安全的研究与应用","多能系统中多方信息和物理资源的整合，解决互补集成控制过程中的交易安全问题","长春工程学院","颜辉",18088688907]
[null,19,"汽车电子及新型汽车零部件","汽车工业技术","大尺寸零部件制造质量在线检测技术","汽车、轨道交通先进制造行业的关键零部件制造质量检测","长春工程学院","张爽",13504411251]
[null,20,"汽车电子及新型汽车零部件","汽车工业技术","车轮对自动测量技术","大型非接触坐标测量系统","长春工程学院","张爽",13504411251]
[null,21,"其他","建筑工程","建筑消防设施模块化安装","根据现场情况及设计资料预制模块，统筹安装","长春工程学院","无","无"]
[null,{"$f":"ROW()-2","v":22},"汽车电子及新型汽车零部件","汽车工业技术","基于结构光主动视觉的表面微小划痕检测技术","准确识别车轴表面划伤的长度、宽度、深度等微观测量信息","长春工程学院","无","无"]
[null,23,"其他","信息技术","房坐标平台系统","整合三四五线城市中小地产企业、代理公司、渠道经纪公司联手共创地产界创新服务和全方位支持等一系列生态大平台","长春工程学院","无","无"]
[null,24,"其他","信息技术","智慧案场","通过智慧案场智慧大屏展示销售现场实况数据，通过系统算法为项目市调、统计分析提供决策依据","长春工程学院","无","无"]
[null,25,"其他","建筑工程","预制装配式混凝土结构成套技术","凝土剪力墙结构体系、复合保温外挂墙板体系、新型装配式楼板体系和装配式结构施工，有一套从结构体系到施工的完整技术","长春工程学院","无","无"]
[null,26,"新能源及动力电池","能源动力领域","寒冷地区空调型新风换气系统","主要针对严寒地区冬季新风换气机使用能耗过高问题进行的设计","长春工程学院","无","无"]
[null,27,"新能源及动力电池","能源动力领域","高蒸汽参数生物质循环流化床锅炉技术","生物质循环流化床锅炉气固流态化、系统稳定性以及氮氧化物反应机理等方面开展研究工作，降低了系统辅机能耗，提高了锅炉可用性，减少了氮氧化物排放","长春工程学院","无","无"]
[null,28,"新能源及动力电池","能源动力领域","智能工/变频双模变压器风冷控制装置","将计算机控制技术和变频技术应用到变压器风冷控制系统，集变压器风冷系统的数据采集、分析和运行控制及保护于一体，简化了控制线路，优化了运行方式，具有明显的节能效果","长春工程学院","无","无"]
[null,29,"其他","建筑工程","大型起重机械自动行走定位系统","根据起吊重量优化起重机行走速度，实现无摆起落及行走","长春工程学院","无","无"]
[null,30,"其他","建筑工程","植物类环保融雪剂","自主研发的氯离子裹附剂，降低融雪剂溶液中的氯离子，减少了其对道路设施的腐蚀和对周边环境的污染","长春工程学院","无","无"]
[null,31,"碳纤维及复合材料","新材料","纳米复合防腐涂料","采用静电常温喷涂、高温固化定型附着于钢板表面生产工艺，特点是强度高、喷涂均匀、外形美观","长春工程学院","无","无"]
[null,{"$f":"ROW()-2","v":32},"其他","建筑工程","玄武岩纤维复合材料防眩格栅","耐高温及低温性能优于国家标准，抗冲击、不变形、抗脆性强、耐酸碱性好，适用于多种工况气候变化条件","长春工程学院","无","无"]
[null,33,"其他","建筑工程","东北地区高陡岩质边坡高效复绿技术","解决由于边坡坡度较大且岩石表面光滑，对土壤与植被而言，难以形成重构地境的问题","长春工程学院","无","无"]
[null,34,"生物基新材料","新材料","生物基生物降解材料改性及制品产业化","本项目通过堆肥处理能够转化为肥料、二氧化碳和水，直接回归自然环境，之后经过植物再生循环，可以大幅减少废塑料对环境造成的影响","应化所","赵超","0431-85262608/18622535157"]
[null,35,"碳纤维及复合材料","新材料","水凝胶新材料及产业应用","成功制备了一系列具有优异机械性、粘附性、柔韧性、自恢复性和导电性的水凝胶新材料，产品涉及到伤口愈合敷料、高端医美面膜、医用电极、手术缝合线、柔性电子器件、功能膜、角膜接触镜等多领域应用","长春工业大学","高光辉",18626634360]
[null,36,"碳纤维及复合材料","新材料","高性能连续纤维增强聚醚醚酮复合材料及其应用","这种高性能树脂基复合材料质量轻、强度高、模量高、抗疲劳、耐腐蚀、层间剪切强度高和耐湿热等，能够被广泛地应用于苛刻环境下;生产制备过程绿色环保，成型周期短，贮存周期和使用寿命长，复合材料可以回收利用","吉林大学","王贵宾",13843160886]
[null,37,"碳纤维及复合材料","新材料","新能源汽车电池用阻燃聚苯醚发泡材料的研制与应用","EPP材料料比重轻，吸能和回复性能好，抗震抗压，无毒环保，适用于家电产品的包材、汽车领域、建筑地暖保温等应用","应化所","邱健，唐涛","15948031760/ 13843014185"]
[null,38,"碳纤维及复合材料","新材料","以工业固废为原料生产CO2吸附专用分子筛","本课题组目前已经掌握并优化了以固废为原料生产分子筛技术，成功合成了多种达到国标优级品标准的A型分子筛、X型分子筛，以及高结晶度的MOR分子筛、CHA分子筛和MFI型分子筛","吉林大学","闫文付",13843084682]
[null,39,"碳纤维及复合材料","新材料","快速止血材料研制与应用","1类3类医疗器械。适用于心血管外科、胸外科、肝胆外科、骨外科、胃肠科、甲状腺、普通外科烧伤、整形、美容外科、耳鼻喉科等外科手术。","东北师范大学","黄宇彬",18686619890]
[null,40,"碳纤维及复合材料","新材料","附聚法制备高品质ABS数值关键技术","ABS树脂是丁二烯、苯乙烯、丙烯睛组成的三元共聚物，因具有良好的力学性能和加工性能而被广泛地应用于汽车制造、家用电器、航空航天等领域","长春工业大学","刘伯军",13894875901]
[null,41,"碳纤维及复合材料","新材料","环境友好型杀菌消毒聚合物","聚( e -赖氨酸 )安全无毒，具有广谱高效的杀菌消毒性能且不产生细菌与病毒耐药性。我们在世界上首次采用化学法合成出高分子量聚 ( e -赖氨酸 )，突破了抗性聚 ( e -赖氨酸 )只能采用生物法合成的局限","应化所","韩苗苗",13756322296]
[null,{"$f":"ROW()-2","v":42},"碳纤维及复合材料","新材料","连续本体法 PMMA 树脂的产业化技术开发","PMMA是一种综合性能优异的透明材料，它具有极好的透光性、表观光泽性和优良的耐候性能","长春工业大学","谭志勇","tanzhiy@163.com"]
[null,43,"碳纤维及复合材料","新材料","单分散功能型聚合物微球制备技术","可以作为色谱填料、模板使用，广泛应用于医疗检测、光子晶体、药物缓释分离等领域","长春工业大学","刘伯军",13894875901]
[null,44,"碳纤维及复合材料","新材料","乙烯丙烯酸共聚物(EAA )特种乳液制备技术","产品纯净，成膜可赋予涂层和粘结层抗水、抗油脂和抗溶剂性。成膜性好，膜硬度、韧性均佳，拉伸强度高","长春工业大学","刘伯军",13894875901]
[null,45,"碳纤维及复合材料","新材料","高效木质素基阻燃剂及阻燃聚氨酷环保复合材料","木质素含量15%以上，漆膜附着力1级以上，硬度3H以上，性能优于同类产品，完全满足市场对材料性能的要求，可广泛应用于汽车、建筑、航天等行业","东北师范大学","宋国栋",18844185229]
[null,46,"碳纤维及复合材料","新材料","PDS-400 高效脱硫脱氰催化剂","技术效果好，可同时、高速、高效。\n经济效益显著，运行成本低\n环境效益显，溶液中无有毒物质存在\n硫泡沫易分离，不堵塔，溶液保持清澈透明。","东北师范大学","宋国栋",18844185229]
[null,47,"碳纤维及复合材料","新材料","高白度抗静电纳米粉体","本项目采用常规化学合成结合高温烧结工艺实现导电氧化物纳米材料的合成和性质调控，可以合成出光电性质可调、颗粒尺寸从纳米到微米量级、球形或棒状氧化物微纳结构","东北师范大学","马剑钢",18686619890]
[null,48,"碳纤维及复合材料","新材料","可降解高分子胶黏剂","本项目制备了无水无有机溶剂的本体胶黏剂,同时具有高粘结强度、低成本、可以根据不同时期的需求清除或降解、绿色环保型等性能，目前已申请专利。","东北师范大学","宋国栋",18844185229]
[null,49,"碳纤维及复合材料","新材料","高分子层状功能材料","高分子层状功能材料是最新研发的利用物理吸附方式针对去除水中磷酸盐及其它含磷有机物的一种新型多孔材料。且能胜任低温工作环境。","东北师范大学","宋国栋",18844185229]
[null,50,"碳纤维及复合材料","新材料","高效苯胺和邻甲苯胺催化剂","高效苯胺和邻甲苯胺催化剂，经过在吉化集团公司催化剂厂进行的流化床对比评价实验证明，高效苯胺催化剂的使用寿命是原催化剂的1.5倍以上","东北师范大学","宋国栋",18844185229]
[null,51,"碳纤维及复合材料","新材料","介孔纳米碳球","本项目组开发的纳米碳球具有以下特点:形貌可控，可制备几近完美的球形碳球; 分散性好，在溶液中可呈单分散","东北师范大学","宋国栋",18844185229]
[null,{"$f":"ROW()-2","v":52},"碳纤维及复合材料","新材料","高性能阻燃天然纤维复合材料","基于水相法的天然纤维化学改性，本项目组开发出低成本、高阻燃性及优异力学性能的阻燃天然纤维/聚烯烃及阻燃天然纤维/聚乳酸复合材料。","东北师范大学","宋国栋",18844185229]
[null,53,"碳纤维及复合材料","新材料","高性能Mg-AI-RE合金塑性成型构件","本项目通过对材料与结构设计的优化，突破稀土镁合金的协同强韧化、精密成型、加工制备及表面处理等关键技术，显著提高了合金的室温高温力学性能","应化所","赵超","0431-85262608/18622535157"]
[null,54,"碳纤维及复合材料","新材料","SDHI类杀菌剂-院酷菌胺高效绿色合成新工艺","本项目开发了一种采用廉价易得的原料，经Suzuki偶联反应及相对无污染的后续反应合成酷菌胺的新路线，已成功地完成了小试研究","应化所","赵超","0431-85262608/18622535157"]
[null,55,"碳纤维及复合材料","新材料","高透明低HW发射率抗冲蚀磨损涂层","重点解决透明抗冲蚀磨损聚氨醋涂层在极端使役状况下的抗冲蚀磨损机理、高附着力的构建和疲劳失效机制以及多种复合功能间的相互约束关系的等关键性基础科学问题","应化所","赵超","0431-85262608/18622535157"]
[null,56,"碳纤维及复合材料","新材料","万吨级高熔体强度聚丙烯","这类发泡材料的泡孔的闭孔率高，具有质量轻、强度高、成本低的优点，具有优异的综合性能，产品附加值高，可以应用于交通工具、保温、高档包装等领域。在加工性能和力学性能方面","应化所","赵超","0431-85262608/18622535157"]
[null,57,"碳纤维及复合材料","新材料","千吨级聚乙醇酸中试项目","PGA一直应用于医疗领域，主要作为手术缝合线使用。随着化工技术的发展，由煤化工副产物制取低成本乙醇酸成为可能，PGA作为可降解工业制品应用具有广阔市场空间","应化所","赵超","0431-85262608/18622535157"]
[null,58,"碳纤维及复合材料","新材料","农业塑料大棚用新型长效流滴膜树脂专用料","将流滴剂接枝到聚乙烯分子链上，使流滴剂分子以共价化学键与聚乙烯分子链键合在一起流滴剂单体中含有醚键、轻基、羚基、醋基等亲水基团，极易被水浸润，增加了聚乙烯的极性及与水的亲和性，从而使聚乙烯膜极易被水浸润并在表面形成一层水膜，有效降低了流滴剂迁移和流失的速度，使流滴期大于12个月","应化所","赵超","0431-85262608/18622535157"]
[null,59,"碳纤维及复合材料","新材料","聚芳醚高性能涂料","聚芳醚类涂料是以特种工程塑料聚芳醚枫和聚醚醚酮作为基体树脂，添加填料、颜料和助剂等制备得到，其具有优异的防腐性、耐高温性、机械性能、不粘性、耐磨性等特点可广泛应用在石油、化工、机械等领域","吉林大学","祝世洋",13756049978]
[null,60,"碳纤维及复合材料","新材料","仿生自修复制动材料开发","本项目以生物损伤自修复的行为与激励机制为仿生原型，通过在制动材料中制定位置添加聚醚醚酮( PEEK )，并通过制动过程中高温高压环境作为激励条件，使聚醚醚酮在制动过程中对摩擦应力和酚醛树脂热解共同造成的微细裂纹进行实时修补，并在冷却后继续维持材料强度与制动性能，从而实现仿生自修复功能、提升制动部件可靠性，提高车辆行驶安全性。","吉林大学","庄健",18743027198]
[null,61,"碳纤维及复合材料","新材料","仿生自洁防污耐腐蚀型石墨烯涂层技术","本项目基于工程仿生理念，根据典型生物体表润湿特性及石墨烯材料在疏水、耐磨、耐热和防腐蚀方面的优异性能，结合传统涂层制备和涂装的工艺，设计并构筑了一种有机硅树脂基多功能底面一体型的仿生超润湿防护涂层体系，借助疏水表面、石墨烯和抗藻剂之间的协同运行机制提升金属表面长效耐腐、自洁防污及耐磨等性能","吉林大学","刘燕",13610742176]
[null,{"$f":"ROW()-2","v":62},"碳纤维及复合材料","新材料","高性能可持续发展聚合物材料及其应用","开发了系列具有自修复、可循环利用及可降解性能的可持续发展聚合物材料，并赋予了其高强度、 高模量、高韧性及抗撕裂性等优异力学性能。可持续发展聚合物材料可大大延长材料的使用寿命和降低原材料的浪费及环境污染。主要构筑了兼具高力学强度、透明、与基底聚合物粘附力强的自修复原子氧防护涂层。在近地轨道环境中可自发而迅速地修复损伤，恢复其原子氧防护能力，对于提高航天器的安全性、延长航天器的服役寿命具有重要意义。将聚合物链间的多重超分子作用力与动态微相分离结构相 结合，制备了兼具卓越抗撕裂能力、自修复与可循环利用性能的高强度聚氨酯弹性体。制备了高强度、 水环境下稳定的、可降解的聚乙烯醇基超分子塑料，有望作为包装材料部分代替聚乙烯塑料。","吉林大学","马云海",13756517088,2023]
[null,63,"碳纤维及复合材料","新材料","轻质、高强纤维复合材料汽车零部件设计制造","汽车轻量化有助于实现节能减排及新能源汽车延程。本团队聚焦轻质、高强纤维复合材料汽车零部件设计制造创新性提出纤维协同增效仿生原理，建立仿生结构/功能解析模型，设计出纤维定向排列的仿生新结构","吉林大学","韩奇钢",13844065361]
[null,64,"碳纤维及复合材料","新材料","高性能特种分子筛材料产业化","将分级催化技术引入分子筛锂离子交换工艺中，实现了锂离子利用率99%，锂离子占有99.5%；利用二次合成，将材料中粘结剂转化为分子筛，实现了有效分子筛在整体材料中占比99%以上","吉林大学"]
[null,65,"碳纤维及复合材料","新材料","CALYPSO材料设计方法与软件","理论结构预测还可以根据材料的目标功能性质，逆向设计新型功能材料，节省实验成本，缩短新材料的研发周期","吉林大学"]
[null,66,"碳纤维及复合材料","新材料","多孔氮化硼纳米纤维规模化制备技术","能够实现形貌和尺寸均一的具有超大比表面积的多孔氮化硼纳米纤维的规模化制备技术，技术合成工艺简单可控，成本低，过程绿色环保","吉林大学"]
[null,67,"碳纤维及复合材料","新材料","高强度的耐水、可降解聚乙烯醇基塑料","具有高力学强度、耐水及可在土壤中降解的环境友好型PVA基塑料，通过熔融吹塑进行规模生产，具有优异的可多次加工及可循环利用性","吉林大学"]
[null,68,"光电子及智能传感器","光电信息","半导体激光发射器","该项成果可用于激光制导、激光照明等国防领域，还可广泛用于光电技术、材料加工、激光医疗与美容、泵浦光纤激光器等领域。","长春理工大学","马晓辉",13943188611]
[null,69,"光电子及智能传感器","光电信息","高光束质量、波长稳定半导体激光器","用于激光通讯、激光制导、泵浦光纤激光器和固体激光器。","长春理工大学","高欣",13086880029]
[null,70,"光电子及智能传感器","光电信息","大功率连续二极管激光器阵列","研制出连续型高功率二极管阵列激光器实用化样管，按其输出方式主要分为CW型微透镜封装阵列激光器和CW型光纤耦合输出激光器。","长春理工大学","刘国军",13944807858]
[null,71,"光电子及智能传感器","光电信息","高功率高效率垂直腔面发射激光器","本成果采用多芯电注入结构，研制的激射波长803.3nm大孔径P面出光垂直腔面发射半导体激光器主要技术指标达到国际先进水平","长春理工大学","郝永芹",15948782240]
[null,{"$f":"ROW()-2","v":72},"光电子及智能传感器","光电信息","2μm高功率半导体激光泵浦光源","通过设计窄线宽激光器结构，合理优化制备工艺，并结合光束整形、多光束合束与光纤耦合技术，实现了高功率、高光束质量激光输出，为实现中红外激光输出开辟了新的技术途径","长春理工大学","马晓辉",13943188611]
[null,73,"光电子及智能传感器","光电信息","高功率、高亮度光纤激光器泵浦源","本成果采用多单管半导体激光合束及光纤耦合技术，实现高功率、高亮度半导体激光输出。通过对6只半导体激光器的合束及耦合，实现105μm光纤输出50W激光功率，光转化效率达到75%","长春理工大学","张贺",13159614825]
[null,74,"光电子及智能传感器","光电信息","基于半导体泵浦技术的2.94μm激光器","本成果是新一代医疗设备的核心器件，该激光器具有强烈被水吸收特性，激光能量被细胞吸收的效率高，能够避免破坏细胞中的其它分子键，大大减轻细胞的热损伤，具有在生物细胞组织中的穿透深度浅、对肌体损伤小的特点","长春理工大学","金光勇",13944880666]
[null,75,"光电子及智能传感器","光电信息","高功率高重频266nm紫外DPL","本成果通过1064nm四倍频实现266nm紫外激光稳定输出，采用小信号注入主振荡功率放大技术（MOPA）与高频调Q技术相结合，经由外腔KTP晶体倍频、BBO晶体四倍频实现高功率高重频266nm紫外激光稳定输出","长春理工大学","金光勇",13944880666]
[null,76,"光电子及智能传感器","光电信息","高重复频率脉冲光纤激光器","本成果采用主振荡功率放大结构，以直接调制半导体激光器作为种子源，通过多级光纤放大，实现了重复频率、脉冲宽度可调谐的脉冲光纤激光输出，解决了光纤放大过程中脉冲窄化和系统保护等技术问题","长春理工大学","王蓟",13504328587]
[null,77,"光电子及智能传感器","光电信息","1550nm脉冲光纤激光器","1550nm脉冲光纤激光器是一款基于人眼安全波长的激光光源；采用主振荡器加功率放大器（MOPA）结构设计，经过优化设计的多级光放大，实现高峰值功率，纳米级的脉宽激光输出，是激光雷达、遥感勘测、激光测距的理想光源","长春理工大学","王蓟",13504328587]
[null,78,"光电子及智能传感器","光电信息","高重频多波段合一激光器","本成果采用多倒格矢单晶体多波段合一高效变频、高重频窄脉宽泵浦和高精度高速率电场调谐等技术，研制的1.06μm/1.57μm/3~5μm高重频多波段合一激光器原理样机","长春理工大学","金光勇",13944880666]
[null,79,"光电子及智能传感器","光电信息","宽带可调谐多波长光纤激光器","该项研究突破了2μm波段光纤激光宽带可调谐和稳定多波长产生等关键技术，研制成功2μm波段宽带可调谐光纤激光器样机、多波长空间光电技术系统、分布式光传感系统等","长春理工大学","王天枢",18686652085]
[null,80,"光电子及智能传感器","光电信息","高速调制紫外半导体激光光源","该紫外激光调制源为单模输出，激光谐振模线宽小于2nm，峰值波长为405nm，室温连续泵浦激发下激光裸管输出功率达到180mW，配套光电技术系统后连续输出功率达到70mW，调制重复频率达到100MHz，脉冲宽度20ns以内","长春理工大学","刘春阳",13578873846]
[null,81,"光电子及智能传感器","光电信息","5级联振荡Er3+:ZBLAN光纤激光器","时这两个波段的激光在光电对抗、光电技术、空间探测、科研测量等方面都有良好的应用前景","长春理工大学","李永亮",13756511028]
[null,{"$f":"ROW()-2","v":82},"光电子及智能传感器","光电信息","高能固体激光电源","本成果采用IGBT为开关的L-C谐振充电电路和磁脉冲压缩技术，研制的高能固体激光电源具有输出能量大、体积小、重量轻、稳定可靠等特点","长春理工大学","梁伟",13604322169]
[null,83,"光电子及智能传感器","光电信息","飞秒激光消光功能微纳制备技术","进一步基于飞秒光丝技术，可以实现任意曲面表面功能微纳结构的直接制备。突破了强飞秒激光制备微纳结构在曲面难以实现的技术瓶颈","长春理工大学","林景全",13894869532]
[null,84,"光电子及智能传感器","光电信息","新型极紫外光刻技术","获得Gd靶极紫外光源离子碎屑特性，对进一步发展光源碎屑阻挡技术、建立清洁的光源打下了坚实的基础。成功研制Gd低密度靶6.7nm极紫外光源","长春理工大学","林景全",13894869532]
[null,85,"光电子及智能传感器","光电信息","直接激光干涉微纳制造系统","本成果采用多光束激光干涉原理，实现在材料表面制造微纳表面结构，周期从微米级到纳米级连续可控。结合高精度位移控制技术，该系统具有实现大面积周期性微纳结构加工制造的能力","长春理工大学","王作斌",13596102407]
[null,86,"光电子及智能传感器","光电信息","强激光拒止器","手持式强激光拒止器是一款集强激光发射与主动摄像功能于一体的高科技产品。\n该激光拒止器利用520nm强激光的炫目特性","长春理工大学","金光勇",13944880666]
[null,87,"光电子及智能传感器","光电信息","便携式激光清障设备","该设备基于自主研发的高功率风冷光纤激光器，具备尺寸紧凑和性能稳定的技术特点。软硬件一体化的设计赋予该系统具备“点击-运行”的简单操作模式，使户外清障作业简单高效","长春理工大学","金光勇",13944880666]
[null,88,"光电子及智能传感器","光电信息","激光表面处理设备","集成激光清洗和毛化于一体，采用高能激光束照射工件表面的方法，研制的激光表面处理设备使工件表面污物、锈斑或涂层发生瞬间蒸发或剥离，并在工件表面形成密布的微坑洞，使工件表面既达到洁净又具有一定的表面粗糙度，从而提高粘接剂或油漆的粘接强度","长春理工大学","王菲",13644317322]
[null,89,"光电子及智能传感器","光电信息","碳纤维复合材料激光原位成型设备","用激光束对碳纤维复合材料在线快速加热到使树脂熔融的温度，通过辊压来实现碳纤维复合材料的快速固结成型。研制的碳纤维复合材料激光原位成型设备基于激光辅助加热、自动铺带与压力成型相结合，将碳纤维复合材料铺放与成型在现场一次完成","长春理工大学","王菲",13644317322]
[null,90,"光电子及智能传感器","光电信息","远程高清激光夜视仪","主动大角度红外半导体激光器作照明源，能保证激光在摄像机广角状态下实现满屏；特有激光整形匀化和光功率控制技术，0.1°精确随动控制；内部嵌入式控制电子系统，实现对摄像机的变倍、聚焦、视频切换、云台俯仰/旋转高稳定性控制，保证设备在野外恶劣环境中长期运行并达到最佳照明效果","长春理工大学","王宪涛",13843195688]
[null,91,"光电子及智能传感器","光电信息","自动球面网栅刻划机","主要由刻划及分度机构和承件回转及线纹生成机构等关键部分组成，微机及光电传感器件等构成全闭环控制系统，实现刻划全过程的自动运行与监控。","长春理工大学","孙艳军",13843176312]
[null,{"$f":"ROW()-2","v":92},"光电子及智能传感器","光电信息","高寒区直升机载电力巡线光电稳定吊舱系统","采用陀螺稳定技术和多传感器融合技术，适用于直升机、固定翼飞机、无人机、飞艇等多种平台，可实现对地面、海上及空中目标的昼夜、高清晰度观察并能对视频、音频等信息长时间记录。","长春理工大学","张立中",13843119166]
[null,93,"光电子及智能传感器","光电信息","智能激光3D投影系统","应用于现代化工业生产及数字化装配的高精度辅助定位系统，由iGPS测量网络系统和激光3D投影系统组成，将数字化测量与装配有机结合，把CAD数模以激光束轮廓线的形式按照1:1的比例，精确地投影成像到工作面上并实时动态监控投影定位精度，完成安装定位引导工作。","长春理工大学","李丽娟",18946720357]
[null,94,"光电子及智能传感器","光电信息","光电技术薄膜激光损伤阈值测量仪","由激光器、光束整形单元、能量调节单元、能量密度标定单元、薄膜损伤判识单元、聚焦分光单元、运动工作台及控制系统等组成。该成果基于光强分布均匀的平顶光束诱导薄膜损伤，客观准确地反映了薄膜的损伤阈值，测量精度高，测量速度快，自动化程度高，操作简单。","长春理工大学","王菲",13644317322]
[null,95,"光电子及智能传感器","光电信息","高灵敏度甲烷乙烷探测仪","基于激光衰荡腔增强吸收光谱技术而开发的高灵敏度、高精度极微弱（痕量）气体原位探测与浓度检测仪器。采用研制的窄线宽DFB半导体激光器，结合快速扫频自适应触发与多级过滤减震技术，能够对空气中甲烷，（CH4）和乙烷（C2H6）气体实现浓度从ppbv到百ppmv（体积比在十亿分之一到万分之一）的快速（10Hz）、原位、精确、同步测量，技术指标达到国际先进水平。","长春理工大学","魏志鹏",15843095977]
[null,96,"光电子及智能传感器","光电信息","基于DMD器件的红外目标/环境模拟器","用于测试及评价导引头，通过投影制导目标的温度场，测试导引头运动的准确性。利用DMD做为景像生成器件，实现高分辨率、高对比度的动态红外目标模拟。","长春理工大学","徐熙平",13504463957]
[null,97,"光电子及智能传感器","光电信息","智能车载抬头显示器","可以直接在汽车风挡玻璃上显示各种车辆信息，（电话、导航、音乐、微信），已应用于长春车格斯科技有限公司生产试制。","长春理工大学","乔阳",13844059418]
[null,98,"光电子及智能传感器","光电信息","激光光束质量分析仪","采用面阵CCD相机接收激光束，由图像采集卡传送给计算机处理，软件实时处理并显示激光光束的二维、三维光强分布，通过测量不同轴向位置激光光斑，计算出激光束的光束质量因子；能全面综合评价激光器的近场特性和远场特性，完成激光器出射激光光束质量测量，实时给出激光光束的空间分布，计算激光光束的远场1/e2发散角，数字化输出光束质量因子M2、束宽积BPP、束腰半径及远场光束发散角测量结果。","长春理工大学","王彩霞",13504321246]
[null,99,"光电子及智能传感器","光电信息","激光偏振态测量仪","一种基于液晶的Stokes参量法测量激光光束偏振特性的光电技术仪器，主要利用液晶可变相位延迟器对入射光的偏振状态进行柔性调制，把偏振光的强度、相位和取向三个参量的测量转换为光强的测量，通过准确地测量Stokes参量，最终实时、定量地表征激光的偏振态，同时利用虚拟仪器LabVIEW软件平台实现系统的数据分析、处理、界面显示和打印输出功能的一体化。","长春理工大学","赵海丽",13604419852]
[null,100,"光电子及智能传感器","光电信息","X射线实时成像检测仪","集X射线无损检测、CCD实时成像、计算机图像处理、机械自动化技术为一体。具有自动化程度高、检测速度快、检测精度高的特点。控制器采用PLC控制，利用触摸屏实现人机交互，操作简单。","长春理工大学","李野",13604417480]
[null,101,"光电子及智能传感器","光电信息","高压恒频便携X射线源","一种针对电力电缆的有效无损检测方法，可完成在运电缆无损检测","长春理工大学","李野",13604417480]
[null,{"$f":"ROW()-2","v":102},"光电子及智能传感器","光电信息","全Stokes矢量偏振光谱相机","具备光谱范围400nm～720nm连续可调、光谱分辨率10nm的光谱图像获取能力；同时获取图像的线性、椭圆和圆偏振等Stokes参量，通过计算Stokes偏振矢量，进一步可获取偏振度、偏振方位角等特征。","长春理工大学","谭勇",13604324089]
[null,103,"光电子及智能传感器","光电信息","GS2020全国产化相机","一款全国产化科学级相机，CMOS传感器和处理器均采用国产原件，具有高帧频、低噪声、高灵敏度、高动态特性。","长春理工大学","常帅",18504310165]
[null,104,"光电子及智能传感器","光电信息","昼夜两用双光偏振望远镜","采用新型的可见光低照度偏振技术和长波红外夜视技术，由可见光和红外双系统组成，可在昼夜全天候条件下工作。适用于昼间1000m，夜间600m以内的人员、地形、地物等目标进行观察和搜索，具有独特的识别伪装、穿透雾霾功能。具有昼夜观察、照相/录像存储功能。可以加装GPS/BD定位、激光测距功能。还可以采用双红外立体成像等功能。","长春理工大学","李英超",13944089116]
[null,105,"光电子及智能传感器","光电信息","全天候远距离透雾霾成像监视系统","采用光电技术强度、偏振多维度成像技术，结合多种先进的图像增强算法和多源图像融合算法、FPGA内的嵌入技术以及光电技术配准技术，实现远距离透雾，在极端天气和低光照情况下，能够显著提高实时视频图像质量，突出图像细节，有效增强肉眼对图像特征的分辨能力，提高观测距离，在能见度200米的浓雾情况下，可探测2km的目标。相较于传统的可见光/红外探测系统，具有探测距离远、抗低照度、恶劣环境环境等优势。","长春理工大学","李英超",13944089116]
[null,106,"光电子及智能传感器","光电信息","全天候机载物证快速搜寻系统","采用光电技术强度、偏振、红外多维度成像技术，结合多种先进的图像增强算\n法和多源图像融合算法、FPGA内的嵌入技术以及光电技术配准技术。搭载于无人机，具备自动稳像、智能识别、无线传输等功能与主动偏振光照明功能，可在白天和夜晚对地面目标进行录像、拍照，满足复杂环境下全天候物证搜寻工作需求。","长春理工大学","李英超",13944089116]
[null,107,"光电子及智能传感器","光电信息","宽光谱保偏型连续衰减器","针对自由空间光电技术系统中通信链路性能的精确测试需求，突破了光电技术保偏结构的优化设计、衰减精度的控制技术、杂散光的抑制技术等关键技术，是一款具有自主知识产权的宽光谱保偏型连续衰减器。具有光谱范围宽、光电技术保偏、可连续衰减、动态范围大、波像差极小、插入损耗小等优点。","长春理工大学","贺文俊",18686400682]
[null,108,"光电子及智能传感器","光电信息","基于超声多普勒效应热计量技术研究","应用于气体、液体以及固液混合体物质冷热量的计量技术，具有流量测量精度高，温度测量范围宽等优势，采用平凹声透镜光电技术汇聚技术，实现了多通道分区域分布式测量，其具有通用性好、灵敏度高、人机界面优好、智能化程度高和安装方便等特点。","长春理工大学","段洁",13756263191]
[null,109,"光电子及智能传感器","光电信息","高速、轻型光电技术系统","研制成功机载光电技术系统（机载光端机和演示验证用地面光端机），在我国首次实现了野外、远距离、高速率激光“动中通”。","长春理工大学","姜会林","0431-85582528 "]
[null,110,"光电子及智能传感器","光电信息","临近空间用光电技术系统","研究了临近空间用高速率光电技术系统的总体方案与关键技术，研制成功机载光端机，在我国首次实现了高速率、双动态激光“飞中通”。","长春理工大学","佟首峰",13504322678]
[null,111,"光电子及智能传感器","光电信息","固定翼飞机间光电技术系统","研究了固定翼飞机间光电技术的总体方案与附面层影响抑制等关键技术，研制成功固定翼飞机间光电技术系统。实现了机载平台间国际最高通信速率和最远通信距离。","长春理工大学","佟首峰",13504322678]
[null,{"$f":"ROW()-2","v":112},"光电子及智能传感器","光电信息","大气信道高速率光电技术系统","自主研制成功了五路光电技术系统为一体、视轴主动跟踪、多口径发射、多种业务接口、速率连续可调的全双工大气光电技术机","长春理工大学","朱一峰",13504404797]
[null,113,"光电子及智能传感器","光电信息","全双工无线光电技术光端机","提出了一种高带宽效率、利用脉冲间隔和脉冲间隔的状态联合传递信息脉冲状态间隔调制编码方法，可以有效地降低通信系统对大气信道的敏感程度。提出大气信道激光传输特性的熵评价方法与实现途径，同时从波前的空间与时间两个角度获取信道调制信息，为综合评价信道容量提供了一种有效手段。","长春理工大学","岳丹",15843149856]
[null,114,"光电子及智能传感器","光电信息","便携式激光通讯机","以激光为载波，在自由空间中全双工传输语音、图像、数据等信息，通信速率高、抗干扰、无辐射、不需要铺设电缆","长春理工大学","常帅",18504310165]
[null,115,"光电子及智能传感器","光电信息","星模拟器","一种模拟恒星辐射特性和几何特征的仪器设备，主要用于星上或弹上星敏感器的地面标定测试与仿真试验，分为动态星模拟器和静态星模拟器。","长春理工大学","张国玉",13624463820]
[null,116,"光电子及智能传感器","光电信息","月球模拟器","一种模拟月球辐射特性和几何特征的仪器设备，主要用于星上产品光电技术敏感器或地球敏感器的地面标定测试与仿真试验。分别研制成功了自主导航试验用月亮模拟器和红外月球模拟器及其相关设备，其可实现对月相、月球视张角、月球可见与红外辐射特性的模拟。","长春理工大学","张国玉",13624463820]
[null,117,"光电子及智能传感器","光电信息","太阳模拟器","一种模拟地球外层空间太阳光辐射特性和几何特征的仪器设备，分为准直式模拟器和发散式太阳模拟器","长春理工大学","张国玉",13624463820]
[null,118,"光电子及智能传感器","光电信息","地球模拟器","一种地面标定试验设备，分为准直式红外地球模拟器和圆锥扫描式红外地球模拟器，其主要功能是在地面上模拟地球的几何特性和辐射特性，包括轨道高度、地球弦宽、地球与太空间的辐射亮度差等的模拟，主要用于红外地球敏感器的性能测试和精度标定。","长春理工大学","张国玉",13624463820]
[null,119,"光电子及智能传感器","光电信息","基于复色共焦的透明材料厚度光电检测系统","运用光电技术、精密机械和光谱分析等技术，解决了透明材料壁厚尺寸光电非接触、高精度测量问题，为包括光电技术元件在内的透明材料壁厚或厚度的非接触在线自动测量提供了一种先进的检测方法。","长春理工大学","徐熙平",13504463957]
[null,120,"光电子及智能传感器","光电信息","野外红外标准靶","由240块靶板按12行20列阵列而成，每块靶板集成了4块0.25m×0.25m热靶，每块热靶都能够被独立控制进行温度调节。系统由红外靶体子系统、综合控制子系统、靶标温度监视仪、工作方舱等组成。","长春理工大学","付跃刚",13504322686]
[null,121,"光电子及智能传感器","光电信息","激光光斑全角度分析与测量系统","在2D/3D光场分布实时显示与操作基础上，给出激光光斑在与水平方向呈任意角度方向的尺寸及光斑尺寸边缘轮廓，科学、全面、客观地反映激光光斑的空间特性","长春理工大学","王菲",13644317322]
[null,{"$f":"ROW()-2","v":122},"光电子及智能传感器","光电信息","四象限光电探测器目标定位光电技术系统","通过接收目标反射的激光信号，分析光斑在四象限探测器上的分布获取目标位置信息，实现对目标的定位，具有位置分辨率高、响应速度快、性价比高、结构紧凑的优点。","长春理工大学","赵春竹",13596092101]
[null,123,"光电子及智能传感器","光电信息","火控动态性能测试系统","包括：瞄准线获取装置、与火炮身管固联基准线产生装置（基准瞄准镜I）、膛内安装基准线产生装置（基准瞄准镜Ⅱ）、炮口线获取装置（校炮镜）等光机四大分系统；与之配合的车载主控电箱、B码时间同步分系统、无线微波传输系统，同步信息采集与数据处理终端、系统控制软件及数据处理软件。可完成对瞄准线稳定精度、瞄准手瞄准精度、火炮装定角精度、稳定器稳定精度、同步精度、火炮跟随瞄准线精度、瞄准线零位走动量等的测量；实时监视、记录动态射击过程中瞄准手对目标的瞄准情况及导弹飞行情况；具有良好的数据、图像处理能力，可对实时过程中记录的数据信息、图像信息按任务要求进行处理，并具有良好的用户界面。","长春理工大学","王晓曼",13756869769]
[null,124,"光电子及智能传感器","光电信息","轻武器光电技术瞄具性能综合测试系统","采用CCD摄像、光电自动调焦、光电自动对准、DLP光电图形自动生成、同步锁相放大、计算机光电技术图像处理、激光距离仿真和伺服控制等技术，实现了轻武器光电技术瞄具多参数综合测试。主要包括光电瞄具装表精度测试系统、光电技术性能综合测试平台、瞄准轴与枪管轴夹角测试系统、零位走动量测试系统、电源性能参数测试系统、回转力矩测试系统、透过率测试系统七大部分。实现了白光瞄具和微光瞄具的各种光电技术性能多参数由传统主观测试到现代客观测试的飞跃，摆脱了原来落后的测试状态，具有检测效率高、速度快、精度高、客观性好等优点。","长春理工大学","安志勇",13843013046]
[null,125,"光电子及智能传感器","光电信息","激光特性参数测试系统","用于JGYZ观瞄装置作用距离、命中率、同步精度、波长、脉冲能量、束散角、波形、重频的测试；用于激光报警装置探测波长、探测概率、虚警率、动态范围、抗干扰能力、抗多径效应能力、反应时间、重频识别、编码识别等参数的测试；用于激光目标ZSQ发射波长、脉冲能量、照射距离、时序特性等参数的测试","长春理工大学","王春艳",13504325709]
[null,126,"光电子及智能传感器","光电信息","HK动态性能测试系统","用于完成武器装备HP、HK系统动态和静态性能参数测试。实现了对自行WQHK“三线”的动态、高精度同步实时测量、无线传输与数字存储；突破了自行WQHK系统动态检测的多项关键技术，开创并实现了在运动平台上的HK系统动态性能的测量与评价","长春理工大学","王春艳",13504325709]
[null,127,"光电子及智能传感器","光电信息","自由曲面折反式360度全景视频图像传感系统","采用自由曲面反射式光电技术系统，结合一体化结构设计，实现了单一CMOS图像传感器件的360°全景图像传感，解决了非球面反射式全景成像系统存在畸变大、中心视场遮栏严重、图像处理复杂等问题。","长春理工大学","徐熙平",13504463957]
[null,128,"光电子及智能传感器","光电信息","零飞仪","采用全数字化成像、数字传输、以及大容量、高速、高可靠性数字存储技术，实现武器系统“零飞”工作方式下系统联动精度测试。目前已经形成三代产品。","长春理工大学","王晓曼",13756869769]
[null,129,"光电子及智能传感器","光电信息","车载视频采集记录器","可实现PAL制式接口、LVDS接口、VGA接口以及CameraLink接口共四种格式视频图像信息的实时采集与无损记录、视频图像信息的压缩与编码，通过无线通信设备实现图文信息收发、态势共享等性能评估与诊断分析。","长春理工大学","赵海丽",13604419852]
[null,130,"光电子及智能传感器","光电信息","飞机管路系统件数字化在线定位检测系统","采用高精度三坐标测量设备，配套专用检测软件，设计空间定位器，搭建飞机系统件数字化在线定位检测系统，提供系统件测量与定位的整体解决方案，实现工艺设计、现场检测与质量管理等核心工序的高度集成，降低工作的复杂程度和劳动强度，提高系统件检测与定位工作效率。","长春理工大学","李丽娟",18946720357]
[null,131,"光电子及智能传感器","光电信息","航电系统数字化装校系统","采用数字化测量技术、建立多站融合测量模型、针对平视显示器、加速器计组件、左右速率陀螺仪、捷联姿态组件、左右激光捷联惯性/卫星组合导航系统、雷达天线安装面、探测部件、IFDL天线和电子战天线等航电设备，设计专用高精度校准样板，设计人机交互测量软件，形成装校工艺规范，提高了装校效率和装校精度。","长春理工大学","李丽娟",18946720357]
[null,{"$f":"ROW()-2","v":132},"光电子及智能传感器","光电信息","全机水平测量系统","将iGPS动态跟踪测量技术和LR三维扫描测量技术结合，建立了iGPS多站发射器测量网络模型，提出了基于遗传算法的多目标测量网络优化布站、不确定度参数寻优方法等关键技术，应用具有自我知识产权的飞机数字化测量理论和技术，配套专用水平测量软件，实现了全机水平测量，检查使用过程中变形情况，保证飞机各个部件相对位置、部件安装质量。","长春理工大学","李丽娟",18946720357]
[null,133,"光电子及智能传感器","光电信息","智能太赫兹无损检测系统","将脉冲太赫兹测量传感器安装在机械手上，建立工业机器人与被测工件之间的位置关系。融合工业机器人技术，通过离线编程的方式，对太赫兹测量传感器的运动路径进行规划，对于大尺寸物体以及异形曲面物体的无损检测具有不可比拟的优势。研发了融合多种智能成像算法、具有自主知识产权的太赫兹无损检测分析软件，可进行被测工件缺陷的智能识别、分析和处理，用于现场多层复杂复合材料在线测量、复杂曲面测量和飞行器全机检测等。","长春理工大学","李丽娟",18946720357]
[null,134,"光电子及智能传感器","光电信息","柱面太赫兹无损检测系统","专为小型、规则圆柱曲面设计的太赫兹时域光谱无损检测平台，发射器、接收器固定在直线位移平台上。检测过程中，利用转台控制被测物体旋转，直线位移平台带动测量传感器移动。控制系统采用模块化设计，通过以太网进行各模块间相互配合，完成圆柱面物体的在线检测，实现对于柱面物体的实时检测及缺陷成像功能。","长春理工大学","李丽娟",18946720357]
[null,135,"光电子及智能传感器","光电信息","高精度经纬仪检定装置","采用反射式平行光管与准线光管结合，适用于可见光和红外光谱区域。可实现宽光谱高精度经纬仪的检定，性能参数稳定。","长春理工大学","车英",13944803692]
[null,136,"精密仪器及先进装备","先进制造","激光焊接与复合焊接技术","将激光焊接与复合焊接技术应用于复杂结构薄壁易变形件、异种金属材料件、大熔深精密零件、新型超高强度钢部件等产品的焊接制造领域，通过简便科学的焊接辅助工装设计、焊接工艺优化及气体保护等关键技术，实现了产品的高效精密焊接，解决了关键部件或产品的高精度、高效率、高质量焊接难题。","长春理工大学","石岩",13944859112]
[null,137,"精密仪器及先进装备","先进制造","激光热处理与熔覆表面改性技术","将激光热处理与熔覆技术应用于以齿轮、齿圈、刀具、模具、发动机关键部件等为代表复杂零部件的表面改性处理，通过工艺-组织-性能一体化研究，突破温度场、变形、裂纹控制等关键技术，实现了复杂零部件表面的有效激光改性处理，解决了关键部件耐磨、耐热等问题，显著提高了其使用寿命","长春理工大学","石岩",13944859112]
[null,138,"精密仪器及先进装备","先进制造","微小零件高速精密微加工关键技术及系统","针对多种材料复杂三维微小零件精密超精密加工要求，突破了精密制造系统集成关键技术，研制成功了小型五轴精密微加工系统；首次采用机械微加工技术实现超疏液功能表面加工，解决了大面积金属超疏液功能表面精密微加工难题。","长春理工大学","许金凯",18043047007]
[null,139,"精密仪器及先进装备","先进制造","功能表面精密制造技术及检测系统","采用电加工及激光微纳加工方式完成超疏水、超疏油、水中超疏油等极端润湿功能表面的制造，并实现材料表面润湿性调控，解决了大面积金属超疏液功能表面精密加工难题。针对功能表面评价技术研制了视频光电技术接触角测量仪，通过光电技术视频的原理，采用悬滴法、附着滴法、斜板法等来测定测量各种液体的静态接触角、滚动角、接触角滞后及液体的表面、界面张力等，并具有相应软件对接触角和表面张力进行计算。","长春理工大学","许金凯",18043047007]
[null,140,"精密仪器及先进装备","先进制造","输电线路远距目标测量仪","采用激光测距与图像成像结合，采用无线数据传输完成输电线路走廊目标尺寸及间距的自动测量，解决了目前电力测量行业中操作人员安全问题以及大幅度提高测量效率。","长春理工大学","于占江",13514310244]
[null,141,"精密仪器及先进装备","先进制造","微小零件表面三维形貌快速非接触检测系统","采用图像显微成像方法，对微小零件表面三维形貌非接触重构，完成对零件表面二维、三维信息提取及粗糙度参数测量，解决了目前微制造测量领域中三维非接触检测的问题，可实现在线表面微尺度下形貌快速检测、宏尺度表面粗糙形貌分析等。实现在精密微制造装备中进行集成使用，提高微小零件精密微加工精度。","长春理工大学","于占江",13514310244]
[null,{"$f":"ROW()-2","v":142},"精密仪器及先进装备","先进制造","活塞环智能计数器","采用基于2D视觉检测技术，可以容许片环有正负30度的偏角，并且不需暗室，对自然光不敏感，实时计数准确率100%，避免了人工计数的不准确，解决活塞环漏装、过装等问题。","长春理工大学","于占江",13514310244]
[null,143,"精密仪器及先进装备","先进制造","新构形法高精度硬齿面插齿刀","采用一种拱形凸曲面-锥基波形面作为插齿刀前刀面，锥基波形前刀面使插齿刀刀\n齿侧刃获得较大主剖面负前角，在保证插齿精度的同时，能有效提高插齿刀抗崩刃能力及斜角切削能力。采用新构形高精度硬齿面插齿刀精插削硬齿面齿轮，齿轮齿形精度高、齿部表面完整性好。","长春理工大学","石广丰",13604367045]
[null,144,"精密仪器及先进装备","先进制造","抛物面高速研磨技术","采用高速研磨加工技术，根据工件廓形需要专门设计特殊曲线，保证磨具在受到一给定力或力矩时，磨具产生的弯曲变形所形成的曲线正好生成工件廓形母线，从而对工件进行成形加工。形状精度高，有利于加工出高精度的抛物面工件廓\n形。可以解决以往抛物面加工难题，促进非球面镜的广泛应用","长春理工大学","张心明",13504326219]
[null,145,"精密仪器及先进装备","先进制造","多波段CVD-ZnS导弹导流罩制造","通过优化CVD工艺及特征尺寸，并结合表面技术，实现了ZnS基底的特定光电性质\n和双波段红外及毫米波的兼容透波，具有对相应环境条件的耐受性能。","长春理工大学","孙艳军",13843176312]
[null,146,"精密仪器及先进装备","先进制造","大尺寸异形电磁屏蔽光电技术窗","通过图形设计及结构参数优化，采用微纳加工技术在光电技术材料表面制作出具有特\n定频段电磁波屏蔽功能的频率选择表面（FSS），实现了FSS在大尺寸、非规则\n窗口表面的制作","长春理工大学","孙艳军",13843176312]
[null,147,"精密仪器及先进装备","先进制造","激光数字直接制版系统","利用计算机图像栅格处理后的数据直接控制激光器对鼓表CTP版进行扫描成像制版，实现印前工艺的全数字化流程。提出了多链路扫描数据处理与分区数据缓存技术，解决了数据链的无缝连接，降低了光电技术系统设计与调试的苛刻要求，提高了分辨率。建立了动态自动聚焦的数学模型，设计了由光栅、全息板与光检器等构成的聚焦误差信号实时检测与聚焦伺服补偿鲁棒控制系统，突破了激光光束动态控制、自动聚焦与光斑会聚的关键技术。利用自适应补偿技术保证了制版速度和各像素点灰度的均匀性、尺寸和距离的一致性，提高了制版系统的成像速度与成像分辨率。","长春理工大学","韩太林",13756901936]
[null,148,"精密仪器及先进装备","先进制造","井口拉压扭试验机","该试验机是配套油田综合试验井井口和油浸试验装置试验罐口辅助完成封隔器的坐封、解封及下井管柱的举升和拆装任务。对上述试验罐口采用液压伺服控制抱夹机构，实现拉力，压力，正、反向扭转等试验。分为行走式和吊装式。行走式适用于多口试验井在一条直线上分布的井坑，采用行车运行进行多口井的换型操作。吊装式对于多口试验井的井坑分布位置不受限制，采用于车吊装实现多口井的换型操作。该机电器系统采用工控机或PLC控制，在屏幕上显示拉力、压力、扭转曲线，具有存储和打印及网络连接等功能。","长春理工大学","王德民",13596175848]
[null,149,"精密仪器及先进装备","先进制造","车轮性能试验机","用于汽车车轮及轮毂的动态弯曲疲劳、动态径向疲劳、冲击试验，检验汽车车轮轮毂的动态弯曲疲劳、动态径向疲劳、冲击等性能试验。","长春理工大学","王德民",13596175848]
[null,150,"精密仪器及先进装备","先进制造","全向交流驱动电动轮","以四轮全向协同驱动技术、无刹车驻车技术、交流驱动及控制技术为核心的行走机械基础部件，具有模块化、转向-驱动一体化技术、无刹车驻车技术、UBS无锁死刹车控制技术、自适应四轮全向协同驱动与控制技术等创新点，对行走机械行业提供一种组态灵活的标准化产品。系统组成主要包括电动轮模块和底盘模块。其中，电动轮模块包括：交流电机、电磁离合器、车轮；底盘模块包括：车架、电池及控制部件","长春理工大学","王淑坤",13756023236]
[null,151,"精密仪器及先进装备","先进制造","大尺寸金属镜超精密研抛技术","准直镜为太阳模拟器的关键部件，它将积分器的发射光束进行准直，实现对外太空太阳照射的模拟。太阳模拟器的准直镜口径为8.2m，材料为铸铝，整个准直镜的反射面为抛物面，使用多块不同曲率的球面单元进行拼装，拟合出抛物面的投射效果。该准直镜为151个单元组成。每个单元为外接圆700mm的正六边形球面金属反射镜。","长春理工大学","张心明",13504326219]
[null,{"$f":"ROW()-2","v":152},"精密仪器及先进装备","先进制造","基于客观心理声学参数的车内NVH控制技术","基于路试实验数据以及FEA、FE-SEA和SEA方法，建立包含驾驶室悬置系统全频声振预测模型，通过研究驾驶员主观认知对声音品质评判机理的基础上，模拟人耳听觉器官和神经系统功能，对动力总成噪声源进行传递函数和相关分析，并建立基于遗传算法的神经网络智能化声品质主观评价系统和车内噪声合成的声品质等效模型和客观心理声学参数计算方法，对车内的声振源和声学舒适性进行分析与评价，并通过优化悬置刚度和声学包装的方法提高了实验对象的NVH性能","长春理工大学","张澧桐",13578738638]
[null,153,"精密仪器及先进装备","先进制造","精密自动钻孔设备","采用PLC运动控制与数据传输、微型传感器与人机交互等多项技术，实现了系统的自动化安全作业。自动进给，钻透自动停止；视频监控，隔离安全操作；作业速度快，安全性好","长春理工大学","车英",13944803692]
[null,154,"精密仪器及先进装备","先进制造","钢球精确计数、筛选、自动包装系统","统采用图像技术进行钢球精确计数，计数准确率为100%。计数过程中能够图像识别不同尺寸的钢球，完全避免人工操作的混球现象。包装采用两封制袋，旋转双工位自动包装，计数包装效率为每袋小于30秒，包装过程中钢球没有任何擦碰伤。该系统能够避免企业由于人工称重计数不准确带来的经济损失，避免由于人工操作带来的混球、球面擦伤等质量问题，同时节省人力物力。","长春理工大学","李彦清",13074301718]
[null,155,"精密仪器及先进装备","先进制造","固液两相磨粒流微小孔精密加工机床","主要用于具有微小孔类零件的超精密加工，可有效去除工件内腔去毛刺、倒圆角及其精密加工，经磨粒流加工后的内腔表面粗糙度值可提高一个数量级，现已在国防、航空航天和精密机械等领域广泛应用。","长春理工大学","李俊烨",13644302228]
[null,156,"精密仪器及先进装备","先进制造","金属基自清洁、耐蚀、抗磨、脱附功能表面制造技术","采用激光、电沉积、喷砂等方法制备金属基表面功能，优化耦合技术构筑材料表面不润湿性、降低表面黏附性，实现表面自清洁性；结合沉积耐蚀材料提高表面耐腐蚀特性；仿生脱附与表面硬度强化耦合提高表面减黏脱附特性，关注多方法复合优化实现多元优异性能，实现适应复杂环境工况。","长春理工大学","李晶",15948389890]
[null,157,"精密仪器及先进装备","先进制造","汽车安全气囊模块性能综合测试试验系统","替代昂贵的车载安全气囊的装车实验，精确地测试车用气囊模块的基础性能参数，为车辆安全性能匹配设计提供指导。通用性强、灵敏度高，可以适应不同型号的车载安全气囊，精确地测试安全气囊模块展开时的反作用力、安全气囊气袋中心点展开瞬间的速度与加速度等","长春理工大学","张澧桐",13578738638]
[null,158,"精密仪器及先进装备","先进制造","智能喷涂机器人","基于模型的离线编程喷涂机器人和自主编程喷涂机器人。","长春理工大学","苏成志",13756889054]
[null,159,"精密仪器及先进装备","先进制造","大型钢筋笼智能焊接装备","采用多轴协同控制技术、钢筋自动成型技术和焊点自动捕捉技术，可以完成对钢筋笼的全自动成型和焊接，解决了钢筋笼制作中人工焊接存在虚焊、漏焊、质量和效率低等难题。","长春理工大学","苏成志",13756889054]
[null,160,"精密仪器及先进装备","先进制造","智慧安防机器人","突破了立体图像识别技术、场景标定等关键技术，可实现对来访人信息、事由等进行自动登记，建立访客为中心的车辆、宠物等匹配关系，对突发事件做出处理","长春理工大学","苏成志",13756889054]
[null,161,"精密仪器及先进装备","先进制造","海绵城市降雨径流集水无线组网采样机器人","突破了水下无线通讯、水密、雨水灵敏探测、低功耗等关键技术，能够实现多点位、多时段水样采集。","长春理工大学","苏成志",13756889054]
[null,{"$f":"ROW()-2","v":162},"精密仪器及先进装备","先进制造","非仿生并联步行机器人","由内外腿并联机构、控制系统、传感系统和通用接口等组成，既无左腿，又无右腿；既无前腿，又无后腿，是典型的非仿生步行机器人。","长春理工大学","苏成志",13756889054]
[null,163,"精密仪器及先进装备","先进制造","衍射光栅金刚石机械刻划成形工艺","针对大面积中阶梯光栅等高端光栅产品的需求，首次提出了机械刻划衍射光栅的滞留效应理论及主副双刀错刃机械刻划方法，开展了中阶梯光栅毛坯大厚度铝膜的弹塑性本构关系测试、刻划过程的有限元可视化拟实仿真技术、刻划工艺参数的综合优化、长寿命金刚石刻划刀具的研制、刻划工艺试验装置的开发、激光衍射对刀方法及对刀仪的开发、主副双刀错刃刻划方法研究、激光原位辅助机械刻划技术研究等等。","长春理工大学","石广丰",13604367045]
[null,164,"精密仪器及先进装备","先进制造","基于金刚石纳米印压方法的微孔成形技术","首次提出了利用金刚石钝圆的尺度效应实现微孔及缩颈孔的印压成形和原位监控技术，开发了自主研制的成形装备，能够通过控制圆锥形金刚石压头及其下压进给量对金属片进行印压，并通过多传感器监控系统（综合声发射检测、多向微力检测和CCD原位图像检测技术）实现薄金属片锥形微孔（小口端直径为亚微米级）的精密稳定成形，极端情况下可实现微米级（≤5μm）的超微孔成形。","长春理工大学","石广丰",13604367045]
[null,165,"光电子及智能传感器","光电信息","多参数自动便携式食品安全检测仪","利用先进的生物技术与光电集成创新，通过自动化、快速、小型化等关键技术研究，开发出多参数自动便携式系列食品安全检测仪器，利用基因重组技术开发出生物检测试剂，实现食品及农副产品中农药、兽药、激素、瘦肉精、重金属等快速、自动、特异、高通量、低成本、便捷检测","长春理工大学","于源华",13596050433]
[null,166,"光电子及智能传感器","光电信息","临床POCT干式生化检测仪及检测卡","采用生物技术与光机电一体化集成创新，采用光反射技术原理的干生化检测仪及单层膜层析及渗透原理的生化试剂干片，便携、简便、样本用量少，优于湿生化","长春理工大学","于源华",13596050433]
[null,167,"光电子及智能传感器","光电信息","生物反应器“细胞工厂”实时显微光电监测仪","利用生物技术、光电技术、计算机技术集成创新研制的光机电一体化产品。用于细胞工厂生物反应器的实时质量监控。","长春理工大学","于源华",13596050433]
[null,168,"光电子及智能传感器","光电信息","食品安全胶体金检测仪器及检测卡","包括多功能、便携、低成本、高灵敏度的快速检测仪器以及配套检测卡，实现了食品安全的快速半定量检测，极大地提升了胶体金检测技术的精准性和检测水平","长春理工大学","于源华",13596050433]
[null,169,"光电子及智能传感器","光电信息","医学临床体外诊断免疫荧光卡式检测仪","为满足我国医学体外诊断POCT快速检测的发展需要，利用生物技术、光电技术、计算机技术等集成创新，研制开发卡式光机电一体化产品及荧光检测卡，可进行免疫荧光试剂卡的定量检测，配合自主研发的试剂卡可进行尿液中激素检测。随着后续的试剂的丰富将能够进行血液和尿液中更多参数指标的测量。","长春理工大学","于源华",13596050433]
[null,170,"光电子及智能传感器","光电信息","数字式哮喘诊断系统","采用传感器测量人体的最大用力呼气信号，模拟信号通过信号调理电路后，由CPU采集对应数字信号，并对多个呼吸参数做相关运算，得到设定时间内的呼吸信号变异率值，实现变异率的测定。建立各个呼吸信号之间的数学模型，对该数学模型进行分析，建立检测结果和气道堵塞程度关系模型，研制数字式哮喘诊断系统功能样机，包括呼气信号采集系统、模拟信号调理系统、数据分析、处理与显示系统及精密机械系统等。开发CPU控制、数据采集处理及显示软件。软件采用C++编程，数据处理实时性强，界面直接美观，操作简单。主要研究了压力传感技术、高速数据采集与处理技术、LCD显示技术、精密机械结构设计技术、软件程序设计技术","长春理工大学","曹秒",13504334200]
[null,171,"光电子及智能传感器","光电信息","机器人三维纳米操纵系统","开发了机器人纳米操纵与NEAs相结合的全方位生物细胞和组织测试技术及系统，突破单探针AFM纳米操纵的功能限制，从二维纳米操纵，提升到三维纳米操纵，在记录细胞动态特性的同时，观测其形貌、振幅等特征，满足高度空间分辨率和亚细胞水平上揭示细胞细节信号的要求，为机器人纳米操纵技术在人类健康领域应用提供可参考的理论依据和实验基础","长春理工大学","王作斌",13596102407]
[null,{"$f":"ROW()-2","v":172},"光电子及智能传感器","光电信息","健侧肌电驱动的上肢主动康复关键技术","通过实时采集和分析偏瘫患者健侧上肢的表面肌电信号，分析健侧运动意图，将健侧运动意图传递给上肢康复外骨骼，实现患侧上肢的主动镜像康复。提高了患者对康复的主观能动性，加速了偏瘫患者的神经重塑，提高了偏瘫患者的康复治疗效果","长春理工大学","李奇",18704484215]
[null,173,"光电子及智能传感器","光电信息","基于混合现实的内窥镜手术导航系统","在图像处理、混合现实、人工智能、自动控制等领域前沿科学技术融合基础之上，通过虚拟与现实场景混合的技术实现了对内窥镜手术的实时引导，有效地增强医生对手术区域和操作的信息获取能力、降低微创手术过程对手术医生主观经验的依赖程度，提高手术的有效性，降低手术风险。提出了术中内窥镜旋转误差补偿及患者移动误差补偿技术，避免了在手术过程中重新对内窥镜与传感器进行标定的不安全隐患","长春理工大学","师为礼",18604465735]
[null,174,"光电子及智能传感器","光电信息","三维医学影像实时可视化系统","提出了基于GPU负载均衡的内窥镜场景渲染方法，实现了虚拟导航场景的实时渲染；提出了基于GPGPU的结肠内壁虚拟展平方法，实时为医生提供当前内窥镜位置展平后的结肠内壁表面；提出了体面结合的三维影像信息标注技术，解决了浮动文字标注缺乏空间信息，无法将标注目标与标注信息在空间上对应起来的问题。","长春理工大学","师为礼",18604465735]
[null,175,"光电子及智能传感器","光电信息","隐形矫正智能辅助诊疗系统","以新一代人工智能技术为基础，结合计算机图像处理及虚拟现实技术，智能辅助医生完成隐形矫治过程中步骤繁琐的排牙工作，降低医生诊疗工作量。提出一种基于卷积神经网络的牙齿及龈缘线分割方法，解决了因压根和牙槽骨区分度低而难以自动分割的问题；提出了排牙正中矢状面自动定位方法，解决了目前临床依靠医生经验定位正中矢状面的问题；提出一种基于临床牙齿分布移动方式约束的多目标优化策略，实现牙齿移动路径自动生成，解决交互式手动排牙存在局限性和随机性，导致误差大、精度不高的问题","长春理工大学","师为礼",18604465735]
[null,176,"光电子及智能传感器","光电信息","基于超声引导的手术导航系统","以三维医学图像处理为基础，借助计算机仿真及虚拟现实技术，研制面向临床应用的基于超声引导的手术导航系统。针对超声相面标定设计了N线标定模型，一次采集就可以获取多个点位置信息，且实现了超声图像中N线点的自动分割标记方法，提高了超声像面标定的速度和精准度；提出了一种结合图像像素灰度信息和空间几何信息的法向量互信息方法，有效提高了配准的精度；提出了基于超声反射和阴影特性的CT图像超声仿真方法，减少计算量，增加了计算的可靠性并且加入了新的超声特性","长春理工大学","师为礼",18604465735]
[null,177,"光电子及智能传感器","光电信息","深透射光氧手足伤治疗仪","基于偏振可见光及近红外光对创面进行密闭式局部照射，并结合局部光氧（TOT）疗法，解决患者手、足部伤口极难愈合问题，有效缩短伤口愈合速度，减小患者痛苦","长春理工大学","王宪涛","0431-85583550/13843195688"]
[null,178,"光电子及智能传感器","光电信息","多光谱激光口腔综合治疗仪","在同一设备上集成多种特定波长的激光并可实现合成激光输出的治疗方法，根据不同激光波长和特定的光功率密度输出的激光对口腔进行照射，可以有效预防和治疗多种口腔疾病，减小患者痛苦。","长春理工大学","王宪涛","0431-85583550/13843195688"]
[null,179,"碳纤维及复合材料","新材料","多功能防激光特种光电技术塑料","将多波段防激光性能及抵御碎弹片冲击功能兼容为一体，以眼镜、防护板、滤光片形式，用于保护人眼、装备工作窗口、光电传感器免受激光辐照受损而致盲。","长春理工大学","段潜",13196012312]
[null,180,"碳纤维及复合材料","新材料","Ho:NGW及Nd:KGW稀土复合钨酸盐激光晶体材料","掺钬钨酸钆钠（Ho:NGW）是一种新型近红外波段激光晶体材料，具有吸收峰宽、荧光寿命长、阈值低、增益大、效率高、热效应小等优点。通过Ho3+的高浓度掺杂，可实现2μm人眼安全、高效率、高脉冲能的激光输出；掺钕钨酸钆钾（Nd:KGW）是一种新的多波段激光晶体，可掺入较高Nd离子，泵浦阈值低、吸收效率高、转换效率高、发射截面大、有较高的拉曼散射效率。","长春理工大学","曾繁明",15143000252]
[null,181,"碳纤维及复合材料","新材料"," 3～5μm中红外激光晶体","掺稀土的复合氟化物体系，热机械性能好，声子能量低，低对称结构（四方和单斜结构），发射截面大，激光效率高，稀土离子易取代，是中红外激光输出的主要工作物质。本成果针对中红外凝视成像制导、激光对抗的需求，成功研制出优质掺钬氟化钇钡激光晶体材料","长春理工大学","曾繁明",15143000252]
[null,{"$f":"ROW()-2","v":182},"碳纤维及复合材料","新材料","中子灵敏微通道板玻璃","采用在微通道板玻璃中引入10B或natGd以使其具备中子探测能力的方法，进行中子灵敏微通道板制作和应用性能的研究，阐明中子吸收、核反应产物粒子的出射及其引发通道中产生电子雪崩的机制，揭示微通道板玻璃中核素的数量密度和微通道板的几何结构对中子探测效率以及中子信号特性的影响及相互间的关系，为基于中子灵敏微通道板的中子探测系统的研究奠定技术基础。","长春理工大学","郑涛",13504323223]
[null,183,"碳纤维及复合材料","新材料","高体电阻率低温封接玻璃","应用在真空技术和电子技术中，实现玻璃-玻璃、玻璃-金属、金属-金属等之间的封接。开展了磷酸盐封接玻璃研究，以P2O5-SnF2-WO3系统为基础配方，添加其他原料来改变封接玻璃性能。为获得较高的体电阻率，同时具有较低的封接温度，玻璃配方中不能含有碱金属氧化物，采用SnF2代替碱金属氧化物的方法，解决了玻璃配方组成与生产工艺系列关键技术","长春理工大学","郑涛",13504323223]
[null,184,"碳纤维及复合材料","新材料","Nd3+/Yb3+共掺1μm波段宽带高增益发光玻璃光纤材料","面向光电技术相干层析技术（OCT）高分辨率成像所需的1μm波段宽带光源，研制出Nd3+/Yb3+共掺硅酸盐玻璃和铋酸盐玻璃，具有物理化学、机械强度以及热学性能良好，荧光半高宽宽和发光增益高的优点，解决了Yb3+泵浦光波段单一，在玻璃材料中吸收截面小的限制，实现多光源和多波段泵浦发光，作为OCT光源的工作介质有效消除生物组织中水的散射对穿透深度的影响，改善成像清晰度和分辨率","长春理工大学","韩科选",15843105010]
[null,185,"碳纤维及复合材料","新材料"," Tm3+掺杂～2μm波段宽带高增益发光玻璃光纤材料","面向飞秒激光多光子荧光显微成像（MFLM）光源和3~5μm中红外光纤激光器泵浦源，研制Tm3+掺杂氟铋酸盐玻璃，具有热稳定性好、声子能量低、OH-含量少、荧光半高宽宽和发光增益高的优点，作为MFLM光源工作介质，有望促进其高成像深度、高分辨率的发展，并且有望成为提高3～5μm中红外光纤激光器泵浦效率的光源工作介质材料","长春理工大学","韩科选",15843105010]
[null,186,"碳纤维及复合材料","新材料","宽光谱响应红外转换荧光材料及荧光屏","一种能够将红外光转换为可见光的荧光屏，利用红外转换荧光材料采用适当工艺在合适基板上制成，屏能够将0.8～1.6μm的近红外光转换成可见光，具有响应光谱范围宽，激发阈值低等特性。","长春理工大学","张希艳",13604435166]
[null,187,"碳纤维及复合材料","新材料","暖白光 LED用Eu2+激活硅酸盐荧光粉","制造低色温、高显色指数大功率白光LED的主要形式是在“蓝光LED芯片+黄色荧光粉”的基础上，以“红、绿色荧光粉”代替黄色荧光粉或是在“蓝光LED芯片+黄色荧光粉”中引入红色荧光粉等方式来来补充光谱中的红色成分，项目组开发了化学稳定性好、粒2+ 2+ 度分布均匀的（Sr Ca ）Si N :Eu 、Ca Sr AlSiN :Eu 系列红色荧光粉。","长春理工大学","刘全生",13504325647]
[null,188,"碳纤维及复合材料","新材料","暖白光 LED用Eu2+激活氮(氧)化物荧光粉","制造低色温、高显色指数大功率白光LED的主要形式是在“蓝光LED芯片+黄色荧光粉”的基础上，以“红、绿色荧光粉”代替黄色荧光粉或是在“蓝光LED芯片+黄色荧光粉”中引入红色荧光粉等方式来来补充光谱中的红色成分，从而实现降低色温、提高显色指数的目的。项目组开发了化学稳定性好、粒2+ 2+ 度分布均匀的（Sr Ca ）Si N :Eu 、Ca Sr AlSiN :Eu 系列红色荧光粉。","长春理工大学","柏朝晖",13604322777]
[null,189,"碳纤维及复合材料","新材料","氧化物系列透明陶瓷","透明陶瓷不仅具有传统陶瓷的优良性能，而且还有较好的光电技术性能，从而得到广泛的研究。钇铝石榴石（Y3Al5O12）具有各向同性的立方晶体结构，同时具有优异的机械、热学和力学性能，是一种理想的透明陶瓷材料基体，能够取代晶体，广泛应用于激光、照明、探测等领域。项目组开展了YAG:Ce3+、Y2O3:Nd3+、Y2O3:Er3+,Yb3+等透明陶瓷的研究，能制备氧化物系列透明陶瓷。","长春理工大学","刘全生",13504325647]
[null,190,"碳纤维及复合材料","新材料","多波长响应荧光材料","可同时对紫外、近红外多波段光响应，拓宽太阳光的光谱利用范围。样品具有发光效率高、粒度分布均匀等特性。","长春理工大学","柏朝晖",13604322777]
[null,191,"碳纤维及复合材料","新材料","酞菁类构筑高分子三阶非线性光电技术镜片","以大环化合物酞菁、萘酞菁、卟啉等为研究对象，研究其与激光和可见光的作用机理，通过化学修饰、预先构筑有序结构和优化分子设计，提高其三阶光电技术非线性性能。在此基础上利用活性自由基聚合技术，将其高分子化。突破基于非线性光电技术理论的激光防护技术原理设计和新材料设计技术，实现在同一波长处，对强光（激光）的高光电技术密度和对弱光（自然光）的高透明度两个指标的兼顾及对宽带可调谐激光的防护需求，对武器装备实施高效的激光防护","长春理工大学","段潜",13196012312]
[null,{"$f":"ROW()-2","v":192},"碳纤维及复合材料","新材料","光电技术非接触式测温用发光温敏漆的研究","该研究已制备了一系列的钌及稀土配合物等探针分子，并对其分子结构、形貌、热稳定性和荧光温度猝灭等性能进行了测试分析，获得了测温灵敏度较高，能够连续、精确、定量、测定模型表面温度分布的温敏漆。所制备的温敏漆在不同温度区间内具有不同的测温灵敏度，应用时可根据需要进行选择","长春理工大学","孙晶",13504329829]
[null,193,"碳纤维及复合材料","新材料","树脂基热防护材料开发与应用","采用有机无机杂化技术，解决系列树脂基热防护材料存在的共性问题，包括：传统烧蚀型热防护材料成型工艺性能差和耐温性能差问题；传统烧蚀型热防护材料耐烧蚀性能差和耐冲刷性能差问题，突破传统热防护材料应用的局限性。针对高新技术产业平台，新型烧蚀隔热材料的产业需求，开发了系列新型耐高温树脂及其烧蚀隔热材料。","长春理工大学","李云辉",13844142204]
[null,194,"碳纤维及复合材料","新材料","钨硅酸盐发光玻璃陶瓷","采用熔融-晶化技术制备了以CaWO4、ZnWO4、SrWO4、BaWO4及NaY(WO4)2为主晶相的稀土掺杂钨硅酸盐玻璃陶瓷。通过体视学分析显微结构和光透过率的关系，优化组成，提高了光透过率。讨论热处理制度和稀土掺杂浓度对玻璃陶瓷样品荧光强度的影响，分析了发光机理","长春理工大学","张洪波",13074302669]
[null,195,"碳纤维及复合材料","新材料","白光LED用多色荧光粉的研究","采用水热合成技术，合成出稀土离子掺杂的氟化物和氧化物荧光粉，通过改变掺杂的稀土离子的种类和浓度在单一基质中实现白光、多色发光及暖白光发射，并提出了不同稀土离子之间的能量传递机理，可用于指导相关发光材料研究。发现稀土纳米发光材料的发光性能受形貌、尺寸影响的实质是受合成过程中水热反应条件的影响。水热反应的时间、温度，反应物浓度，pH值，表面活性剂的种类和浓度及加入的模板剂等对产物形貌产生重要影响，进而影响光电技术性能。","长春理工大学","刘桂霞",15843141627]
[null,196,"碳纤维及复合材料","新材料","进行有机污染物降解同时产氢的有序多孔CeO2\n/ZnO催化剂","涉及一种有序多孔CeO2/ZnO催化剂，该催化剂的生产过程采用的是水热法，具体过程是：先采用模板法合成有序多孔ZnO前驱体，然后采用水热法将CeO2负载到多孔ZnO基体上，同时该过程导致有序多孔ZnO颗粒发生有序重排，得到一种微观形貌为菊花状的纳米粉体材料，菊花花瓣直径为71nm。花瓣表面分布着有序孔道，孔道直径大约为5.2nm。该材料具有非常优异的可见光下光催化降解有机污染物能力，150min内，有机污染物降解率高于98%，更主要的是在光催化降解有机污染物的同时，会有大量的氢气产生，氢气的产率可以达到63.59mmol/g，而且在该过程中不需要加入任何其他的牺牲剂来促进氢能源生产。","长春理工大学","于辉",13756474665]
[null,197,"碳纤维及复合材料","新材料","具有电荷翻转的pH响应基因和抗癌药物共传递体系","利用高分子聚乙烯亚胺-聚赖氨酸-聚谷氨酸的共聚物（PELG）遮蔽同时担载肿瘤抑制基因p53和酸敏感化疗药物乌头酸酐-阿霉素（CAD）的复合物载体体系 PELG/PEI/（p53+CAD），实现具有酸敏感能电荷翻转的基因和药物的共传递体系，解决纳米药物传输过程中需要带负电而内吞时需要带正电的矛盾。该体系担载p53治疗基因和CAD能达成协同治疗的目的，具备在癌症治疗的潜在应用","长春理工大学","李艳辉",13578901583]
[null,198,"碳纤维及复合材料","新材料","高灵敏硝基爆炸物荧光传感","针对实现高效水相及蒸气相硝基爆炸物荧光传感设计出一系列具有高聚集态效率线性聚合物及可均一水相分散的共轭微孔聚合物材料，在水相及蒸气相硝基爆炸物检测中表现出高灵敏性。","长春理工大学","董文月",17390069326]
[null,199,"碳纤维及复合材料","新材料","高性能温差发电材料","利用高温高压合成装置快速制备高性能的方钴矿类热电材料。实现了短时间的快速制备，且样品的机械性能显著提高。在材料的电热输运性能方面可以进行独立调控，有效提高了材料的热电性能。","长春理工大学","邓乐",13843028689]
[null,200,"碳纤维及复合材料","新材料","高寒地区宽温区动力电池储能系统","通过优化宽温电池材料（储氢合金）制备，开发出了可在宽温（-40℃～60℃）应用特色的动力镍氢高能电池，研制出了镍氢动力电池组，应用在纯电动乘用车，增加纯电动汽车冬季续航里程，优化提升动力电池在低温环境输出功率及输出能量的难题，解决北方新能源汽车电池组的寿命、续航、安全性等问题，解决电池“怕冻”的难题，为新能源汽车在我国寒冷地区的发展提供解决方案","长春理工大学","刘万强",13504451399]
[null,201,"碳纤维及复合材料","新材料","原位电化学在线气体监测系统","由四个部分组成，（1）含气体通路的电化学反应池；（2）可切换的多功能气路；（3）微量气体进样口；（4）质谱仪。经设计优化实现了对有气体生成（O2，CO2，H2等）的电化学反应的同步在线监测，对电化学反应过程和机理进行定性指示。","长春理工大学","徐丹",13514318062]
[null,{"$f":"ROW()-2","v":202},"光电子及智能传感器","信息技术","激光大气湍流传输计算机模拟技术","支持各种不同初始参数光束的单向或者双向大气湍流传输模拟，其中大气湍流强度参数用大气相干长度描述。研发的计算机模拟软件提供完善的初始模拟参数辅助选择和合法性检验功能，能够生成给定模拟参数条件下的接收光场随机样本并检验模拟样本统计特性与理论结果的吻合度，同时软件能够支持根据接收面上的平均光强分布来自动选择光场样本数据的保存区域，从而实现以尽可能少的存储空间保存样本数据的目标，同时也可加快后续统计分析过程中的数据加载速度","长春理工大学","陈纯毅","0431-85583348"]
[null,203,"光电子及智能传感器","信息技术","交互式真实感三维场景绘制关键技术","包括动态3D场景的GPU并行化光线跟踪、面光源可见性评估的GPU并行化加速、基于虚拟球面光源的动态3D场景间接光照求解、动态3D场景间接光照计算的空时复用等核心技术；在此基础上研发出交互式真实感3D场景GPU集群绘制系统，绘制系统支持漫反射、镜面反射、光滑反射等物体材质类型，能绘制出镜面高光、柔和阴影、焦散、颜色渗透与辉映等全局光照效果，可输出AVI格式的动画视频。","长春理工大学","陈纯毅",13504460973]
[null,204,"光电子及智能传感器","信息技术","电子稳像技术","基于球面模型的稳像方法首先建立一个虚拟球体，将每一帧图像进行球面投影，映射到该虚拟球面上。其次利用基于ICP的四元数方法计算虚拟球体之间的旋转关系，获取相机的3D运动轨迹。之后将旋转矩阵序列转化到黎曼流形进行平滑，保证了旋转矩阵中元素之间的关系，且可以滤掉高频成分。最后对虚拟球体进行补偿旋转，球面展开获得稳定的图像输出序列。","长春理工大学","方明",18604465030]
[null,205,"光电子及智能传感器","信息技术","多CCD全景拼接技术","具有畸变小、高分辨率、无需伺服等优点，且不会产生鬼影现象，将各个子相机图像进行球面投影，基于罗德里格斯绕任意轴旋转的方法标定各子球面相对位姿关系。确定关键相机，并将各子相机球面变换到关键相机所在球面。将球面图像分解为不同频率的图像叠加，在不同频率采用不同权重来进行图像融合。同时利用其计算的顺序性与重复性，设计并行化处理，达到实时拼接的效果。","长春理工大学","方明",1860465030]
[null,206,"光电子及智能传感器","信息技术","工业制品外观检测系统","以机器视觉技术为核心结合人工智能技术根据工业制品部件的颜色、字符、纹理及形状等特征信息综合对目标进行分析识别。能够对部件的缺失、错位、型号等情况进行有效判断，对环境光照变化、物料倾斜、位置误差等具有显著的鲁棒性","长春理工大学","方明",1860465030]
[null,207,"光电子及智能传感器","信息技术","红枣品质智能评级分拣系统","以机器视觉技术为核心，自动化技术为基础，准实时控制技术为关键，实现红枣品质自主评级及自动分拣。","长春理工大学","方明",1860465030]
[null,208,"光电子及智能传感器","信息技术","基于Placido盘的角膜地形图仪","可以定量地分析角膜形状，将角膜屈光度用数据或不同颜色显示出来，图像信息寄存于CCD中，优势在于通过计算机处理获取角膜形态的各方面信息。仪器软件提供可视化信息，比如散光轴向图、正切分布图、傅里叶地形图、瞬时曲率图、屈光力图、高度图等。","长春理工大学","李延风",18626631376]
[null,209,"其他","信息技术","面向先进制造领域的产品协同设计及流通应用平台","为高端先进制造领域的协同设计与制造提供虚拟现实辅助设计服务，实现多用户设计协作、虚拟设计验证、产品工业造型仿真、虚拟装配及分析、设计方案三维可视化展示；支持分布式企业之间的设计业务协作，共享产品开发相关的标准化设计、制造、信息和技术资源，实现企业异地合作，为构建虚拟制造企业提供技术支撑；提供制造行业协同流通服务，实现供应链数据共享，订单趋势预测、库存资源智能预警、多方供货商智能推荐、物流配送实时监控，解决协同流通服务资源优化调度与配置问题。","长春理工大学","冯欣",18686696698]
[null,210,"遥感卫星及航天航空技术","信息技术","基于北斗地基增强的高精度定位服务系统","与兵器工业集团903所保持长期合作，围绕北斗卫星定位系统，构建覆盖全省的北斗地面差分基站网络，提供基于北斗地基增强的实时处理厘米级及静态后处理毫米级高精度定位服务；以此为基础，收集汇聚北斗高精度定位数据资源，支持行业用户开展实时分米级、厘米级定位应用和离线高精度毫米级定位应用；以北斗时空大数据为核心构建信息网络平台，提供数据分析增值服务，面向吉林省的“数字吉林”、“智慧城市”建设需求，构建车联网、智能交通、智能管网、精准农业、智慧旅游、安全监测等行业高精度定位提供解决方案。","长春理工大学","冯欣",18686696698]
[null,211,"光电子及智能传感器","信息技术","种植环境及农作物生长智能监测系统","面向精准农业的发展需求，提供了集成一体化的种植环境监测装置解决方案，设计研发一体化土壤墒情及地面小气候监测传感装置，实现对土壤墒情、土壤温度、土壤盐分的多深度采集和对空气温湿度、风力风向、降雨量和蒸发量的采集，结合地理位置标定，在进行传感装置本地化数据清洗预处理基础上，通过无线数据传输实现对种植地环境信息的实时采集和汇聚。采用人工智能技术，对监测数据开展深度挖掘和分析，构建对作物生长情况、病虫害情况、产量情况的识别和预测，同时也形成对耕种过程、耕种方法等生产活动的评价和分析，从而达成精细化、智能化的农业生产方式。","长春理工大学","冯欣",18686696698]
[null,{"$f":"ROW()-2","v":212},"光电子及智能传感器","信息技术","精细农业耕作工况远程实时监测系统","面向精细农业生产过程开展秸秆还田覆盖率及深松深度监测，通过无线通信技术开展实时数据传输，采用机器视觉等智能化技术对目标区地理定位、秸秆还田覆盖率指标、深松作业深度、种肥消耗、作业工况等进行连续实时探测，实现动态监测提示和作业异常情况报警，为耕作现场提供作业查看、耕作情况实时监测、工况统计、异常报警和智能数据分析展示等服务。该系统目前已实现耕作工况监测覆盖面积5万公顷农田，建立了免耕播种、变量施肥、定量深松、秸秆还田覆盖率的复合测控技术体系","长春理工大学","杨宏伟",13504325269]
[null,213,"光电子及智能传感器","信息技术","脑控字符输入关键技术","通过实时采集大脑皮层神经系统活动产生的脑电信号，通过计算机分析处理，解读人的控制“意愿”，并将其转化为反映人的意图的控制指令，实现字符输入的外围设备等，从而达到通过大脑“意念”直接与外部进行交流的目的","长春理工大学","李奇",18704484215]
[null,214,"光电子及智能传感器","信息技术","脑控机器人关键技术","采用脑机接口技术，通过戴在头部的感应器捕捉人的脑电信号，利用计算机分析人的意图并转换成机器人的控制指令，通过无线装置发送给机器人，从而实现用人脑直接控制机器人运动","长春理工大学","李奇",18704484215]
[null,215,"光电子及智能传感器","信息技术","不同加工处理阶段的视听觉整合及注意调节脑机制研究","将复杂的视听觉整合过程细化，融合行为学、脑电、功能性核磁共振成像、脑网络等多种技术手段，分阶段的研究后期认知阶段和早期感知阶段的视听觉整合脑机制以及不同加工处理阶段视听觉整合间的相互影响，从局部到全局地探索视听\n觉整合加工处理脑机制，考察注意对不同处理阶段视听觉整合加工处理的调节机制，并在此基础上构建视听觉信息整合加工的理论模型","长春理工大学","李奇",18704484215]
[null,216,"光电子及智能传感器","信息技术","云环境虚拟机与应用数据容灾技术","基于云存储技术，设计并实现了远程异构数据库容灾系统，系统会定时备份数据\n库并对备份文件进行版本化管理；基于虚拟化技术，研发了支持远程实时备份的用户文件系统；基于博弈理论，提出了云容灾的最优备份策略","长春理工大学","底晓强",18604465270]
[null,217,"光电子及智能传感器","信息技术","一体化网络仿真与跨域安全切换技术","基于随机网络演算理论，提出了星间链路性能分析模型，多层卫星网络端到端传\n输性能分析模型，CCSDS文件传输协议性能分析模型，并研发了卫星组网传输演示验证系统。提出了基于角色和属性的一体化网络访问控制架构和访问控制缓存策略，该成果已应用于互联网单点身份认证系统实现跨域访问控制","长春理工大学","底晓强","0431-85583330/18604465270"]
[null,218,"光电子及智能传感器","信息技术","基于超混沌系统的数据加密技术","基于量子细胞神经网络超混沌系统理论实现非对称云数据加密，与传统对称加密\n技术相比，在提高系统安全性的基础上，极大减少了密钥数量，降低了密钥管理成本、系统复杂性和使用成本","长春理工大学","底晓强",18604465270]
[null,219,"光电子及智能传感器","信息技术","高端先进制造产业网络协同制造集成技术平台","实现了国内制造领域的优势研究基础零部件企业和国家高端装备生产企业的有机集成，使得原有的分散创新资源得到有效汇聚。面向高端先进制造产业聚集区域，提供了网络协同制造模式以及网络协同制造第三方服务平台，建设了系统集成，技术服务等网络协同制造技术服务支撑体系","长春理工大学","王鹏",13089116010]
[null,220,"光电子及智能传感器","信息技术","工业供应链协同流通智能管控平台","根据工业供应链中的物质流、能量流、成本流、信息流、控制流及其耦合机理，在工业供应链数据复杂多系统下数据建模、 数据关联融合、工业大数据分析与挖掘、智能控制模型等关键技术基础上，构建了工业数据质量画像、异常检测、质量修复等数据治理体系。拥有不同工序间操作、原料与工况的耦合关联模型，开发基于产品制造过程大数据分析的普适性质量性能预测模型。实现了基于大数据平台的可视化数据分析流程化开发、自动部署运行环境与支持流程知识挖掘的智能管控平台，实现了数据资源的实时共享和服务支持","长春理工大学","王鹏",13089116010]
[null,221,"光电子及智能传感器","信息技术","高端先进制造业虚拟现实辅助设计系统","可以为高端先进制造领域的协同设计与制造提供虚拟现实辅助设计功能，包括制造业领域异构计算机辅助设计、虚拟设计验证系统、虚拟装配系统和分析结果可视化系统在内的功能集成平台，实现高端先进制造协同设计服务的无缝拼接显示并保持状态的长期稳定；打破了制造业领域中产品系统结构系统和设计服务工艺匹配融合的技术壁垒，提供了数据处理时兼顾计算机处理速度与大数据并行要求的合理实施方案，检查产品设计过程中的零件装配干涉等功能。","长春理工大学","王鹏",13089116010]
[null,{"$f":"ROW()-2","v":222},"光电子及智能传感器","信息技术","基于云服务的工业协同设计平台","使两个及两个以上设计主体利用互联网在云端进行信息共享协助，实现研发实验条件的资源共享，确保所有业务领域关键数据的获取以及各领域/流程数据内容的快速访问；支持对海量数据精确管理，在保证数据完整性的前提下实现基于业务流程的数据使用；在实际生产过程中可以保持业务模型之间实体命名关系，使数据价值最大化；既具有工业设计产业化发展的特点，又能与各行业实现无缝对接、深度融合。","长春理工大学","王鹏",13089116010]
[null,223,"光电子及智能传感器","信息技术","1/3英寸系统级CMOS图像传感器芯片","基于110纳米CMOS工艺，设计完成了一款1/3英寸、分辨率为720×576，D1输出的系统级芯片产品。提出了优化4T APS像素设计原理及版图设计结构，提高了像素的填充因子及光电转换效率，并完成6.43μm×6.03μm像素单元设计；创造性提出数模混合的暗电平矫正算法，有效改善了图像质量并有效提升了芯片工作的温度范围。芯片内部亦分别实现了列放大电路、ADC、DAC、锁相环、电荷泵等模拟电路，同时亦集成了时序控制逻辑电路、自动曝光/增益AGC/AEC算法，数模混合暗电平矫正算法、黑白点矫正算法、颜色矩阵/还原算法、白平衡、降噪算法、边缘/对比度增强算法、电视信号编码等诸多算法，是一款数模混合的集光电转换和各种图像处理算法于一身的系统级芯片产品，兼具模拟（CVBS）与数字输出（DVP），是我国第一款该规格类型CMOS图像传感器芯片产品","长春理工大学","姚洪涛",18604465633]
[null,224,"光电子及智能传感器","信息技术","1/5英寸高清CMOS图像传感器芯片","基于110纳米CMOS工艺，设计完成了一款1/5英寸分辨率为1280×720，串行与并行输出兼具的RAW芯片产品。提出了4T APS 2share像素设计及版图设计结构，创造性降低金属层高度并提高转换增益，从而有效提高了像素的感光度及光电转换效率，并完成2μm×2μm像素单元设计；芯片内部亦分别实现了列放大电路、ADC、DAC、锁相环、电荷泵等模拟电路，同时亦集成了时序控制逻辑电路、手动曝光/增益AGC/AEC算法，数模混合暗电平矫正算法、黑白点矫正算法、降噪算法等诸多算法，兼具串行（MIPI）与并行（DVP）数字输出接口，是市场上第一款该规格类型CMOS图像传感器芯片产品","长春理工大学","姚洪涛",18604465633]
[null,225,"光电子及智能传感器","信息技术","1/2.7英寸全高清CMOS图像传感器芯片","基于110纳米CMOS工艺，设计完成了一款1/2.7英寸分辨率为1920×1080，并行输出的RAW芯片产品。采用4T APS 2share像素及版图设计结构，并完成3μm×3μm像素单元设计；芯片内部亦分别实现了列放大电路、ADC、DAC、锁相环、电荷泵等模拟电路，同时亦集成了时序控制逻辑电路、手动曝光/增益AGC/AEC算法，数模混合暗电平矫正算法、黑白点矫正算法、降噪算法等诸多算法，采用10位并行（DVP）数字数字输出接口","长春理工大学","姚洪涛",18604465633]
[null,226,"光电子及智能传感器","信息技术","自然交互的增强现实体验系统","为了提高增强现实系统的体验质量，开展了基于双目视觉信息的自然交互技术和基于多元传感器的增强现实显示技术两方面的研究。提出了采用基于超像素约束匹配的深度计算方法对双目图像进行视觉规范化校正；针对精细动作和大动作的自然人机交互问题，分别实现了基于虚拟手的精细手部动作自然交互和基于运动捕捉的大动作自然交互；研究了多元传感器的数据融合方法，实现了遮挡一致的增强现实虚实融合显示。基于上述技术开发了普适的自然交互增强现实体验开发平台，并基于该平台开发了自然交互的增强现实体验系统","长春理工大学","权巍",15948741058]
[null,227,"光电子及智能传感器","信息技术","数字电影增强现实摄制技术及系统","设计了高精度实时注册跟踪算法，帮助现场导演准确实时地观察到实拍画面与虚拟世界的融合效果；提出了真实场景中光照信息的获取方法和复杂环境光源下虚实场景的实时光照绘制算法，保证虚实场景的一致性；提出了超高清立体摄像图像的高精度实时抠蓝算法，提高真实角色的抠蓝效果；设计了真实感3D虚拟场景实时绘制算法，提高了虚拟场景的真实感；构建了基于动作捕捉系统的虚拟摄像机；设计并实现了超高清立体摄像机系统、蓝箱、基于数字视频管线的合成虚实场景实时显示系统，构建了基于增强现实的数字电影摄制和显示系统","长春理工大学","韩成","0431-85583332"]
[null,228,"光电子及智能传感器","信息技术","视在效果实时分析与定量控制方法及立体摄影系统","提出了基于颜色-纹理模糊积分特征的运动目标检测算法，通过对大量镜头画面和画面序列的统计分析，找出运动目标的图像特征的最优组合，进行运动目标检测提取。提出了立体视在深度在线分析与定量控制的方法，从人眼视觉立体融合机制的角度，创造性地建立“物距-视差-视在深度”之间的数学模型，根据拍摄参数、视差数据、特定的影院环境参数实时地解算目标的视在深度，并对其正确性和舒适度进行分析。首次揭示了垂直视差恒零的立体深度放大系数存在常函数化形态的客观规律，可使用平行放置的立体摄像机组，通过参数优化选取，来实现立体电影在播放时按想定比例、定量、线性还原拍摄期立体目标","长春理工大学","韩成","0431-85583332"]
[null,229,"光电子及智能传感器","信息技术","基于结构光的三维重建与测量系统","引入特殊的标定图像和消失点约束条件，解决了系统参数的多级标定技术难题。设计了自适应De Bruijn彩色结构光编解码方法，解决了调制后图像中心彩色条纹上每个像素点与原始编码图像中彩色条纹的精确匹配技术难题；提出了基于反射分离机制的彩色条纹分离技术，解决了自然环境下复杂物体的高精度解码难题。采用基于色度溢出处理的蓝屏抠像和基于最大似然的点云计算方法，解决了\n三维点云的高精度计算问题；提出了基于动态分层的ICP算法和双正交三进制Loop细分方法，解决了多视点下三维点云的拼接平滑技术难题","长春理工大学","韩成","0431-85583332"]
[null,230,"光电子及智能传感器","信息技术","数字全景立体电影关键技术与应用","解决了多通道投影同步播放的边缘融合难题和多个投影亮度和颜色一致性校正、软幕影像畸变校正、自动精密建模、多人多角度立体画面制作、虚拟场景的高效高真实感绘制等技术难题","长春理工大学","韩成",18904317253]
[null,231,"光电子及智能传感器","信息技术","大型视景仿真平台及应用","提出了以OpenGL为核心，软硬件结合的多通道投影融合拼接技术，达到了60帧/秒的高处理速度；采用虚拟屏幕技术，实现了普通数字媒体在多通道投影系统上播放；实现了通信协议层的USB接口低成本仿真外设与VEGA仿真环境的无缝接入。提出基于GPU的大视场景物畸变的网格校正算法，实现了在普通微机上使用CUDA技术对高清视频畸变实时校正。创立了机理建模与非机理建模、定量仿真与定性仿真相结合的仿真模式，从理论上构建了建模与仿真置信度评估新模型","长春理工大学","韩成",18904317253]
[null,{"$f":"ROW()-2","v":232},"光电子及智能传感器","信息技术","用于无人系统的基于机器学习的环境感知技术","利用激光雷达、可见光/红外光相机等光电传感器对地面或低空机器人周围的环境进行感知与识别，从而对机器人自我定位与导航提供关键性指导信息。使用了人工智能的机器学习技术，使用支持向量机或深度神经网络的分类器对聚类后的目标进行特征提取与训练，进而完成对常见有效目标的识别与跟踪。并在移动平台行进的过程中，完成对空间环境三维重建","长春理工大学","王世峰",18543170645]
[null,233,"光电子及智能传感器","信息技术","基于机器视觉的室内人体检测和姿态识别技术研究","建立了基于机器视觉的室内人体检测与姿态识别的理论机制和系统架构，掌握并开发了室内人体检测和姿态识别的全部核心处理算法","长春理工大学","吕耀文",15044100195]
[null,234,"光电子及智能传感器","信息技术","汽车道路试验云数据采集及挖掘系统","一款针对道路试验汽车定型问题的汽车道路试验云数据采集及挖掘系统，突破了无线传输、视频压缩等技术，能够实现试验车轨迹回放及偏离判定、超速判定等功能","长春理工大学","苏成志",13756889054]
[null,235,"光电子及智能传感器","信息技术","CALYPS 0晶体结构预测方法与应用","研发团队在科技部、教育部和国家自然科学基金委等部门支持下，针对如何从理论上准确预测晶体结 构这一科学难题，提出了基于物理约束的启发式势能面数值求解方案，创建了以CALYPSO命名的计算方 法，形成了一套拥有12万行程序代码和12个功能模块的自主产权计算软件,实现了晶体结构的准确预测。","吉林大学","马琰铭"]
[null,236,"其他","信息技术","领域驱动的网络大数据分析理论与方法研究","本项目围绕大规模信息网络、动态疾病传播网络和多元异构网络开展了网络大数据分析理论与方法 研究，解决了信息获取、疾病防控和复杂系统认知三个领域中亟待解决的挑战性问题。","吉林大学","杨博"]
[null,237,"遥感卫星及航天航空技术","信息技术","星-空-地一体化数字农业技术","星空地一体化数字农业技术，是团队针对农业领域研发的集合卫星遥感、航空遥感及地面观测为一体的 农业遥感监测技术。利用立体的遥感监测方法，结合互联网+技术，研发了一套星空地一体化数字农业技术体 系。实现对农作物的分类、出苗、长势、受灾等情况立体监测及数字农业建设。","吉林大学","陈圣波"]
[null,238,"光电子及智能传感器","信息技术","发动机噪声有源控制方法研究","汽车噪声会使车内人员烦躁疲累，给人身心健康带来许多危害，影响行车安全，使驾驶体验感降低，影响乘车舒适性。随着汽车品质的提升，消费者在关注汽车的参数、外观和安全性的同时，车内 噪声水平对舒适性的影响也成为客户的关注点。基于多通道Filter-X自适应滤波算法，针对被动降噪无法去除的低频发动机轰鸣噪声，利用车载音频系统进行主动降噪研究，达到车内使人更为舒适的声学环境。","吉林大学","吕伟国"]
[null,239,"光电子及智能传感器","信息技术","高精度星敏感器","高精度星敏感器为本实验室新研制产品，测量精度可达1\"(X/Y), 8\"(Z),数据更新率lOHZo团队在星 敏感器理论研究、设计、硏制、检测、在轨标校等方面具有丰富的经验，并取得了丰硕的成果。研制的微型星敏感器在“吉林一号”卫星上得到成功应用。新研制的高精度星敏感器即将交付，择期发射。","吉林大学","张刘"]
[null,240,"光电子及智能传感器","信息技术","基于增强现实与驾驶员自然视野拼接的汽车透明A柱","汽车A柱透视化车载显示装置通过摄像头釆集车辆外部环境信息，并通过视觉算法的整合处理，将适应驾驶员的被A柱遮挡的驾驶图像通过布置于车辆A柱位置的LED显示屏实时显示。在确定驾驶员视角的条件下，准确快速地计算出驾驶员对应盲区 位置，进而通过透视、仿射等变换在对应的位置补偿A柱盲区图像。本成果建立了汽车行驶环境的自然 视野图像融合算法，具有计算量小、实时性好、适应性强的特点，可以在不同车型上快速地实现匹配。","吉林大学","无"]
[null,241,"光电子及智能传感器","信息技术","光电技术相控阵芯片","光电技术相控阵芯片能够控制光束空间扫描，在激光雷达、三维扫描、三维成像、激光测距等领域具有重 要应用。本成果是一种硅和氮化硅混合光波导的，大角度扫描、窄发散角的光电技术相控阵芯片，集成了光耦 合器、分束器、PN结型和热光型相位调制器、单波导双光栅单向辐射器等。目前光束发散角0.021度 X0.027度，横向市场扫描角度可以达到140度，纵向通过调节波长，可以达到19度，点点切换时间30微 秒，平均功耗小于1微瓦。","吉林大学","宋俊峰"]
[null,{"$f":"ROW()-2","v":242},"光电子及智能传感器","信息技术","硅基光电子集成緒硅（雪崩）光电探测器","错硅（雪崩）光电探测器在短波红外成像，光通信等领域具有重要的应用。釆用CMOS技术兼容的 硅基光电子集成技术，研制出世界首个三电极错硅雪崩光电二极管阵列芯片。暗电流<1.0e-7A,光电流 >1.0A/Wo","吉林大学","宋俊峰"]
[null,243,"光电子及智能传感器","信息技术","基于单片机技术的仿真咀嚼系统","根据人齿口腔咀嚼环境与咀嚼机制，设计了符合人齿咀嚼运动的仿真咀嚼系统，可对食品进行充分咀 嚼。该系统包括仿真咀嚼结构、驱动装置结构、数据釆集及数据分析结构。咀嚼结构部分由上颌装配体和 下颌装配体组成；驱动装置结构由两个步进电机、两个步进电机驱动器、硬件系统和上位机组成。数据采 集与数据分析结构由应变片和应变仪组成。这些基础硬件及软件对检测对象没有限制，仿真咀嚼机器人的 咀嚼过程基本模拟人的口腔，因此可对不同的食品进行检测。","吉林大学","闫守庆、王笑丹"]
[null,244,"光电子及智能传感器","信息技术","基于多维高斯分布贝叶斯分类的癌症复发预测系统","本发明设计一种基于多维高斯分布贝叶斯分类的癌症复发预测系统。该系统利用预处理模块、训练 模块和贝叶斯分类器实现癌症复发的预测。预处理模块对训练集进行数据清洗并生成类向量数据集；训 练模块首先计算两个类属性先验概率，然后利用pearson相关系数将数据属性分成与类属性关联度紧密 的类数据属性集合和与类属性关联度稀疏的两类数据属性集合，两类数据属性集合分别利用多维高斯分 布和一维高斯分布来计算相应的概率；贝叶斯分类器将两者概率及类别的先验概率联合共同作为数据属 于每个类的概率，并据此判别癌症的分类测试结果。本发明提高了癌症是否复发的预测准确率。","吉林大学","李玲"]
[null,245,"光电子及智能传感器","信息技术","基于机器学习的孕前期及孕中期唐氏综合征筛查方法","本发明公开了一种基于机器学习算法的孕前期及孕中期唐氏综合征備查方法，旨在提高唐氏综合征筛 查的准确率，解决唐氏筛查指标存在地域性差别的问题。该筛查方法包括：一、数据的统计和预处理，计 算原始数据集中样本的概率分布情况并对数据进行格式上的统一。二、采用支持向量机算法、决策树算法 以及提升方法分别对原始数据进行处理，划分训练集和测试集，对检出率、假阳性率、准确率三项指标进 行评估。实验表明，使用本发明提出的将支持向量机算法应用于孕前期及孕中期唐氏综合征筛查，能够获 得比传统方案更高的检出率和更低的假阳性率，具有更高的性能。","吉林大学","李玲"]
[null,246,"光电子及智能传感器","信息技术","基于球面光电探测器阵列的智能高效光伏发电系统","该光伏发电系统利用球面光电探测器阵列探测空间中光强的分布，找到光强最强的方向，然后利用 无线传输将光强最强的方向数据传输给连接有自动转向功能的太阳能电池板，调节太阳能电池板的角度使阳光直射其表面，保持接收最大光强的能量来提高发电效率。目前该系统已完成软件、硬件以及结构 部分的绝大多数设计，已经实现跟随太阳光移动的功能。","吉林大学","沈亮"]
[null,247,"光电子及智能传感器","信息技术","基于射频调制技术的井下高灵敏度氮光泵磁传感器","深井长期观测使地学研究直接深入到地球内部，能够有效地排除城市化、工业化、现代化发展带来地 面噪音。深井磁法探测是实现综合地球物理观测的核心方法之一，对实现科学、精确找矿满足国家能源需 求，实现科学、主动防灾满足国家安全需求都具有重大意义。","吉林大学","王言章"]
[null,248,"光电子及智能传感器","信息技术","基于数字微镜器件的色散型原子荧光光谱仪","针对非色散型原子荧光光谱仪无法识别并扣除光谱干扰和散射干扰，致使其相关检测方法在国外的 生产和应用有限的问题，提出以数字微镜器件(DMD)为空间光调制器、凹面光栅为分光器、光电倍增 管为检测器的色散型原子荧光光谱仪，旨在克服干扰，提高原子荧光产业竞争力，促进国际认可，获得 更大的市场空间。研制的专用DMD控制器和色散信号采集器实现了全谱、快速釆集，研制的测控系统实 现了新型仪器各部件协调有序工作，开发的分析测试软件按照专用通信协议实现了环境、食品样品分析 流程的自动控制与结果分析，研究了Se、Pb光谱干扰、散射干扰扣除方法以及信号增强技术，受邀参 加于西班牙巴塞罗那举行的“World Chemistry Forum\"(世界化学论坛)并作主题报告。仪器工程化 样机已在北京、河北、长春多家应用单位试用，反应良好。","吉林大学","无"]
[null,249,"光电子及智能传感器","信息技术","吉林大学扫码门禁系统","吉林大学扫码门禁系统，是专用于吉林大学六个校区的门禁设备。门禁系统主要包括三个部分，一是嵌入式二维码扫码系统，扫码速度＜0.5s,并且具有动态码随时配置系统参数功能，吉林大学六个校区已有43个扫码终端；二是基于4G网络的分布式轨迹信息数据传输系统，支持TD-LTE、FDD-LTE通信模式，支持自定义语音提示功能，支持多点终端认证校验，支持授权人员二维码动态判定，分布式终端数量43 个；三是轨迹追踪软件，与祥云公司“吉祥码”系统对接，具有二维码扫描定位功能，支持轨迹查询和追踪功能。","吉林大学","无"]
[null,250,"光电子及智能传感器","信息技术","计算密集型任务向云服务器中卸载的方法","本发明公开了计算密集型任务向云服务器中卸载的方法，克服了移动云计算中任务卸载机制不高效的问题。","吉林大学","李玲"]
[null,251,"光电子及智能传感器","信息技术","近海底痕量C02及其同位素传感技术及应用","深海探测团队由王言章教授作为学术带头人，核心成员陈晨教授，万云霞高级工程师和众多硕博研究 生组成，与广州海洋地质调查局深度合作，长期致力于深海可燃冰精细勘察。在国家重点研发计划项目 《近海底高精度水合物探测技术》（编号：2016YFC0303900,广州海洋地质调查局牵头）支持下，利用 吉林大学自主硏制的近海底高精度水合物地球化学探测系统，由广州海洋局作为成果应用单位，2019年11 月和2021年4月分别在中国南海北部神狐海域和琼东南海域分别开展了对天然气水合物矿体的定量评价和 储层精细描述，查明了矿体的空间分布、储层特征及储量潜力。","吉林大学","王言章"]
[null,{"$f":"ROW()-2","v":252},"光电子及智能传感器","信息技术","驾驶疲劳智能监测手表","驾驶疲劳智能监测手表集成了驾驶员心率、心率变异性、血压和皮电生理指标采集功能，以及驾驶 人手腕运动姿态指标采集功能，能够实现行车中实时釆集并上传驾驶人生理指标及腕部运动指标；手机 根据上传数据判断驾驶人是否进行正常驾驶，以及判断驾驶人是否处于疲劳状态；同时当疲劳状态发生 时，智能手表通过振动和温和电击的方式实现对驾驶人的提醒功能。","吉林大学","李世武"]
[null,253,"光电子及智能传感器","信息技术","利用伪谱法实现颅脑模型下相控阵声场聚焦","基于声学伪谱法开发颅脑模型下相控阵声场聚焦的技术，实现超声相控阵声源对脑部病灶进行超声聚 焦，从而达到对脑部肿瘤的无手术精准治疗。为在复杂颅脑模型下实现相控阵声场聚焦，采用虚拟点源及 时间反转的方式，通过在颅脑内部设置虚拟点源计算相控阵阵元处的声波到时，提取到时形成相控阵延时 数据进行激励，实现在虚拟点源位置的声场聚焦。分析聚焦声场特性，分析各参数对聚焦声场影响规律， 确定最优发射形式及换能器参数。在以上计算实现的基础上，逐步建立几何分布不规则的更接近真实状态 颅脑模型，从而对实际聚焦声发射提供延时数据。","吉林大学","吕伟国"]
[null,254,"光电子及智能传感器","信息技术","面向汽车尾气检测应用的混成电位型车载NOx传感器","YSZ基混成电位型NOx传感器具有良好的热稳定性和化学稳定性，非常适合在高温、高湿、多种气体并存的汽车尾气的苛刻环境中对NOx浓度进行检测，应用于传统燃油汽车发动机的燃烧控制和尾气净化系统监控。","吉林大学","卢革宇"]
[null,255,"光电子及智能传感器","信息技术","面向长波长LED应用的石墨烯/SiC衬底上应变弛豫GaN薄膜的外延生长","成功在石墨烯/SiC衬底上实现了应变弛豫GaN薄膜的外延生长，并发现了其在长波长LED中的应用潜力。研究发现，石墨烯的插入极大地降低了GaN薄膜中的双轴应力，有效提高了InGaN阱层中In原子并入，使量子阱发光波长显著红移。该成果有助于推动高性能、长波长氮化物发光器件发展。","吉林大学","张源涛"]
[null,256,"光电子及智能传感器","信息技术","命名数据网络下实时流数据分发的方法","本发明提出了一种命名数据网络下的实时流数据分发的方法，能够实现高效的实时流数据分发，并 降低网络负载，并増加用于与流数据源的交互性。","吉林大学","李玲"]
[null,257,"光电子及智能传感器","信息技术","智能微震感知周界安防预警系统","智能微震感知周界安防预警系统以浅地表运动目标微震感知为探测基础，内置高准确性、高鲁棒性智能振动识别算法，能够准确、快速地识别人员（走路、跑步、跳跃）、车辆、坦克等多种非法入侵目标，运用窄带通信、NB-loK 2G/4G、北斗、低轨卫星等物联网通信技术，形成了空天地一体化的无人值守智能周界预警系统，在边境防御、战场前沿态势感知、重要军事设施防护等领域充当着重要的前沿电子哨兵 的角色。在环境恶劣、无人值守的区域全天候工作，展现出了卓越的预警性能。","吉林大学","周求湛"]
[null,258,"光电子及智能传感器","信息技术","牛肉味觉品质智能测控系统","味觉传感器装置不仅可以检测牛肉汤汁，也可以适合各类食品味觉成分的定量定性检测，根据检测的样品的不同，构建不同的数学模型及相应的数据库。","吉林大学","闫守庆、王笑丹"]
[null,259,"光电子及智能传感器","信息技术","制液流电池流动传质优化关键技术","本成果是一种计算数值模型，它基于多场耦合的有限元方法进行建立，并得到了实验结果验证，该模型能够模拟钢液流电池的充放电过程。使用该模型能够得到电池在不同电极参数、流道形状等工况下的库仑效率、正负极过电势以及进岀口压差等，该模型的模拟结果与实验结果的误差为1.53%,能够可视化实验不可测得的变量。在此基础上，在模型中引入拓扑优化方法，对钢液流电池的双极板流场形状与尺寸进行调整，进一步提高电池流场的适用性与系统效率。本成果在新能源开发与储能领域需求广泛，市场前景好，目前数值模型的建立与验证已基本完成，正着手于调整优化算法，提高运算速率。","吉林大学","曲大为"]
[null,260,"光电子及智能传感器","信息技术","人工智能与图像处理","基于深度学习的图像分类、目标检测、图像分割和图像检索等算法，典型应用场景包括人脸检测 与识别，猪脸（羊脸等）检测与识别，口罩、安全帽、行人等检测。","吉林大学","王生生"]
[null,261,"光电子及智能传感器","信息技术","人工智能找矿预测系统（IMP）","本成果基于新一代信息技术，研发出了人工智能找矿预测系统，发明了 “一种地质图的向量化表示方 法（专利申请号：202110068210.4） ”，突破了地质信息在找矿预测中难以应用的问题；发明了 “一种基 于深度学习的嗅探智能找矿预测方法（专利申请号：202110068202.X） ”。开发完成了集成多种方法的智 能找矿预测系统（IMP1.0）,实现了地质图网格化、智能地质解释、智能地质成矿地质分析、矿床模型知 识图谱、矿产预测等五大功能。完成了《智能找矿预测技术方法指南（讨论稿）》的编写。","吉林大学","薛林福"]
[null,{"$f":"ROW()-2","v":262},"光电子及智能传感器","信息技术","柔性有机电致发光器件的薄膜封装","阻碍柔性OLED显示实用化的关键问题主要在于空气中的水氧对其产生致命的威胁。研究团队自 2008年以来在薄膜包覆领域开展研究，利用薄膜形成阻隔水氧进入器件的阻隔。这种方法使OLED器件更轻薄，寿命更长，机械性能更优异，是OLED器件封装未来的发展方向。我们利用原子层沉积制备了 ALO,薄膜封装层。通过研究发现，以臭氧为前驱体制备的AbO,薄膜的性能要比用水作为前驱体并且在低温条件下制备的薄膜更为优越，对于60nm的AI2O3薄膜，利用水制备的薄膜的水汽透过率 (4.9xi0-4g/m2day)远高于利用臭氧制备的薄膜的水汽透过率(8.7xi06g/m2day,测试条件：温度20°C,湿度60%) , OLED寿命从而有了显著提高。我们的方法比采用传统方法的封装薄膜性能提高近 56倍，该结果在2020年完成了鉴定，为国内有报道的最高水平。","吉林大学","段羽"]
[null,263,"光电子及智能传感器","信息技术","手机音频抗干扰高集成并行测试技术","针对多工位手机间的音频抗干扰问题，使用声场分离技术，解决了隔音箱内多个声学发声部件的声场干扰，实现了单个隔音箱内三部手机的并行音频测试，大大提高了手机厂商生产效率。与华为有限公司合 作开发并实现手机多工位音频抗干扰并行测试，技术难点在于手机间的扬声器、听筒等发声部件间信号及 测试使用的多个人工嘴发声信号的相互干扰，且由于多部手机同时测试时响应时间具有很大的随机性，相 互间的延迟时间较大，增加了理论方法的实现难度。通过理论方法考察硏究和实验测试，实现了三部手机 SPL、THD和RUB同时测试，测试误差均满足目前的测试要求。","吉林大学","吕伟国"]
[null,264,"光电子及智能传感器","信息技术","双光子聚合3D打印系统","飞秒激光双光子聚合系统将飞秒激光双光子聚合技术与逐点3D打印工作方式相结合，实现亚微米级空间分辨率的打印精度。该系统适合对于多种结构器件进行增材制造，适用于高等院校及科研院所进 行微纳光电技术、集成光电技术、微机械、微流控以及生物兼容性器件等方向研究。","吉林大学","李乾坤"]
[null,265,"光电子及智能传感器","信息技术","透明显示/照明技术","本课题在中意两个研究团队前期工作基础上，就目前钳制OLED实用化的关键问题开展研究，即硏究如何一步提高照明用OLED的效率和寿命稳定性的方法；同时利用团队自身的研究优势深入探究柔性器件体系 的物理机理。通过中意之间的国际合作，开发了具有自主知识产权的多项技术，在有机OLED所涉及的器件结构、器件工艺两方面实现了关键物理与技术问题的突破，形成若干具有自主知识产权的技术和成果，培 养一批高素质的有机半导体器件研究开发人才，为发展具有高附加值的下一代固体照明技术奠定基础。","吉林大学","段羽"]
[null,266,"光电子及智能传感器","信息技术","新型具有透明-黑色•镜面模式的智能","由传统玻璃和照明方式导致的建筑耗能激增问题日显突出，需亟待开发具有节能、环保、实用特性的新技术。吉林大学研究团队针对这一迫切需求，聚焦具有“透光-阻光-反光”三种工作模式的新 型光电子器件，使其成为集自然光透过、保温隔热于一身的“智能”玻璃。本项目通过原子层沉积技术结合薄膜光电薄膜的微纳米加工工艺实现上述功能。在实验环节打通基于多模式智能窗功能集成的 关键科学问题，为实现具有我国自主知识产权的智能玻璃技术奠定基础，同时为玻璃产业升级提供了—条新思路。","吉林大学","段羽"]
[null,267,"光电子及智能传感器","信息技术","应用于节能环保的新型电致发光/反光器件","主要研究成果：\n(1)研制出当时世界上驱动电压最低的白光OLED,亮度1000cd/m2,驱动电压仅为2.9V；\n(2)研制出具有“透明-黑色-镜面”三种模式的多功能智能玻璃产品，简化制备工艺；\n(3)将原子层沉积技术引入到气体透过性测试中，打破了美国模康公司垄断，获得了 106g/m2-day的 水汽测试精度，通过第三方技术鉴定。","吉林大学","段羽"]
[null,268,"光电子及智能传感器","信息技术","用于糖尿病DKA预诊断的便携式丙酮检测仪的产业化应用","糖尿病是常见的内分泌代谢疾病，最常见的糖尿病并发症是糖尿病酮症酸中毒（diabetes ketoaci- dosis.DKA）,随时监测糖尿病患者是否发生DKA对保护糖尿病人的生命安全具有重要意义。对呼气中 丙酮浓度的检测能有效判断DKA是否发生，实现对病情的无疼诊断。YSZ和Ce6基混成电位型丙酮传感 器具有灵敏高、稳定性好和成本低等特点，是开发便携式糖尿病人DKA检测仪的理想器件。","吉林大学","梁喜双"]
[null,269,"精密仪器及先进装备","先进制造","高温高频材料力学性能原位测试仪器开发与应用","本成果面向航空航天等众多领域关键材料性能测试需求，突破了高低温超高周疲劳载荷加载、高低温 复杂疲劳载荷加载、多数据融合分析等“卡脖子”技术问题，解决了材料性能测试领域中高温、复杂静动态机械载荷下材料力学性能原位测试问题，属于一种高端科硏仪器。","吉林大学","赵宏伟"]
[null,270,"精密仪器及先进装备","先进制造","低温微纳米压痕测试仪器","本成果属于一种高端科研仪器，可实现多尺度的压痕测试，并集成接触-氛围混合制冷腔室，可精准获得薄膜/块体材料低温下压痕力学性能测试参数，研究材料低温环境下应力应变模式和变形失效机理。本成果在材料微纳米力学性能测试表征领域需求广泛，市场前景好，目前仪器研发阶段已基本完成，正着手产业转化实施。","吉林大学","赵宏伟"]
[null,271,"精密仪器及先进装备","先进制造","超高温/双轴材料力学性能试验装备","本成果属于一种超高温双轴材料力学性能测试装备，具备2500°C以上的真空/氛围的超高温加载和 0-10HZ. 100KN的拉-拉、拉-压、压-压等复杂机械静动态载荷加载能力；同时可开展高温工况下高温数字散斑、激光超声和激光红外热成像等原位测试。","吉林大学","赵宏伟"]
[null,{"$f":"ROW()-2","v":272},"精密仪器及先进装备","先进制造","不锈钢城轨车体焊接质量监测技术及装置研发","城市高效、绿色交通的迫切需求，促进了不锈钢城轨客车的快速发展。不锈钢车体结构基本特点是 由数万个小尺寸电阻点焊或激光焊点组焊而成的薄壳结构，焊接质量控制是保证不锈钢车体结构强度及制造质量的关键，不锈钢车体焊接质量监测已成为关系不锈钢城轨客车制造质量的关键技术之一。吉林大学焊接质量监测技术团队多年聚焦不锈钢车体电阻点焊、搭接激光焊焊接质量的在线监测及无损检测 技术与装置的研发，为相关制造企业保障不锈钢车体焊接制造质量提供技术手段。","吉林大学","徐国成"]
[null,273,"精密仪器及先进装备","先进制造","超快激光加工精密技术及应用","超快激光加工系统配置高重频飞秒激光放大器及高精度大行程气浮导轨直线电机位移平台，实现亚微米级空间分辨率的加工精度；同时配置空间光调制器(SLM)进行激光焦斑整形,可将飞秒激光聚焦于透明材料内部直写加工。该系统适合对于多种结构器件进行减材制造或折射率改性制造，适用于高等院校及科硏院所进行光波导直写、光纤光栅刻写、硬质材料精密切割与钻孔、材料表面微纳加工等方向研究","吉林大学","李乾坤"]
[null,274,"精密仪器及先进装备","先进制造","辅助胸腹腔微创手术的新型机器人系统","开发了一种功能模块化的新型机器人系统，该机器人系统可根据医生实际需求选择机器人工作模式。该机器人系统可代替助手把持内窥镜和进行辅助的组织牵拉，在语音控制下辅助医生独立完成手术；亦可工作于手术机器人模式，医生通过操纵主控制台的主操作手，在主-从随动模式下控制机器人完成手术操作。该机器人系统作为医生的“第三只手”，可以辅助医生独立完成手术，该机器人装置的 通用性适合于多种胸腹腔微创外科手术，这种融合传统微创手术和机器人技术的手术模式更适合在中国医院推广。","吉林大学","冯美"]
[null,275,"精密仪器及先进装备","先进制造","复杂机电产品可靠性试验技术与装备","提出了针对数控机床技术特点的可靠性广义设计技术理念，开发了可靠性分配设计技术、可靠性预计 设计技术、可靠性增长设计技术和可靠性设计核检技术。构建了数控机床可靠性广义设计技术体系，编写 了 “机床设计手册修订与设计成果集成”的“机床可靠性设计篇”。创新提出并开发了数控机床可靠性综 合试验技术，主要包括可靠性现场试验技术、早期故障试验技术、多维载荷谱系编制技术、可靠性台架加 速试验技术，构建了数控机床可靠性综合试验技术体系。先后发明了电力测功与多自由度电液伺服相结合 的广义静/动态切削力模拟新技术、电液伺服控制的静/动态切削力模拟新技术、按单刀重量谱和全链重量 谱加载的刀库载荷模拟新技术及环境应力/机械应力的同步加载新技术，硏制了具备复杂工况模拟能力的机 械主轴与电主轴、数控刀架与动力伺服刀架、盘式刀库与链式刀库、编码器与光栅尺等四大类关键功能部 件可靠性测试与加速试验系统22台套。","吉林大学","陈传海"]
[null,276,"精密仪器及先进装备","先进制造","并联双发动机共轴式无人直升机","目前，双发动机共轴式无人直升机由于悬停效率高、结构紧凑、气动布局对称，在民用和军事领域得到广泛应用。目前市场上的无人机虽然结构简单、价格低廉、飞行灵活，但搭载载荷低，振动大，难以实现高空，长航。本项目研制的无人机釆用双发动机对称布局，双输入差分式减速器结构，经共轴中空式主轴传递动力予上下旋翼，増大转速同步性，平衡衰减减速器输入端两侧振动频率，采用4桨叶结构，增大起飞重量，克服双发动机体积重量，与现在无人机比，结构紧凑，可搭载重载，振动小，可靠性高。","吉林大学","陈延礼"]
[null,277,"精密仪器及先进装备","先进制造","仿生自行走静压触探装置","以蚯蚓在土壤中穿行为模仿原型，通过系统自身的孔壁支撑和伸缩联合蠕动机构就能自动完成向下静压给进；采用双钻头交替伸缩方式能够将给进力自主按比例分配给内外钻头，更有利于静压快速给进；通过旋振机构的高频低幅振动有利于整套钻具顺利破泥进尺；为探测需要，到达预计深度（或设计深度区 间）后探头仓自动启动检测气体并实时无线回传到地面接收和控制系统。","吉林大学","高科"]
[null,278,"精密仪器及先进装备","先进制造","仿生自平衡自适应石材锯切装置","以自平衡自适应理论为理论依据，由双转子电机、内锯片驱动电机、外锯片驱动电机、内锯片导 轨、外锯片导轨、锯片调整距离传感器、内锯片导轨固定、内锯片支座、外锯片支座、锯片固定螺母、 轴承、外滑环、内滑环、内锯片以及外锯片组成，利用部分切割工具切割石材产生的反力驱动另一部分切割工具继续切割石材，反向切割产生的反力相互平衡，实现了切割力在切割单元内部的自平衡，稳定性增强，从而实现装备的结构简单、重量轻，对石材原材料强度要求低和效率高等目的。","吉林大学","高科"]
[null,279,"精密仪器及先进装备","先进制造","同步带传动系统数字化设计及刚柔耦合动力学仿真关键技术","本成果幵发了具有自主知识产权的同步带传动系统数字化与智能化设计以及刚柔耦合动力学仿真计算专用软件工具，指导企业自主开发和分析了多款汽车发动机正时同步带传动系统，利用该专用软件还可以实现同步带齿形的优化设计以及系统的NVH特性分析，为提出具有自主知识产权的同步带新齿形和新标准提供了一种设计与性能分析及验证软件平台。","吉林大学","冯增铭"]
[null,280,"精密仪器及先进装备","先进制造","扫描电镜内原位划痕测试仪器","本成果属于一种高端科研仪器，仪器结构尺寸小，可安装于扫描电子显微镜等监测仪器中开展定量原位划痕测试，获取划痕测试曲线，同时实现划痕过程中压头与试件接触区域的动态观测。本成果在先进材料与加工领域需求广泛，市场前景好，目前仪器研发阶段已基本完成，正着手产业转化实施。","吉林大学","黄虎"]
[null,281,"精密仪器及先进装备","先进制造","大功率液力调速产品集成设计关铤技术及其节能应用","大功率液力调速产品是国家急需的重要节能装备，可实现大型泵与风机等高耗能设备的转速随负载自适应调节。国内的液力调速产品研究面临着设计周期长、成本高等难题，饱受“无可靠机具可选”的桎梏，大功率产品 O5000KW）更是空白。该科研团队提岀了大功率液力调速装置多流域耦合的尺度解析模 拟方法，建立了动态空间非定常多尺度漩涡流动可视化测量体系，首创了定子/转子耦合叶片边界层流动新 型仿生主动控制技术，首创了液力调速装置工作腔内流场、温度场、应力场等多场耦合模型，基于以上研 究内容，最终融合轴向力动态监控预测模型和运行热平衡反馈自动补偿系统，搭建了智能化运维平台，大 幅度缩减了产品的研发周期和研发成本。科技成果鉴定意见为“瞬态流动尺度解析计算与性能预测达到国 际领先水平”。","吉林大学","刘春宝"]
[null,{"$f":"ROW()-2","v":282},"精密仪器及先进装备","先进制造","模块化制造执行系统(MES)开发","为吉林省某钢结构企业量身打造的模块化制造执行系统，为行业其他企业提供重要参考。该项目涵 盖管理驾驶舱、项目管理、生产计划、生产管理、质量管理、能源管理、设备管理、文档管理等主要功能模块，全方位无死角对生产现场进行监控和管理，通过数字化生产过程控制，借助自动化和智能化技术手段，实现车间制造控制智能化、生产过程透明化、制造装备数控化和生产信息集成化，为打造智能工厂奠定坚实基础。","吉林大学","刘鹏"]
[null,283,"精密仪器及先进装备","先进制造","面向制造领域的数字享生应用开发平台DTworks","开发面向制造领域的数字挛生应用开发平台，针对柔性制造过程产生的大量实时数据，幵展了生产计划管理、设备健康管控、仓储管理、物流管理、看板管理、质量管控、工件追溯、资源协同、动态调度等技术研究。","吉林大学","刘志峰"]
[null,284,"精密仪器及先进装备","先进制造","典型土壤薯类挖掘仿生减阻技术","研究可提高挖掘部件减阻、耐磨、脱附和自锐性能的仿生结构和制备技术；设计具有不同表面仿生结构的挖掘部件及相应制造工艺；利用仿生减粘脱附设计和加工方法试制适用于东北粘重土壤的薯类收获机具挖掘装置；通过仿生结构设计试制适用于西北多石壤土、提高部件自锐性能、降低作业阻力的薯类收获机具挖掘装置。使薯类挖掘铲挖掘阻力降低14.45%,耐磨性提高13%,漏掘率1.34%。","吉林大学","马云海"]
[null,285,"精密仪器及先进装备","先进制造","机艺融合的节能深松技术及装备","解决了基于非连续介质力学耦合多体动力学的深松动力机理、节能深松装备关键部件设计和构建仿生结构优化和协同工作机制等关键问题；设计并完成了 12套关键部件的优化设计与试验，经国家农机具质量 监督检验中心等第三方检测机构验证，所研发的节能深松装备与传统深松铲相比，深松深度＞40cm，深松 作业阻力降低11%-19.87%,关键部件耐磨性提高14.8%, 土壤含水率提高15.3%,较好地解决了深松工作 阻力大、深松深度不达标、机具磨损失效严重等问题。","吉林大学","马云海"]
[null,286,"精密仪器及先进装备","先进制造","损伤性颅骨修复体钛合金网格板曲面成形技术","该项目借鉴多点成形技术的柔性成形的技术特点，釆用了直径更小的钢球作为冲头。钢球不仅可以压制板材，可以在上部驱动的作用下进行旋转，更加促进了板材的塑性变形。其创新性和技术水平在于成形的板材厚度可以更薄，成形板材上的局部曲率半径更加小，提高板材曲面件的成形质量。","吉林大学","胡志清"]
[null,287,"精密仪器及先进装备","先进制造","纳秒级可调组合脉冲发生器","本实验室多年来致力于激光诱导击穿光谱及其相关仪器的研究，为解决对激光器工作参数与工作模式的精确控制问题，本实验室基于FGPA芯片结合高速D/A设计了一款可调组合脉冲发生器。该产品的功能为：输出1~34路首尾相邻的脉冲，其中组合脉冲的数量可调，每个脉冲的幅值和脉宽可调；该产品的指标为：脉宽调节分辨率为10ns,电压调节分辨率为3.7/2048V (0.001V)；该产品通信方式为：由上位机发 起，一问一答，串口数据格式：115200, 8N1, ASCii码。由于该产品良好的性能和稳定性，已经通过合作 的方式在多家单位进行应用示范。","吉林大学","无"]
[null,288,"精密仪器及先进装备","先进制造","曲面零件多点柔性成形技术及成套装备","金属三维曲面零部件被广泛应用在航空航天、轨道车辆、轮船舰艇、压力容器、建筑雕塑等领域。 传统的曲面模具成形方式成本高、周期长，无法实现低成本、快速制造，已经成为制约行业发展、实现数字化制造的瓶颈。吉林大学多点成形研发团队历经二十余年的研究，发明了多点柔性成形方法，提岀 了一系列多点柔性成形技术；研制了商品化曲面多点数字化成形装备，实现了厚度从0.5mm至60mm的 不同材质板料自由曲面成形的智能化；并将多点成形技术应用于高铁生产、船舶制造、建筑雕塑、医学工程等多个生产生活领域，取得了显著的经济效益与社会效益。","吉林大学","刘纯国"]
[null,289,"精密仪器及先进装备","先进制造","容积式金刚石绳索取芯液动冲击钻具","在资源勘探中，当钻进坚硬岩石和破碎地层时，钻进效率显著降低，钻进成本大幅提高。在传统金刚石绳索取芯钻进技术的基础上，对金刚石钻头耦合一高频的冲击可有效地解决上述问题。本项目通过釆用容积式原理的液动冲击器，将金刚石绳索取芯技术与液动冲击回转技术组合为一体，能实现高频冲击、高效的钻进。这项技术与国内现有技术进行了生产性的对比试验，试验结果表明：在坚硬地层钻进时，在外界条件相同的情况下，冲击频率提高了接近4倍，钻进效率也有成倍的提高。","吉林大学","杨红东"]
[null,290,"精密仪器及先进装备","先进制造","无线无源非接触谐振式智能电流传感器","吉林大学微工程与微系统实验室(英译：JLU MEMS LAB；简缩：JML),坚持“基础与应用并 重”，致力于“智慧传感与智能机械”的深度融合。实验室拥有“微纳制造”、“健康监测”、“集能 供电”、“先进量测”及“智能传感”等五个研究方向。目前主持承担国家自然科学基金面上项目3 项，在先进传感与微纳制造领域发表SCI论文近100篇，其中一级学科顶级期刊论文C类论文9篇、JCR1 区16篇、JCR2区36篇、授权专利40余项。","吉林大学","王东方"]
[null,291,"精密仪器及先进装备","先进制造","道路主动除冰雪导电复合型材与智能监控技术","依托吉林省科技厅计划项目，针对主动融冰雪“卡脖子”技术难题，提出道路融冰雪高性能材料一结构一体化设计理论及灾害主动防范方法，实现绿色、低能耗、安全、低成本、易施工、智能化地防范冰雪灾害。提出由产热层、传热层和隔温层组成的道路融冰雪结构层一体化设计理念，在道路工程复杂环境下 的物理力学性能及耐久性稳定。开展了融冰雪结构层实际应用中的优化铺设设计，构建了道路冰雪灾害主 动防范多源感知的智能监控系统，应用于公路、桥梁和机场路面工程中。","吉林大学","魏海斌"]
[null,{"$f":"ROW()-2","v":292},"精密仪器及先进装备","先进制造","无钻机多钻头自平衡自适应大口径智能钻进系统","突破常规思维，幵发出不需要钻机的多钻头自平衡微扰动智能钻进系统，实现大幅度降低大直径竖井的钻进成本、提高钻进质量、缩短成井周期、降低钻进成本。","吉林大学","高科"]
[null,293,"精密仪器及先进装备","先进制造","多参数可控原位精确干燥实验台","JK-LB1700型多参数可控原位精确干燥实验台采用了多项国家专利技术，是传统薄层干燥实验台的升级版，很好地解决了传统薄层干燥实验台只能控制介质温度而无法控制介质湿度的问题。","吉林大学","吴文福"]
[null,294,"精密仪器及先进装备","先进制造","高性能特种工程塑料增材制造","研发了多种特种工程塑料增材制造装置和方法，对聚謎謎酮、聚謎硕等典型特种工程塑料及其复合 材料增材制造进行了深入研究，探究了典型特种工程塑料及其复合材料的增材制造混合工艺、制造机 理、工艺参数以及表征方法等，进而达到优化工艺路线，改善材料性质，提高机械性能的目的。","吉林大学","吴文征"]
[null,295,"精密仪器及先进装备","先进制造","型材三维拉弯扭柔性成形设备、工艺及模具成套技术","型材三维拉弯扭转成形制件是指在两个相互垂直的平面内均有弯曲或扭转的成形制件。传统的三维拉 弯扭转模具依赖设计人员的经验，成形制件的回弹难以准确控制。本项成果采用离散化元体设计方法，将铝型材构件三维拉弯扭模具的成形面分为若干段，每段均作为成形模具的一个“单元体”。每个“单元体”可随时更换单元体头部，并且单元体的形状和位置可调，可以完成多个自由度的模具包络面精确调整，实现型材构件三维拉弯扭柔性成形。具有以下技术优势：\n(1)一套拉弯扭成形模具可成形不同构件截面、不同成形曲率的制件，可以极大地减少模具的数量。与传统的整体式拉弯成形模具相比，模具总成本仅为整体式模具的1/10-1/5。\n(2)生产效率高，拉伸、弯曲、扭转耦合变形一次性完成，无需传统拉弯方法的分步、多工序成形。\n(3)制件成形质量优异，回弹变形控制精度高，消除了折痕、局部变形等缺陷。","吉林大学","梁继才"]
[null,296,"精密仪器及先进装备","先进制造","叶轮机械增效降噪仿生技术","针对航空发动机风扇/桨扇、潜艇、水雷等装备的阻力与噪声问题，通过研究低噪声飞行生物及海洋生物体宏/微观结构对周围流场参数的自适应规律，揭示其低阻、低噪、高效的生物功能原理，构建了复杂触流部件的“系统仿生”设计的理论，发展了仿生流动控制技术，并率先在重型装甲车辆散热风扇、家用电器风扇、高压通风机、无人机螺旋桨实现了应用。","吉林大学","张成春"]
[null,297,"精密仪器及先进装备","先进制造","智能化物探专用旋翼无人机","国家“十三五”重点研发课题“智能化物探专用旋翼无人机系统研发”由吉林大学承担研发，课题隶 属于中国自然资源航空物探遥感中心牵头的“航空磁场测量技术系统研制”项目。研究目标：针对航磁梯度和全张量梯度测量为代表的快速移动平台探测技术，研制一款重载荷、长航时、具备三维精确导航和自主避障能力的智能化物探专用旋翼无人机系统。","吉林大学","于显利"]
[null,298,"精密仪器及先进装备","先进制造","大行程两自由度FTS系统","用于超精密车削的快速刀具伺服(FTS)是欧美工业界高度关注的一项高附加值新技术，可以用于 加工成光电技术自由曲面和微纳结构表面元器件及模具，能主动补偿加工误差，提升超精密车床的工作精度，有着十分广泛的应用需求，具有国内领先水平。项目组研发了系列化的FTS系统，10余项发明专利获得授权，亟待幵展FTS的产业化工作。本项目将致力于大行程两自由度以上FTS系统的工业化产品开发，重点开展FTS系统的动态优化及可靠性设计、FTS系统的动态特性与度保持性实验等技术研发。本 项目幵发的大行程两自由度FTS系统将填补国内外市场的空白。","吉林大学","周晓勤"]
[null,299,"精密仪器及先进装备","先进制造","主动式自平衡自补偿自保护智能的密封技术与方法","以深海生物为模仿原型，开发出主动式自平衡自补偿自保护智能的密封技术与方法，通过设置压力平衡储液腔、蓄能气体包、潜水液压泵、自保护密封支撑、自保护密封气囊、自保护气体发生壳体、自保护气体药品和自保护发热电阻丝，解决了现有的仪器设备密封部件在复杂恶劣环境下工作时安全性和稳定性较低，仪器设备容易损伤的问题。","吉林大学","高科"]
[null,300,"精密仪器及先进装备","先进制造","祝融火星车移动系统通过性能试验关键技术","在我国天问一号火星探测(TW-1)重大专项中，项目团队负责完成了祝融火星车移动系统通过性能评估及关键技术攻关等任务，主要成果包括：(1)移动系统5KM寿命试验及车轮结构优化；(2)复杂条件下火星车移动系统失效机理与验证；(3)研制了JLUMARS系列模拟火壤。以上成果都已在TW-1中进行应用，广受好评。","吉林大学","邹猛"]
[null,301,"精密仪器及先进装备","先进制造","结构分析自主CAE工业软件","项目团队长期致力于CAE工业软件的开发，功能有：1.结构静态分析，可输出位移、应力、应变；2.结构模态分析，可输出频率与振型；3.结构温度场分析，含稳态温度场与瞬态温度场分析；4.结构瞬态动力学分析；5.结构拓扑优化设计。能够计算的本构关系有：线弹性材料、几何非线性材料、超弹性材料、纤维 增强复合材料。能够计算的结构自由度在1000万以内。可应用于汽车、轨道车辆、航空航天、工程机械的 结构设计领域，软件已在一汽、宝钢、中车等取得了成功应用。","吉林大学","左文杰"]
[null,{"$f":"ROW()-2","v":302},"新能源及动力电池","新材料","高压下钠和锂单质及二元化合物的结构与物性","研发团队在科技部、教育部和国家自然科学基金委等部门支持下，以钠和锂单质及二元化合物为研究对象，从高压相的结构和物性入手，围绕高压下金属一绝缘体转变这一核心科学问题，开展了系统性的高压相变研究。发现高压下金属钠转变为透明绝缘体的奇异现象（图1）,破解了金属锂的高压半导体相的结构谜团，实现了高压下金属一绝缘体转変，突破了固体高压下金属化的传统观点和认识。成果入选中国基础研究十大新闻和国家“十一五”重大科技成就展，被国际同行作为经典工作在NATURE. PRL等期刊的167篇论文开篇首句或首段引用，成果获2015年国家自然科学二等奖。","吉林大学","马琰铭"]
[null,303,"新能源及动力电池","新材料","一种多元高强耐蚀变形镁合金及其制备方法","基于新型低合金含量镁体系开发及其短流程可控快挤压技术，王慧远教授团队发明了一种多元高强耐蚀变形镁合 金及高效挤压成形工艺，其挤压速度相较于传统AZ31变形镁合金提高10倍以上，突破了 “现有商业镁合金 挤压速度慢、板带材生产效率低”瓶颈。","吉林大学","王慧远"]
[null,304,"新能源及动力电池","新能源","固态金属空气电池","研制了一种基于分子筛薄膜的全新固态电解质材料，由于合理的孔道结构和丰富的低活化能位点锂离 子的分布，该分子筛膜固态电解质展现出高达2.7X10-4Scm」的离子电导率、低至1.5X 10-10 Scm1^电子电导率、以及对空气成分和锂负极的高度稳定性，有效解决了现有固态电解质材料的界面构建困难、内部裡枝晶和稳定性差等问题，并通过原位生长策略构建了柔性固态锂空气电池。得益于良好的“电解质-电极”低阻抗接触界面，该电池展现出优异的电化学性能、良好的柔性、环境适应性和安全性。同时，分子筛固态电解质的应用还可以拓展到锂离子电池、钠离子电池、镁离子电池、钠空气电池等储能体系，展现出重要的应用前景。该研究成果有效推动了固态电解质材料和固态储能电池的创新发展。","吉林大学","徐吉静"]
[null,305,"新能源及动力电池","新材料","高性能有机电致发光材料","技术研发团队带头人王悦教授（教育部长江学者特聘教授、国家杰岀青年基金获得者）在OLED材料基础研究及应用技术开发领域有20余年的工作经验，带领的技术研发团队包括具有教授、副教授职称，以及具有博士或硕士学位的研发人员20余名，其中多人具有海外留学经历和多年的OLED材料领域从业经验。","吉林大学","王悦"]
[null,306,"新能源及动力电池","新材料","高性能连续纤维增强聚醒髄酮复合材料及其应用","获得了成熟的连续纤维增强聚謎謎酮复合材料预浸带及其复合材料制品的制备工艺技术，降低了复合材料的成本。这种复合材料是西方发达国家致力于研究开发和应用并限制对我国出口的高性能树脂基复合材料。这种高性能树脂基复合材料质量轻、强度高、模量高、抗疲劳、耐腐蚀、层间剪切强度高和耐湿热等，能够被广泛地应用于苛刻环境下；生产制备过程绿色环保，成型周期短，贮存周期和使用寿命长，复 合材料可以回收利用。这种复合材料是火箭、导弹、飞机和航天器等国防军工装备需求的高性能轻质高强 新型材料，在核电站、高速轨道列车、汽车、化工等民用高技术领域亦有重要的需求。","吉林大学","王贵宾"]
[null,307,"新能源及动力电池","新能源","储能用电池新体系与全固态电池","锂电池是目前商业化最成熟的电池技术，在3C电子产品、电动汽车等领域得到了广泛的应用。然而 地壳中的锂储量有限且分布严重不均。这些缺点导致了锂电池价格逐年上涨，并俨然成为世界各国角逐 的重要战略资源。与锂处于同一主族的钠/钾元素在自然界储量丰富，发展钠/钾电池新技术有望一举解 决锂资源不足和电池价格居高不下两大难题","吉林大学","杜菲"]
[null,308,"新能源及动力电池","新材料","新型生态护坡产业化","为解决生态效果与固坡效果的矛盾设计的独特护坡砖，有植物生长口，层叠铺设及尾椎深入护坡土层，留有适合动物生长繁殖的条隙，花草及小型灌木等植物根系可以通过植物生长口伸向坡体土壤，改善 河道生态环境，抗激流冲击、耐冰推，防春季冻土软化造成的滑坡，可大规模应用于河、渠、湖、塘及 路基边坡、不稳定山体等坡体。","吉林大学","王瑛玮"]
[null,309,"新能源及动力电池","新材料","1,3,4-噁二嗖类有机发光和电子传输材料的分子设计与合成","设计并合成了一系列联1,3,4-噁二嗖衍生物，首次明确地提出了对称的分子结构有利于增强分子内的电荷转移。详细地研究了分子结构，如取代基的种类、位置和数量，分子的对称性等对分子内电荷转移性质的影响，进一步优化提高分子内电荷转移性质。通过理论模拟，揭示这类分子的电荷转移机制为平面型。 利用1,3,4-噁二嗖环，构建了弯核Hockey-stick形分子，由非手性分子获得了一个全新的手性液晶态(Chi_x001F_ral random grain boundary phase, RGB),这一工作被选为2014年的热点。此外，设计并合成了一系列 棒状、盘状、多爪型的1,3,4-噁二哇衍生物，详细地研究了其热致液晶性与溶液中的分子自组织性，在本体 和溶液中分别获得了具有层状、柱状等多种自组织结构的液晶性有机半导体材料，实现分子聚集体结构的 可控制备。开展有机半导体材料的晶体工程研究，通过分子结构与晶体生长条件的改变，系统地调控了分子晶体的结构，获得了具有高发光效率的J-和X-聚集态，和高载流子迁移率的密堆积状态。通过实验与理 论计算相结合，详细地研究了分子排列结构对材料的发光与电子传输性质的影响，制备得到一系列性能优 异的有机半导体材料，并掌握分子设计的原理。","吉林大学","王海涛"]
[null,310,"新能源及动力电池","新材料","超分子荧光材料制备及应用","超分子荧光材料含有可逆的非共价键相互作用，可以对外部刺激，如机械力、热、光、酸/碱、离子等呈现可逆的荧光变化，并且外部刺激不会造成分子结构的破坏，分子可循环使用。该成果围绕超分子荧光材料制备及应用工作，主要包括：1.一种荼基酰踪衍生物及其制备方法和在数据加密和储存中的应用；2. 一种联酰胺衍生物及其制备方法和在荧光材料制备中的应用。","吉林大学","韦珏"]
[null,311,"新能源及动力电池","新材料","多元少量高强塑性镁合金及其大压下量短流程制备方法","镁合金作为最轻的工程结构金属材料，在航空航天、汽车和通信等领域备受青睐。镁合金板材是目前深加工领域最具发展潜力的产品之一。然而镁为密排六方结构，滑移系少，塑性变形能力差，轧制过程中开裂严重，高合金含量的镁合金难以轧制成形，因此通常需要采用长时间热处理和多道次轧制，流程复杂且能耗较大。","吉林大学","王毋"]
[null,{"$f":"ROW()-2","v":312},"新能源及动力电池","新材料","多种二维金属有机框架材料自组装用于高性能超级电容器","本发明涉及一种具有高导电性金属有机框架材料的合成技术，在常规金属有机框架的合成过程中适当添加导电配体可显著提升材料电导率，进而提升其电化学性能。与传统提升电导率的复合材料制备方法相比，本方法操作更为简单，绿色环保。通过引入导电配体，在金属有机框架中形成导电网络，激活周围活性位点，大幅提升电化学性能。","吉林大学","邓霆"]
[null,313,"新能源及动力电池","新材料","惰性环境深度脱水脱氧材料","开发了惰性环境深度脱水脱氧材料，循环气体净化后，HzOWlOppm, O2〈50ppm,净化材料高效再生，批次再生率不低于99.5%,使用寿命不低于5年，连续运行200 h不需再生，吸附含氧量〉6L/kg,再生次数不低于20次。","吉林大学","闫文付"]
[null,314,"新能源及动力电池","新材料","高能量密度、高功率密度超级电容器电极材料","在可持续发展的社会生活中，可快速充放电的超级电容器将成为重要的先决条件，并可能很快主导世界电力市场。在超级电容器领域中，过渡金属氧化物电极材料是满足高能量密度商业需求的理想候选材料，然而其低的循环稳定性和慢的电荷储存动力学阻碍了其商业化的进程。因此，我们的研究目标致 力于解决上述关键科学问题。我们通过Sr掺杂和Ag负载，显著提升了LaMnCh材料的导电性，并进一步 简单的水热法和退火将钙钛矿结构的LaMn03\\Lao.85Sro.i5Mn03与NiC0204复合形成核壳材料，取得了 1560F g\"的最大比电容和63.5Wh kg，的高能量密度。通过环保的碳模板浸渍法调控双钙钛矿La2CoM- nO6使其具备多孔空心球型形貌，增加反应活性位点，最终组装的非对称电容器具有2V的宽电位窗口和 65.8Wh kg」的超高能量密度。","吉林大学","田宏伟"]
[null,315,"新能源及动力电池","新材料","高性能聚合物杂化质子交换膜","碳达峰碳中和是我国重大战略决策。燃料电池作为一类新型清洁能源技术在双碳战略中受到了广泛关注。质子交换膜是燃料电池的核心部件，直接影响着燃料电池的功率性能和使用寿命。目前，商用的全氟磺酸型质子交换膜仍面临着低湿条件下电导率偏低、功率偏低等问题。本成果发展了一种以杂多酸对全氟磺酸膜进行改性提升的新策略。我们通过将有机共价接枝的杂多酸杂化引入到全氟磺酸膜基体，发挥了杂多酸的高质子传导性和保水性等优势，制备了具有高稳定性和高质子电导率的杂化质子交换膜。这类膜材 料装配的燃料电池所表现出的输出功率远高于商用Nafion膜。该成果为我国新能源交通、低碳发电等领域 提供了一种高性能质子交换膜材料。","吉林大学","李昊龙"]
[null,316,"新能源及动力电池","新材料","颌面骨修复植入材料骨诱导修饰技术研究","钛及其合金已广泛用作人工膝关节、股关节、口腔种植体等，但钛金属的生物活性具备潜在的可扩展性，其本身不与周围骨组织形成有效骨结合，因此，需要对钛金属植入材料表面修饰，以期提高钛表面骨诱导性能。","吉林大学","黄卫民"]
[null,317,"新能源及动力电池","新材料","基于电子自旋极化磁耦合机制的原子层次可控自组装方案","在理论上设计了一种基于电子自旋极化磁耦合的自组装方案途径。来自不同内嵌金属富勒烯型超原子基元上的自旋极化电子可以相互配对键合，以保证体系沿着一维方向延展。第一性原理的计算和分析表明，随着基元数目增加的链状排列体系总相互作用强度近于线性增长；体系的电子结构性质基本不受到基 元数目的影响。以上结果证明了这种基于电子自旋极化的磁耦合自组装方法是可行的。并证明了在没有配 体保护的情况下，由于超原子基元自身的核-壳结构和类原子的电子排列特点，使得基元在自组装过程中保持了电子结构的鲁棒性。","吉林大学","王志刚"]
[null,318,"新能源及动力电池","新材料","聚芳醍高性能涂料","聚芳謎类涂料是以特种工程塑料聚芳醍碰和聚醒謎酮作为基体树脂，添加填料、颜料和助剂等制备得到，其具有优异的防腐性、耐高温性、机械性能、不粘性、耐磨性等特点，可广泛应用在石油、化工、机械等领域。获得国内发明专利10余项，发表文章30余篇，聚芳謎涂料已经中试生产，拥有一条 30t/y的涂料生产线。","吉林大学","祝世洋"]
[null,319,"新能源及动力电池","新材料","基于铝镣合金在线供氢的氢能源技术及应用研发","铝镣合金是一种集制、储氢为一体的新型能源材料，通 过加水快速实现按需在线供氢。且该材料为固体、块状，易 于储存、输运和贩售。","吉林大学","魏存弟、高钱"]
[null,320,"新能源及动力电池","新材料","可见光响应环境光催化材料","项目团队以典型半导体光催化材料为硏究对象，开展系统性研究，设计与构建了高效太阳能转化光催化剂。例如，制备了g-GN\"RGO/MoS2三元异(2D/2D/2D)质结构光催化剂，通过几何结构优化提升光生电荷的分离转移能力，从而缩短光生载流子从体相扩散至表面所经历的路径，提高光催化活性。还制备了氮硫元素掺杂石墨烯量子点复合二氧化钛光催化剂，可以有效地利用太阳光，同时増加了表面催化反应活 性位点，协同提高体系光催化活性。项目团队从根本改善了光催化剂的光吸收、光生载流子分离迁移及表 面催化反应等科学问题。所制备的光催化剂在能源转换和环境修复方面具有优异的性能，为设计与构建高 效太阳能转换用光催化材料提供新的思路。","吉林大学","田宏伟"]
[null,321,"新能源及动力电池","新能源","利用秸秆生产燃料乙醇的新工艺","在世界范围内，利用秸秆生产燃料乙醇，一直是可再生能源研发和产业化的重点。秸秆炼制乙醇的工艺流程一般采用同步糖化发酵工艺(SSF) 0采用SSF工艺，乙醇的产率较低。为了提高乙醇产率， 课题组原创性地提出高密度发酵耦合同步糖化发酵新工艺(HCDC-SSF)。采用HCDC-SSF新工艺，利用秸秆生产燃料乙醇的产率提高37%0更重要的是，釆用传统SSF生产乙醇，乙醇产量达到峰值的时间为72小时，而釆用HCDC-SSF,乙醇产量达到峰值的时间提前到36小时，从而大大降低了秸秆炼制乙醇 的生产成本。","吉林大学","任晓冬"]
[null,{"$f":"ROW()-2","v":322},"新能源及动力电池","新能源","面向高能量/功率密度的高效清洁杂化储能电极材料与器件","致力于能源存储和转换材料构效关系解析和高性能开发，具体涉及：\n1.氢氧化物单胞基近体相的纳米电极储能器件的研制。得到2019年诺贝尔奖获得者、锂电之父古迪纳夫高度评价。\n2.电池超电杂化型碳基双离子绿色储能器件的研制。能量密度可达70Whkgi,功率密度可达 ISOOWkg1,解决了电池和超级电容器在能量密度和功率密度两者“鱼和熊掌不可兼得”的难题。\n3.配备低温电解液的贋电容超级电容器的开发。在-40C仍可正常工作，适用于苛刻的军事和野外条件下作业所需的高稳定性。\n4.基于模板法制备具有垂直结构的二维纳米电极材料，有效抑制电极脱落而提高电极稳定性的新工艺。\n5.调控表面能抑制锂枝晶的新技术。得到2019年诺贝尔奖获得者、锂电之父古迪纳夫高度评价。","吉林大学","张伟"]
[null,323,"新能源及动力电池","新材料","耐久红外反射镜涂层","本国家自然科学基金面上项目针对传统反射薄膜的耐严苛环境性能差的“卡脖子”难题，瞄准“高红外反射率与高硬度集成难”的科学难题展开研究。制备出的红外反射镜薄膜，具有与传统反射镜薄膜接近的红外反射率，硬度、耐磨损性能、耐酸腐蚀和耐盐腐蚀能力分别提高到10、10、25和53倍，更适合防护严苛环境。本项目团队隶属于吉林大学郑伟涛教授领导的低维材料课题组，围绕先进功能与硬 质薄膜材料开展研究。已在有影响力国际学术期刊上发表SCI论文70篇，其中4篇发表在金属材料顶级 期刊Acta Mater,以及1篇发表在光电技术领域顶级期刊Light: Sci. & Appl.（年度高下载论文）；主持5项国 家级课题和多项横向课题；已授权国家发明专利11项；作为主要参加人获得吉林省科学技术进步一等奖 以及朱良漪分析仪器创新奖。多次指导学生获得省级或校级优秀博士/硕士学位论文等奖项。","吉林大学","胡超权"]
[null,324,"新能源及动力电池","新材料","耐摩擦有机超疏水表面制备技术","团队开发出一种超疏水涂料，通过纳米技术再现荷叶效应。能够使所涂覆表面与水的接触角大于 150°,水滴滚动角小于或等于5°,即在倾斜很小的角度时，水滴都会滑落。该涂料比常规超疏水涂层具有更好的力学强度和耐久性，并且不会因刮擦而被剥离。涂覆该种超疏水涂料后，可使物体像荷叶或荷花一样，出淤泥而不染，达到抗污和自清洁效果，适用于建筑物外墙、汽车表面、风电叶片等。该超疏水涂料的主要特点：（1）涂覆表面与水的接触角大于150°,滚动角小于5°； （2）高耐水和抗污性；（3）施工方便，可 以刷涂、辐涂、喷涂，可以进行室温干燥；（4）超疏水涂料是由非常特殊的聚合物组成，具有非常好的力学 性能，耐摩擦、磨损性能优异。","吉林大学","王海涛"]
[null,325,"新能源及动力电池","新材料","镣黄铁矿基电解水制氢材料","利用高性能电催化剂分解水制氢/制氧是可持续清洁能源体系发展的一个重要研究方向。迄今为止，贵金属Pt和RuO2/lrO2是性能最优异的HER和OER催化材料，但高成本和低储量限制了广泛应用。 因此，开发一种储量丰富、催化活性高、稳定性好的非贵金属电解水材料成为近年的研究热点。我们硏 究团队通过矿石浮选实现了镣矿的原位提纯，使与催化活性密切相关的过电位降低至48mV,塔菲尔斜 率低至43mV-dec1,循环稳定性达到100小时。随后，我们通过球磨降低了镣黄铁矿的粒径，实现了 非晶化高导电性载体的构建，从而实现了低祐含量单原子和团簇的高效分散，最终达到协同提高电催化 析氢活性的优异效果。在0.5MH2SO4、lMKOHffilMPBS^,分别只需要30、65和98 mV的过电位就 可以达到10 mAcn^的电流密度，优于大多数报道的HER催化剂。","吉林大学","田宏伟"]
[null,326,"新能源及动力电池","新材料","镣氢电池用超低温储氢合金","2021年，设计开发了超低温无钻储氢合金，其在电流密度为3000mA/g时的放电容量为283.5 mAh/g,约为商用合金倣电容量仅为65.9mAh/g）的4.3倍，这也是AB5型储氢合金目前为止报道的3000 mA/g电流密度下最大的放电容量。此外，该合金在超低温环境下也表现出优异的电化学性能，在233KB寸 的放电容量约为255.8mAh/g,远高于商用合金的9.5mAh/g；容量保留率约为75.1%（商用合金仅为 3.0%）。该合金在超低温228K时仍可放电。因此，该无钻储氢合金在高功率和超低温镣氢电池领域具有广 阔的应用前景。","吉林大学","杨春成"]
[null,327,"新能源及动力电池","新材料","镣氢电池用超长寿命储氢合金","2017年，设计开发了长寿命储氢合金系列，循环寿命最高达1407次，接近商用合金的3倍。揭示了腐蚀主导储氢合金容量衰减的机理，解决了困扰行业几十年的技术难题。在上述研究基础上，2018年设计开发了超长寿命储氢合金，其循环寿命达到2415次，为全球报导最高值下一步拟在企业实施专利转化和应用。","吉林大学","杨春成"]
[null,328,"新能源及动力电池","新材料","9-羟基菲小试及中试工艺开发研究","王奇峰与昊华化工有限公司就9-羟基菲的放大合成工艺进行合作研究。项目知识产权属于吉林大学， 昊华化工有限公司董事长李再兴、总经理棊建华以及生产部长张光远亲自参与项目的指导与实施。合作项目隶属四平市与吉林大学签订的框架协议，昊华公司与王奇峰实验室签订了中试合作协议。项目经费已经到账。目前项目处于公斤级实验阶段。","吉林大学","王奇峰"]
[null,329,"新能源及动力电池","新材料","轻质、宽频、高强碳基吸波膜/织物","本项目构建了由短切碳纤维、碳纤维布、氧化石墨烯、金属纳米颗粒组成的多尺度碳基磁性结构-功能一体化复合膜/织物。拥有良好的力学和电磁特性，微波波段呈现宽频、高效屏蔽效能。材料制备 工艺简单，重复性好，适于规模化生产和产业化推广。目前成果成熟度可达中试。","吉林大学","王欣"]
[null,330,"新能源及动力电池","新材料","全叶绿素光伏储能器件","该团队成功地使用储量丰富，无污染的叶绿素作为基本材料，分别开发出了全叶绿素太阳能电池及全叶绿素超级电容器，并通过将两者进行集成，从而实现了低成本的太阳能发电-存储一体化器件，为世界上首创。","吉林大学","王晓峰"]
[null,331,"新能源及动力电池","新材料","水质分析及快速检测方法","本团队主要硏究针对环境检测和临床检验中的技术需求，利用多种纳米材料的设计方法，结合表面增强光谱学和电化学发光技术，优化传感体系，提升检测能力，阐明内在机制。","吉林大学","马强"]
[null,{"$f":"ROW()-2","v":332},"新能源及动力电池","新材料","微合金化技术提高铜零部件抗腐蚀性能","通过多年研究，开发了一种提高铜制品耐蚀性技术。该方法是在铜中掺入微量合金元素，其后在一定气氛及温度条件下进行热处理，在铜制品表面获得一层复合抗氧化膜来提高铜制品抗腐蚀性能。该方法将最大限度使铜制品的外观颜色保持不変。复合膜主要由保护力强的氧化物构成，内部含有纳米铜晶粒，它的存在将有效降低氧化物与铜之间的应力差，使其附着力强、不易脱落，从而长久保持抗氧化能力。本项目取代传统的电镀防腐技术，属于环保型项目。","吉林大学","朱永福"]
[null,333,"新能源及动力电池","新材料","微量纳米颗粒强化新型长寿命高性能工模具钢技术","本发明涉及一种纳米强化技术，微量添加强化剂可显著提高金属材料的抗拉强度、塑性、高温强度、冲击韧性、抗蠕变、高温摩擦、抗疲劳等性能。与传统强韧化技术相比，具有不改变现有铸造工艺流程及设备、绿色环保等显著优势。实现组织细化、增强相晶内和晶界强化、纳米析出相细化及分布调控、铝合金强韧化一体化调控。大幅提高热阻模具钢的使用寿命。","吉林大学","邱丰"]
[null,334,"新能源及动力电池","新材料","一种公路路基复合材料及公路路基制作方法","随着吉林省对油页岩的不断开发，产生的矿渣废物大量堆积，严重威胁人们的生活环境，为实现我省废弃资源的绿色幵发再利用，结合我省处于季冻区的道路冻害特点，提出了利用废弃资源油页岩废渣、粉煤灰等新型复合材料作为季冻区路基填料。确定粉煤灰、油页岩废渣和土最佳配合比和达到路用性能指标要求，提出新型冷阻层结构设计，具有良好保温性、抗冻性、耐久性和稳定性，减少季冻区道路冻害现象发生，提高道路使用寿命，可以降低道路养护成本的同时，减少环境污染，实现废弃资源的高值化利用， 为油页岩废渣及粉煤灰材料用作季冻区道路实际工程及施工提供技术支撑和理论依据。该技术可以大量地 实现废弃资源的绿色开发利用，成果能够转化，应用前景广泛，具有很高的社会和经济价值。","吉林大学","魏海斌"]
[null,335,"新能源及动力电池","新材料","先进耐磨润滑涂层","研究团队聚焦高性能超硬/硬质薄膜材料的构建、不同负载下的硬质材料结构演变及力学行为，不同环境下（高温，高载荷、生物等）硬质薄膜的智能调控等领域，结合实验表征与理论模拟，开展应用基础硏究。目前承担国家自然科学基金面上项目、青年基金、国家重点研发计划专题及吉林省优秀青年科学基金等国家、省部级项目8项，主持军工企业项目3项；共发表SCI论文72篇；申请发明专利17项， 授权14项。先后获得吉林省优秀青年人才基金（2017年），吉林省重大科技项目研发人才团队（2017 年），Applied Surface Science杰出审稿人奖（2018年）,吉林大学“励新计划” （2019年优秀青年 教师重点培养计划），2020新材料国际发展趋势论坛“IFAM优秀青年科学家奖”。","吉林大学","张侃"]
[null,336,"新能源及动力电池","新材料","芯片材料的基础研究-蔥基有机场效应晶体管材料的理论研究","芯片材料的质量水平决定着未来信息技术科学技术水平，也是国家实力的体现。当前该领域卡脖子的问题很多，关键都在芯片材料的质量水平不过关，器件低效、尺寸大、成本高都是未解决或未解决好的问题。有机材料最终因质轻、价廉、柔韧和可任意裁剪性为小尺寸而成为未来有潜力的芯片材料候选物。蔥基有机半导体材料因发光和电荷传输都展现出优越特性而备受关注，是当前在国内外该领域的热点研究对象。我们团队采用多尺度模拟手段对蔥基骨架杂原子修饰基外周修饰对材料电荷载流子迁移行为的影响进 行了系统研究，指出骨架取代影响更大，外周取代基可起微调作用。0,N骨架掺杂和-CF3的协同作用可起 到调控载流子传输从空穴到双极性传输性质的转变。进一步研究了蔥基材料外周取代基对材料的晶体堆积 模式调控行为，指出2,6位芳基取代尺度增大，可增大材料载流子注入稳定性、热稳定性及使用寿命。","吉林大学","任爱民"]
[null,337,"新能源及动力电池","新材料","新型车辆用高性能水性阻尼涂料","环保型水性厚浆阻尼涂料具有较好的减震降噪性能，有效降低车辆在行走过程的震动和噪音，同时满足车辆轻量化要求。水性阻尼涂料性能优异，具有宽温域高阻尼特点，耐高低温性能好，涂层不变形不老化，环保性好，满足国内外各种车辆对环保要求。主要用于汽车、客车、高铁、火车、轮船、飞机、家用电器、军用坦克等。","吉林大学","李亚鹏"]
[null,338,"新能源及动力电池","新材料","新型高效分解水析氢催化剂","利用可再生能源电解水制氢是有效缓解能源危机和环境污染的方式，然而贵金属催化剂的使用阻碍其进一步商业化发展。为了解决这一问题，我们设计并制备了系列新型高效、价格低廉的金属相二硫化祖基、金属氢化物基等分解水析氢催化剂，性能优于商业贵金属催化剂。相关成果已被授权中国专利6项、国际专利2项。","吉林大学","崔小强"]
[null,339,"新能源及动力电池","新材料","新型荧光碳点的合成与发光机理","通过水相交联聚合反应获得了高荧光量子产率和高反应收率的水溶性聚合物破点(PCDs),提出 了分子态发光机理，实现了碳点荧光量子产率的新突破。制备方法具有普适性，可适用于多种小分子单体及水溶性聚合物体系。聚合物碳点的水溶液具有优异的荧光性质，并且易于与其它聚合物实现复合。可作为低毒荧光纳米点用于生物标记、成像或作为光电材料用于器件构筑；以氧化石墨烯为原料，通过溶剂热法一步制备GQDs,方法简单、成本低，可用于大批量生产，引入到聚合物基体中，制备出一系 列折射率可控的光电技术透明薄膜，可同时提高材料的抗冲击韧性等力学性能。所制备的膜层材料有望在减 反射涂层、光波导材料、光电技术透鏡以及其他光电领域实现应用。以上相关研究成果“新型荧光碳点的合 成与发光机理”获2021年吉林省自然科学一等奖。","吉林大学","杨柏"]
[null,340,"新能源及动力电池","新材料","玄武岩拉制纤维理论评价矩阵与实践","开发出玄武岩拉制纤维可行性评价的理论分析矩阵。通过计算能评判玄武岩原料的级别，并通过实验硏究对矩阵进行了验证。该矩阵为玄武岩纤维生产厂筛选原料具有实际应用价值。","吉林大学","苗世顶"]
[null,341,"新能源及动力电池","新材料","一种K-SAPO-34沸石分子筛及其制备方法和应用","从经济和环保的角度出发，在传统水热条件下，以K+离子为无机结构导向剂，在完全无机环境条件下，成功合成了SAPO-34分子筛。与传统有机模板剂条件下合成的SAPO-34相比，该方法大大降低了合成成本，避免了因高温焙烧脱除有机模板剂而带来的环境污染等问题。此外，所合成的K-SAPO-RH。具有良好的选择性吸附分离CO2/CH4和CO2/N2性能。","吉林大学","闫文付"]
[null,{"$f":"ROW()-2","v":342},"新能源及动力电池","新材料","一种短流程轧制制备超塑性镁合金的方法","轻量化材料是工业发展的迫切需求；镁合金是电子、交通、航空航天等领域的关键轻量化材料；现有商业镁合金强度较低、塑性变形能力差、轧制开裂严重，亟需开发新型镁合金及其短流程控轧技术，实现超塑性组织调控，以期获得具有超塑性变形能力的低成本高性能镁合金。吉林大学查敏教授团队长期从事轻合金混晶组织控制与短流程制备应用基础研究，基于轻合金变形行 为和精准加工的系统研究，发明了新型超塑性镁合金及其短流程可控制备（HPRCR）关键技术；突破了“现有镁薄板轧制道次多、生产效率低”瓶颈。目前，大压下量短流程控轧制备的高强超塑性镁合金技术 已在企业进行转化应用。新型低成本、高强超塑性镁合金板材可应用在航空航天、轨道交通、军工通信、 3C电子产品等领域，具有良好的工业应用前景。","吉林大学","查敏"]
[null,343,"新能源及动力电池","新材料","一种稀土掺杂亚磷酸镐无机荧光粉及其制备方法","本发明公幵了一种稀土元素掺杂的亚磷酸镐无机荧光粉及其制备方法。该稀土元素掺杂的亚磷酸镒无机荧光粉可被200至380纳米的紫外光激发，并发射出380至760纳米的可见光。制备所得产物具有纯度高、均匀性好等特点，且制备成本较低、方法简单、过程绿色环保，易于大规模合成。本方法制备的稀土元素掺杂的亚磷酸镒无机荧光材料具有在紫外光激发下在多种荧光发光色域发光的能力(白 光、红光、黄绿光、蓝紫光等)，并可通过改变稀土元素的掺杂种类和比例来调节荧光发光性质以满足实际需求。","吉林大学","苏担"]
[null,344,"新能源及动力电池","新材料","纸张老化程度的分析鉴定","纸张是文件、书画、报纸、文献、档案和书籍的材料，其主要成分是纤维素和少量的半纤维素、木质素。在长期的保藏过程中，纸张会发生老化。老化的原因在于氧化、酸碱水解和微生物腐解。纸张的老化过程会导致纸张的微观结构发生变化。据此，课题组开发了判断纸张老化程度的鉴定体系，通过傳里叶变 换红外光谱、X-射线晶体衍射、扫描电子显微镜、原子力显微镜和离子色谱等方式，判定纸张老化程度。","吉林大学","任晓冬"]
[null,345,"新能源及动力电池","新材料","清洁表面及油水分离技术","金属铝具有密度小，良好的导电性、导热性、延展性等特性，在飞机、汽车、火车、船舶等制造业以及航天飞机、人造卫星等领域被大量使用。但其固有的表面化学性质活泼，在恶劣的环境中极易被腐 蚀，这极大地限制了其应用。王国勇教授团队利用超疏水表面具有自清洁性、耐腐蚀性、防冰性等诸多优势极大地改善了这一问题。在纯铝表面上制备了具有超疏水性和自清洁性的超疏水表面，同时该表面具有超高硬度和电化学稳定性，使其表面具有优异的机械耐久性，良好的耐腐蚀性。","吉林大学","王国勇"]
[null,346,"新能源及动力电池","新材料","碳纳米材料固载连续性水解酶的新技术","利用碳纳米材料对游离酶进行固载，是碳纳米材料重要应用之一。例如，用碳纳米材料固载连续性水解酶，能明显増强酶活，同时使其可以反复使用并易与产物分离。本成果利用分子动力学模拟和生化实验结合的方法，以碳纳米管为研究对象，开发了碳纳米管固载纤维素酶的新技术，得到固载性能更好的碳纳米材料，应用于农田秸秆以及动物粪便等处理。项目团队由化学学院理论化学研究所副所长王嵩牵头，整合化学学院，生命科学学院，食品科学与工程学院等各学科资源，集中攻关，使此新技术初步推向产业化，助力我省工农业生产。","吉林大学","王嵩"]
[null,347,"新能源及动力电池","新材料","一种改进型纤维素酶联合复合菌剂","该成果以开发能够降解秸秆中的纤维素并发酵制肥的复合菌剂为目的，通过基因重组和辐照技 术，得到能稳定传代的变异菌株。生产以改进型纤维素酶为核心配方的复合菌剂并将之推向应用，増 加低温降解纤维素效率，可降低腐化秸秆成本50%,每亩可处理秸秆1000千克，平均每亩节约化肥成 本500元以上。项目团队由化学学院理论化学硏究所副所长王嵩牵头，整合化学学院，生命科学学院, 食品科学与工程学院等各学科资源，集中攻关，得到处理秸秆的新技术。该成果曾受到国家自然科学 基金委和吉林省科技厅立项支持。","吉林大学","王嵩"]
[null,348,"生物医药及先进医疗器械","生物医药","异种器官移植供体猪","器官移植是器官衰竭终末期病人挽救生命的有效手段，但人类器官供体严重不足。异种器官移植有望能解决这一难题。实验室采用基因组编辑技术将猪一些关键抗原基因敲除，并敲入一些人源化基因，获得了异种器官移植供体猪。","吉林大学","欧阳红生"]
[null,349,"生物医药及先进医疗器械","生物医药","人参皂昔系列前体脂质体","人参皂昔对多种疾病具有防治效果，对人体有滋补强壮作用。然而，人参皂昔在人体内的口服给药生物利用度很低，并且体内消除非常迅速，易上火。本课题组通过前体脂质体来提高人参皂昔的生物利用度，提高后可达市售产品振源片的2倍以上，同时提高脂质体的稳定性，并延长人参皂昔作用时间, 降火减毒。","吉林大学","滕乐生"]
[null,350,"生物医药及先进医疗器械","生物医药","生命原基美容液制备关键技术","本产品采用生物高科技技术，从干细胞中提取具有维持细胞自我更新和促进细胞外间质分泌的生命活性因子，按照科学配方与小分子生物活性物质混合，制备出具有保湿、美白、除皱、祛斑和除痘多重功效的生命原基面膜。本产品的优势特色在于：（1）无污染，零添加，绿色环保；（2）原位成膜，具有保 湿、美白、除皱、祛斑和除痘多重功效，属高科技产品；（3）易于储存、运输和携带，使用方便。","吉林大学","刘晋宇"]
[null,351,"生物医药及先进医疗器械","生物医药","2019-nCoV病毒高中和抗体效价预防与治疗性抗体","本抗体利用2019-nCoV病毒spike蛋白受体结合区域重组抗原作为免疫原对马匹进行免疫，采集免疫后的马匹血样后，釆用盐析法、疏水层析法和离子交换法等联合纯化技术，获得高纯度的F(ab')2,成品病毒中和抗体效价1:4OOOO/ML,总蛋白含量26g/L, F(ab')2含量不低于90%,IgG含量不高于5%。豚鼠致敏性试验证实无明显过敏反应，大动物(恒河猴)试验正在进行中。","吉林大学","刘明远"]
[null,{"$f":"ROW()-2","v":352},"生物医药及先进医疗器械","生物医药","SERScreen高通量靶向药物筛选技术","SERScreen高通量药物筛选技术以超多样性库为基础，基于分子探针、蛋白-蛋白互作、可靠信号、磁场放大效应以及高分辨率高通量检测体系，是国内首家将灵敏可靠的SERS检测应用于药物筛选，并建立了超低成本高通量筛选的技术。本技术筛选速度快、所需受试样品量极微、候选分子数量巨大、对靶标蛋白需求量少、通量高、筛选成本低、试剂污染小。","吉林大学","梁重阳"]
[null,353,"生物医药及先进医疗器械","生物医药","搬运护理包","搬运护理包包括转运垫本体、上臂固定带、腹部固定带、腿部固定带、无菌遮盖布收纳袋、护理垫和无菌遮盖布。固定带、无菌遮盖布收纳袋及护理垫均设置在转运垫本体上。本产品结构安全可靠，使用方便，固定带使患者身体固定牢靠，安全性高，减少对患者造成伤害，无菌遮盖布具有遮盖功能，保护患者隐私，防止伤口感染。护理垫可防止患者大小便污染环境，能及时处理好患者个人卫生，护理彻底，大小便不易出现遗漏。本产品实用性强，应用广泛。","吉林大学","于靖"]
[null,354,"生物医药及先进医疗器械","生物医药","发酵食品菌群结构分析及其复合发酵剂的研制","乳酸菌是食品发酵过程中活跃的主要微生物。多项研究表明，在食品发酵过程中，乳酸菌的种类是多样的，且不同发酵时期的生物量也存在显著差异。直投式乳酸发酵剂是一种浓缩菌悬浮液，可以不经过活化、扩大培养而直接用于生产的发酵剂。","吉林大学","闫守庆"]
[null,355,"生物医药及先进医疗器械","生物医药","非注射给药重组人胰岛素的制备及应用","糖尿病是由于胰岛素分泌不足或胰岛素抵抗所引起的、以血糖升高为主要特征，伴有糖、蛋白质和脂肪代谢紊乱，导致多种器官损害的代谢性疾病。糖尿病已成为严重危害我国居民健康的重大疾病。在充分调研国内外胰岛素制备技术基础上，采用基因工程技术，结合细胞生物学理论，历经近10年时间，制备出全新的重组人胰岛素融合蛋白。该胰岛素融合蛋白在不需要任何佐剂的帮助下，经过皮肤或口腔粘膜给药后，直接穿过生物膜屏障，进入细胞，在细胞中蛋白酶作用下，形成成熟胰岛素，并从细胞中释放入血，逆转糖尿病高血糖。","吉林大学","刘晋宇"]
[null,356,"生物医药及先进医疗器械","生物医药","高摄取量脑靶向。-去甲基文拉法辛前体药物的研究与开发","抗抑郁是中枢疾病治疗领域最为关注的问题。基于抗抑郁药。-去甲基文拉法辛（ODV）脑摄取不足的缺陷，项目团队对其进行了结构设计与优化，开发了ODV酚酯类前体药物。该前体药物口服吸收良好、入血后快速透过血脑屏障，在脑组织代谢转化为母体药物ODV发挥作用，药效学研究其抗抑郁效果可与ODV媲美，但给药剂量大为降低，临床应用前景广阔，未来可期。","吉林大学","顾景凯"]
[null,357,"生物医药及先进医疗器械","生物医药","光脉冲干眼治疗仪","该成果获得2020年第五届全国临床创新与发明大赛二等奖。完成了2台原理样机和2台工程样机的硏制。申请专利4项：2项发明专利已受理，2项实用新型已授权；发表SCI论文1篇。","吉林大学","陆成伟"]
[null,358,"生物医药及先进医疗器械","生物医药","核酸检测样品提取新方法","在核酸检测时，一般采用拭子、血卡和唾液卡等载体收集生物样本（血液、唾液等）。当载体上的 生物样本少或者长期放置时，采用传统方法，即用缓冲液浸泡，很难从载体上释放生物样本，因而无法进行检测。课题组利用酶工程技术，制备了降解载体的试剂盒。利用该试剂盒，可以将载体降解，从而释放载体上的生物样本，进行核酸检测。采用本技术，可以对痕量的生物样本或者保存时间超过十年的生物样本进行有效的样本提取和核酸检测。","吉林大学","任晓冬"]
[null,359,"生物医药及先进医疗器械","生物医药","基于表位的人源化抗体药物","建立了一种基于抗原免疫猪、表位特异性抗体分泌细胞分离、抗体基因克隆、抗体基因人源化及表达和抗体功能动物验证的技术平台，所开发的抗体药物避开现有抗体药物专利。","吉林大学","欧阳红生"]
[null,360,"生物医药及先进医疗器械","生物医药","基于人参蒸参水的纳米产品","课题组制备了红参加工过程中的副产物蒸参水的纳米产品，扩宽其在化妆品、健康食品添加剂等中应用，提高了红参的附加值，降低生产成本，扩大了人参资源的综合利用和产品深度开发。","吉林大学","管清香"]
[null,361,"生物医药及先进医疗器械","生物医药","秸秆青贮的菌剂及应用开发","乳链菌肽是世界卫生组织、联合国粮农组织和FDA认证的安全的食品防腐剂。课题组对一株乳酸乳球 菌进行了菌种选育，得到同时高产乳链菌肽和乳酸的菌株Lactococcus lactis subsp.lactis LD2,并对其进行 了发酵条件优化。将Lactococcus lactis subsp.lactis LD2用于秸秆青贮，乳链菌肽和乳酸高效地抑制杂菌生长，秸秆保鲜期大幅度延长，从而提高了牛羊等反刍动物的饲料品质。","吉林大学","任晓冬"]
[null,{"$f":"ROW()-2","v":362},"生物医药及先进医疗器械","生物医药","利培酮仿制微球","恒德作为非典型抗精神病药物中唯一的长效缓释微球制剂，其疗效和安全性已由欧美多国实验证 明。由于具有可延长药物作用时间，显著降低患者的给药次数，保证患者规律给药，克服自主停药和忘 记服药，提高治疗效果等明显的优势，在精神分裂症治疗中，已成为精神科医生的首选药物，2007年峰值销售额达46.97亿美元，近年来，随着专利的到期，利培酮销售额有所下降，2015年维持在10亿美元左右。本实验室仿制的利培酮微球制剂已完成中试生产，所制样品与恒德的粒径，载药量，包封率等各 项物理性质均一致，比格犬体内药代动力学实验结果表明，所制样品的体内释放性质也与恒德一致。","吉林大学","滕乐生"]
[null,363,"生物医药及先进医疗器械","生物医药","林蛙油及卵籽健康食品开发关键技术与产业化","该成果以长白山林蛙油、林蛙卵籽为原料，通过生物酶解技术、营养重组技术、风味改良技术、微胶囊喷雾干燥技术等，制备林蛙油多肽口服液、林蛙油多肽粉剂、林蛙油含片、林蛙卵油胶囊、林蛙卵油微 胶囊、林蛙卵蛋白肽、林蛙卵蛋白发酵乳饮料等高附加值产品。多肽类产品分子量主要分布在5000Da以 内，吸收率高，有增强人体免疫力、抗疲劳、抗氧化、防衰老、促进矿物质吸收等多种保健功效。林蛙卵油具有降血脂、降低胆固醇和改善记忆等多种功效。在产品研制过程中，技术人员攻克了林蛙油、卵籽蛋白的高效酶解、除腥和配方优化等多项关键技术难题。","吉林大学","张铁华"]
[null,364,"生物医药及先进医疗器械","生物医药","灵芝孑包子粉袋泡粉","课题组制备的灵芝抱子粉口感好，冲服时无沉底现象，克服了通常情况下灵芝抱子粉冲服时易于沉底、口感差的问题。","吉林大学","管清香"]
[null,365,"生物医药及先进医疗器械","生物医药","鹿胎盘蛋白精华口服保健品的研发","国内目前已有的鹿胎盘口服产品主要有胎盘粉和鹿胎膏，分别采用传统的烘干粉碎工艺和中药熬制方法，没有同现代制药工艺进行有机结合，导致产品的生物利用度及其生物活性都差的现状。团队利用物理和化学以及分子生物学方法提取制备鹿胎盘活性蛋白和多肽，然后作用于人成体干细胞发现其可以激活干细胞的干性。为了实现其产业化，团队采用纳米粉碎技术，将鹿胎盘组织进行纳米精细打粉，提高其在人体肠道的吸收率，大大提高其生物利用度和在人体内对组织细胞的生物学活性。再经过与药食同源的中药材科学配伍，研发具有提高免疫力、抗疲劳、抗辐射和抗衰老生物学功效的保健食品。","吉林大学","蔡勇"]
[null,366,"生物医药及先进医疗器械","生物医药","绿色环保型免洗手消毒凝胶的开发与产业化","免洗手消毒凝胶为人们的生活和医疗提供一种便捷、有效的手消毒方式。但市面上的免洗手消毒凝胶多含有化学杀菌剂，这些消毒凝胶虽然能起到较好的杀菌效果，但含有有毒的化学杀菌成分，不易生物降解，并且对皮肤刺激性太大，可引起皮肤过敏等副反应，长期使用容易造成皮肤粗糙、娥裂甚至 皮等问题。本项目开发了一种绿色环保型免洗手消毒凝胶，具有以下突出优点：\n(1)该凝胶以可食用天然高分子为凝胶剂，高浓度乙醇为凝胶基质和有效的杀菌剂，所有成分均 为美国FDA认定的食品等级，与人体组织相容性好，对人体和环境无害；\n(2)该凝胶成膜性好，不粘腻，无掉渣，具有极佳的使用体验；\n(3)对常见的致病细菌均具有良好的杀菌、抑菌效果；\n(4)制备工艺简单，生产过程无有毒有害物质排出。","吉林大学","王海涛"]
[null,367,"生物医药及先进医疗器械","生物医药","纳米药物体内药代动力学研究","本项目研究了纳米药物在体内的药代动力学过程，围绕不同形态纳米药物(包裹型、释放型)、键合 型纳米药物与高分子辅料在体内的时空命运进行了系统研究。主要成果包括：\n(1)不同形态纳米药物的体内药代动力学研究\n建立了纳米制剂中释放药物与包裹药物的分离与质谱定量新方法，解决了纳米制剂体内多形态成分精准分析的技术难题，并成功应用于阿霉素脂质体和两性霉素B脂质体中释放药物与包裹药物的分离与定量。\n(2)键合型纳米药物的体内药代动力学研究\n完成了 PEG-DOX、PEG-PTX. PEG-CDDP、PEG-吉西他滨四种键合型纳米药物体内不同形态的定量分析。\n(3)多分散性高分子辅料的体内药代动力学研究\n以PEG特征碎片作为定量离子，建立了同时定量EPO和PEG的LC-MS/MS分析新方法，解决了传统方法无法克服内源性物质干扰EPO精准分析的技术难题。并且基于SWATH-MSall技术，首次突破了多分散性载体材料(PEG、PEG-PLA和DSPE-PEG)体内精准分析的技术瓶颈。本硏究首次发现DSPE-PEG、 PEG-PLA. PEG主要分布在网状内皮系统发达的组织器官，以原形的方式排泄极少(< 1%),其绝大部分 在体内代谢后以PEG的形式经由肾脏排泄。","吉林大学","顾景凯"]
[null,368,"生物医药及先进医疗器械","生物医药","脑脊液microRNA在肺腺癌脑膜转移诊断及病情 监测中的筛选、鉴定及临床应用","本硏究利用脑脊液液体活检的方式，通过芯片筛选肺腺癌脑膜转移相关的脑脊液miRNA,进一步通过大量患者标本进行鉴定及验证，并评价其作为生物标志物诊断肺腺癌脑膜转移及监测疾病状态的潜能，初步探究其生物学功能。研究证实，与肺腺癌脑转移及非肿瘤性疾病患者比较，肺腺癌LM患者CSF 中存在特异性表达升高的miR-7977、miR-7975及miR-7641；通过对可疑存在LM的肺腺癌患者群体进 行验证并评价发现，miR-7977、miR-7975及miR-7641具有较高的诊断LM的敏感性及特异性，且三者 联合能够进一步增加诊断LM的效能，具有作为诊断LM生物标志物的潜能；通过对肺腺癌LM患者初诊 时、治疗后、复发时及挽救治疗后CSF中miRNAs表达水平的变化研究发现，miR-7977及miR-7975的表 达变化与LM的病情变化密切相关，具有监测LM疾病状态的潜在作用。本项目为转化医学研究，可以转 化为临床检测试剂盒，广泛应用于本病的临床诊断与病情监测。","吉林大学","杨国姿"]
[null,369,"生物医药及先进医疗器械","生物医药","脑中风后手功能康复仪","产品主要用于脑中风后手功能康复。本项目利用具有国际领先水平的大脑功能重组技术，该设备综合神经科学和计算机科学领域技术，通过感觉驱动式脑调控机制，针对靶区脑细胞和神经通路进行无创性功能调控，促进大脑功能康复。正在开发的系列产品包括女性尿失禁治疗仪、偏头痛治疗仪、阿尔茨海默病预防仪。系列产品均由美国华裔神经学博士设计，吉林大学计算机学院研发团队负责产品实现。","吉林大学","李树秋"]
[null,370,"生物医药及先进医疗器械","生物医药","培美曲塞鞘内化疗用于恶性肿瘤脑膜转移治疗的临床应用","培美曲塞二钠是一种抗叶酸合成抗肿瘤药。研究发现其对胸膜间皮瘤、乳腺癌、非小细胞肺癌具有良好的疗效及安全性。自2017年，我们在国际上首次进行了2项培美曲塞鞘内化疗的前瞻性临床研究，探索了其耐受性，安全性，给药方案，以及临床反应性。研究显示，培美曲塞鞘注化疗的单次给药 10mg,每周1-2次给药，对于实体瘤脑膜转移患者具有良好的耐受性，安全性以及治疗反应性。培美曲 塞在脑脊液中显示出良好的抗肿瘤活性，无明显蓄积性。研究确定了培美曲塞鞘注给药的推荐剂量及给 药方案，使之成为第六种可以用于人类鞘注给药的化疗药物，也是我国发现的首个适合鞘内给药的化疗药物。","吉林大学","潘振宇"]
[null,371,"生物医药及先进医疗器械","生物医药","平欧榛子壳紫杉醇提取工艺","东北特产平榛和欧洲土耳其大果榛子杂交种平欧榛子是近年广泛推广种植于东北的抗旱高产大果榛子，普通欧洲榛不含紫杉醇，东北野生平榛紫杉醇含量高，但种植面积小，果实小，空果率高，没有商用价值。平欧榛子产量高，生长快，从植株到果实均含有一定量紫杉醇，但每年国内4000万斤榛果产量，其中至少2000万斤果壳作为垃圾或者燃料处理，没有发挥应有的价值。本项目利用果壳提取，优化工艺，降 低成本，规模化后必将对榛子种植和加工以及带动吉林省经济发展起到重要作用。","吉林大学","刘晓波"]
[null,{"$f":"ROW()-2","v":372},"生物医药及先进医疗器械","生物医药","腔镜示教用头戴式术中光电技术交互系统","一种“腔镜示教用头戴式术中光电技术交互系统”可以解决术者在腹腔镜教学环境中，通过头戴式光电技术 交互系统在腔镜显示器屏幕上展示自己的手术计划及操作目的，还可以具体展示针对目标“切割、分离”的建议路线与“结扎、止血”等建议部位。该装置不仅限于术者对学习者单向的意图传递，学习者可以头戴该光电技术交互系统，向术者即教学者在显示器屏幕上传达自己的观点与建议，达到术者与学习者双向沟通。针对术中多学科会诊或多位学习者、参观者的术中交互，可达到术中多方观点的有效表达与沟通。此外术者在显示器上明确具体操作意图与目的，可以提高学习者及助手配合效率。","吉林大学","赵洪宇"]
[null,373,"生物医药及先进医疗器械","生物医药","全乳晕入路腔镜甲状腺手术拉钩","该发明能够使得甲状腺手术建腔更容易，不用担心手术过程中气体栓塞问题。手术烟雾更少，视野更清晰。","吉林大学","王培松"]
[null,374,"生物医药及先进医疗器械","生物医药","人参微生态健康食品开发关键技术与产业化","随着电子科技的飞速发展，电离辐射广泛存在于人们生活的各个领域，长期小剂量也会对人体的健康造成严重的危害。给予外源性物质来帮助机体提高免疫能力，减轻辐射损伤是最佳选择。本课题组在 前期大量的理论研究基础上，利用实验室自主分离并经过长期驯化的高性能益生菌（鼠李糖乳杆菌 JDS18、畐！1干酪乳杆菌JLUS66、双歧杆菌JDS31）和太空高性能诱变菌株（罗伊氏乳杆菌GS23-S51和 植物乳杆菌GS18-S18）,并协同筛选人参皂昔、植物多糖、多酚等共生配方，制备具有抗辐射和增强 免疫力的健康食品，产品形式主要有功能饮料、糖果咀嚼片、凝胶冻和固体粉剂等。该类食品经动物实 验证明具有显著的抗辐射和増强人体免疫力的作用。该类食品含大量益生菌，配方和口味独特，产品稳定，食用方便。","吉林大学","张铁华"]
[null,375,"生物医药及先进医疗器械","生物医药","食品或化妆品用生物防腐剂","本团队筛选出来的生物防腐剂化学本质为抗菌肽，为淡黄色粉末，吸湿性强，略有苦味。它不受PH值影响，对热稳定(120°C, 20min)，能抑制耐热菌，故加入后可热处理。通过抑菌圈实验表明，其对革兰氏阳性菌、 革兰氏阴性菌均有一定的抑菌效果，对食源性细菌大肠杆菌和金黄色葡萄球菌的抑菌效果非常好。","吉林大学","郝林琳"]
[null,376,"生物医药及先进医疗器械","生物医药","同时检AlV-HPAIV-NDV的一步法荧光RT-PCR试剂盒","本试剂盒以通用型AIV保守性高的M基因、H5\\H7\\H9AIV特异的血凝素(HA)基因、NDV保守性高的M基因为靶点进行引物和探针的设计，利用荧光定量PCR原理，建立同时检测AIV-HPAIV-NDV的一步法荧 光RT-PCR试剂盒。本试剂盒是一种高于农业标准和行业标准的快速、灵敏、特异、重复性好的一步法 荧光RT-PCR试剂盒，能同时检测禽流感-高致病禽流感-新城疫病毒，适用于临床和检验部门应用，为禽 流感/新城疫的预防和控制提供理论和技术支撑。本试剂盒在不影响准确度的情况下，不仅缩短了操作时间、减少了污染和降低了劳动强度，而且也直接降低了临床样品PCR诊断的成本，延续了荧光定量 PCR检测方法的快速简便性能，具有潜在的应用价值。","吉林大学","丁壮"]
[null,377,"生物医药及先进医疗器械","生物医药","细胞培养新型载体","传统聚苯乙烯(PS)细胞培养皿在药物研发和生物材料检测应用已有百余年历史，为成千上万国内外实验室广泛使用。即便如此，PS材料在多种细胞培养应用中显现出各类问题，包括体外精子细胞培养与受 精成功率、神经元纯化及存活、难以建立三维仿生结构以及PS材料稳定性差，由此导致消毒工艺和成本要 求高等难题。针对上述问题，本团队20余年在碳基薄膜制备及生长机理领域研究积累的基础上，研发系列细胞培养新型载体。制备技术包括传统、可规模化生产的化学气相沉积技术、基于物理和化学吸附的固/液和液/液界面自组装方法。目前成果成熟度可达中试。性能上替代传统PS产品，成本低于美国BD PureCoat 产品。","吉林大学","王欣"]
[null,378,"生物医药及先进医疗器械","生物医药","盐酸赖氨酸磷酸氢钙水溶性颗粒剂","盐酸赖氨酸磷酸氢钙颗粒剂，适应症为用于促进幼儿生长发育及儿童、孕妇补充钙质。但是磷酸氢钙微溶于水，盐酸赖氨酸磷酸氢钙颗粒剂冲服时，在杯底会有沉淀物，也影响其在体内的吸收。课题组改善制备了可溶性盐酸赖氨酸磷酸氢钙颗粒剂，流动性好，且符合《中国药典》颗粒剂项下有关规定。研究证实可增加其在体内的吸收。","吉林大学","管清香"]
[null,379,"生物医药及先进医疗器械","生物医药","一种脊柱截骨复位导向装置","脊椎截骨手术现有的导向装置导向不精准，不能根据患者的体型进行精确的调整，而且在对脊柱进行 挤压时，不能控制受力的大小，从而对患者的脊柱造成二次损伤，挤压脊柱的位置在截面的两端，易导致 两端脊柱人体组织的牵扯，进一步加大患者的疼痛。本发明提供了一种脊柱截骨复位导向装置，具备脊柱导向精确、降低患者牵扯疼痛和按压力可控制调节的优点，解决了现有脊柱导向装置导向不精确、患者易 受牵扯疼痛和按压力不可控制调节的问题。","吉林大学","尹飞"]
[null,380,"生物医药及先进医疗器械","生物医药","一种颈椎骨折脱位复位器","颈椎骨折脱位后一般釆用颈托固定，釆用固定硬质材质作为外壳，上下略带有向外翻的弧度，可紧贴于患者的下巴和肩部，有助于帮助患者的脖子部位长时间保持固定笔直的姿势来达到颈椎复原的效果。而现有的颈椎复位器的尺寸都是固定的，无法满足所有人体的数据尺寸，使用起来会给患者的恢复造成影响。本发明提供一种颈椎骨折脱位复位器，由于服帖软壳是采用SEBS塑胶材质制成，在贴合人 体肌肤后会有一定吸附的力，可避免该复位器在患者颈部因为尺寸不一出现晃动，且活动杆的内侧壁处 和患者的脖颈处进行轻度按压，可促进患者颈部血管中的血液循环。","吉林大学","尹飞"]
[null,381,"生物医药及先进医疗器械","生物医药","一种血液净化中防止深静脉置管移位的设备","提供一种血液净化中防止深静脉置管移位的设备，规避传统缝线固定针眼处发生感染的风险；规避思乐扣固定卡扣松动的风险。通过磁力作用防止固定敷贴及导管移位，固定效果更加稳定。通过病人主动感 受到电热片发热（或被动温度检测）和医护人员观察变色提醒，实现了对病人和医护人员的双重及时提醒。防止导管脱出导致的延误治疗和增加住院费用等一系列风险。防止非计划性拔管后再插管给患者带来的痛苦。本发明可用于其他引流管的固定，具有较强的推广作用。","吉林大学","李虹彦"]
[null,{"$f":"ROW()-2","v":382},"生物医药及先进医疗器械","生物医药","一种针对肠出血性大肠杆菌0157特异性治疗候选药物介绍","本项目基于肠出血性大肠杆菌(0157)致病过程的关键毒素(志贺毒素Stx2)蛋白表型功能建立抑制剂筛选平台，发现中药成分HH014可显著降低Stx2的生物学活性，有效抑制细菌介导的细胞毒作用。建立 0157大肠杆菌感染小鼠模型，发现无药物治疗组小鼠100%死亡；治疗组死亡率显著降低，保护率为 80%；可有效恢复感染小鼠肾脏功能性指标(肌酎和尿素氮)和缓解器官炎性反应及病理性损伤。研究成果相继发表于领域内知名期刊J Biol Chem.、Antimicrob Agents Chemother.和Front Microbiol.±；部分成果被美国化学学会(ACS)旗下Chem. Res. Toxicol以Spotlight的形式进行报道和评价。","吉林大学","邓旭明"]
[null,383,"生物医药及先进医疗器械","生物医药","一种新型医务帽","医务帽是防止医务人员工作时头发掉落污染无菌环境而设计的帽子，本产品较现有具有以下优势：\n①采用优质材料：采用全棉水刺无纺布，100%天然进口优质全棉制成、柔软舒适，该种材料无化学添 加、无毒、无刺激、无致敏性，不掉屑、不掉毛、拉伸性能好、耐高温，且网眼设计、吸水性更好、摩擦性更佳。\n②外观设计专利：已设计不同花色并成功申请外观设计专利，打破医护人员对手术帽刻板沉闷的固有印象，提供丰富的图案，缓解医护人员在高度紧张的工作状态下产生的视觉疲劳，调节术中紧张气氛。\n③帽型独特设计：分为全包型及系带型，可供不同头型的人使用。","吉林大学","于婿"]
[null,384,"生物医药及先进医疗器械","生物医药","抑制甲状腺术后瘢痕形成的抗菌、抗炎多功能缝合线","通过纺织微成型技术和表面后整理技术，开发具有抗菌、抗炎、促愈合、抑疤等多重功效的导电可吸收缝合线，属于三类医药器械。","吉林大学","韩慧"]
[null,385,"生物医药及先进医疗器械","生物医药","银杏叶前体脂质体","银杏叶提取物临床上广泛用于心脑血管疾病的防治，黄酮醇昔类和菇类内酯被认为是主要活性成分，而银杏黄酮醇昔类脂溶性低，小肠透过性差，普通片剂口服吸收较差，生物利用度低，大大降低了临床疗效。本课题组以适宜的方法将银杏叶提取物制成前体脂质体片剂（已授权，专利号：201310694630.9）。 经口服给药后，将有利于提高多组合银杏黄酮醇昔口服跨膜吸收和体内生物利用度，以及延长给药时间和减少药物毒副作用，克服我国银杏叶提取物普通制剂生物利用度低，血药浓度峰、谷现象和绐药次数多等 问题。给药后能够提升银杏叶提取物在血液内的血药浓度及在脑内的分布达到原料药的2倍以上。在给药量降低至二分之一时，还能在血液内的浓度及在脑内的分布与原给药量相近，降低毒性。","吉林大学","滕乐生"]
[null,386,"生物医药及先进医疗器械","生物医药","直肠癌术后居家排便功能全周期训练护理装置","1.一种兼顾泡脚功能的全自动恒温坐浴装置\n解决了年老体弱患者居家蹲下肛门温水坐浴难的问题，且节省了患者坐浴和泡脚时间，提升了术后 患者舒适度。\n2.盆底肌训练提醒装置可按时提醒患者完成居家盆底肌训练任务及计划。\n3.—种可显示压力数值的盆底肌训练装置患者可通过该装置进行居家盆底肌康复训练，能直观看见自己训练时肛门收缩放松的压力值和波形 趋势，提高收缩放松的肌力及内外括约肌协调性。\n4.一种直肠电极固定装置解决了患者盆底康复治疗过程中电极滑脱的问题，提高了患者的治疗效率。","吉林大学","汪彦君"]
[null,387,"生物医药及先进医疗器械","生物医药","治疗肠道病毒感染(手足口病等)的抗病毒候选药物","抑制肠道病毒感染的化合物(Retro-2'g)、草药(砂引草)和缺损病毒颗粒(DIP)。Retro-2\"是小分子化合物，本团队发现具有在体外与动物体内抑制肠道病毒71型(EV71)等病毒感染的活性。本团队发现砂引草提取物具有在体外与动物体内抑制肠道病毒71型(EV71)等病毒感染的活性。缺损病毒颗粒 (DIP)是病毒自身复制产生的基因组残缺型病毒颗粒，其可以抑制完整病毒的复制，在多种肠道病毒感染中的治疗作用已经被本团队发现。","吉林大学","苏维恒"]
[null,388,"生物医药及先进医疗器械","生物医药","智能上肢评估训练系统","智能上肢评估训练系统可实现脑瘫患儿上肢功能定量评估，根据评估结果匹配游戏训练方案，实现个体化、科学性、趣味性训练。","吉林大学","冯俊燕"]
[null,389,"汽车电子及新型汽车零部件","汽车工业技术","高性能轮毂电机行动模块总成技术","对汽车车轮、转向、制动、悬架系统与轮毂电机的构件功能需求进行深入分析，通过构件功能融合的方式将结构进行集成，减少构件并进行深度集成设计，提出不同集成构型方案并优化可行方案，实现轮毂电机与轮边各系统结构集成为轮毂电机行动模块。","吉林大学","宋传学"]
[null,390,"汽车电子及新型汽车零部件","汽车工业技术","“汽车智能驾驶脑” 一中国自主可控的汽车智能驾驶计算平台","瞄准中国自主可控智能网联汽车计算单元的国家战略需求，开展中国设计中国制造的智能网联汽车专用高性能控制器硏发。智能汽车中央域控计算平台：实现视觉、雷达、高精定位等多传感器信息融合、可行驶区域动态建模及预期行驶轨迹多目标决策。智能汽车底盘运动控制平台：实现汽车运动控制和底盘线控化。","吉林大学","无"]
[null,391,"汽车电子及新型汽车零部件","汽车工业技术","智能汽车个性化人机协同共驾技术","现有的均一化智能驾驶系统难以满足不同用户的个性化需求，这将显著影响驾乘人员的适应度、信任度和接受度，甚至对驾驶安全构成潜在威胁。针对此难题，项目团队提出了以驾驶状态、习性、技能三个维度对驾驶人个性化驾驶行为进行表征与辨识，引入不同驾驶行为数据分布之间的相对炳作为驾驶人差异性的衡量标准，实现了个性化驾驶行为的准确辨识；在此基础上，提出了基于个性化驾驶行为的人机协同共驾设计方法，建立了纵向个性化巡航控制和侧向个性化换道辅助系统，解决了驾乘人员体验感差与交通 环境适应性弱的难题。","吉林大学","朱冰"]
[null,{"$f":"ROW()-2","v":392},"汽车电子及新型汽车零部件","汽车工业技术","汽车减振降噪技术开发","致力于提高整车舒适性的减振降噪幵发。包括整车振动噪声测试与分析，系统和零部件级振动噪声测试与分析，车身模态测试与分析，车架和其他零部件模态测试与整车模态规划，整车振动噪声传递路径分析(TPA),以及基于测试与仿真的整车和系统级减振降噪方案开发，包括动力系统、传动系统、进排气系统和空调系统(包括压缩机)等的减振降噪方案开发。","吉林大学","陈志勇"]
[null,393,"汽车电子及新型汽车零部件","汽车工业技术","行星式混合动力系统关键技术","本成果为行星式混合动力系统多因素集成设计方法和控制技术。动力系统集成设计方法综合考虑了动力性、经济性及成本等因素，实现了动力总成参数的优化设计。控制技术包括通用化、模块化、实用化控制策略开发，节能优化与动态协调控制方法，能够充分提高燃油经济性，降低系统冲击。上述成果已成功在宇通客车和一汽解放批量产业化，累计销量达13524辆，产值425亿元，并实现批量海外出口。针对已开发的行星式混合动力城市公交客车燃油经济性达到12.8L/100km,技术指标达到国际一流、国内领先水平。","吉林大学","曾小华"]
[null,394,"汽车电子及新型汽车零部件","汽车工业技术","轮毂液驱混合动力系统关键技术","本成果为轮毂液驱混合动力开发技术。包括：多功能的轮毂液压混合动力系统集成技术、多模式能量管理策略和轮毂液压混合动力系统驱动力协调控制，能够充分提高商用车动力性，工况适应性，并显著降低系统冲击。已开发的实车性能指标达到国际先进水平，并实现批量海外出口。轮毂液驱是混合动力汽车的重要分支。该技术良好工况适用性在商用车领域得到了充分验证。由于其功率密度大，成熟可靠，在重型商用车、矿山机械、军用车辆等领域有广泛的应用前景！","吉林大学","曾小华"]
[null,395,"汽车电子及新型汽车零部件","汽车工业技术"," 分布式驱动电动汽车底盘系统动态协调控制","1.建立了复杂行驶工况下高精度可预测轮胎多维耦合力学模型，提出了基于轮胎侧偏角的汽车稳定裕度评价指标，解决了车辆失稳评价和预判难题。\n2.实现了电动汽车驱动功率和非驱动功率进行功率和能量的优化分配与管理，有效降低汽车能耗，在 市区和市郊综合道路工况下可节能7%-10%。\n3.设计一体化底盘集成控制策略，协调各执行器的控制自由度，提出了基于车辆稳定性指标和轮胎滑移指标的自适应权重调节方案，车辆操纵性能通频带宽提高了一倍，稳定裕度提升10%-30%,轮胎滑移能耗可减少15%-20%,实现车辆底盘性能的多目标协调控制。","吉林大学","丁海涛"]
[null,396,"汽车电子及新型汽车零部件","汽车工业技术","汽车动力学稳定性控制理论","主要研究先进车辆动力学稳定性理论及控制技术、提出了基于特征车速带宽的车辆稳定性线性理论模型，并结合路面、离心力及车速参数修正方法，使该模型可适应车辆各种驾驶工况与路面条件调整模型稳定性特性。提出了利用模糊逻辑识别车轮稳定性特征的方法，使车辆的车速计算更准确稳定，从而实现了车轮滑移率的精准计算。基于此建立了车轮滑移率直接控制的车辆动力学稳定控制方法。所研究成果推广应用实现国产电子稳定控制系统(ESC)产业化、车辆四轮驱动控制系统产业化等。","吉林大学","靳立强"]
[null,397,"汽车电子及新型汽车零部件","汽车工业技术","混动与分动器传动用静音链传动系统开发关键技术","本成果幵发了具有我国完全自主知识产权的，面向高端静音链产品系列，实现自主创新设计的数字化设计软件平台。利用该软件平台可以开发面向产品创新的不同变异形式的静音链及其链轮产品，可以实现静音链传动系统的快速设计与动力学建模及仿真分析。利用该关键技术，可实现汽车变速箱、分动器以及混合动力传动用静音链的自主开发与设计。","吉林大学","冯增铭"]
[null,398,"汽车电子及新型汽车零部件","汽车工业技术","节能与新能源汽车动力总成刚柔耦合动力学及NVH特性分析关键技术","针对节能与新能汽车齿轮传动系统正向主动设计、动力学仿真分析及NVH特性评估技术需求，基于多体动力学仿真技术，幵展了多款纯电动车齿轮传动系统的刚柔耦合动力学建模与仿真分析，对齿轮啮合噪声与强度分析、轴的动态刚度与强度分析、轴承动载荷提取与失效分析，以及箱体的辐射噪声与强度分析等进行了详细而深入的研究，形成了节能与新能源汽车动力总成刚柔耦合动力学建模及NVH特性分析关键技术。","吉林大学","冯增铭"]
[null,399,"汽车电子及新型汽车零部件","汽车工业技术","节能与新能源汽车链式CVT传动系统开发关键技术","本成果开发了具有自主知识产权的链式CVT数字化设计、智能化装配及动力学仿真专用软件模块，为链式CVT传动系统的正向主动设计、动力学建模与仿真分析、NVH性能评估、链式CVT传动系统机电液控一体化协同仿真分析提供了一种高效、可靠的方法。该研究成果被国内专家鉴定为国际先进水平，被国外同行评价为“Really a great job”，解决了行业内的“卡脖子”关键技术问题，可应用于节能与新能源汽车无级变速器领域。","吉林大学","冯增铭"]
[null,400,"汽车电子及新型汽车零部件","汽车工业技术","汽油发动机静音链传动系统开发关键技术","本成果提出了满足低噪声、强耐磨和高可靠性寿命要求的汽油发动机静音链传动系统的数字化设计方法、开发流程、动力学建模与仿真分析及NVH特性评价体系，开发了具有自主知识产权的汽车发动机 正时齿形链传动系统的数字化设计专业软件，形成了利用剛柔耦合动力学计算方法进行链条疲劳耐久寿命预测的关键技术。利用该关键技术为一汽开发了TA1发动机静音链传动系统，经试验达到了原日本供 应商开发系统的技术水平，并利用该关键技术指导国内企业开发了多款汽油发动机静音链传动系统，该关键核心技术经鉴定达到国际先进水平。目前，该技术已进入日本汽车行业技术服务领域。","吉林大学","冯增铭"]
[null,401,"汽车电子及新型汽车零部件","汽车工业技术","市政电动环卫车辆低成本可量产无人驾驶系统与云端管控平台","基于电动清扫车平台，提供具备量产前景、高性价比的智能网联驾驶组件及平台设计方案，从而将现有的机械化清扫升级换代为无人驾驶的自动作业机械化清扫。基于现有在售车型，提供自动驾驶套件的前装设计方案。针对新一代无人驾驶清扫车，开发全新的低速无人驾驶底盘运动平台。从机电液控制角度，协助清扫车企业升级产品研发能力，优化清扫作业机构。","吉林大学","无"]
[null,{"$f":"ROW()-2","v":402},"汽车电子及新型汽车零部件","汽车工业技术","智能网联汽车系统开发及其认知-决策•运控-线控定制化赋能","瞄准中国制造2025提出的掌握智能网联汽车核心技术的行业重大技术需求，依托吉大汽车“人-车-路闭环系统运动学与动力学智能控制”优势，开展智能汽车多传感器融合感知-可行驶区域认知-预期轨 迹决策-运动学与动力学控制-2纵1横1垂线控技术研发。不同级别智能驾驶的“算法-软件-硬件-平台- 体化解决方案”。“车辆动力学+运动学+线控执行+驾驶行为+驾驶员生理体验”的五位一体行驶品质优化。智能网联汽车数据监控调度平台与OTA升级服务。","吉林大学","无"]
[null,403,"汽车电子及新型汽车零部件","汽车工业技术","智能电动小巴","以一汽现有红旗EV车型为底盘基础平台，面向固定区域内的智慧共享出行，开发全新的智能电动通勤小巴的车身造型、内外饰、人机交互、车载自动驾驶系统、智能路侧系统及智慧出行云端平台等技术，最终研制出2台用于参观体验的园区智能小巴样车，在一汽集团NBD园区和吉林大学南岭校园进行固定路线自动驾驶示范运行。","吉林大学","无"]
[null,404,"汽车电子及新型汽车零部件","汽车工业技术","内燃机余热综合回收利用系统","自2008年以来本团队结合中国石油蜀南气矿内燃式天然气压缩机提质增效、车用内燃机热效率提升实际工程及技术需求开始了低品质能源综合利用技术体系研发。2018年获批吉林省“车用内燃机尾气余热综合利用技术体系研发及推广”创新团队建设。十余年的研发形成了以潜热利用式可变膨胀比有机朗肯循环余热综合利用产业化前期技术体系，构建了技术成熟度逐渐提升的三个实验室原型系统并进行了可用性、系统潜力评测。专用换热器、可变膨胀比膨胀机、系统精细控制执行器等部分核心环节已经成 熟且具备了产业化制造、商品化应用的条件。","吉林大学","韩永强"]
[null,405,"汽车电子及新型汽车零部件","汽车工业技术","自动变速控制理论体系","针对DCT、AMT的起步换挡控制，提出了基于模型的先进控制策略，解决了标定工作量过于繁重、瞬态工况性能不稳定的问题。有级传动车辆换挡过程由于速比的转换，整车动力输出存在不连续性，引起换挡冲击、换挡噪声并对动力传动系统使用寿命造成影响。创建换挡品质客观评价体系，打破主观评价局限性，提供量化控制目标。科学阐释自动变速控制理论的三个核心问题，创建了集换挡规律、换挡过程控 制、换挡品质评价于一体的自动变速控制理论体系，自主开发了一系列工程应用软件。","吉林大学","雷雨龙"]
[null,406,"汽车电子及新型汽车零部件","汽车工业技术","带电机余热回收的二氧化碳热泵空调整车热管理系统","带电机余热回收的二氧化碳热泵空调整车热管理系统，包括电机余热回收模块、电池热管理模块、乘员舱热管理模块和热管理控制器；所述热管理控制器与电机余热回收模块、电池热管理模块和乘员舱热管理模块连接，实现电机、电池和乘员舱的制冷或制热。本发明的有益效果是：通过设置电机余热回收模块对电动汽车的电机余热进行回收，并利用到乘员舱热管理模块，使得乘员舱热管理模块在低温环境下制热效果得到提高，改善整车续航里程以及乘员舱舒适性。该系统结构紧凑，控制先进。","吉林大学","李明"]
[null,407,"汽车电子及新型汽车零部件","汽车工业技术","面向自动驾驶车辆的全天候、全时段室外目标跟踪行驶控制系统","本团队以林君院士为核心，对无人自主地质勘探装备关键技术进行研究与系统开发，针对野外复杂恶劣作业环境特点，形成了一套集环境感知、自主行驶、无人自主作业功能于一身的智能移动勘探作业平台，可适应外界各类行驶路况，具有大雨、雾天、夜间弱光条件下的环境感知功能，根据外界实际环境特点，建立野外环境地图，在无GPS/北斗等定位信息的条件下进行自主定位与自主行驶。相关的技术研究成果，还可延申应用到民用车辆无人驾驶、高铁的自动驾驶、地铁隧道的无人检测、工业区与矿区的安全巡检、野外搜索与救援等众多智能装备领域。","吉林大学","林君"]
[null,408,"汽车电子及新型汽车零部件","汽车工业技术","新型结构轮式车辆非充气车轮","非充气车轮凭借免充气、无爆胎和耐刺扎的优势成为轮胎行业发展的重要方向和研究热点之一，尤其对军用车辆而言更能满足作战需求。项目团队历经两年攻克了非充气车轮结构-材料一体化设计、材料界面技术、模块成型工艺等多项关键难点，成功开发出具有自主知识产权的轮式车辆非充气车轮，完成了国家有关单位对此招标项目的验收，新型结构车轮达到了子弹射击和越野性能等各项指标的要求，技术成熟度达到5级。","吉林大学","刘卫东"]
[null,409,"汽车电子及新型汽车零部件","汽车工业技术","大功率商用车/工程机械变速箱绿色设计关键技术","科研团队重点开展复杂能量传递与动力耦合、界面复杂流动与传热机理、多场耦合传质-传热过程等重大科学与工程问题的基础研究和应用研究。本成果可提高200kW以上国产大功率齿轮箱产品性能和质量稳定性，面向内燃机动力总成和新能源商用车实施产业化应用。通过理论解析与实验探索相结合的手段，提岀能量流调控模型、噪声-振动-结构耦合分析模型、性能退化演变智能预测模型等，搭建融合数字李生的大功率齿轮箱综合性能优化设计平台，从而形成标准化、系列化、智能化的大功率齿轮箱设计体系，并开发传动高效、热平衡精准、NVH特性良好的大功率齿轮箱产品。本成果中包含的绿色设计技术，可面向全系列大功率行走机械绿色产品动力总成全生命周期开发推广应用，可为先进制造业实施节能减排战略、发展循环经济与低碳经济提供关键技术支撑。课题成果可向行业辐射，为行业提供总成配套，在全球工程机 械低碳化竞争中赢得主动和优势。","吉林大学","刘春宝"]
[null,410,"汽车电子及新型汽车零部件","汽车工业技术","工程机械液力变矩器绿色节能设计与制造关键技术及产业化应用","本成果突破了工程机械绿色节能液力变矩器设计与制造关键技术，攻克了液力变矩器“性能预测难、叶片优化难、动态匹配难、精确制造难”等难题，硏制系列化的高性能液力变矩器产品。本成果的研发产品具有完全的自主知识产权，显著提高国产液力变矩器的性能，打破了国外对高端液力变矩器垄 断的同时，实现了 1.76万台变矩器的出口，创收外汇914万美元。2016-2018年实现新增产值96947.52 万元，新增利润13527.14万元、新增税收4827.36万元。成果鉴定指出“项目创新性明显，产品性能突出，产业化效果显著。研发的液力变矩器瞬态流动尺度解析计算与性能预测、叶栅设计及产品制造等绿色节能关键技术具有完全自主知识产权，该成果总体水平达到国际领先”。成果打破了国外技术垄断，提高了国产液力变矩器及工程机械整机的国际竞争力，对推动我国工程机械的节能降耗、产业升级具有重大意义。","吉林大学","刘春宝"]
[null,411,"汽车电子及新型汽车零部件","汽车工业技术","3D四轮定位仪分体检测技术的开发","产品特点：重量轻，体积小，性能稳定，重复精度高，现场调试简单，2人即可完成全部操作。本产品能够真实模拟汽车车轮定位系统的几何运动关系，再现四轮定位检测的全过程。根据主销倾角角度分量独立生成原则和不等角位移原理，利用角度细分技术，实现对四轮定位仪测量车轮外倾、前束、主销后倾和主销内倾等各项主要功能的检定。其性能完全符合校准规范JJF1154和中华人民共和国国标GB33570-2017 《四轮定位仪》等标准的要求。","吉林大学","邵承会"]
[null,{"$f":"ROW()-2","v":412},"汽车电子及新型汽车零部件","汽车工业技术","低碳轻量化组装式车轮","本项成果发明了一种轻量化组装式车轮结构，其轮辐和轮網可以根据其结构特点分别用不同材料和工艺制造，如钢、镁、铝、碳纤维复合材料等。加工成形效率高、成本低，轮辐和轮網损坏后可分别更换，可维修性好、维修费用低。能够满足不同个性化要求。减重效果为同尺寸铸造铝车轮的25%以上。适合于乗用车和商用车车轮制造。","吉林大学","王登峰"]
[null,413,"汽车电子及新型汽车零部件","汽车工业技术","形状记忆合金车载执行器驱动技术","针对未来智能电动汽车可动部件全部电机化过程中亟需解决的结构轻量化、空间布置柔性化等问题，提出利用丝式形状记忆合金的形状记忆效应，通过施加电载荷产生的电阻热实现SMA驱动本体的驱动和控制，由此构造形成SMA车载执行器，用其替代现有车载电磁马达，实现车内可动部件的驱动与控制，进而实现车载执行器的轻量化。新型形状记忆合金车载执行器具有以下特点：①体积小、重量轻、结构简单，SMA材料在电载荷作用下，利用产生的电阻热量驱动丝式SMA本体产生固态机械形变，利用该形变直接驱动负载，代替电磁执行器的电-磁、磁-力、旋转-直线的复杂转换过程；②柔性好、易于集成，使得车内特 殊位置以及狭小空间之内运动部件电机化的实现成为可能；③输出力大、输出位移大，丝式SMA与弹簧式 相比具有较强的力输出性能，增加SMA丝和外部柔性支撑部分的长度即可增加驱动器的输出位移；④噪音小、无电磁干扰，固态机械形变特性决定了SMA柔性车用驱动器没有传动及减速部件，驱动过程中动作柔 顺平滑且不会产生电磁变化；⑤响应速度快，与弹簧式SMA相比，丝式SMA以较小的直径即可获得同样的 驱动力，同时响应速度大幅提高。利用丝式形状记忆合金的形状记忆效应，通过施加电载荷产生的电阻热 实现SMA驱动本体的驱动和控制，由此构造形成SMA车载执行器，用其替代现有车载电磁马达，实现车内 可动部件的驱动与控制，进而实现车载执行器的轻量化。","吉林大学","沈传亮"]
[null,414,"汽车电子及新型汽车零部件","汽车工业技术","智能电动汽车车辆前端自适应防护技术","针对现有车辆前端系统应对复杂多样碰撞事故的局限性，为保护弱势道路使用者、提高车辆的碰撞相容性，有必要开发适用于多种碰撞工况的自适应碰撞防护系统。目前国内外主要汽车厂商和科研机构都展开了主动安全与被动安全相结合的预碰撞技术硏究，通过主动预紧安全带、控制气囊点火时间、主动释放发动机罩、布置车外气囊等方式减小车内乘员和车外行人受到的碰撞伤害。本项成果瞄准国际智能汽车主被动安全一体化前沿，研究动态和未来智能交通下碰撞安全系统的研发需求，提出一种基于形状记忆合金材料的车辆自适应前端防护系统，结合快速激励多模电控单元，实现前端刚度及吸能量的主动调谐和可逆恢复，进而兼顾弱势道路使用者的保护和车辆自身的防护。","吉林大学","沈传亮"]
[null,415,"汽车电子及新型汽车零部件","汽车工业技术","采用摆线针轮机构的汽车主动转向系统","本发明所要解决的技术问题是克服现有固定传动比转向系统轻与灵的矛盾，提供了一种采用摆线针轮机构的可变传动比的汽车主动转向系统。该系统利用在转向管柱加入一套摆线针轮式行星齿轮传动机构，从而增加一个输入自由度，实现附加转向，该附加转向角由自主开发的控制器控制一个电机驱动实现，系统保留了方向盘与转向器的机械连接，且当遭遇电机故障时，机构中的电磁离合器自动断开连接，保证此时方向盘能够直接对转向器输入，控制汽车转向，安全可靠。本成果可以避幵国外技术壁垒，自主开发一种新型的电控主动转向系统，降低产品价格，可推广使用。","吉林大学","王军年"]
[null,416,"汽车电子及新型汽车零部件","汽车工业技术","新型电子驻车制动器","本系列发明的目的是提供一种新型车辆电子驻车制动系统执行机构，在其他部件如电子控制单元的配合下，可以有效地克服传统驻车制动的缺点，并具备结构紧凑、传动比大、轴承载荷小、承载能力强的优点","吉林大学","王军年"]
[null,417,"汽车电子及新型汽车零部件","汽车工业技术","智能驻车制动及辅助起步控制装置","本发明提出了一种无离合器行程传感器（匹配手动挡变速器的汽车）和无泵轮转速传感器或无油压传感器（匹配自动变速器）式的智能驻车制动及辅助起步控制装置，有效降低成本的同时，可以解决现有驻车制动施加最大制动力导致起步迟缓和前窜现象；且依旧保留了手动驻车制动手柄，实现机械冗余的同时，也不影响驾驶员使用传统驻车制动手柄驻车和起步。","吉林大学","王军年"]
[null,418,"汽车电子及新型汽车零部件","汽车工业技术","车用气体发动机高效清洁燃烧技术","本人及所在的团队，多年来紧紧围绕车用动力行业的发展，响应节能减排的国家号召，针对天然气发动机燃烧及排放性能控制关键技术展幵了细致深入的研究。研究方向包括稀燃天然气发动机、柴油引燃天然气双燃料发动机、当量燃烧天然气发动机、混合均质压燃天然气发动机的燃烧关键技术等。目前，在国家基金委和吉林省科技厅，以及企业的大力支持下，针对天然气发动机燃烧关键控制技术取得了国内外领先的创新性研究成果，并受到业界的一致好评。","吉林大学","王忠恕"]
[null,419,"汽车电子及新型汽车零部件","汽车工业技术","质子交换膜燃料电池气体扩散层的老化及剪切模量测量装置","本成果属于一种燃料电池气体扩散层专用老化及剪切模量测量装置。可以脱离燃料电池模组进行气体扩散层的老化处理，可以模拟其在正常工作下的受力、温湿度变化情况，并可以根据需要进行调整。另外，由于气体扩散层的脆性、薄膜特性，剪切模量测量难以用一般方式测量，本装置还配备了一个剪切模量测量装置，用于测量老化后剪切模量的变化。本成果属于一种燃料电池气体扩散层专用老化及剪切模量测量装置。可以脱离燃料电池模组进行气体扩散层的老化处理，可以模拟其在正常工作下的受力、温湿度变化情况，并可以根据需要进行调整。另外，由于气体扩散层的脆性、薄膜特性，剪切模量测量难以用一般方式测量，本装置还配备了一个剪切模量测量装置，用于测量老化后剪切模量的变化。","吉林大学","无"]
[null,420,"汽车电子及新型汽车零部件","汽车工业技术","工程车辆无人驾驶系统","在工程机械行业，为了进一步降低能源消耗，抑制事故发生率，减轻操作者的操纵负担并提高作业效率，无人驾驶技术具有广阔的发展前景。本成果从非结构环境识别、复杂地形下的路径规划、轨迹跟踪、自主智能作业控制入手，完成了技术原理开发和功能性验证，形成了无人驾驶工程车辆关键技术； 并以装载机和挖掘机为例，进行了整机作业实验。本成果的推广形式包括：（1）与主机厂进行项目合作，开发无人驾驶工程车辆新产品；（2）形成工程车辆无人化操纵专有技术，进行专利转让或作价入股；（3）与主机厂共同建立新的产品线；（4）成立无人化施工队伍参与工程施工等。团队于1998年 幵始进行工程车辆主/被动安全及自动驾驶方面的研究，建立了工程装备实验中心国家认可实验室，具有完善的测试设备和测试条件。","吉林大学","姚宗伟"]
[null,421,"汽车电子及新型汽车零部件","汽车工业技术","新能源汽车及储能系统热健康状态评估与热管理强化技术","课题组多年来深耕新能源汽车及储能系统热健康状态评估与热管理强化技术领域，核心技术申请国家专利10余项，目前已获批国家专利6项。核心技术与成果在新能源领域需求广泛，市场前景好，目前部分样机研发和实验测试阶段已基本完成，希望有相关企业助力一同实施产业转化。","吉林大学","高青"]
[null,{"$f":"ROW()-2","v":422},"汽车电子及新型汽车零部件","汽车工业技术","智能电动汽车线控制动系统控制与测试技术","智能电动汽车对制动系统提出功能、结构、性能以及相对应的测试匹配体系等新的要求，为此团队自主创新研发了多种构型的智能电动汽车制动装置，设计了相应的非线性制动压力精确调制算法，创新建立了接近服役条件下的智能电动汽车电液制动系统测试试验台体系。","吉林大学","赵健"]
[null,423,"汽车电子及新型汽车零部件","汽车工业技术","自动驾驶汽车虚拟仿真测试评价体系","针对自动驾驶汽车测试验证难题，项目团队建立了基于场景的自动驾驶汽车虚拟测试评价体系，自主研制了毫米波雷达在环、相机在环、V2X在环、冗余制动系统在环等多物理系统在环测试平台，突破了动 态并发实时模拟关键技术，形成了自主知识产权虚拟测试工具链；在此基础上，提出了危险场景优化搜索与强化生成方法和面向多维度逻辑场景的聚类评价方法，实现了基于模拟仿真的自动驾驶汽车自适应加速测试。","吉林大学","朱冰"]
[null,424,"汽车电子及新型汽车零部件","汽车工业技术","汽车关键零部件智能制造与检测装备产业化研究及轿车总装ACC标定检测系统的研究与应用","项目负责人朱先勇及其团队成员长期从事智能制造技术及相关装备研发，承担相关科研项目16项， 其中包含吉林省“双十工程”重大科技成果转化项目1项，车辆中大型冲压件铸造模具关键技术基产业 化。吉林省重点科技成果转化项目1项，高性能铝合金V型发动机紅体产业化。总经费额度超过1000万 元，其相关研究成果“铝缸体压铸技术研究与工艺开发”荣获2019年度吉林省科学技术奖励二等奖。主持研制的“汽车关键零部件智能装配生产和检测线的综合研究与产业化开发”技术在长春一东汽车零部 件制造有限公司、长春长新机械有限公司等9家企业获得广泛应用。该项目的相关成果累计为企业实现 产值24.11亿元，利税3.619亿元。主持研制的“轿车总装ACC标定检测系统”测试试验平台自有知识产 权，打破德国的技术封锁，解决了卡脖子的问题，已应用于成都一汽汽车有限责任公司和一汽大众汽车 有限公司，实现产值1亿元/年，利税1千万元/年。","吉林大学","朱先勇"]
[null,425,"遥感卫星及航天航空技术","环保与资源","无人机地空频率域电磁探测系统","该系统由地面大功率发射装置和无人机挂载的空中信号釆集装置构成，能够实现较大范围的地下结构大深度探测，观测范围可距离地面发射装置3-9km,最大探测深度可达1000m,可用于各种复杂地表条件下矿产资源勘探、地下水探查、工程地质调查等。具有经济、高效、便捷、环境适应性强等显著特点。目 前成果已在全国10多个省市区应用，创造了显著的社会经济效益。尤其是近年来，该系统在西南山区等复 杂地表条件区域进行隧道选址勘探，解决了常规地面勘探方法无法施工的问题。","吉林大学","林君"]
[null,426,"遥感卫星及航天航空技术","环保与资源","低温高压土力学三轴测试技术","低温高压三轴测试技术是将低温制冷、高压加载控制和三轴测试相结合的一种新型测试技术，该技术不仅可以用于常规土体的三轴测试，还可以模拟低温高压特殊条件下形成土体的三轴测试。该技术可提供一种低温高压环境，实现天然气水合物原位合成与分解，模拟深海能源土不同受力工况下的三轴测试；该技术可控制环境温度至零度以下，实现冻土的常规三轴测试；该技术可调控环境温度，实现土体冻融循环条件下的三轴测试。","吉林大学","郭威"]
[null,427,"其他","环保与资源","深部地热(含干热岩)城市采暖利用与开发","地热资源是世界重点开发的新型可再生清洁能源。深部地热能(包括干热岩)储量巨大，但目前深部 地热资源勘查与开发存在以下关键难题：\n(1)深部地热热储在地面响应信息弱，成因机理研究困难，缺乏科学认识；\n(2)深部地热勘查标志性特征不明显，深部地热储层在地面响应弱，未能形成地球物理探测方法技术 体系；\n(3)深部地热钻探成本高，对于高温高压条件下开发理论与技术研究难度大，缺乏可持续性监测手段。\n针对这些问题，项目团队在国家863课题、自然科学基金以及多个企业合作支持下，历时10年攻关, 总结了一套深部地热成因机理解释理论；提出了一套综合地热探测与评价技术；研发了干热岩裂隙示踪技术和试验平台和高温高压下干热岩工程开发研究；提出了基于深部地热“取热不取水”住房采暖技术。","吉林大学","曾昭发"]
[null,428,"其他","环保与资源","C02地质封存潜力及安全性评价技术","减少以C02为代表的温室气体排放是减缓全球变暖的有效措施。C02地质封存是减少C02排放的主要技术之一，也是实现“碳达峰、碳中和”目标的托底技术。本成果基于室内实验、数值模拟、天然类比及场地监测等方法，通过分析地质封存过程中含C02多相流体渗流与地球化学反应相互作用机理, 评估地质储库封存C02能力，预测C02泄露的可能性，评价地质封存的安全性，集成一套C02地质封存潜力及安全性评价技术。","吉林大学","许天福"]
[null,429,"其他","环保与资源","地外星体土壤岩石样品自平衡自适应钻取系统","以蜘蛛吐丝固定为模仿原型，采用电驱动为钻取样平台的移动与传动提供动力，借助驱动提供的动力实现钻机位置与姿态的调整，完成钻进与取样，采用射出射锚头钉入地外星体内部的方式，以提供在微重力条件下设备钻进所需的压力，并在钻探工作完成后解除钻取平台的平台主体与地外星体之间的连接，达到了地外星体取样工作中高度机械化、自动化、智能化、简单化的要求。","吉林大学","高科"]
[null,430,"其他","环保与资源","地下复杂介质感应-极化共生效应的超导电磁探测关键技术及应用","发展高精度电磁探测新技术、解决矿产资源短缺问题是世界级地球物理勘探的科学难题。近年来，针对隐伏矿或盲矿勘探难度加大、煤矿安全事故频发等带来的探测技术新挑战，研究复杂介质多物理效应探测新理论、发展高精度电磁测量新方法是解决地下精准探测的关键核心技术。超导时域地空电磁探测技术，具有超高灵敏度、可获取地下复杂介质的FT量级导电和极化信息的优势，已成为高精度资源探 测的重要方法之一。本项目构建了时间-空间分数阶电磁反常扩散探测新理论，自主研制了超导传感器 的电磁感应-极化探测系统，研究成果广泛应用于矿产资源、地质灾害等探测领域。","吉林大学","嵇艳鞠"]
[null,431,"其他","环保与资源","地下水污染修复技术","污染场地控制与修复技术团队承担过国家高技术研究发展计划(863)重大项目、国家重点研发计划 场地土壤污染成因与治理技术、国家自然科学基金重点基金等省部级以上科技项目50余项。先后获得地下水有机污染场地控制与修复技术、地下水原位强化修复技术及应用示范等多项省部级科技奖励。形成了污染场地调查、风险评估、预警预报，水土污染防控与修复治理新技术、新方法、新装备等系列成果。特别是在地下水污染复治理方面研发了一系列难降解有机污染物、高毒性重金属污染修复治理技术，解决了含低渗透非均质地层修复试剂难传导、多相复合污染组分难去除、水土一体化治理技术紧缺等系列难题，形成了多项技术发明专利，可迅速实现推广使用。","吉林大学","赵勇胜"]
[null,{"$f":"ROW()-2","v":432},"其他","环保与资源","电离层磁场的震前异常提取与分析","项目团队提出釆用非负矩阵分解电离层磁场数据，通过分析分解后各分量，确定与地震相关的震前异常。该技术应用于2016年厄瓜多尔地震研究。","吉林大学","朱凯光"]
[null,433,"其他","环保与资源","多通道多功能连续管及其地面储放系统","通过连续缆管为井下钻具系统提供电能、信号、数据和继续循环钻井液等，同时既能快速起下钻又能起下钻不间断钻井液循环，减少起下钻等辅助时间，降低钻具对井壁的扰动程度和因钻井液停止循环导致的井内复杂情况。\n同时，为了避免现有绞车提升钻具出现的缆管易在滚筒上被挤偏与绞车上旋转滚筒的缆管固定端与地 面静止部分动静密封和动静状态下的电液隔离技术难以克服的难题，满足了钻具系统的缆管地面存储要 求，节约了存储空间，提高了存储的效率，解决了缆管提升与下放存在的技术瓶颈。","吉林大学","高科"]
[null,434,"其他","环保与资源","复杂地层低扰动钻探取样技术","钻探取样是获取地下实物信息最直接的技术手段，然而，在进行复杂地层取样时，由于钻具机械扰动和复杂地质因素的双重作用无法保证样品原状特性，严重破坏样品信息记录的完整性及真实性。针对这一问题，项目团队依托于“自然资源部复杂条件钻釆技术重点实验室”和“地球信息探测仪器教育部重点实验室”开展了复杂地层仿生钻具低扰动取样技术相关硏究，通过对取样钻具表面进行表面非光滑 微结构加工和超疏水改性处理，从而减少取样管壁面与地层的粘附力和摩擦力，实现低扰动取样；并结 合井下快速制冷技术实现对陆地及海洋含水合物沉积物地层的保真取样。","吉林大学","郭威"]
[null,435,"其他","环保与资源","复杂介质中时间域航空电磁系统仿真与数据反演研究","“攻深找盲”是我国能源和矿产资源勘探开发重大决策，指明了解决我国能源和矿产资源短缺问题的 方向。我国航空电磁勘查技术近十年发展迅速，经济高速发展导致的矿产资源、能源和地下水资源的需求 激增，而我国地形地质条件较好的地区资源探测和开釆已近枯竭，目标正向广大西部无人区转移，同时面对国家大型工程(比如川藏铁路)的地质勘察等问题，航空电磁勘查技术都是必备手段之一。在国家科技计划的大力支持下，目前航空电磁系统已基本成形，然而数据反演和解释软件硏发相对迟缓，严重制约了航空电磁走向实用化。本项目针对国家重大需求及关键技术难题开展研究，取得多项创新性成果：\n(1)复杂介质中三维时间域航空电磁仿真关键技术；\n(2)大尺度模型条件下三维时间域航空电磁快速反演关键技术；\n(3)三维可视化模型编辑、海量数据管理和图示软件开发；\n(4)实测时间域航空电磁数据反演、算法评价及结果分析。","吉林大学","殷长春"]
[null,436,"其他","环保与资源","甘油基新型高能碳源在污水处理中的应用","随着生物柴油产业的发展，产生较大量以甘油为主要成分的副产物，而将生物柴油生产的副产物做为碳源应用于污水处理，成为处理此类副产物的重要手段之一，也是甘油应用研究的重要方向。餐厨垃圾与废油脂生物柴油副产物粗甘油联合发酵生产乳酸，是将混合水解酶加入到餐厨垃圾培养基中水解，将种子液接种到水解后的餐厨垃圾培养基中，再加入经生物质初步处理的废油脂生物柴油粗甘油，厌氧或微氧发酵，同时加经生物质初步处理的废油脂生物柴油粗甘油，控制发酵体系中粗甘油浓度在10〜 80g/L, pH在5.0-8.0,发酵过程中测定甘油和乳酸的含量，发酵后得到的发酵液过滤即得乳酸液可为 微生物提供丰富的碳源、氮源，利用餐厨垃圾发酵生产乳酸碳源，不但可以消除其污染，而且是实现资源化的有效途径。","吉林大学","冯威"]
[null,437,"其他","环保与资源","干热岩人工裂隙网络监测与表征技术","研究团队研发了微地震信号检波器和传输天线，保障复杂地形地质条件下微地震信号高信噪比无线传输，降低微地震监测成本、提升有效监测面积；开发了微地震事件定位算法和微地震一示踪试验联合裂隙参数解释算法，通过软件集成，形成微地震事件实时三维成像系统和裂隙参数解释程序。成果具有完全自主知识产权并通过了中国地质调查局共和盆地我国首个干热岩幵发示范工程检验，微地震事件有效定位深度超过3500m,覆盖范围64km2,现场定位延时少于5分钟，在监测深度、覆盖范围以及监测延时方面达到国际先进水平；微地震与示踪试验联合的裂隙渗透率空间分布解释方法精度较传统示踪解释方法精度提 升5倍以上。研究成果为干热岩资源规模化开发提供重要技术支持，对推动清洁安全生产，保障国家能源安 全具有重要意义。","吉林大学","许天福"]
[null,438,"其他","环保与资源","高陡坡岩体结构无人机高分辨率智能勘察技术","为了克服无人机拍摄高陡坡面影像出现模糊、拉花、分辨率低等质量问题，通过控制影像重叠度、航线角度、拍照点方位、精确对焦与畸变矫正等关键参数，提出了多方位、多角度的全景式高位岩体结构数据采集方法，建立了高位斜坡复杂结构岩体的高清三维模型。基于三维影像与点云，提出了“RGB 与法向量突变”的结构面自动智能识别方法，实现了岩体结构面的自动采集，为高位岩体结构信息的快 速精细勘察提供了强力的技术支撑。","吉林大学","陈剑平"]
[null,439,"其他","环保与资源","高海拔艰险区地空协同大深度电磁探地装备","我国多山，地形复杂，地表大面积高海拔和艰险区有待勘察。团队结合地面电磁和航空电磁两种探测 方法的优点，提出了地空协同时频电磁探测方法，即地面上大功率发射时频域电磁场，空中无人飞行器携 带电磁接收系统实现低空多分量电磁连续快速观测。地空协同电磁探测具有效率高、成本低、探测深度大 等优点，兼顾地面方法的探测精度，又不受地形地貌限制，实现对复杂地表条件区域的非接触式快速探测 成像，勘探深度达1500m以上。成果获2014年度国家技术发明二等奖，先后在山西、内蒙等地的煤矿采 空调查，西渝铁路、川藏铁路等复杂山区的隧道前勘得到成功应用，为国民经济建设和社会发展做出了贡献。 该装备还可应用于海陆交互带、油气资源、基础地质调查、深部金属矿产、地热资源、工程地质探测等领域, 能够辐射地矿、煤田、水利、核工业、高校院所等多个行业部门，应用前景广阔，市场潜力巨大。","吉林大学","林君"]
[null,440,"其他","环保与资源","高级变质区地质调查与综合研究方法","成果阐释了大青山一乌拉山地区变质地层格架、结构与地质构造演化，查明阴山板内造山带地壳构 造变形期次、生成时序、变形环境以及地壳收缩变形的基础上，查明高级变质地层的变质地层结构和演 化特征，阐述区内早前寒武纪地质构造演化过程。并着重对高级变质岩部分熔融和流变机制进行了深入 的研究，这对探讨地壳早期形成演化过程、地壳深部流变性质和岩石圈演化动力学机制具有重要的科学 意义。同时对高级变质岩区的区域地质调查和综合研究方法进行了系统总结，对今后在同类地区地质调 查工作有一定的参考价值和指导意义。项目成果不仅对探讨地壳早形成发展演化历史和地壳深部构造层 次上构造样式和流变机制具有重要科学意义，同时对开展我国高级变质岩区调查工作具有重要实际指导 意义。该成果获得国土资源部科技成果二等奖。","吉林大学","刘正宏"]
[null,441,"其他","环保与资源","地面对称异形坑成型自平衡切割系统","该平衡切割系统由矩形线切割组件、地面平行面自平衡给进组件、地面垂直面加压组件以及支撑行走支架四部分共同组成。本发明通过切割链条实现持续切割，减轻了工人劳动强度；通过两根丝杠回转方向相反，实现了扭矩自平衡提高了切割的稳定性；达到预定切割深度后还可通过丝杠与两侧的切割支架之间 的配合实现向内切割土体。最终将矩形土体块全部取出即可，方便快捷，大大提高工作效率。","吉林大学","高科"]
[null,{"$f":"ROW()-2","v":442},"其他","环保与资源","高性能气动潜孔锤","气动潜孔锤钻进是一种高效的钻进硬岩的钻进技术，应用广泛，但其能耗的问题也十分突出。本项 目在气动潜孔锤内在机理的层面上进行剖析，分析其存在着“气垫”影响了冲击器的性能，通过结构上 改进和优化，提高了潜孔锤的能量转换率，在同等耗气量和压力作用下，气动潜孔锤有着更高冲击频率 和更高的单次冲击功。","吉林大学","杨红东"]
[null,443,"其他","环保与资源","海洋天然气水合物安全高效开采及环境影响评价技术","天然气水合物以其清洁、能量密度高、分布范围广、资源储量巨大等优点被认为是21世纪最具开发潜力的新型替代能源。本团队利用室内试验、数值模拟、场地试验等手段，在深入研究海洋多类型天然气水 合物富集分布规律及成藏机理的基础上，聚焦水合物安全高效开釆及环境影响问题，开发了水合物幵采传 热-流动-力学耦合数值模拟程序、水-气-砂运移预测程序，实现了与日本Nankai海槽水合物试釆工程、中国南海神狐海域水合物试采工程的历史拟合，完成了开采产能、地层安全性、开采井安全性等预测与评价。集成了一套海洋天然气水合物安全高效开采及环境影响评价技术，该技术已成功应用于我国南海神狐 海域天然气水合物第一次、第二次试采工程，取得了良好的应用效果。","吉林大学","许天福"]
[null,444,"其他","环保与资源","火山岩气藏高效勘探开发理论与技术创新及实践","依托国家973项目和油田企业项目，联合油田单位：\n①创新了从宏观到纳米级全尺度火山岩气藏成藏地质理论体系，建立了内幕型储层地质模式，明确了成藏条件，建立了大型高产火山岩气藏和小型中-低产火山岩气藏两类成藏模式，明确了富集规律；\n②建立了火山地层内幕地质-地球物理精细解剖技术、火山岩储层地质-地球物理三维量化表征技术、火山机构地球物理智能识别技术、火山岩有利目标区综合预测和评价技术等4个高效勘探技术，实现了勘探技术创新；\n③建立了火山岩气藏水平井立体高效动用技术、火山岩气藏稳气控水技术、火山岩气藏中后期幵发调整技术，实现了地质理论指导下的火山岩高效开发技术创新。","吉林大学","单玄龙"]
[null,445,"其他","环保与资源","空地井矿产资源勘查技术","针对典型覆盖区（复杂条件区、戈壁荒漠区、森林草原区、厚覆盖区）深部矿产资源3000米以浅勘探技术的需求，项目研发团队主要解决了空-地-井协同快速、有效位场探测方法和三维地球物理-地质建模方法两大关键技术。形成了反演解释和可视化建模软件模块2套，良好支撑国内自主产权软件平台；创新性提出了基于交叉协同的单源、多源多维多尺度高分辨率反演方法技术，有效地提高了深部场源的分辨能力和解释精度；硏发出多源多维数据的快速可视化与交互解释建模技术，推进了交互式反演与解释，为深地资源地球物理勘探提供理论与技术支撑。","吉林大学","马国庆"]
[null,446,"其他","环保与资源","南极冰下湖无污染钻进采样与观测系统","研发了南极冰下湖无污染钻进釆样与观测系统，包括梯度加热系统、内嵌式绞车系统、小直径高强度电缆、钻进参数检测与控制系统、科学载荷平台、不间断供电系统和地表辅助系统，可实现南极冰下湖快速、无污染钻进与釆样。突破了大长径比热融钻具低功耗梯度加热、小直径大负载内嵌式绞车、小直径高强度多功能同轴电缆、湖水多参数测量及水样采集和大功率不间断供电电力自动供给等关键技术，解决了南极冰下湖观测与采样相关技术难题。研发的系统装备为我国深入开展南极冰下湖观测、推动冰下湖形成机理研究和南极冰下湖对南极冰盖物质平衡的影响等研究奠定坚实的基础。","吉林大学","张楠"]
[null,447,"其他","环保与资源","难降解有机废水的臭氧催化氧化处理技术","硏发了系列新型催化剂，构建了基于新型催化剂的臭氧催化氧化方法，以及以臭氧催化氧化为核心的废水深度处理与回用，用于含难生物降解有机污染物（如水溶性高分子物质聚乙烯醇、黄腐酸、抗生素、 氯酚类物质等）的工业废水（特别是传统臭氧氧化效率低的低pH废水）的深度处理与回用，具有高效低成本的优势。相关研究工作得到国家科技重大专项和吉林省科技攻关计划重点科技攻关项目的支持。","吉林大学","花修艺"]
[null,448,"其他","环保与资源","潜山储层成储机理与有利储层分布","该成果为中海油天津分公司“渤中19/25构造区中深层优质储层预测”及中海油湛江分公司“松南 低凸起前古近系潜山储层成储机理及有利储层分布（类比盆内）”的主要研究成果。通过对渤海湾盆地太古界潜山和琼东南盆前古近系潜山变质花岗岩的研究，发现长英质岩石易破碎发育规模裂缝、并被溶蚀形成次生孔隙，富长英质脆性岩石是花岗质潜山储层发育的基础，为深层潜山成储研究提供了理论依据。","吉林大学","王璞瑁"]
[null,449,"其他","环保与资源","山区铁路高效钻进用钻头研制关键技术","以川藏铁路工程实践为基础，通过跟踪国内外水平孔、垂直孔领域研究现状，收集国内外研究成果，明确了现场钻探工作对高性能钻头的迫切需求；结合钻探施工需求和勘探目的以及现场地质勘察情况对复合钻头的选型和结构设计开展研究，结合钻探施工需求和勘探目的以及现场地质勘察情况，探索适合的烧结工艺参数（温度、压力和时间）和钻头结构参数，硏制出了高效钻进的孕镶金刚石复合钻头，在可钻性8 级的闪长岩地层钻进，最长寿命达到321m;在超长水平孔钻进，钻进效率最高达到4.5m/h，比常规钻头提高100%以上。","吉林大学","马银龙"]
[null,450,"其他","环保与资源","深井长期地磁监测磁通门传感器设计与高导磁软磁材料制备","高精度磁传感器研究团队长期致力于弱磁检测方法与技术研究，有磁通门磁力仪、原子磁传感机制研究、光泵磁传感器硏制和磁测系统野外实验等工作经验与基础。团队依托于国家地球物理探测仪器工程技术研究中心、教育部“地球信息探测仪器”重点实验室和国土资源部“地球探测技术及仪器”重点实验室。磁测实验辅助条件较为完善，能够在磁测原理模型仿真、传感器加工、仪器性能测试设备与环境等方面提供有力保障。","吉林大学","王言章"]
[null,451,"其他","环保与资源","松辽盆地三叠系基底的首次发现","松辽盆地是否存在早中生代地层一直存在争议。之前的研究认为，东北地区自二疊纪末期地槽褶皱回返造山之后直至早侏罗世一直处于隆升剥蚀状态，没有三叠纪-早中侏罗世地层沉积，对于松辽盆地深部凹 陷中的基底侵入岩和变质岩的年代学硏究也证实了上述观点，岩石形成时代多为石炭纪、二叠纪和晚侏罗世。通过对松辽盆地国际大陆科学钻探松科2井全取心资料的同位素定年工作，发现松辽盆地基底存在三叠 纪火山-沉积地层，松科2井揭示的该套地层厚度超过700m,下部主要为安山质火山角砾岩，中部为安山 岩、砂岩、砾岩，上部为安山岩。下部(6373.9m)安山岩的错石U-Pb年龄为242.6±1.5Ma (n=18, MSWD=1.02),中部(6286.2m)砂岩的最新沉积年龄为242.2Ma,上部安山岩的错石U-Pb年龄为 242.4±2.1Ma (n=7, MSWD=0.06)。上述测年结果和地层叠置关系表明这套火山-沉积地层形成于三叠 纪。这一发现对松辽盆地基底的再认识、盆地形成与演化以及深部油气勘探具有重要意义。","吉林大学","王璞瑁、高有峰"]
[null,{"$f":"ROW()-2","v":452},"其他","环保与资源","提高PDC钻头钻进硬岩钻进效率的提速利器一系列扭力冲击器","扭力冲击器是近年来国外幵发的，一种辅助PDC钻头钻进、提高钻进效率、延长PDC钻头寿命，改 善井内钻具受力的一种提速工具。\n国外这项技术以技术服务的形式进入我国的钻井行业，尽管这些年来我国的有关部门也在开发和研 究这项技术，但几乎没有原创和成熟的技术问世，属于典型的卡脖子技术。\n本项目开发的扭力冲击器是具有完全自主知识产权的技术产品，采用阀控容器式的工作原理，其配 流不同于类似凿岩机机理，进入扭力冲击器的冲洗液同时进入阀和摆锤的工作腔体，不存在分流问题， 具有结构简单，工作可靠的特点。","吉林大学","杨红东"]
[null,453,"其他","环保与资源","天然气水合物二次形成防治技术","天然气水合物二次形成是降压开采面临的关键科技难题，极大制约着水合物的高效开发，是天然气水合物产业化开发面临的重要技术瓶颈。项目团队根据天然气水合物降压开采工艺，建立了天然气水合物二次形成一维模拟装置，通过解决二次水合物形成演化动力学规律这一关键科学问题，提出利用径向水平钻井技术向远井区注热或注化学剂的思路，热流体和化学剂在压降的驱动下渗流返回井筒，实现降压-注热或 降压-注化学剂的高效耦合，极大地扩展了注热和化学剂的作用范围，从而能够有效地抑制和消除储层特定 区域的二次水合物，实现了对二次水合物防治技术的突破。","吉林大学","郭威"]
[null,454,"其他","环保与资源","脆弱环境盐渍土复垦与大型引水工程互馈效应","本成果围绕脆弱环境盐溃土复垦与大型引水工程互馈效应关键科学问题进行相关的研究与评价，通过寒旱条件下盐渍化过程的物质迁移与结构变化及不良工程效应大型模型试验，长期测试和室内试验分析，得出了分散性盐渍土体在温度、干湿、时间的叠加条件下水盐迁移的机理及成因机制和耦合模型、吉林西部侵蚀性碳酸盐、硫酸盐离子在混凝土中的迁移规律和损伤机理。提出了土体经过了干旱、少量降雨、冻融循环和人类的活动导致了土体结构劣化，引发了土体性能变异和蜕化，由原来的黄土状土产生盐溃化，引发了大量的边坡溃塌等工程问题。提出了一种新型再生无磺木质素改良盐渍土的工程性能 的绿色盐渍化防控对策，为吉林西部盐渍化土体的工程提供了参考。","吉林大学","王清"]
[null,455,"其他","环保与资源","无钻机仿生自平衡自适应智能钻进系统","突破常规思维，以双钻头双向自平衡碎岩代替单钻头单向碎岩，孔壁受力减小使其稳定阈值变小，且起下钻不间断泥浆循环，使得孔壁的稳定性更好，取消地面钻机设备，削弱钻柱对孔壁的扰动，增加起下钻不间断泥浆循环，实现低能耗、快速钻进、高质量成孔的智能化“绿色”钻探目标。","吉林大学","高科"]
[null,456,"其他","环保与资源","纤维编织网增强水泥基复合材料的计算理论与应用","该成果对纤维编织网增强水泥基复合材料的制备工艺、自应力分布、抗裂性能、拉伸性能、弯曲性能、变形性能等进行了系统研究，提出了一套完整的计算方法和设计理论，突破传统纤维复合材料的设 计瓶颈，填补自应力分析的理论空白，可应用于我国北方寒冷地区的基础设施建设与既有结构加固领域的设计和施工，大幅提升水泥基材料构筑物的工作性能和使用寿命。","吉林大学","王伯昕"]
[null,457,"其他","环保与资源","岩土原位热物性测试及服务","岩土热物性是地热工程、地下空间工程硏究和建设的重要基础参数，但脱离天然地质环境往往会导致测量结果有较大误差。岩土原位热物性测试仪基于线热源理论模型原理，从原位测试需求和系统集成优化 角度出发设计仪器结构，实现了岩土导热系数、比热容、热扩散系数、地温的原位测量。该仪器由原位测量探头、便携式集成主机、数据实时釆集处理软件构成，是一套成熟的软硬件集成化系统，具有优异的测量精确性和稳定性，可以服务于地源热泵工程、地铁建筑工程、地下空间热害硏究等实际工作，具有良好的社会、经济、环境效益。","吉林大学","张延军"]
[null,458,"其他","环保与资源","冲洗液正反循环闭式气动潜孔锤钻进","气动潜孔锤在地下水丰富的地层钻进时，由于背压的増高钻进效率会受到显著的影响，在复杂地层 钻进时需要进行跟管，在进行大孔径的基岩钻进中又往往出现排渣困难等问题。本项目的实施可以近乎 完美的解决以上这些技术问题，该项目中气动潜孔锤采用中空的结构，用于构成冲洗液正反循环的通 道，并配合三通道的钻杆以实施用于排渣护壁的冲洗液正反循环的通道和用于驱动气动潜孔锤工作气体 的进气和返气的通道，该潜孔锤最大的特点是并没有因在潜孔锤的结构中设置的中空结构，而过多的影 响潜孔锤工作活塞的有效作用面积，并通过配气结构的设计在潜孔锤内部形成了不影响潜孔锤工作性能 的一返气通道，规避了以往类似技术方案中潜孔锤出现“小马拉大车”的问题出现。","吉林大学","杨红东"]
[null,459,"其他","环保与资源","一体式超高工作层胎体仿生自补偿孕镶金刚石钻头","模仿掘洞生物爪趾的快速破土和趾间互助特性，采用自主可控的配方和制备工艺，研制开发岀一体式超高工作层胎体仿生自补偿钻头，突破了现有孕镶金刚石钻头寿命短、碎岩效率低的技术瓶颈，工作寿命能够提高数倍，碎岩效率提高30%-100%o","吉林大学","高科"]
[null,460,"其他","环保与资源","一种具有轴向深沟槽耐磨接头的钻井用钻杆及自平衡式连续拧卸丝扣装置","创新发明一种在起下钻和钻杆拧卸过程中不施加径向压力便可连续拧紧或卸开钻杆，且不会造成接头表面的任何损伤，接头的磨损只有在井内与井壁产生，因此提高钻杆的整体服役寿命、减少钻具和卡钻等事故发生的概率，从而提高钻井的工作效率，节约钻井成本。与之配套的自平衡式连续拧卸丝扣装备，不依靠夹持钳牙与钻杆接头表面的摩擦力拧卸钻杆，通过在钻杆接头上设置的仿生沟槽非光滑与钳块间的卡扣式结合及内力实现自平衡自适应拧卸钻杆。","吉林大学","高科"]
[null,461,"其他","环保与资源","一种能高效修复铭污染土壤的植物","项目组成功地筛选出可广泛应用于修复铭污染土壤的植物。该植物对土壤中铭具有很强的富集能力， 生态幅宽，具有很强的环境适应性，耐盐、耐湿、耐酸和耐高絡。通过野外现场修复应用，该植物对两个场地的铭修复效率均达到了78%。","吉林大学","郭平"]
[null,{"$f":"ROW()-2","v":462},"其他","环保与资源","一种适用于半干旱气候区的盐碱土壤修复剂、其制备方法、应用及土壤修复方法","以地球系统科学为指导，基于地球化学工程学原理，利用化学、化学热力学工具，集成天然材料土壤改良剂、隔层阻控盐碱技术和耐盐碱植物品种优选及水肥一体化技术，促成盐碱障碍因子消减、作物增产增效、培肥土壤三重效果，实现土壤耕作层的快速育成。","吉林大学","赵玉岩"]
[null,463,"其他","环保与资源","油气钻井用高性能PDC切削齿","针对传统PDC （聚晶金刚石复合片）钻头切削齿在坚硬地层、强研磨性地层、软硬夹层等地层中容易磨损、崩齿导致钻头寿命短、钻进效率低的难题，本研究团队研发了系列高性能PDC切削齿，包括：石墨烯强化PDC、三层结构高耐热性PDC、cBN/TiCN复合强化PDC、纳米金刚石强化PDC等。与传统的PDC切削齿相比，系列高性能PDC切削齿在耐磨性、抗冲击性、耐热性等方面均有较大提升。耐磨性可达372 万，抗冲击性400焦耳，耐热性940°Co可根据不同地层定制化采用不同的PDC切削齿，以提高钻头寿命和 钻进效率。","吉林大学","刘宝昌"]
[null,464,"其他","环保与资源","油页岩局部化学反应法地下原位转化技术","局部化学反应法是由吉林大学和以色列科学家合作硏发的一种低能量投入的高效加热原位转化技术，主要针对埋藏浅、矿层薄和品位较低的油页岩地层具有较良好的应用前景。该技术在生产初期向油 页岩层注入高温气体引发局部区域的裂解反应，使油页岩裂解生成油页岩油、油页岩气和残渣（含半 焦），然后持续注入常温含氧气体与残渣中半焦氧化放出热量，实现自生热高效加热油页岩，保持油页 岩裂解反应峰面持续推进，具有能量投入少、加热效率高的显著优势。同时裂解产物以气体形式返出地表，出油率高、品质好且不污染地下环境，产出气还能回注地下循环利用，是一种绿色高效的油页岩原位转化技术。","吉林大学","郭威"]
[null,465,"其他","环保与资源","油页岩原位开采地下环境帷幕注浆封闭技术","基于油页岩原位开釆先导工程，发现周围地层水入侵原位高温裂解区是制约油页岩原位开采提速增效的主因，且裂解产物扩散威胁地下生态环境安全。为此，项目团队研发了地下环境帷幕注浆封闭技术，该技术可以在目标地下空间周围劈裂地层、定向渗透注浆，实现对地下局部空间全封闭。项目团队在农安油页岩原位开釆先导工程开展了验证性实验，充分证实了该技术的可行性与高效性。","吉林大学","郭威"]
[null,466,"其他","环保与资源","油页岩原位开采精准可控体积压裂技术","油页岩是一种富含有机质的沉积岩，又被称为“油母页岩”，顾名思义，油页岩就是有机质没有完全“地质熟化成油”前的存在形态。通过把热量高效传递给目标油页岩，使其快速升温“熟化成油”就成为油页岩高效转化过程中尤为重要的控制因素。从宏观上看，油页岩是致密的低渗透性岩石，不利于介质在其内部渗流；从微观上看，油页岩是孔隙独立的多孔介质，有机质以干酪根的形式 赋存于孔隙中，也不利于介质的运移。改善油页岩中介质的渗流状态是油页岩高效转化过程的另一个重要控制因素。","吉林大学","郭威"]
[null,467,"其他","环保与资源","油页岩原位开采井下高效加热技术","油页岩是固体非常规油气藏，经加热处理能裂解生成油气。我国油页岩资源丰富，能成为油气增产稳产的最现实接替资源。大力发展油页岩产业和装备对我国产业经济发展和能源安全保障意义重大。原位开采是对油页岩进行地下原位加热，注热效率高低直接决定工艺的技术及经济可行性。各大油田剩余资源多为稠油、页岩油等难开采油藏，开采方式为注热改性，井下高效加热具有重要应用价值。围绕油页岩原位 开采高温高压工况加热器效率低、寿命短、适应性差的问题，研发了电加热、燃烧加热、催化加热等方式 的井下加热装备，优化多参数相应控制逻辑、原位工程中幵展使用工艺实验，形成了完善的井下高效加热装置和方法。","吉林大学","郭威"]
[null,468,"其他","环保与资源","油页岩资源评价体系及成矿理论","1.首次建立了多维度油页岩资源评价体系\n2018-2021年刘招君老师团队开展了 “十三五”油页岩资源评价，首次引入生态环境、经济性和 分类分级评价参数，建立了多维度油页岩资源评价体系，重新评价了我国油页岩资源，进一步摸清我 国油页岩资源家底，为油页岩勘探开发提供科学依据。\n2.首次建立了原位试采选区地质参数体系\n基于油页岩原位开采地质要求，首次建立了原位试采选区地质参数体系，优选了油页岩原位中试 有利区，计算了松辽盆地南部适合原位开采的油页岩资源，并结合室内生煙模拟提出450-500°C是适合 原位开釆的最佳加热温度区间。以上成果为油页岩原位开发中试现场实验提供了准确的实验数据。\n3.油页岩成矿理论新突破\n在“十三五”油页岩资源评价过程中，优选典型盆地开展了油页岩成矿理论研究，提出火山灰的 肥化-毒化作用、浅水咸化作用、有机质来源更替和细粒碎屑供给稀释作用对小尺度范围内油页岩矿层 非均质起到关键作用，揭示了事件性沉积对于极富有机质富集的控制作用，丰富了陆相盆地油页岩成 矿理论。并解决了油页岩甜点区预测难题。","吉林大学","柳蓉"]
[null,469,"其他","环保与资源","预极化磁共振探测技术","“预极化磁共振探测技术”成果面向我国水资源勘查重大需求、地下工程（矿井、隧道）突水频发的紧迫性，依据磁共振技术针对水中氢质子唯一探测优势，立足磁共振技术前沿，针对传统地下磁共振探测技术信号微弱、抗干扰性差及解释结果单一等问题，构建了以“预极化理论”为核心的地下水磁共振方法体系，通过自主研制预极化磁共振探测系统实现了复杂噪声环境下的水资源定性定量探测。","吉林大学","林婷婷"]
[null,470,"其他","环保与资源","针阱微萃取","针阱微萃取是一种应现代仪器要求而产生的安全、快捷的样品前处理技术，几乎克服了以往一些传统样品前处理技术的所有缺点，该技术将样品釆样、免溶剂提取、浓缩、转相及色谱进样集成一体化，便于携带，真正实现样品的现场釆集和富集，能够与气相、气相/质谱联用，用一根“针阱” 3分钟即可完成样品前处理过程，可使更多的分析工作者从复杂繁琐的样品前处理操作中解脱出来；而且整个过程，免溶剂操作，对人员和生态环境安全无污染，是一款便携式的创新性的绿色环保型样品前处理技术产品。","吉林大学","高松"]
[null,471,"其他","环保与资源","重大工程复杂结构岩体稳定性评价关键技术","构建了复杂结构岩体稳定性量化评价的技术分析体系，完善了岩体结构力学理论，形成了灾变边界条件T岩体参数量化T灾变机理-稳定性评价T灾变过程模拟的链式技术分析体系；建立了岩体灾变分析与防控的实践技术体系，构建了重大工程岩体结构面非接触式采集一変形自动化监测-稳定性评价-灾变针对性防控的关键技术，丰富了工程地质防灾减灾策略，保障了我国重大岩体工程的安全建设。","吉林大学","张文"]
[null,{"$f":"ROW()-2","v":472},"其他","环保与资源","钻井流体强化制冷技术","天然气水合物是一种新型能源，赋存于低温高压环境中，在钻取样品的过程中，由于摩擦生热等原因，钻井液温度升高造成水合物样品发生分解，无法获得保真样品。创新提出“动态强化制冷”新原理，采用低温钻井液制冷技术，通过同轴泥浆逆向强化对流换热技术，突破大流量钻井液动态强化实时制，将钻井液温度降低并维持在稳定状态，抑制地层中水合物在钻进过程中发生分解以获取水合物保真 样品，为水合物的发现和储量评价提供保障，目前该技术已成为我国水合物钻探领域的必备技术。","吉林大学","郭威"]
[null,473,"农产品加工及绿色食品","现代农业","玉米机械化收获仿生减损关键技术","探索出玉米机械化收获仿生减损关键技术，形成了仿生摘穗、仿生脱粒、仿生清选等成套玉米机收仿生减损技术及装备，突破了摘穗掉粒损失与损伤大、脱粒损伤大、清选堵塞损失大等共性技术难题，研发出履带式丘陵玉米收获机械、摘穗式玉米收获机械及籽粒直收式玉米收获机械，构建起完善的玉米机收仿生减损理论体系，为幵发适宜我国玉米农艺特征的自主玉米收获机械，奠定了扎实的理论技术基础。","吉林大学","付君"]
[null,474,"农产品加工及绿色食品","现代农业","高产、优质、多抗、耐冷广适水稻新品种选育与推广","在省内率先创建了以水稻分子育种技术为核心，集成利用多种育种方法的育种技术体系，并以此方法培育出了以国优一级米“吉大817”、“吉粳8T为代表的国审、省审优良水稻新品种14个。先后获得吉林省科技进步二等奖3项。近10年在省内外累计推广种植2500万亩，增收稻谷12.5亿公斤，创造社会经济效益37.5亿元。","吉林大学","都兴林"]
[null,475,"农产品加工及绿色食品","现代农业","节粮型猪种选育技术","本项目通过选育猪饲料效率作为主要性状的资源群体，建立育种值模型，评估饲料效率相关性状的育种值，根据综合指数选择留种。选择测定群体中饲料效率高和低两组极端差异个体，通过全基因组分析，找出了影响饲料效率相关性状的SNPs、候选基因。经过四个世代选育之后，建立了猪饲料效率分离的资源群体，相同条件下，高饲料效率选择群体的FCR为2.72:1,与大群体相比改善了0.18个点。项目组简化规范了项目成果，形成后备种猪饲料效率选择技术，便于在有育种条件的猪场推广使用，有利于高饲料效率猪群养殖技术的示范推广。","吉林大学","孙博兴"]
[null,476,"农产品加工及绿色食品","现代农业","“虫克星”基于互联网的虫害防治平台","“虫克星”虫害识别系统通过团队自主研发的神经网络图像自动识别技术，客户端只需通过手机 APP扫一扫，即可识别虫害类别。同时获取对应虫害的一般诊疗方案。平台还可依据客户的个性化需 求，提供专属“绿色治理包”解决方案，对其虫害治理进行全程专业指导。充分解决农业工作者对虫害 治理方法过于单一的困惑。","吉林大学","潘怡欧"]
[null,477,"农产品加工及绿色食品","现代农业","高效抗牛多杀性巴氏杆菌新复方制剂","多杀性巴氏杆菌(Pasteurella multocida, Pm)引起的牛巴氏杆菌病是一种急性、热性、高度致死性传染病，兽医临床常用抗牛源巴氏杆菌病药物出现了严重耐药问题。于录教授研发团队通过刻苦攻关，自主创新地建立了 “抗菌增敏新理论”，并筛选到对强毒力强耐药的牛多杀性巴氏杆菌有显著抗菌活性的药物 组方。该复方制剂见效快、毒副作用小、不易出现耐药性。","吉林大学","于录"]
[null,478,"农产品加工及绿色食品","现代农业","功能性芽苗菜开发利用","开发出针对富含抗氧化能力并有一定防癌、抗癌和美容效果的萝卜硫素的十字花科芽苗菜，针对富含抗疲劳以及兴奋药用成分的药食同源植物芽苗菜，针对富含维生素和花青素的有色芽苗菜等，目前有20多个品种可以大规模生产。","吉林大学","秦建春"]
[null,479,"农产品加工及绿色食品","现代农业","功能性园艺产品开发与利用","以富集园艺产品中的特有功能性成分如番茄红素、花青昔、梱皮素、萝卜硫素、辣椒素等次生代谢产物为硏究对象，通过传统育种方法结合分子育种方法，培育功能性园艺品种（系），最终生产出富集特有功能性成分的园艺产品。目前，已培育（选育）出富含萝卜硫素的西兰花、富含榊皮素的洋葱等品系。","吉林大学","秦建春"]
[null,480,"农产品加工及绿色食品","现代农业","基于光触媒和植物酚多精的室内有毒挥发物清除剂套装系列","室内挥发性有机物的污染是不合格装修材料造成的，以甲醛和苯系物为主，对人体的危害极大， 尤其是对未发育成熟的胎儿，婴儿和少年，可能诱发白血病、鼻咽癌、肝/肺癌等重疾。项目开发出光触媒精油清除剂及喷雾装置，可以很方便地处理室内和车内有害气体以及装修材料内部的有害气体产生源。","吉林大学","秦建春"]
[null,481,"农产品加工及绿色食品","现代农业","家畜种质资源遗传评估与主效基因检测平台","通过整合全世界绵羊、山羊和牛等家畜主要商业化品种和国内地方品种的全基因组遗传变异信息数据，打造了可高效、精准开展品种纯度、遗传结构、起源进化等种质资源评价以及功能基因挖掘的大数据分析平台；构建了与重要经济性状和疾病相关主效基因致因突变的数据库，具备主效基因高效率、高通量、低成本的分子检测体系。","吉林大学","闫守庆"]
[null,{"$f":"ROW()-2","v":482},"农产品加工及绿色食品","现代农业","检测牛肠道病毒(BEV)抗原的试剂盒","肠道病毒(BEV)感染，是由牛肠道病毒引起的一种临床上以呼吸道和消化道症状为主要特征的传染病，感染的牛表现为发热、咳嗽、呼吸困难、腹泻、脱水，有些甚至死亡，给我国养牛业造成巨大经济损失。应用大肠杆菌表达纯化的E种肠道病毒HY12 VP1和VP2重组蛋白制备的抗体，建立了检测牛肠道病毒病原的双抗体夹心ELISA试剂盒，该试剂盒具有特异、敏感、快速与简便等优点，可于2小时内报告结果。","吉林大学","王新平"]
[null,483,"农产品加工及绿色食品","现代农业","检测小反刍兽疫病毒(PPRV)抗原的试剂盒","小反刍兽疫(PPR)俗称羊瘟，是由小反刍兽疫病毒(PPRV)引起的一种临床上以高热、流涎、口腔黏膜 溃疡、腹泻、咳喘、高发病率与高致死率为特征的传染病，也是国际动物卫生组织(OIE)规定的通报性疫病和国内法定的I类动物疫病，给我国养殖业造成巨大经济损失。应用表达纯化的PPRV N蛋白制备的多克隆抗体，建立了检测PPRV抗原的双抗体夹心ELISA试剂盒，该试剂盒具有特异、敏感、快速与简便等优点，可于2小时内报告结果。","吉林大学","王新平"]
[null,484,"农产品加工及绿色食品","现代农业","检测猪流行性腹泻病毒(PEDV)抗原的试剂盒","猪流行性腹泻是由病毒引起猪的一种临床上以呕吐、腹泻和脱水为主要特征的传染病，新生仔猪的发病率和致死率高达90%-100%,给养猪业造成巨大经济损失。本团队基于分离PEDV毒株的纤突蛋白的单克隆抗体与多克隆抗体，研发出快速检测PEDV抗原的夹心EL1SA试剂盒，该试剂盒具有特异、敏感、快速与简便等优点，可于2小时内报告结果。","吉林大学","王新平"]
[null,485,"农产品加工及绿色食品","现代农业","军民融合给养项目","针对地方环境（寒热潮湿），地区和季节性疾病（比如疟疾、中暑感冒）有针对性地设计特种用途口粮。研究团队已从药食同源的植物和昆虫出发，打造高蛋白+功能成分户外专用食品；已经对边境地区可食用和药用植物昆虫资源普查，完成高蛋白活性昆虫粉及其高热量草药膏体食品；绝地给养的智慧生存系统；天然驱蚊虫蛇的喷雾手环。原的双抗体夹心ELISA试剂盒，该试剂盒具有特异、敏感、快速与简便等优点，可于2小时内报告结果。","吉林大学","秦建春"]
[null,486,"农产品加工及绿色食品","现代农业","抗蓝耳病猪新品种","繁殖与呼吸综合征又名蓝耳病，是危害养猪产业的重大传染病，各年龄猪均可感染，死亡率高。本实验室采用基因组编辑技术获得了抗蓝耳病毒的猪，该猪体内含有抗病毒基因，攻毒实验表明，所获得的猪群具有对蓝耳病毒易感性降低，抗蓝耳病毒的能力。","吉林大学","欧阳红生"]
[null,487,"农产品加工及绿色食品","现代农业","蒙氏假单胞菌提高植物对干旱、盐碱抗性","本研究以东北地区主要栽培作物玉米为植物材料，通过浇灌菌液的方法，探究蒙氏假单胞菌增强玉米幼苗对干旱和盐碱胁迫的抵抗能力。将蒙氏假单胞菌以25 ml/kg （菌液体积/ 土壤质量，0D颁=0.1）量添加到土壤中，菌液对干旱和盐碱胁迫下的玉米幼苗生长有促生作用。多功能促生菌PN1能提高玉米幼苗对非生物胁迫的抗性，为逆境条件下，玉米等作物安全、绿色和高效生产提供技术支持。","吉林大学","王岩"]
[null,488,"农产品加工及绿色食品","现代农业","嵌合布鲁菌BCSP31病毒样颗粒新型疫苗","本项目以布鲁菌高保守、高免疫原性的外膜结构蛋白BCSP31为靶点，釆用昆虫杆状病毒表达系统，借助本团队研发的新城疫病毒样颗粒(NDVVLPs)载体平台，构建了嵌合布鲁菌BCSP31病毒样颗粒(BCSP31-CVLPS)新型疫苗，并进一步评价了 BCSP31-CVLPS疫苗的免疫原性及临床保护效力。小鼠模型表明BCSP31-CVLPS疫苗能有效活化树突状细胞，刺激机体产生与商品疫苗株M5相当的体液免疫和 细胞免疫应答，并可提供与疫苗株M5同等的免疫保护效力。与现有减毒活疫苗相比，嵌合布鲁菌 BCSP31病毒样颗粒新型疫苗具有绿色、安全、高效的优势，适用于各年龄段羊、猪、牛等动物。","吉林大学","丁壮"]
[null,489,"农产品加工及绿色食品","现代农业","区分钩端螺旋体不同血清型抗体的直接ELISA方法及试剂盒","本试剂盒以国内常见的钩端螺旋体血清型（共12种）的标准株为免疫抗原，分别为猪、牛、羊、犬源的igG为检测抗体，对试剂盒的工作条件进行优化，研发出适用于猪、牛、羊、犬区分钩端螺旋体不同血清型抗体的直接ELISA方法，且该试剂盒的特异性、重复性、灵敏性较好。借助本试剂盒可有效区分感染钩端螺旋体的血清型，具有检测灵敏、准确，操作简便及特异性强的优点，十分匹配科研单位、宠物医院、规模化养殖场和个体养殖户的应用需求。","吉林大学","曹永国"]
[null,490,"农产品加工及绿色食品","现代农业","区分新城疫病毒样颗粒疫苗免疫抗体与野毒感染抗体的间接竞争ELISA方法及试剂盒","本试剂盒以新城疫病毒NP蛋白为免疫抗原，以单克隆抗体为抗体诊断试剂，并对包被抗原、单抗工作条件、二抗工作条件等进行优化，研发区分新城疫病毒样颗粒疫苗免疫抗体和野毒感染抗体的间接竞争ELISA方法，且该试剂盒的特异性、重复性、灵敏性较好。借助本试剂盒可有效移除传染源，消灭持久疫源地的存在，为新城疫的净化提供技术支撑和理论依据，具有检测灵敏、准确，操作简便及特异 性强的优点，十分匹配规模化养殖场和个体养殖户的应用需求。","吉林大学","丁壮"]
[null,491,"农产品加工及绿色食品","现代农业","人类疾病动物模型制备技术","人类疾病动物模型是生物学、医学、药学研究领域建立的具有人类疾病模拟表现的动物实验对象和相关材料。广泛用于人类疾病的病因、发病机制、防治技术和防治药物的研究。现代实验医学已形成大量动物模型，而且不断改进、不断增加。显微外科技术可以从不同角度、按不同标准对众多的模型进行分类，通过外科手术技术快速地、直观地、稳定地制备人类疾病动物模型。研究团队历经十余年，将现代显微外 科技术应用到小动物疾病模型制备和研究中，建立了大量人类疾病动物模型，不仅加速了动物模型研究的进程，也丰富了动物模型的种类和内容。利用显微外科技术严格控制条件，排除各种干扰，提高复制成功率和动物存活率，便于实验的多次重复和实验样品的全面釆集。","吉林大学","权福实"]
[null,{"$f":"ROW()-2","v":492},"农产品加工及绿色食品","现代农业","人源化基因编辑兔","人源化动物模型是保障科学研究和生物医药产业发展的重要战略资源。家兔，作为一种新兴的实验动物模型，具有饲养容易，性格温顺等特点，易于实验操作，成本较低。而且，在遗传学上与人类关系较近，适合做符合人类疾病要求的实验动物模型。但目前世界已有的技术，无法对兔基因组进行高效遗传改造。本团队核心技术突破这一瓶颈，已具备稳定高效的兔基因编辑技术，可以高效地制备人源化基因编辑兔。目前本团队已制备23种理想的单碱基突变人源化兔模型，针对客户需求，可进行人源化基因编辑兔定制服务，及新药物筛选等基础及应用研究。","吉林大学","李占军"]
[null,493,"农产品加工及绿色食品","现代农业","EAT窗口粮食连续变温干燥智能控制技术","EAT窗口粮食连续变温干燥智能控制技术，包括3种变温模式：并行多机联合变温干燥模式、串行多机联合模式以及多段变温干燥模式；食水分控制分为初级控制和精准控制两级，使控制精度与稳定性更高；同时通过图形化的方法控制干燥过程，使控制过程更简易、直观、易实现，解决了粮食干燥过程控制非线性、大滞后的技术问题。","吉林大学","吴文福"]
[null,494,"农产品加工及绿色食品","现代农业","冷凝增热电力节能粮食干燥技术","冷凝增热电力节能粮食干燥技术是采用电能清洁能源作为粮食干燥机的热源，将干燥机的湿热尾 气通过冷凝除湿后再补充加热，达到预定干燥温度后重新进入干燥机，干燥介质在干燥系统内形成闭式循环，工作过程中通过调节冷热流体流量来调节干燥介质的冷凝强度，充分利用水蒸气的汽化潜热和尾气除湿后的余热，达到大大节能目的的粮食干燥新技术。釆用此新技术设计的粮食干燥机集节能、环保、控制水平高优点于一身，理论基础是水蒸气凝结放出大量的汽化潜热，可以节约加热干燥介质的热能，控制方面通过水势理论、积温理论、畑分析等图形化显示干燥过程参数，形成可视化工 作界面并在线实时监测粮食水分。","吉林大学","吴文福"]
[null,495,"农产品加工及绿色食品","现代农业","小鹅瘟-鹅新城疫二联病毒活载体疫苗","本项目以鹅源基因Vli型NDV NA-1株为研究对象，构建了 NDV新型反向遗传操作平台，同时用此平台将NDV强毒株NAT株F蛋白裂解位点氨基酸序列致弱突变为弱毒株LaSota F蛋白对应序列，构建了弱毒 NDV rmNA-1,在此基础上，插入GPV主要保护性抗原VP3蛋白基因组，构建了表达GPV VP3基因的重组 NDVrmNA-VP3,对重组NDV rmNA-VP3的稳定性、安全性及临床免疫效果进行了科学评价，由此构建了新 一代联合防控ND和GP的疫苗，与现有弱毒苗相比，新型小鹅瘟-鹅新城疫二联病毒活载体疫苗具有生产 成本低、一针二防的优势,能够满足规模化养殖和个体养殖户的应用需求。","吉林大学","丁壮"]
[null,496,"农产品加工及绿色食品","现代农业","新型果蔬复合营养快餐肉制品加工关键技术研究及产品开发","肉制品长期以来一直是广大消费者喜爱的高蛋白食品之一。但其中矿物质和维生素含量低，导致营养不均衡。周亚军教授研发团队历经十余年研究与实践，将果蔬等营养成分加入原料肉中进行营养强化修饰，集成低温腌制、真空拌馅、真空计量灌装、精准蒸煮和烟熏技术研发出系列果蔬复合营养 快餐肉制品。","吉林大学","周亚军"]
[null,497,"农产品加工及绿色食品","现代农业","新型土壤修复剂的开发与利用前景","东北黑土区是我国粮食的重要生产基地，被视为中国“粮食稳压器”。近些年来由于环境的恶化和不合理地耕作，使黑土层变薄、养分肥力下降、盐渍化严重。为防止土壤退化，深入实施农业部提出的化肥农药使用量零增长行动，研发新型的土壤修复剂，在提高土壤质量，促进种养循环具有广阔的应用前景。","吉林大学","崔金虎"]
[null,498,"农产品加工及绿色食品","现代农业","旋毛虫病无盲区ELISA检测试剂盒及免疫荧光试纸条","通过构建旋毛虫不同发育时期CDNA表达文库并对抗原基因进行高通量免疫学筛选，鉴定出4条高丰度及强反应原性的诊断抗原基因，基于以上抗原基因的重组蛋白，成功建立起了屠宰生猪旋毛虫病无检 验盲区ELISA及免疫荧光试纸检验技术。所建技术方法，不仅在宿主感染后第15天即可检出，可完全覆盖基于肌幼虫ESP抗原方法的危险盲区（感染后17-35天无法检出）；敏感性更达现法规方法集样消 法的6倍，亦即在LPGN0.5的情况下，ELISA及免疫荧光试纸技术对所有阳性样品均可检出，远高于现有国家及国际标准方法一消化法的敏感性（LPGN3）,更高于镜检法（LPGN5）；与己知常见猪感染 类寄生虫无交叉反应，成本仅为现有技术的1/10。","吉林大学","刘明远"]
[null,499,"农产品加工及绿色食品","现代农业","鲜食玉米仿生摘穗关键技术","鲜食玉米以其独特的口味与丰富的营养得到越来越多人的青睐，在我国的种植面积也在不断扩大，其收获机械依赖进口，价格昂贵，关键摘穗难题是鲜食玉米籽粒柔、嫩，易损伤。降低鲜食玉米籽粒收获损 伤一直是玉米收获机械装备界追求的目标。但传统玉米摘穗技术无法解决鲜食玉米摘穗损伤问题，张强教 授团队历经十余年，冲破了传统摘穗理论与技术的束缚，首次提出了采用模仿人工掰玉米的仿生收获原理，进行了新型玉米仿生摘穗机构创新，并验证了采用仿生原理实现鲜食玉米摘穗的优越性和可行性，成果获得中国农业机械科学技术奖一等奖。","吉林大学","张强"]
[null,500,"农产品加工及绿色食品","现代农业","一种高钙高多酚含量山葡萄酿酒皮渣醋的酿制方法","山葡萄是我国东北地区特色水果之一，因其果实具有粒小、皮厚、含糖低、含酸高等特点，主要用 于葡萄酒的酿造。酿酒过程中产生的大量加工副产物——山葡萄酿酒皮渣，每年约达3万多吨。目前皮渣中除少量经简单加工后用作动物粗饲料外，绝大部分被直接废弃，不仅浪费资源，而且污染环境。该成果利用山葡萄酿酒皮渣发酵保健果醋，不仅可以充分利用皮渣中残余的果酒，减少果醋酿造过程中酒精的添加量，降低成本，而且赋予果醋山葡萄特有的果香，此外酿酒皮渣中富含大量的多酚类物质（主 要包括低聚原花色素与花色素昔等），赋予山葡萄果醋良好的抗氧化活性及诱人的色泽，使山葡萄酿酒 皮渣果醋不仅色香味俱佳，且同时具有良好的保健功能。","吉林大学","董周永"]
[null,501,"农产品加工及绿色食品","现代农业","一种替代抗生素饲料添加剂","我国动物饲料行业2020年7月全面禁止抗生素添加，这对养殖与饲料行业是巨大挑战，也是大好机遇！饲料中不加抗生素如何保障动物健康生长和促进生长，中药作为替抗饲料添加剂有其独特优势。经科学筛选我们找到了一个最优中药配方，针对断奶仔猪与保育仔猪的保健与促生长（增重）效果非常好，平均比对照组每天多增重250克，且健康程度比对照组好。","吉林大学","郭昌明"]
[null,{"$f":"ROW()-2","v":502},"农产品加工及绿色食品","现代农业","一种协同青霉素及头砲类药物抗MRSA感染候选药物","本项目以耐甲氧西林金黄色葡萄球菌（MRSA）的耐药机制的关键耐药酶（8-内酰胺酶）表型功能为基础，建立多种耐药酶的抑制剂筛选平台。发现天然化合物QD3088可有效恢复青霉素及头抱类药物等B-内酰胺类抗生素对不同来源MRSA的敏感性，QD3088联合青霉素及头弛类药物可有效提高MRSA感染肺炎模型小鼠存活率（保护率为90%）,可同时抑制MRSAB-内酰胺酶和溶血素等毒力因子活性，协同青霉素及头抱类药物等抗生素呈现有效的抗MRSA感染作用，效果明显优于舒巴坦和克拉维酸等临床应用的8-内酰胺酶抑制剂。","吉林大学","邓旭明"]
[null,503,"农产品加工及绿色食品","现代农业","一种针对多粘菌素耐药菌特异性治疗候选辅助药物","针对全世界范围广泛流行的mcr-l及携带菌的多粘菌素耐药性问题，进行长期和大量的天然化合物抑制剂筛选，发现以MR1033为代表的多种化合物可恢复多粘菌素对不同来源携带mcr-l大肠杆菌的敏感性协同作用明显(FIC index=0.156-0.188)。在小鼠腹腔感染和肺部感染模型中显著提高多粘菌素B的治疗率。","吉林大学","邓旭明"]
[null,504,"农产品加工及绿色食品","现代农业","一株耐盐碱抗病原真菌土曲霉菌株SYAT-1及其应用","我国是盐碱地大国，土壤盐渍化严重制约着农业生产以及资源环境的可持续发展。人类不合理的开垦荒地、灌溉农业措施不当、农药化肥的过度使用、设施土壤栽培都会导致土壤次生盐渍化的形成，同时还会加剧植物病虫害的发生，因此，具有生防功能并可在盐碱环境中生存的微生物的筛选和硏究是十分必要的。","吉林大学","赵磊"]
[null,505,"农产品加工及绿色食品","现代农业","优良肉质东辽黑猪的选育","东辽黑猪，吉林省地方特色猪种，中国地理标志保护产品，因肉质香嫩滑，曾是历代皇家贡品。由于长期散养民间，缺少系统选育，遭受外血渗透，造成品质分化，有种源消失风险。为全面打造东辽黑猪优质特色品牌，动物科学学院和吉林双天生态农业有限公司校企深度合作，通过现代育种基因组学技术，完成检测东辽黑猪种群遗传结构；运用体细胞克隆技术，扩繁优质种猪基因；校内新建黑猪种群实验室，全面扫描黑猪种质特性；组建核心育种群，提高种群纯度、性能和品质。","吉林大学","孙博兴"]
[null,506,"农产品加工及绿色食品","现代农业","优质肉牛高效快繁技术及应用","我国牛肉产品消费每年以15%〜19%的速度刚性增长，优质牛肉供不应求。牛作为饲养成本高的单胎动物，繁殖率低，且生产能力因遗传的因素等参差不齐。研究团队建立了基于发情调控-人工授精-胚胎移植技术体系的肉牛群体高效快繁技术，可在短时间内获得大量优质后代。","吉林大学","张嘉保"]
[null,507,"农产品加工及绿色食品","现代农业","玉米品种吉大101","吉大101生育期128天，属中晚熟品种，需>10°C活动积温2600-2700°C。该品种株型清秀，株高290 厘米左右，穗位110厘米左右。果穗长筒形，穗长21.5厘米，穗行数18-20行。籽粒黄色，马齿型，穗轴红色，百粒重38.5克。抗茎腐病、抗大斑病和丝黑穗病，抗逆性强，适宜长春、四平、辽源及松原等晚熟区 种植。每公顷保苗6.0万株左右。籽粒含粗蛋白9.94%,粗脂肪4.85%,粗淀粉72.29%,赖氨酸0.30%。","吉林大学","原亚萍"]
[null,508,"农产品加工及绿色食品","现代农业","玉米秸秆多元化利用产业化项目","该研究以农林业副产物资源利用为基础，是目前大宗固体废弃物资源化利用技术的优先发展方向，涉及到收储技术、高值化利用技术和加工装备设计等。以秸秆皮鼬叶分离技术为切入点，围绕玉米秸秆的快速去水、收储、运输和加工中存在的共性问题，提出玉米秸秆原料化、饲料化及燃料化“三化合 一”项目理念，并在长春市绿园区合心镇建成年处理玉米秸秆4万吨产业化基地。","吉林大学","任晓冬"]
[null,509,"农产品加工及绿色食品","现代农业","猪血凝性脑脊髓炎病毒间接ELISA抗体检测试剂盒","本项目基于肠岀血性大肠杆菌（0157）致病过程的关键毒素（志贺毒素Stx2）蛋白表型功能建立抑制剂筛选平台，发现中药成分HH014可显著降低Stx2的生物学活性，有效抑制细菌介导的细胞毒作用。建立0157大肠杆菌感染小鼠模型，发现无药物治疗组小鼠100%死亡；治疗组死亡率显著降低，保护率为 80%；可有效恢复感染小鼠肾脏功能性指标（肌酎和尿素氮）和缓解器官炎性反应及病理性损伤。","吉林大学","高丰"]
[null,510,"农产品加工及绿色食品","现代农业","植物精油用于储粮害虫的绿色防治剂","世界上每年因储粮害虫造成的损失达到粮食总储量的15%-20%,化学农药因为其毒性和残留而严禁在粮食上使用。项目从芳香植物精油中筛选出对仓储害虫有效的精油，技术产品成熟，已经开发出用于大型粮仓和家庭厨房小粮库的多孔精油缓释防治球，可以达到缓慢释放的效果，防治期限可以达到一年以上。","吉林大学","秦建春"]
[null,511,"新能源及动力电池","新能源","低能耗PEM电解水制氢系统","电解水制氢被认为是未来规模化制氢的首选。相比于传统的碱性电解水制氢，新兴的质子交换膜（PEM）电解水制氢因启停快、工作电流密度高、电解槽尺寸小且与可再生电能匹配性好等优点，逐渐成为了电解水制氢的主流发展方向。\n研发团队以多酸作为氧化还原电解质，成功开发了一种从生物质到甲酸的高效催化转化耦合低能耗电解水制氢系统。在该系统中，葡萄糖等碳水化合物被多酸催化转化为甲酸，而氢则在阴极不断析出。其中，葡萄糖到甲酸的产率高达62.5 %，且甲酸为唯一的液相产物。本系统只需要1.22 V就可以获得50mA·cm-2的电流密度，产氢的法拉第效率接近100%，产氢能耗仅为2.9kW·h·Nm-3（H2），较传统电解水（4.2 kW·h·Nm-3（H2）节能超30 %，预测经济效益约为传统电解水制氢的5.4倍。在此基础上，研发团队进一步开发了系列多酸电解质催化苯甲醇到苯甲醛、环己酮到己二酸的高效电转化耦合低成本电解水制氢技术。随着千亿级绿氢产业的快速增长，本技术具有广阔的市场前景。","东北师范大学","科技大市场",13514469066,2023,11]
[null,{"$f":"ROW()-2","v":512},"新能源及动力电池","新能源","固态锂离子电池","研发团队从聚合物电解质分子设计、构筑稳定界面以及电极材料匹配性等方面，通过自主开发的聚合物固态电解质膜制备技术、正极/固态电解质一体化技术及高稳定金属锂负极制备技术，解决了固态电解质中锂离子电导率低、固/固界面高界面阻抗问题，并提高了固态电池的室温性能。基于固态电解质膜的容量为300 Ah的磷酸铁锂半固态电芯，可以实现电池高安全和长循环。其质量比能量密度大于160 Wh/Kg，在1C充放电倍率下可以稳定循环10000次以上。基于固态电解质膜的容量为54 Ah的三元全固态电芯，可以实现电池高安全和高比能的要求。其质量比能量密度大于350 Wh/Kg，在1C充放电倍率下可以稳定循环1000次以上。\n目前，研发与产业化团队与中国一汽共同开发车用固态电池技术，预计2025年底装车试运行，成果完全产业化后可年产装备20万辆电动汽车的锂电池系统，年产值约71.8亿元，可创税收约4.9亿元。 ","东北师范大学","科技大市场",13514469066,2023,11]
[null,513,"新能源及动力电池","新能源","长寿命磷酸盐钠离子电池正极材料","研发团队针对NASICON型结构钠离子电池正极材料面临的瓶颈问题，通过新颖的合成方法和材料晶体结构设计理念，成功开发了具有自主知识产权的长寿命、高功率和低成本的钠离子电池及其超稳定的正极材料。材料合成方法简单，反应条件温和，不需要特殊设备，目前已完成实验室中试，具备了公斤级的制备能力。成果具有高的振实密度，可实现高体积能量密度，具有非常优秀的实用化潜力\n性能优势：\n1.高比能和快速充放电能力：放电比容量达127.8 mAh g-1，3分钟快速充放电，容量保持率达70%以上；\n2.超长循环寿命：与长寿命负极匹配，可实现10000次以上的稳定循环；\n3.突出的高温和低温性能：可在70℃高温和-25℃低温的宽温度环境内稳定工作；\n4.超长存储稳定性：普通空气中存放2年以上、水中浸泡一周以上等条件下存储，材料不变质。\n","东北师范大学","科技大市场",13514469066,2023,11]
[null,514,"新能源及动力电池","新能源","木质素基聚合物电解质","液态电解液泄漏、易燃、爆炸等安全问题已成为大功率可充电锂电池应用亟待解决的关键问题。为了克服这些缺点并保持锂离子电池的高性能，具有高柔韧性、高安全性的固态聚合物电解质应运而生。与液体电解质相比，固态聚合物电解质具有低易燃性、高机械强度、高热稳定性以及高循环稳定性等优点，在保证安全性的同时又能提高能量密度，是下一代高性能高安全性锂电池发展的关键方向。\n研发团队研发了木质素基单离子聚合物电解质，以其为骨架进一步制备出厚度仅13 µm的能量密集型超薄柔性全固态电解质，组装的电池在0.2 C下电池首次放电比容量达到158 mAh g-1，循环730圈后，可逆容量仍可保持为106 mAh g-1，库伦效率接近100%；并且具有一定的低温性能，-20 oC下初始放电比容量达到100 mAh g-1以上。此外，组装的锂对称电池在大电流密度0.5 mA cm-2下可在13 mV极小电压下实现稳定循环4000 h以上，显著抑制锂枝晶增长，达到了安全运行的效果。","东北师范大学","科技大市场",13514469066,2023,11]
[null,515,"新能源及动力电池","新能源","基于碳点的高效安全稳定储能器件","研发团队建立了构筑多层活性材料的有效方法，成功获得了具有高面积比容量的锂离子电池、锂金属电池以及超级电容器等多种储能器件。\n研发团队将多层活性材料通过各种作用力（如静电力、化学键）有机结合在一起，形成导电网络，不仅提升电极材料稳定性，而且提升了离子/电子的传输性能，成功获得了基于环境友好材料氧化镍为主体的高面积比柔性自支撑电极材料。上述具有核-多壳结构的柔性电极材料，电极中活性物质含量高达20wt.%，与柔性LiFePO4/SWCNT正极组装的软包电池在弯折下具有127Wh kg-1的质量能量密度。另外，研发团队在具有核壳集成框架的镀铜碳布上制备了一种新型3D层状Mn(OH)2纳米片（CPCC@CuO@Mn(OH)2），获得了柔性超级电容器，在接近34.31 mW cm-3的高功率密度的情况下，其能量密度达到约6.29 mW h cm-3，10000次循环后容量仍保持88.9%，显示出其在可穿戴电子领域的巨大应用潜力。","东北师范大学","科技大市场",13514469066,2023,11]
[null,516,"新能源及动力电池","新能源","无源自变桨水平轴潮流能发电技术","目前的潮流能发电机组以直驱液压变桨及带变速箱的液压变桨为主，其发电机和变速箱均采取机械动密封方式进行密封防水处理，海洋环境下，机械动密封的可靠性和运行效率往往冲突，密封层级多运行阻力大，效率低，密封层级少，密封可靠性差，机组的运行可靠性大大降低。\n研发团队在前期国家重大科技项目所形成的水平轴自变距潮流能发电技术基础上，通过优化各部分功能及技术指标，实施定型设计，建造了总装机容量300kW的水平轴潮流能发电机组定型样机，完成了陆地检测及海上试验，编制完成了产品标准。通过长期海上实验表明，作为国内单机容量最大的水平轴直驱潮流能发电装置，验证定型样机在能量捕获与转换、电气控制、生存能力、环境适应性等方面技术指标完成良好，具备产业化条件。\n","东北师范大学","科技大市场",13514469066,2023,11]
[null,517,"新能源及动力电池","新能源"," LNG车载气瓶真空环境控制新工艺","随着近年来LNG汽车市场占有率不断攀升，LNG车载气瓶的关键技术突破与创新成为迫在眉睫的问题。其中绝热技术是稳定运行的核心，由于无法避免真空夹层的漏放气，必须在夹层里放置吸附剂来保持低温容器的真空寿命。氧化钯（PdO）是传统商业化吸附剂，PdO脱氢剂与氢气反应速度快并伴随大量热量释放，特别是在液氢低温容器中, 任何原因引起的液氢在真空夹层中的渗漏, 都会造成和PdO的迅速反应, 产生的高温易引起爆炸。\n研发团队针对上述问题，设计开发了针对控制LNG车载气瓶真空环境控制的新工艺，一次性解决上一代工艺中吸附剂用量大，成本高，不易长周期循环利用等问题，实现吸附剂的可控晶体结构、孔隙大小及形状、表面积、稳定性和选择性。该新工艺不仅满足了长途运输的供气需求，而且降低静态蒸发率，使 LNG储气罐维持高真空状态。此项技术具有节能环保、节能减排、高效经济等优势，成本同比下降60-70%，年均节约2400余万元。\n","东北师范大学","科技大市场",13514469066,2023,11]
[null,518,"碳纤维及复合材料","新材料","高可靠忆阻器件及其视听觉传感应用","传统CMOS工艺的图形处理器通常是由探测、存储、处理等多个分立系统构成，不可避免的增加了集成电路的复杂性、功耗和成本，忆阻器在新型信息存储器件、存算一体化技术及人工神经网络等领域有着巨大应用潜力。\n研发团队发展的感存算一体化新型光电忆阻材料与器件能够解决传统人工视听觉系统在容量、集成度、速度等方面的技术瓶颈问题，是实现高效智能视听觉传感系统的基础。研发团队首次在基于氧化钨材料忆阻突触器件的视听觉系统中模拟了速度检测的多普勒频移信息处理，进而实现高通滤波和处理具有相对时序和频移的尖峰数据。这些结果为视听觉运动感知的模拟提供了新机会，促进了其在未来神经形态传感领域的应用。\n","东北师范大学","科技大市场",13514469066,2023,11]
[null,519,"碳纤维及复合材料","新材料","低成本功能性多孔有机聚合物","多孔有机聚合物是一类新兴的功能性高分子材料，相比传统高分子交联树脂，其具有类似无机分子筛的微孔，具有更高的官能团密度，已被广泛用于储存、分离或催化等领域。然而当前许多性能优良的多孔有机聚合物成本过高，严重制约着其实际应用。\n研发团队长期从事新型多孔材料的定向合成、性质与结构研究、以及潜在应用的开发，在上述各前沿领域中取得了丰硕的成果，受到国际同行的高度认可。团队合成的价格低廉且性能优秀的多孔有机聚合物，其性能与当前典型多孔有机聚合物相当，而价格为它们的几十分之一或几百分之一，目前在储存氨气、分离二氧化碳及分离水中污染物（如硼酸，Hg2+等）等方面已完成实验室测试，这些成果将为多孔有机聚合物的真正应用打开通道。\n","东北师范大学","科技大市场",13514469066,2023,11]
[null,520,"碳纤维及复合材料","新材料","植酸基多孔保润材料","传统保润剂的主要成分通常包含甘油、丙二醇和山梨醇等多羟基物质，依据其极性基团与水分子的氢键作用来维持含水率。然而，此类保润剂与水分子的结合力较弱，稳定含水率的效果不理想。近年来，国内外开发了麦芽低聚糖醇、Ｄ－吡喃半乳糖醛酸、壳聚糖衍生物等多种新型保润剂，但在实际应用过程中，聚糖分子颗粒内部会形成多重氢键作用，柔性链之间紧密堆积，导致水分子无法进入保润剂颗粒内部，严重的影响了保润剂的吸水容量和储水能力。\n研发团队采用植酸等多羟基分子为原料，与柱撑苯基分子进行共聚，制备了3种不同的多孔保润剂材料。氮气吸附实验表明植酸基多孔保润材料的比表面积对比原始的植酸分子提升了近19倍；水气吸附实验表明由于苯甲酸分子与植酸分子发生聚合之后，破坏了植酸酸分子之间原先的紧密堆积结构，其水气吸附量对比植酸分子提升了3.6倍。烟草添加验证试验表明，添加本产品的烟丝失水率较添加丙二醇的减少20%以上。本产品能够很好的与目前商业化生产的香烟和保湿霜进行结合，在烟草、护肤等领域具有巨大的应用前景。\n","东北师范大学","科技大市场",13514469066,2023,11]
[null,521,"碳纤维及复合材料","新材料","新一代自清洁抗污染超滤膜","膜分离技术被认为是21世纪最重大的高新技术之一，其中，能耗较低的超滤膜分离技术能够对水体中各类大分子物质、胶体、病原微生物等进行高效分离，并已应用于家用净水机和工业水处理领域。然而，目前各类商业化超滤膜在使用过程中易出现较严重的膜污染情况，导致跨膜压差增高、产水能力下降、清洗和更换频率提升、使用寿命缩短等问题，这些是制约超滤分离技术发展应用的主要瓶颈问题。\n研发团队通过巧妙的分子设计，将亲水性荷电化基团引入聚芳醚砜超滤膜材料的分子结构，同时采用便捷高效的方式，将纳米反应器引入超滤膜体系，开发出多系列自清洁抗污染超滤膜。产品同时具有分离效率高、纯化效果好、膜污染情况轻、膜组件更换频率低等优势，能够服务于绿色发展需求下的各类水处理领域。基于新一代自清洁抗污染超滤膜，研发团队开发了饮用水净化组件，在高端饮用水净化设备制造领域具有广阔前景。该技术的发展应用能够打破西方国家在高端超滤膜技术市场的垄断地位，实现超滤膜材料的国产化。","东北师范大学","科技大市场",13514469066,2023,11]
[null,{"$f":"ROW()-2","v":522},"碳纤维及复合材料","新材料","阻燃高性能天然纤维环保复合材料","阻燃剂是主要的高分子材料添加剂，市场消费量不断增长。目前常用的无机阻燃剂较多，但由于与聚合物基体的界面相容性差而影响材料的力学性能，而含卤素的阻燃剂易造成环境污染，以磷元素为主的阻燃剂价格较为昂贵，应用受限。天然纤维是自然界中储量最丰富、可再生的天然高分子材料，具有重量轻、成本低、能耗低、资源丰富、可再生、易降解等特点，其力学性能优于玻璃纤维，已经成为替代玻璃纤维等高性能纤维的理想选择。\n研发团队基于水相法的天然纤维化学改性，攻克了阻燃性和力学性能难以同时提高的瓶颈问题，开发出低成本、高阻燃性及优异力学性能的阻燃天然纤维/聚烯烃及阻燃天然纤维/聚乳酸复合材料，产品天然纤维含量15%以上，可广泛应用于建筑、家具、汽车及航天航空等各领域。\n","东北师范大学","科技大市场",13514469066,2023,11]
[null,523,"碳纤维及复合材料","新材料","车用聚氨酯发泡材料","随着汽车行业快速发展，市场对汽车内外饰材料的绿色环保、轻量化及高性能的要求日益强烈。聚氨酯质量轻、舒适性好、吸声性较高,是现代汽车制造中不可缺少的重要材料之一，单台乘用车聚氨酯使用量达60公斤左右，市场需求量巨大。目前国内聚氨酯行业材料还不能满足汽车对绿色环保、轻量化及高性能的要求，进口材料如巴斯夫、拜耳、亨斯曼等公司材料，不仅价格高，而且且对国内聚氨酯行业企业销售紧张，处于卡脖子状态。\n研发团队使用国产原材料开发出低温、低能耗、低成本的自主知识产权新工艺，研制成功了环境友好、性价比高较高的硅藻土复合聚氨酯吸能材料。研究成果在日本丰田研究院进行动态碰撞性能测试，测试结果达到了丰田国际体系标准要求，产品性能满足大规模产业化前提条件，对实现汽车国产化具有重要意义。\n","东北师范大学","科技大市场",13514469066,2023,11]
[null,524,"碳纤维及复合材料","新材料","金属磺酸多孔芳香骨架材料及在重氢分离上的应用","近年来，随着我国核电技术的快速发展，重氢的需求量越来越大。重氢的吸附分离法因其操作简单、分离效率高等优势使之近年来得到重视，其核心部分是开发高效吸附材料。目前的吸附材料由于其对重氢选择性低，无法满足工业上对分离和提取的需求。多孔芳香骨架材料具有骨架的稳定性及开放空间（0.3-2 nm），亚纳米空间可使气体分子产生量子筛分效应，从而优先传输重氢；骨架上的特异性活性位点可以选择性地吸附重氢分子，进一步提高选择性。\n研发团队提出了一种全新的磺酸后修饰方法，通过过渡金属的离子交换在多孔骨架上引入了不饱和金属位点，所制备的材料具有孔道尺寸狭窄、均一、比表面积大等结构特点。这种磺酸盐多孔芳香骨架材料对氢气/氘气具有选择性吸附的能力，具有选择性高、容量大的特点，为重氢的提取提供了一种独到的解决方案。\n","东北师范大学","科技大市场",13514469066,2023,11]
[null,525,"碳纤维及复合材料","新材料","金属有机骨架材料及在气体传感器中的应用","气体传感在工业生产、过程控制、环境监测、食品质量检测、医疗分析方面具有重要应用。目前，气体传感材料种类很多，有陶瓷材料、半导体材料、聚合物材料等。半导体和陶瓷材料的响应和恢复能力强，但是浓度和阻抗之间的线性关系并不理想，与此相比，其他材料的响应、恢复都相对较慢。\n研发团队设计制备了一种新型的导电金属有机骨架材料，并以该材料组装电阻式气体传感器，实现对有害气体的高选择性传感应用。本成果克服了常见气体传感材料选择性差、响应速度慢、恢复时间长、非室温操作等问题，提供了一种室温操作、快速响应、高选择性的新型金属有机骨架类气体传感材料及其制备方法，并用此材料组装了电阻式气体传感器，可广泛应用于有害气体检测。\n","东北师范大学","科技大市场",13514469066,2023,11]
[null,526,"碳纤维及复合材料","新材料","新型纳米光致发光材料及在犯罪调查中的应用","犯罪现场勘察和物证鉴定是打击刑事犯罪的第一步也是最关键的一步。指纹被称为“物证之首”，但在刑案现场，指纹大多都是经过破坏，通常肉眼不可见。因此，在指纹鉴定过程中关键的问题就是对潜指纹进行显现，如果不能有效显现出来，后续的指纹分析、鉴定就无从谈起。\n研发团队针对上述问题，研制了新型荧光纳米材料，该材料粒径均匀、分散性好，可提高指纹检测和成像的灵敏度，有效地克服显现过程中遇到的客体背景干扰、显现的灵敏性弱、结合性差等困难，显现过程不破坏潜指纹的潜在信息，不影响潜指纹的DNA鉴定。并可通过修第饰抗人体血红蛋白抗体，有效地识别出遗留在犯罪现场的血液是人血还是动物血，这种特殊的选择性对于案件的侦破也发挥着关键的作用。\n","东北师范大学","科技大市场",13514469066,2023,11]
[null,527,"碳纤维及复合材料","新材料","水溶液中联萘酚衍生物的绿色制备技术","近几十年来，经济环保类型的傅克反应得到了广泛关注，并发展了一系列操作简单、易得的合成方法。尤其是催化剂量的金属盐或温和酸催化芳烃和醛或醇的反应。然而，有机溶剂溶剂乙腈对环境和人体健康的危害制约了该方法在工业上的应用。\n研发团队研发了一种高效制备联萘酚衍生物的合成策略。该方法的特点是反应在绿色溶剂水中进行，无需加入任何有机溶剂，解决了纯水溶剂中非水溶性底物反应困难的问题，并且直接通过过滤实现了产物与溶剂、催化剂的分离回收与重复使用，大大节约了制备工艺成本。上述方法反应条件温和，原子利用率高，生产工艺简单，易于工业化，在有机合成领域有广泛的应用前景。\n","东北师范大学","科技大市场",13514469066,2023,11]
[null,528,"生物医药及先进医疗器械","生物医药","食用菌多糖作为降血糖功能食品的开发与应用","研发团队长期研究发现了多种降血糖的食用菌多糖组分，通过科学配制，在动物试验中具有明显的降血糖作用，研究发现多糖配方通过多组分协同从而多靶点、多途径实现降血糖功能，这些组分来自蜜环菌、茶树菇以及平菇等食用菌，经过组合酶水解技术提取加工。产品生产路线对设备需求简单，条件温和、成本低，适合工业化生产。研发团队通过控制产品的糖含量、单糖组成、分子量分布以及结构特征等参数，建立了稳定生产和产品质量的先进质控技术，使得产品天然、稳定、无毒，可长期服用。\n本成果可填补市场上缺少确切调节血糖的功能性食品或保健品的空白，也解决了食用菌深加工技术工业化的瓶颈。产品可广泛应用于高血糖人群，具有广阔的市场前景。","东北师范大学","科技大市场",13514469066,2023,11]
[null,529,"生物医药及先进医疗器械","生物医药","人参皂苷Rg3抗结肠炎功能性食品的研发","目前国内外开发的具有调节肠道菌群产品主要包括益生菌、益生元及合生元制剂。面临的主要问题是天然益生元主要是一些糖类化合物，工业生产质量控制较难。利用天然资源，开发绿色、毒性低、副作用小、生产路线环保的益生元制剂是未来肠道菌群保健品开发的趋势。人参2017年已被列入药食同源食品目录，人参皂苷作为人参的主要活性成分，药理和生物学活性十分广泛，是保健食品开发的优质资源。研究表明，人参皂苷Rg3通过调节肠道菌而具有良好的抗肠炎药理活性，可显著抑制DSS诱导的小鼠溃疡性结肠炎。同时，以人参皂苷这类天然小分子化合物为原料开发益生元保健食品，有利于产品的质量控制。\n研发团队建立了人参皂苷Rg3的生物转化制备方法，可以实现工业化生产，相关技术获得国家发明专利授权。基于此，可以开发Rg3使之成为抗结肠炎的保健食品以及抗结肠炎的药物原料，市场前景广阔。","东北师范大学","科技大市场",13514469066,2023,11]
[null,530,"生物医药及先进医疗器械","生物医药","人参属多糖抗流感病毒药物的研究与应用","流感病毒严重危害人类健康，抗病毒药物是人类对抗流感的重要手段，目前市场上防治流感病毒的主要药物是神经氨酸酶抑制剂，包括奥司他韦、扎那米韦、帕拉米韦等，但随着药物的广泛使用和药剂量的增加，其药效正受到耐药病毒的严重威胁。此外，获批上市的药物还有RNA聚合酶抑制剂法匹拉韦和血凝素抑制剂阿比朵尔，但目前临床应用数据有限，尚需观察疗效和不良反应。除上述化学药物外，还有用于治疗流感的中成药如连花清瘟胶囊、银翘解毒丸、双黄连颗粒等。目前有效抗流感病毒的药物种类有限，开发疗效好、毒副作用低的抗病毒药物是未来的发展趋势。\n研发团队经过多年研究，发现人参属药用植物中含有结构类型多样的多糖组分，这些多糖具有良好的抗流感病毒的功效，并且毒副作用小，具有开发为抗流感病毒新药的潜力。团队建立了酶解法制备人参属药用植物多糖抗流感病毒活性成分的工艺路线，该工艺流程简便、易于实现工业化，并且建立了抗病毒多糖的质量控制标准。目前团队已经实现抗流感病毒多糖的中试规模生产，正在开展抗病毒新药开发的临床前研究工作，市场应用前景广阔。","东北师范大学","科技大市场",13514469066,2023,11]
[null,531,"生物医药及先进医疗器械","生物医药","逆磷脂和逆磷脂体及药物开发","研发团队针对天然磷脂头部亲水基团磷脂酰胆碱分子结构中无可以修饰的位点、无法赋予其功能性，打破传统脂质分子化学结构的瓶颈限制，模仿细胞膜骨架分子，构建了其头部分子电荷取向易位的胆碱磷酸脂质分子，制备了胆碱磷酸脂质体，即“逆磷脂”。它不仅保留了天然脂质分子固有的正-负电荷平衡、亲-疏水平衡和分子链刚性-柔性平衡，还具有与天然磷脂相当的生物兼容性和生物安全性。以逆磷脂和辅助成分共组装形成的逆磷脂脂质体可以广泛应用于开发透皮给药制剂、口服给药制剂、实体瘤治疗制剂、可吸入型制剂、基因治疗制剂和基因疫苗等，以及药物、抗体等的靶向递送、分子探针递送等领域。\n 目前，研发团队已经开发出合成工艺路线和质量控制方法，完成了系列逆磷脂产品中试，产品纯度达到99%以上（HPLC，NMR）。团队自主研发的“多柔比星-逆磷脂脂质体注射液”制剂，在无需PEG化磷酯辅助条件下，动物实验评价已经到临床用药治疗效果，并实现规模化的稳定生产。","东北师范大学","科技大市场",13514469066,2023,11]
[null,{"$f":"ROW()-2","v":532},"生物医药及先进医疗器械","生物医药","α1-抗胰蛋白酶生产技术","人血α1-抗胰蛋白酶（UniProt编号为P01009）是FDA批准上市的药物，用于治疗肺气肿、慢性阻塞性肺（COPD）等疾病。目前上市的α1-抗胰蛋白酶产品包括Aralast NP、Glassia、Prolastin-C、Zemaira等。α1-抗胰蛋白酶的市场主要分布于北美、欧洲、亚洲等地区，目前国内没有生产企业，产品全部需要进口。\n研发团队制备了一种亲和层析柱，能够一步把α1-抗胰蛋白酶从血液或者细胞培养基中提取出来。具体包括：应用真核细胞表达α1‑抗胰蛋白酶，收集含有α1‑抗胰蛋白酶的溶液进行S/D法病毒灭活，将人半乳糖凝集素8作为诱饵蛋白，将带有组氨酸标签的诱饵蛋白、灭活的含有α1‑抗胰蛋白酶的溶液、Ni‑NTA、缓冲液混匀，搅拌使Ni‑NTA与诱饵蛋白的组氨酸标签结合，α1‑抗胰蛋白酶与诱饵蛋白发生特异性结合，离心收集Ni‑NTA，清洗，将α1‑抗胰蛋白酶从诱饵蛋白上洗脱下来，凝胶过滤层析纯化，收集含有α1‑抗胰蛋白酶的谱峰，经透析、脱盐、浓缩、巴氏灭活、冻干后获得α1‑抗胰蛋白酶。本技术具有生产效率高、生产成本低等优势。\n","东北师范大学","科技大市场",13514469066,2023,11]
[null,533,"生物医药及先进医疗器械","生物医药","功能性天然多糖抗菌水凝胶针剂","国内外应对封闭组织感染主要以抗生素给药为主，对于较为严重、特别是已经形成脓疱的情况，则需要进行穿刺抽脓术进行清理并放置引流条直至溃脓完全清除，但引流条的置入阻碍了创面愈合，治疗期间往往需要注射抗生素来阻止进一步感染。目前，市场上有超过200种基于天然多糖的水凝胶敷料，对于各类创伤仅是简单的物理隔离、渗出物吸收，普遍存在“材料无定型，抗菌性差”等问题。\n研发团队开发的可注射非载药抗菌凝胶针剂填补了现阶段非开刀治疗皮下感染的空白，缓解了高效低毒抗菌材料匮乏的症状。从动物实验结果看，对于已经形成的脓疱仅通过一次注射便完成了感染恶化的阻断，并最终实现了脓疱的清除，同时对感染小鼠皮肤，血常规以及重要器官未产生毒性。这一结果对于临床上各类皮下感染的治疗均有启发作用，如临床上耳前瘘管感染的治疗等，具有重要意义，产品具有广阔市场前景。\n","东北师范大学","科技大市场",13514469066,2023,11]
[null,534,"生物医药及先进医疗器械","生物医药","薄荷多糖组合物制备方法及应用","薄荷具有保肝利胆、镇痛、抗菌、抗炎等药理作用，临床多用于风热感冒、头痛目赤、咽喉肿痛等症，目前对于薄荷的研究主要集中在薄荷精油及脂溶性成分方面，对于主要活性成分多糖的研究相对较少。\n研究团队研发了一种薄荷多糖组合物制备方法，并对其活性进行了研究。研究标明，薄荷多糖具有抗氧化活性，其在体外能够清除DPPH、OH自由基，具有良好的金属离子螯合作用，并且能够修复D-半乳糖诱导的衰老小鼠的抗氧化系统。上述制备方法，最终得到分子量均一的薄荷多糖组合物。以摩尔百分比计由半乳糖84.2%、葡萄糖9.8%、甘露糖2.8%、阿拉伯糖3.2%组成、并且分子量为26910Da的薄荷多糖组合物在制备具有抗氧化活性的药物中的应用。其优势在于，所述抗氧化活性为清除DPPH、羟基自由基、和/或金属离子螯合的能力，所述抗氧化活性为增强D-半乳糖诱导氧化损伤小鼠的SOD、CAT及GSH-PX酶活性，并降低MDA水平。","东北师范大学","科技大市场",13514469066,2023,11]
[null,535,"生物医药及先进医疗器械","生物医药","一种杠柳苷元及其衍生物用于防治皮肤增殖性疾病的应用","皮肤增生性疾病包括银屑病、寻常疵、甲周疵、脂溢性角化病、扁平疵、踢疵、黑色素痣、老年斑和血管瘤等，可以导致疼痛、容貌损害,甚至行动障碍,对患者产生很大的困扰。目前市场上主要使用糖皮质激素、甲氨喋呤、维A酸类、地塞米松等药物，只能快速控制进行期患者的症状，不能有效延长患者的缓解期；传统中药雷公藤、昆明山海棠、青黛丸、郁金银屑片等虽具有改善病情，延长缓解期，但存在疗效缓慢，治愈率低，复发率高等问题，目前尚无疗效令人满意的治疗药物。\n研发团队研发的杠柳苷元及其衍生物可通过外用或口服两种途径给药，亦可制备成适用于不同给药途径的药物剂型，如胶囊、片剂、乳剂、霜剂、凝胶剂或膏剂等。上述杠柳苷元及其衍生物均通过抑制人皮肤异常增殖细胞增殖,并经细胞实验和动物实验证实效果显著,安全性好,是一种新型的皮肤增生性疾病治疗药物，具有广阔的应用前景。","东北师范大学","科技大市场",13514469066,2023,11]
[null,536,"生物医药及先进医疗器械","生物医药","氯化两面针碱及其衍生物在制备防治皮肤病药物中的应用","皮肤疾病是人类常见的疾病，因其病程长且顽固，发病机制复杂，目前临床上使用的抗表皮细胞增生类药物的治疗效果并不理想。一些激素类药物还会导致表皮损伤甚至全身性的副作用。传统中医使用中草药治疗皮肤疾病具有悠久的历史，现代研究也表明，中草药对很多皮肤病都有良好的治疗效果。但由于中草药成分的复杂性，以及药物作用机制研究的滞后，中草药在皮肤病治疗的临床使用上只占有很小的比例。研究和开发中草药中治疗皮肤病的有效成分，非常可行且具有重要的积极意义。\n研发团队开发的氯化两面针碱及其衍生物可有效抑制皮肤异常增殖细胞增殖,经细胞实验和动物实验证实效果显著,安全性好,是一种新型的皮肤增生性疾病治疗药物，具有良好的应用前景。","东北师范大学","科技大市场",13514469066,2023,11]
[null,537,"生物医药及先进医疗器械","生物医药","血竭素及衍生物在制备糖尿病药物中的应用","糖尿病是一种常见、有遗传倾向、以高血糖为特征的慢性代谢性和全身进行性疾病，具有普遍性、高发病率和高死亡率的特点，现已成为继癌症、心脑血管疾病之后，人类第三大杀手。\n研发团队发现了血竭素及其结构修饰物在保护胰岛β细胞和治疗糖尿病方面的机制，主要是通过经典胰岛素信号通路促进Pdx1的表达、抗胰岛β细胞凋亡、升高体内胰岛素水平发挥降血糖作用。研发团队首次以Pdx1作为糖尿病药物作用靶标，建立糖尿病药物筛选系统，对II型糖尿病治疗针对性强，适用性广。此外，我们所筛选出来的糖尿病治疗药物血竭素为天然产物，能够从动植物体内提取出来，具有多种天然产物的优点，如易被机体吸收利用，毒副作用相对较小，不易产生抗药性等，从而使其成为糖尿病治疗的优良候选药物，一旦实现产业化，将具有广阔的应用前景，也将带来巨大的社会和经济效益。","东北师范大学","科技大市场",13514469066,2023,11]
[null,538,"生物医药及先进医疗器械","生物医药","楸皮新酸及其衍生物和它们制备方法及医学用途","恶性肿瘤是严重威胁人类健康的常见病、多发病，目前药物治疗仍然是癌症的主要治疗方法之一，但现有的药物由于存在耐药性和毒副作用等诸多问题，致使癌症药物治疗的效果并不理想，因此寻找高效、低毒的抗癌药物成为人们关注的焦点。近几十年来，从天然产物中寻找理想的抗肿瘤药物或药物前体已成为研究的热点。核桃楸是我国重要的药源植物之一，在中国和韩国的民间用于治疗癌症已有多年的历史。楸皮新酸及其衍生物，具有广泛的医疗用途，是癌症治疗领域的一种突破，将适用于各种在我国国内高发的肿瘤类别，具有较大的潜在市场。\n研发团队采用活性追踪分离的方法，从核桃楸中分离得到一种新的多不饱和脂肪酸类化合物，具有较好的抗肿瘤活性，团队提供了楸皮新酸及其结构修饰物的制备方法，同时还涉及这些化合物作为药物，尤其是作为抗肿瘤药物的用途，具有广阔市场前景。","东北师范大学","科技大市场",13514469066,2023,11]
[null,539,"生物医药及先进医疗器械","生物医药","对甲氧基桂皮酸乙酯及其衍生物在维持干细胞自我更新和多潜能性中的应用","干细胞是一类具有自我更新能力和多向分化潜能的原始细胞在再生医学中，干细胞移植治疗已经成为治疗疾病的重要手段，但是哺乳动物的干细胞数量极少，且倾向于自发的分化，所以很难在体外进行长期、大量地培养。虽然生长因子和生物活性蛋白可以作为干细胞的调节药物，但是生长因子和生物活性蛋白作为大分子活性物质，可以介入体内纵横交错的生理过程，呈现极其复杂的多重调控功能，且价格昂贵，很难具有药用和临床治疗价值，而小分子化合物作为干细胞调节药物的潜力越来越受到人们的重视。\n研发团队通过对小分子化合物的研究，发现对甲氧基桂皮酸乙酯及其衍生物能促进Oct4基因的表达，从而来维持干细胞的自我更新能力和多潜能状态，可以作为维持干细胞自我更新和多潜能性的调节药物或培养基添加剂，能够为临床移植提供大量干细胞，为细胞缺失或损伤性疾病的治疗提供新视点和新思路。这将为干细胞的临床应用开辟广阔的前景。","东北师范大学","科技大市场",13514469066,2023,11]
[null,540,"生物医药及先进医疗器械","生物医药","新型肽UPCP在肝纤维化治疗中的应用","肝纤维化是肝脏对各种慢性炎症刺激的损伤修复反应，其发展进程与年龄高度相关，肝中各类衰老细胞累积是肝纤维化发展的关键，很大程度上受衰老相关分泌表型（SASP）影响。肽类药物因其分子量小、细胞膜通透性高等优势被应用于衰老相关疾病的治疗，如依多曲肽用于神经内分泌肿瘤治疗，脑利肽用于心血管疾病的治疗等。\n研发团队开发了一种新型肽UPCP，并发现 UPCP 可逆转儿童早衰症（HGPS）患者细胞的衰老表型，有效改善HGPS小鼠的衰老体征并延长其寿命，同时改善了早衰鼠多个器官的纤维化程度。进一步研究发现，在四氯化碳（CCl4）诱导的小鼠肝纤维化模型中，UPCP 治疗可减少小鼠肝损伤以及肝组织纤维化程度的降低，同时降低肝纤维化小鼠肝脏中衰老相关因子的表达。试验结果证明 UPCP 可能通抑制肝脏组织细胞的衰老并抑制 SASP 的分泌从而缓解肝纤维化。我们旨在开发新型肽 UPCP 在治疗肝纤维化中的应用，以期为肝纤维化的治疗提供新的肽类药物。","东北师范大学","科技大市场",13514469066,2023,11]
[null,541,"生物医药及先进医疗器械","生物医药","一种促进细胞存活的Netrin-1模拟肽、Netrin-1截短多肽及其应用","出血性脑卒中以手术治疗为主要原则，结合患者年龄、出血部位、血肿量进行综合考虑，不同手术方式因入路、器械、方法的不同而产生临床疗效差异也不尽相同，目前对于改善脑卒中预后的切实有效药物相对有限。\n研发团队开发的具有抑制神经元凋亡作用的Netrin-1活性肽，可用于脑卒中患者的康复治疗。我们提供了一种促进细胞存活的Netrin-1模拟肽、Netrin-1截短多肽及其应用，属于人工突变多肽技术领域。截短体Pep 407为Netrin-1的第407~443位氨基酸序列，是Netrin-1与受体DCC结合的关键氨基酸序列，Pep 407能与受体DCC结合激活Netrin-1下游信号通路，模拟Netrin-1生物学活性；我们还提供了一种更短的模拟肽（Netrin-1的第407~422位氨基酸序列），该模拟肽不仅能与受体DCC结合能激活Netrin-1下游信号通路，而且能有效抑制细胞死亡，促进细胞存活，同时通过添加穿膜肽给药出血性脑卒中小鼠模型，能有效达到治疗出血性脑卒中的效果。","东北师范大学","科技大市场",13514469066,2023,11]
[null,{"$f":"ROW()-2","v":542},"生物医药及先进医疗器械","生物医药","一种金属铱配合物-紫杉醇偶联物及其制备方法和应用","紫杉醇 (PTX) 是化学疗法 (CT) 中常用的化疗药物，已被批准用于各类癌症的治疗，但由于多重耐药性，在有效治疗剂量下的PTX会引起潜在的肾脏损害等副作用，同时PTX由于水溶性和渗透性差，已被列为生物利用度最低的IV类药物。目前常用于改善化疗疗效的方式则是将PTX与其他生物活性分子结合，生成水溶性的纳米药物。虽然能够改善PTX的生物相容性问题，但因无法准确定量各组分的含量和合适的比例，他们的性能仍然在很大程度上受到限制，进一步影响了治疗的效果。\n研发团队长期从事功能材料的设计与研发，通过制备高性能发光材料来获得高选择性、高灵敏度的荧光及磷光材料，并将其应用于肿瘤治疗、生物成像以及生物细胞中的离子检测等。团队合成出一种金属铱配合物与PTX的偶联物，在细胞的微环境中能够进行有效的递送和释放，实现细胞内的双模式治疗。","东北师范大学","科技大市场",13514469066,2023,11]
[null,543,"其他","环保与资源","水生植物与微生物耦合生态修复技术","本科技成果涉及一种耐低温微生物-植物耦合体系的开发，用于东北寒区长期低温条件下的流域水环境治理。该体系在低温河道水体污染修复中兼具高效、绿色以及低碳等生态环境效益，同时，通过靶向吸附包埋材料缓释植物激素、金属离子药剂以及蓝藻群体感应淬灭剂等化学药剂，可进一步强化修复效率，在多种强化技术的应用下，该耦合体系相比于传统的植物修复技术，具有更显著的抗低温潜力以及污染物削减能力。\n东北寒区低温期的流域环境修复，一直是植物修复技术难以突破的瓶颈，研发团队开发的耦合体系，可以弥补这一领域的空缺，在低温生态修复技术的市场里有着巨大的应用前景，低成本，长效性的修复方法也为本成果在市场中提供了不可忽视的竞争力。","东北师范大学","科技大市场",13514469066,2023,12]
[null,544,"其他","环保与资源","无动力地表水提质技术","随着国民经济快速增长，人民生活水平的提高，我国江、河、湖、库等水体存在污染物排放过量、富营养化，生态破坏严重。传统的动力复氧效率高，但运行时主要面临高能耗、易产生二次污染、影响水温、产生噪声等问题。另外，运行成本昂贵，移动性差，设备维护繁琐不便。\n研发团队提供了一种无动力河流地表水的复氧装置及其方法，以经济、节能、有效的增加水中溶解氧含量，并且不产生二次污染。通过壅水作用，将水体势能转化成装置尾部摆动和散流动能，通过扰动使地表水河流水体溶解氧浓度不断补充，不需要任何额外动力输入以维持上述过程，仅仅依靠河流水势能作为源驱动力，一方面直接净化水体，提升水质，另一方面，为下游漫滩形成提供颗粒物基础。","东北师范大学","科技大市场",13514469066,2023,12]
[null,545,"其他","环保与资源","清洁能源驱动的光电化学-渗透耦合系统","重金属废水中蕴含着丰富的高值金属，具有巨大的经济价值，它已不再是常规的废弃物质，而是被我们放错了位置的一种可贵资源。传统的吸附法、化学沉淀法和离子交换法等技术虽然可以处理重金属废水，但这些技术对实验条件要求苛刻、能耗高、出水水质较差、回收效率低。\n研发团队开发了一种自发光电化学-渗透耦合重金属废水资源化与能源化处理系统，实现了废水金属回收、能源再生和重金属废水减量化的多效协同。通过研究系统构成对光电化学-渗透耦合系统光电化学性能，金属回收效率和渗透通量的影响，研究团队探明了自发电化学驱动力与继发渗透驱动力对维持系统长期自主运行的关键作用，揭示了渗透膜电势调控系统产能的作用机制，厘清了清洁能源驱动的光阳极能量传递规律，阐明耦合系统自发且同步蒸发净水、金属资源回收、金属废水减量化与产电能的作用机制。","东北师范大学","科技大市场",13514469066,2023,12]
[null,546,"其他","环保与资源","微纳米气泡发生器","微纳米气泡是目前环保、化工、养殖、光学等领域的前沿和热点，被广泛应用于污水处理、化工反应、碳捕集碳中和、尾废气吸收处理、养殖富氧等工业前景中，如何产生工程化规模的体相气泡，是这一领域的关键基础。近年来市场上出现了微纳米气泡制备相关的仪器设备，但仍处于起步阶段，且存在温升、气泡粒径偏大、浓度低等不足。\n研发团队基于气液两相流相关理论，研发了微纳米气泡发生器，在水气两相循环模式下产生高浓度（>105个/mL）超微细尺寸（200 nm~5 μm）气泡，形成乳状溶液，大幅提升水中气体（特别是氧气）浓度，超微细气泡在水中有较长的滞留时间，以及较高的气液传质效率，可广泛应用于污废水/气污染控制以及气泡放电、气泡光学相关的教学、科研及工程实践，具有广阔的市场应用前景。","东北师范大学","科技大市场",13514469066,2023,12]
[null,547,"其他","环保与资源","无掩模高精度光刻打印一体化装备","中、高精度性能的光刻和打印设备仅国内实验室应用的需求量就非常巨大，每年有几百台的缺口。将光刻和打印一体化，可以有效扩展设备功能，作大范围的满足当前各种二维和三维微结构制作的需求，应用在生物医疗、二维材料、微机电系统、仿生表面等各种研究领域。但目前国内外还没有此类一体化设备，同时小型高精度的光刻或者打印设备基本被国外垄断。\n研发团队利用数字阵列微镜（DMD）形成无掩模光刻和打印一体化设备，以满足多种领域在二维、三维微结构制作方面实验研究需求，镜头可以提供多样化选择（2倍、5倍、10倍甚至20倍），光源可以选择365nm、385nm、405nm不同波段。配备可以方便二次开发的软件，根据自己的需求，组合各种命令，形成各种图形高光和结构打印的特定操作软件。","东北师范大学","科技大市场",13514469066,2023,12]
[null,548,"其他","环保与资源","模块化自组装高效毛细管电泳DIY教学仪","仪器分析实验教学是化学及相关专业创新人才培养的必要环节，对提升学生动手能力和创造能力、以及适应未来工作需要非常重要，而目前仪器分析实验课程大多停留在理论教学结合老师实验操作演示。\n研发团队自主设计和研发了简单直观、模块化、自组装、价格低廉、便于推广的高效毛细管电泳实验教学仪器，主要优势特色包括：\n1.设计教学仪模块化，各模块相互独立，学生可自己动手拆卸和重新组装，理解仪器工作原理；\n2.采用透明有机玻璃外壳设计，仪器内部结构直观可视，提高教学效果；\n3.可使用电脑端或智能手机端分析处理实验结果，更智能便利；\n4.相比目前科研用的商品化仪器，价格低廉，可缓解教学仪器数量不足的问题。","东北师范大学","科技大市场",13514469066,2023,12]
[null,549,"其他","环保与资源","面向野生动物多样性调查研究的便携式全频谱声学监测设备","被动声学监测技术已被广泛用于监测物种多样性，它能够推断出更广泛的群落生态学指标，例如物种丰富度和多样性指数，能以较低的成本和非侵入的方式在特定区域进行动物声学特征的长期连续无人值守监测，从而有效弥补人工监测在数据连续性和完整度方面的局限性。\n该成果的特色优势如下：\n1体积小、低功耗及高可靠性，克服了统光学监测方法受天气、人力等因素制约的问题；\n2..在声学监测的同时，设备能够同步记录温湿度、地理位置、气压等环境参数。预留通信接口，可使用远程蜂窝网络通信将数据传输至上位机。\n3.设备采样频率能够覆盖至384kHz，上位机可配置系统的采样率、采样时间、采样位深、增益倍数、服务器IP地址及端口参数以适应实际环境情况。","东北师范大学","科技大市场",13514469066,2023,12]
[null,550,"生物医药及先进医疗器械","生物医药","可吸收快速止血微球","出血是创伤后的主要并发症，也是创伤救治和外科手术中威胁伤病员生命安全的难题，临床上常用的止血材料是传统纱布、海绵类材料。随着人们对无菌材料止血性能要求的提高，止血材料的种类也在不断改进与发展，壳聚糖、聚乙烯醇、明胶、再生纤维和海藻酸盐等原料体现出优异的止血性能，其剂型主要有止血海绵、止血粉和止血敷料等。近年来，无菌吸收性止血材料市场年增长率达10%以上，止血材料类费用占整体医疗费用的5%以上。\n研发团队所开发可吸收快速止血微球相比于现有的无菌止血材料具有以下特点：\n一是生物基材料来源广泛，生物相容性较高，可吸收降解，成本低廉，较易获得国家批准和市场认可，较易实现产业化；\n二是针对深层次创伤大量出血阶段，综合效果显著；\n三是依靠材料结构性质本身来实现止血、抗菌多功能性和减少毒副作用 。\n本产品已完成中试实验，实现公斤级量产，建立了理化标准，可快速进行产业化。","东北师范大学"]
[null,551,"生物医药及先进医疗器械","生物医药","医用可降解聚氨酯止血海绵","耳鼻手术后一般采用填充压迫止血，同时维持耳道和鼻腔的形状。临床常用的鼻腔填塞止血材料包括凡士林纱条、高膨胀止血海绵、可降解聚氨酯止血海绵等，我国每年填塞止血材料的需要量为1500万片。然而，传统止血材料在被取出时患者需要承受很大的痛苦，并可能导致二次出血。美国史赛克公司开发的Nasopore海绵目前是唯一在市场销售的可降解聚氨酯止血海绵，但其价格昂贵，限制了临床广泛使用。\n研发团队采用聚氨酯溶液冻干工艺，制备了可降解聚氨酯止血海绵，该止血海绵可以对耳道和鼻腔起暂时压迫止血与支撑作用，止血海绵的降解产物可自然从腔体流出，不与术腔粘连，不仅利于结痂，还可以保护鼻腔黏膜，并促进形成术腔上皮组织的形成。本成果具有自主知识产权，各项性能达到甚至超过了Nasopore海绵，打破了外国公司在该领域的垄断，填补了国内空白。","东北师范大学"]
[null,{"$f":"ROW()-2","v":552},"生物医药及先进医疗器械","生物医药","无创体液葡萄糖监测仪","糖尿病是以高血糖为特征的代谢类疾病，持续高血糖、血糖不稳对人体损伤巨大，极易引起并发症、合并症，降低生活和生存质量。绝大多数血糖仪每次监测都要刺破人体皮肤，这就可能会带来使用上的不适或伤口感染。因此，通过检测无创体液从而实现潜在的非侵入性葡萄糖监测管理是近年血糖管理领域内发展的趋势。\n研发团队提出和构筑了一种全集成便携式生物纳米传感器，普适和准确地分析出三种最常见的无创体液（汗液、泪液和唾液）中的葡萄糖水平，从而实现潜在的非侵入性葡萄糖监测管理。传感器由一次性试纸条和检测器组成，将体积低至1微升待测体液原液滴加至试纸条后，将试纸条插入检测器，利用手机APP可实现无线对检测器的控制、检测结果的实时传输及保存，并利用内置软件评估高血糖风险。本产品可以较准确对人泪液、唾液和汗液中葡萄糖浓度的准检测（偏差15%），预估高血糖风险，同时避免传统血糖仪每次监测都要刺破人体皮肤，从而避免使用上的不适或可能的伤口感染。","东北师范大学"]
[null,553,"生物医药及先进医疗器械","生物医药","硼中子俘获治疗技术及装置","硼中子俘获治疗(Boron Neutron Capture Therapy, BNCT)是一种放疗方式,通过注射无毒硼化合物，形成恶性肿瘤与正常组织间的硼浓度差，中子束照射后产生的α粒子与锂(Li)原子，可选择性破坏吸收了硼的肿瘤细胞，射程仅为数微米，在杀伤肿瘤细胞的同时保护正常细胞。\n研发团队先后开展小型BNCT设备可行的探讨、原型机组建、保护装置开发、细胞和动物体内耐受剂量测定、肿瘤细胞抑制剂量、肿瘤动物模型建立等工作，所开发的小型BNCT设备为静电型中子源，有别于AB-BNCT，具有更小体积、更低成本、更安全的优势，其技术为国内独家、首创。在硼药研究方面，团队开发出可临床转化的硼药和新剂型，并实现生物学评价与医学应用的探索与展开。上述装置和技术可有效突破国外技术垄断，极大地增加肿瘤治疗相关的基础研究深度和临床应用手段，具有良好的科学意义和经济效应。","东北师范大学"]
[null,554,"生物医药及先进医疗器械","生物医药","前列腺癌标记物可视化快速检测技术","前列腺癌是全球最常见的男性癌症之一，发病率逐年增加。早期诊断是预防其发生和发展降低死亡率的最有效方法。肌氨酸是一种国际公认前列腺癌标记物之一，可作为早期诊断依据。目前肌氨酸检测需要依赖大型仪器、检测费用高、需要特殊培训的专业人员才能完成。\n研发团队构建了一种多酸纳米酶，同时模拟过氧化物酶和肌氨酸氧化酶，利用3,3',5,5'-四甲基联苯胺（TMB）显色反应，通过紫外-可见光谱或肉眼可视化定量检测肌氨酸浓度。肌氨酸浓度线性范围 0.2 μM ~ 1 mM、最低检出限为 0.012 μM；肉眼可视化检测线性范围为 1 - 500 μM、最低检出限为0.78 μM。检测方法简单、尿液无需特殊处理，实际样品检测结果和高效液相结果一致。和现有的方法相比，POMs纳米酶可视化检测技术具有前处理简单、快速、灵敏、高效、廉价等特别。与试剂盒相比，稳定、存储条件要求低、操作条件不苛刻、使用方法简单、无需培训专业人员、价格便宜，特别适用于日常的监测和大规模的筛查。","东北师范大学"]
[null,555,"生物医药及先进医疗器械","生物医药","新型全自动在线药物溶出分析仪","快速准确地对药物制剂体外溶出过程进行在线分析，评价活性药物成分的溶出速度和程度，对药物研发、药物质量控制、仿制药质量和疗效一致性评价等方面具有重要意义。\n研发团队开发了一种集动态模拟体液循环的流通池技术、自动序列进样技术、以及高速毛细管电泳分离检测技术为一体的新型全自动在线药物溶出分析仪，实现数十秒乃至数秒量级时间分辨的准实时监控药物成分的释放过程，以获取体外溶出度试验与体内生物利用度的相关性，探索仿制药与原研药质量差异以及药效一致性。相比于商品化的离线药物溶出分析仪，不仅避免了大量繁琐的样品处理程序，大大提高了药物溶出的分析速度，而且过程分析增加了信息量，保证了溶出过程分析的准确性和重现性。研究成果已经获批国家专利，形成产品样机，有望在药物研发、疾病治疗、以及食品、环境等领域获得进一步的推广应用。","东北师范大学"]
[null,556,"生物医药及先进医疗器械","生物医药","便携式体外即时检测光纤免疫传感分析仪","作为体外诊断的一种重要手段，化学发光免疫分析可对疾病标志物（如肝炎类标志物、肿瘤类标志物、心脏标志物等）精准检测，为疾病预防、早期诊断及临床治疗提供免疫学方面的关键依据。目前自动化化学发光免疫分析仪的关键技术被国外公司垄断，且仪器普遍体积大、价格高，无法用于现场即时检测，昂贵的检测费用也影响了就诊数量和疾病早期诊断。\n研发团队以新兴生物传感技术结合免疫分析方法，采用光纤为生物识别分子的固相载体，发展光纤表面的微纳材料构筑、在线信号扩增策略和多通道高通量检测等关键技术，提升检测效率、灵敏度和分析通量，建立创新的即时检测（POCT）技术手段，进而设计研发小型化自动化的光纤免疫传感分析仪，实现人体生物检材中多目标生物标志物快速准确的体外即时检测，目前市场上尚无类似技术和产品。本产品已完成样机研发制造，在疾病预防、临床诊断以及新药物研制等领域具有广阔市场前景。","东北师范大学"]
[null,557,"生物医药及先进医疗器械","生物医药","精准医疗平台多组学大数据融合系统","研发团队开发的多组学、多模态大数据融合系统是现代精准医疗平台的基础数据系统，采用非关系型大数据系统，面向全科临床医学和基础医学研究，融合基因、蛋白、生物网络、药物和疾病等精准医疗相关的关键生物组学相关大数据，能够根据技术使用方的需求建立有效的生物医学大数据存储、管理、访问系统，进而可支撑用于临床辅助诊疗及科研的精准医疗平台。\n精准医疗从2015年发展至今，已经从探索阶段逐步进入应用阶段，其中生物医疗大数据系统是所有精准医疗系统中的共性基础需求，在国内外中大型医院的精准医疗系统建设中不可或缺。但由于交叉应用的特殊性，能够提供相应系统研发能力的技术企业较少，因此具有巨大的市场潜力。","东北师范大学"]
[null,558,"生物医药及先进医疗器械","生物医药","基因新发突变类精神疾病诊疗系统","我国精神疾病发病率高且增长趋势明显，是我国推进国民大健康战略所面临的巨大挑战。然而当前精神疾病临床诊断缺乏发病机制的依据，主要以临床表型为指标。多数精神疾病的发病原因与人体基因新发突变相关，这种不在父代而仅在子代发生的基因变异对精神疾病的临床诊疗极具重要性。\n研发团队建立了从患者新发突变基因组学到转录组、蛋白组学的完整生物组学发病机制临床辅助诊断系统，填补了精神疾病临床诊断的组学机制评价空白，系统自动生成辅助诊断报告和用药风险分析，具有显著的临床应用价值，符合领域发展的国际行业趋势，具有巨大的市场推广潜力。","东北师范大学"]
[null,559,"生物医药及先进医疗器械","生物医药","创新药物研发作用机制图谱PharmRG","AI药物研发当前已经成为药物研发领域的热点，主要优势在于其能够突破传统药物研发的瓶颈，融合及挖掘药物研发要素大数据信息，促进原研创新药物的研发，在新冠、癌症等重大疾病靶向药物研制过程中已经取得显著的成果。\nPharmRG是研发团队基于疾病机制和药理分子机制建立的药物作用机制图谱，针对当前新型药物研发严重依赖有限先验药靶作用知识的瓶颈，融合人体生理机制和药物作用机制，可针对目标药物分子、靶点或疾病，采用无监督图神经网络模型从头构建药物作用网络，展示药物作用机制，具有高度药理作用可解释性，从而实现全新药物分子筛选、靶点发现和药理推断，同时在老药新用和中药简方研发中具有显著的应用潜力。","东北师范大学"]
[null,560,"汽车电子及新型汽车零部件","信息技术","针对图像中直线特征的实时检测方法及应用","直线是图像的重要特征，直线特征提取方法的研究对图像的理解、模式识别有重要的意义，直线检测是计算机机器视觉和模式识别中最重要的任务之一。直线形状的检测技术广泛应用于各民用和军用领域，如无人驾驶中的道路边缘检测、机器人定位所需的网格识别，板材（瓷砖）表面的裂纹检测，单据表格的智能识别，零件纹路的在线检测、航拍图像中机场跑道的检测等。如何快速有效地从复杂背景中检测出数目繁多，固定的直线算法是模式识别亟待解决的关键问题。\n研究团队采用改进的链码跟踪与分层霍夫变换相结合的方法实现机场跑道直线检测。将链码跟踪运算快的优点与霍夫变换精度高的优点相结合，不仅能够克服图像的模糊干扰，精确检测出目标，而且运算速度大幅提高，实现了航拍图像中机场跑道的实时高精度检测。","东北师范大学"]
[null,561,"生物医药及先进医疗器械","生物医药","可穿戴电阻抗功能成像系统","人体内不同组织在不同的生理、病理状态下具有不同的电导率，电阻抗成像技术是通过驱动电流或电压在人体的测量响应信息，重建人体内部的电阻率分布或其变化的图像。电阻抗成像对于鉴别生物组织具有一定的前瞻性，是一种非常合适的辅助医疗手段，使得电阻抗成像技术成为近年来医学成像和无损检测领域的研究热点之一。\n研发团队以辅助医疗成像为目的，自主研发了用于检测人体组织的功能性变化的可穿戴电阻抗功能成像系统，包括肌肉组织变化和肺部呼吸变化等。其关键技术在于解决了设备小型化、实时性以及稳定性的关键问题。电阻抗成像技术具有无害、非侵入、低成本的特点，因此在医学领域相对于其它医学影像学方法具有很大的潜在价值。","东北师范大学"]
[null,{"$f":"ROW()-2","v":562},"生物医药及先进医疗器械","生物医药","多功能康复训练系统","针对传统的机械式的枯燥康复训练方式，研发团队自主研发设计了集肌力康复训练、握力康复训练和捏力康复训练为一体的多功能康复训练系统。对比国产已有的康复训练设备，本系统功能丰富，拥有非侵入性、便携性、趣味性以及高性价比等优势，可满足临床需求。本系统可以根据患者自身的康复状况，提供主动式的训练模式，对肢体功能的恢复具有重要意义。在硬件设计上使用力学传感器和生物传感器以感应外部阻力和患者自身的生物反馈，从而达到对肢体运动功能精准训练的目的。在软件设计上融合有趣的康复训练场景，激发患者主观能动性，协调多感官，提高康复效果，为康复训练提供一种新的方式。\n随着康复需求的不断增加和人们对健康的日益重视，该系统以其多样化的功能、个性化的训练、富有趣味的场景设计以及高性价比等特点，将吸引大量用户。它适用于多种疾病康复，包括骨折、脑卒中、帕金森病等，能够满足不断演进的市场需求。","东北师范大学"]
[null,563,"生物医药及先进医疗器械","生物医药","数字化言语语言矫治与康复系统","语言障碍既会影响儿童，也会影响老年人，目前国内外言语语言矫治康复以人工治疗为主，智能产品开发严重不足，已有产品设计单一，科学性较低，产品内容单调，专业性不强，缺乏科学标准和实效性。\n研发团队以数字疗法为导向，以语言学理论为基础，运用AI等技术，将应用语言学知识和医疗成果结合，开发出语言言语智能矫治康复系统，构建了语言学背景下的矫治康复内容。该系统融合了语言学、医学和人工智能，融合了评估-矫治于一体、视-听-躯动多方刺激，康复过程更安全有效，技术上更具领先性，康复矫治更趋于数字化、系统化、规范化、个性化。本成果最大的创新点即将数字疗法这一智能化医学理念融入系统开发，融合运用语言学理论和AI技术，针对不同患者打造一套智能康复矫治系统。","东北师范大学"]
[null,564,"人工智能机智能机器人","先进制造","一种智能家居清洁机器人","目前清洁机器人已进入千家成户，但具有生成地图能力的机器人价格高昂，不具备地图生成能力清洁效率低下。\n研究团队自主开发了一款清洁机器人产品，设计并搭建机器人硬件，包括CPU、电机、传感器的选型，设计电路板，组装样机。通过多传感器数据融合机器人能自主生成环境地图；采用高效的全覆盖路径规划进行有规划清扫，清洁率高于95%；在清扫过程中，采用多阈值方法进行人性化避障，更好地保护清扫环境中的人或其它动态障碍物，实现安全清扫；用户可以通过手机查看机器人生成的环境地图，并可以对地图进行修改，实现了地图可视化操作。此款机器人克服了目前市场上的清洁机器人清洁效率低、清洁时间长、耗高能的缺点，具有较高的技术含量和科技附加值。","东北师范大学"]
[null,565,"人工智能机智能机器人","先进制造","一种捡球机器人及方法","针对网球、羽毛球、乒乓球运动等需要不断捡球的体育运动，研发团队设计并实现了一款具有自主知识产权的拾球机器人，包括硬件和软件。具体如下：\n1.在机器人前方和左右两侧配置超声波和红外传感器，通过多传感器融合算法，机器人可以自主建立环境的栅格地图。\n2.在手机APP端可以查看和修改地图。对于那些不便于进入拾球的区域，可以将期设置为障碍栅格。\n３.机器人按照地图规划拾球路径，按内螺旋算法遍历场地内所有非障碍区域，拾起环境中散落的乒乓球。当机器人的装球筐快满时，机器人规划一条从当前位置到存球区的一条路径，将乒乓球送回并倒入存球处。\n４.由于机器人的拾球动作需要多个舵机支撑其机械部件运动，为了减少对舵机的损耗以及电池的消耗，机器人通过传感器检测，如果当前的栅格内没有乒乓球时，将不执行拾起动作。","东北师范大学"]
[null,566,"人工智能机智能机器人","先进制造","一种陪伴机器人及情绪识别方法","目前的家庭助老机器人主要以功能性为主，帮助老年人完成一定的家务、定时提醒等，而情感陪伴机器人可以通过高科技手段解决老年人进入空巢后出现的孤独、失落、空虚、抑郁、焦虑等不同程度的情绪。\n研发团队研发了一种陪伴机器人及情绪识别方法，成果具有以下优势：\n通过陪老人聊天满足老年人的怀旧感需求。机器人在聊天的过程中不断地提取老年人的社会关系信息，包括与子女、亲属、同学、朋友的关系网以及与这些人之间的情感状态、发生过的故事等，以便老人下次再提到某个人或某件事时，机器人能以知识库做支撑进行陪聊。\n通过对老年人的语音、表情和动作的多模态情感识别，监控老年人日常的显示情感状态。当发现老人不开心时，机器人要主动进行攀谈，以缓解老年人的情绪并向积极的方向引导。\n通过微表情的检测和识别，掌握老年人的隐式情感需求。当老年人负面的情绪达到一定的阈值时，机器人要及时向子女或亲属汇报，尽量避免老人出现孤独或抑郁等情况。","东北师范大学"]
[null,567,"其他","信息技术","时空数据渐进式多维模式提取与异常检测可视分析方法","在当今信息时代，大量的时空数据源源不断地生成，涵盖了金融、交通、气象、医疗等多个领域，这些数据中蕴含着宝贵的信息，但也带来了巨大的挑战，如数据的多维度、时序性、异常检测等问题。\n时空数据渐进式多维模式提取与异常检测可视分析方法，将多维时空数据建模成连续的张量时间序列，并以最新时间段的张量作为当前张量，临近多个时间段的数据张量加权平均得到历史张量。使用张量分解方法分别对历史张量和当前张量进行多维模式提取，得到两组rank one分量用来描述历史数据和当前数据中的潜在模式。基于两组模式的差异计算当前时间段的区域和时间异常分数，并结合可视化技术直观地展示模式的差异，为异常模式的解释提供支撑。该成果对于在诸如社交网络、智慧医疗、智能交通、智慧城市社会管理等方面，发现其隐藏的常规模式和时空异常具有特殊意义。","东北师范大学"]
[null,568,"其他","信息技术","基于深度学习模型的时变体数据时间超分辨率可视化方法","深度学习技术目前已被广泛应用，大量研究都尝试使用深度学习的方法提取时变体数据特征，学习数据变化的非线性关系，并生成与原始数据更贴近的新数据。未来的发展趋势将聚焦于探索一种有效的方法，以更好地支持只存储某些关键时间步的体数据，达到减轻数据存储负担的目的。\n研发团队以时变多变量体数据为研究对象，针对时变数据缺失、存储空间有限等问题，利用多尺度的变分自编码器，提取各变量体数据的特征向量，并提出两种编码特征之间时序关系的方法，通过已知时间步体数据依照时序关系生成时间间隔中未知的体数据，解决时变多变量体数据序列的时间超分辨率问题。","东北师范大学"]
[null,569,"其他","信息技术","基于轨迹分布表示的城市区域关系可视分析方法","在当今数字化社会，轨迹数据的产生与积累已经变得越来越普遍，这些数据记录了个体在城市空间中的移动轨迹。随着移动设备的广泛使用和位置感知技术的不断进步，轨迹数据的规模和复杂性不断增加。\n基于轨迹分布表示的城市区域关系可视分析方法，通过对轨迹数据进行空间泛化和聚合，将城市地理空间划分成适当的区域，将轨迹转换为区域之间的聚合流。轨迹区域序列化的表示作为基于词嵌入技术的区域向量化模型的输入，最终应用于交互式可视分析。此外，通过利用词嵌入技术，用向量化表示对城市区域进行编码，结合城市位置和移动对象之间的相互作用，把区域视为文本处理中的单词，轨迹视为句子，建立区域向量空间，帮助分析人员直观高效地感知人群移动模式的时变规律。最后，设计并实现了一个支持一系列探索和分析任务的可视分析系统，帮助城市管理者理解城市中人群移动模式，为交通规划、道路管制等提供指导性意见和可视决策支持。","东北师范大学"]
[null,570,"其他","信息技术","一种基于网约车轨迹的路径选择潜在因素可视分析方法","在现代城市交通领域，网约车服务已经成为一种日益普及和重要的交通方式，然而，在复杂多变的城市道路网络中，如何选择最佳的行驶路径一直是网约车驾驶员面临的关键问题。\n研发团队对网约车轨迹数据进行清洗，从密集采样的轨迹数据中清除异常的轨迹记录，然后使用基于隐马尔科夫模型的路网匹配算法将轨迹点匹配到路网数据中。同时，为辅助用户探索网约车轨迹数据的时序变化，结合聚类算法从时空联合的角度详细探索该区域内的交通流量演变情况并划分时间片。另外，提出基于道路序列分割的关键路径提取方法，充分考虑到轨迹中道路序列过长且长度不一致的情况，使用k-gram方法从原始序列中提取子序列作为比较相似性的特征，借助VMSP算法挖掘序列中的最大频繁子序列，提取关键的出行路径，统计每条路径中所有潜在影响因素的量化值，并采用Ranking SVM模型推导出不同因素对路径选择的各自影响权重。此外，设计并实现一个多视图联动的可视分析系统，提供轨迹数据相似性计算、关键路径提取和潜在影响因素分析的功能，辅以丰富的交互式分析手段能够有效感知轨迹数据中有价值的出行特征和规律。","东北师范大学"]
[null,571,"其他","信息技术","基于时序粒子跟踪的污染传播模式可视分析方法及系统","随着空气污染的日益严重，如何对空气质量数据进行有效的处理和分析已经成为一个广泛关注的热点问题。不同地区的空气污染可能会相互影响，这种影响通常是复杂的，而且具有特定的时空特征。\n研发团队综合考虑气象因素，采用Runge-Kutta法跟踪空气污染物粒子的运动轨迹，构建空气污染传播模型。以始发站的污染物空气质量分指数作为粒子的初始生命值，其生命值随粒子运动而衰减。对于每个目标站点，基于强影响站点群的输送信息和目标站点的6种空气污染物IAQI，构建时序特征向量。采用SF-kmediods聚类算法提取空气污染传播模式。最后设计并实现一个可视分析系统包括地图、热力图、雷达图等视图，从多个视角探索空气污染传播模式，辅助分析者制定更加可靠的空气联合治理方案。","东北师范大学"]
[null,{"$f":"ROW()-2","v":572},"其他","信息技术","一种基于时序多变量数据的模式提取与演化可视分析方法","伴随着大数据时代的到来，各行各业都产生了大量的时序多变量数据，如金融领域的股票交易数据、医疗领域的患者监测数据、能源领域的电力消耗数据等。这些数据蕴含着宝贵的信息，但也因其高维度和复杂性而具有挑战性。\n研发团队引入多种异常检测和聚类方法，考虑数据的整体演化规律，挖掘数据中稳定不变的常规模式以及多种异常现象，包括稳定式孤立的异常、稳定式协同的异常、跳跃式孤立的异常和跳跃式协同的异常。同时，基于正交普氏分析方法，对齐不同时间片的数据降维空间，保持数据中模式与异常的时间一致性。设计一维与二维相结合的可视化隐喻方案，直观展示数据分布和特征贡献。帮助用户感知常规模式和异常事件的演化规律。此外，提出可视分析系统，设计可视化隐喻表达和多图联动机制，支持从整体概览、到潜在模式感知、最后到细节探索的多层级可视推理流程，帮助分析人员快速概览数据中的模式和异常，以及从关键特征的角度进行异常原因的深入探索。","东北师范大学"]
[null,573,"其他","信息技术","一种利用各项异性系数估算叶绿素含量的方法","叶绿素是植物叶片的主要色素之一，可以反映植物生理状况、光合能力、逆境和衰老的重要指标，其含量的变化可以用来表征植物的生理状况。因此，从生理学和植物学的角度估计植物叶绿素含量具有重要研究意义。\n研发团队提供了一种利用各向异性系数估算叶绿素含量的方法。实施过程主要是在镜面反射方向附近，通过测量不同探测天顶角植物叶片的反射信息，建立叶片反射光中的各向异性系数的光谱指数与植被叶绿素含量之间的关系，实现利用各向异性系数光谱指数估算不同种类植物叶片叶绿素含量。\n本方法能利用各向异性系数估算叶绿素，可以发挥多角度观测的优势，为农林科学遥感研究提供依据。","东北师范大学"]
[null,574,"其他","信息技术","光谱烧孔型海量冷数据全息存储器","冷数据是指活动不频繁、不会被经常访问甚至永远不会被访问、但仍然需要长期保留的数据，冷数据占整个数据集合的80%以上，如微信和QQ上存储的大量图片信息、医院的医学影像文件、银行的档案信息等。目前，大数据、人工智能等新兴业务对海量冷数据进行检索和挖掘的需求日益迫切。\n研发团队提出并设计了一种基于贵金属/氧化物纳米复合膜的光谱烧孔型等离激元全息存储器，破解了大数据时代下的海量冷数据安全存储难题。具有如下优点：\n1.高密度、抗干扰、低能耗等优点，存储密度达到50 GB/cm2,单片光盘（外径80 mm）存储容量5 TB，是普通DVD光盘的1000倍，最高容量可达PB量级；\n2.存储信息不易丢失，能够有效抵御强电磁场干扰；基于光学寻址读取信息的存储技术，运行能耗低，比目前电磁存储能耗减少80%；\n3.制备方法可靠且适用于商业化规模量产，制备成本低，对环境无污染。","东北师范大学"]
[null,575,"汽车电子及新型汽车零部件","先进制造","离散制造异构产线智能化改造关键技术研究及应用","针对汽车零部件企业生产线智能化升级关键技术开展研究，取得原创性技术创新，在异构设备联网集成、跨域协同制造等方面取得系列技术成果，共获得知识产权5项","长春工程学院"]
[null,576,"精密仪器及先进装备","先进制造","基于深度学习的串联型故障电弧试验平台及其试验方法","本发明涉及基于深度学习的串联型故障电弧试验平台及其试验方法，属于电气消防应用领域。该试验平台包括：串联型故障电弧发生器、电网模拟器、RLC可编程负载、可编程序控制器、数据采集处理器和深度学习计算机，串联型故障电弧发生器通过电缆串联于电网模拟器和RLC可编程负载之间，构成试验电源与负载调节回路，电网模拟器、RLC可编程负载、可编程序控制器、数据采集处理器分别与深度学习计算机连接，数据采集处理器与串联型故障电弧发生器内部的弧压传感器、电流互感器、弧光传感器连接，可编程序控制器串联型故障电弧发生器内部的步进电机和旋转编码器连接。本发明以提高串联型故障电弧探测和识别的准确性，弥补此类产品的市场空白。","长春工程学院"]
[null,577,"遥感卫星及航天航空技术","先进制造","一种利用遥感和地理信息系统技术的监测装置","本发明公开了一种利用遥感和地理信息系统技术的监测装置，其结构包括检测器、螺旋桨、信号收发器，螺旋桨与检测器的上端相连接，检测器的上表面与信号收发器的底部相贴合，通过检测器降落在地面时产生的惯性力，能够使摄像头上的清除机构与吸力块分离沿着框架向下滑动，再通过吸力块能够将滑动到极致的清除机构重新吸起复位，从而使扫除块能够将镜片表面的沙尘扫落，有效的避免了检测器在沙地上空进行工作时，摄像头上的镜片表面容易附着沙尘的情况，通过助推杆对接触块产生的推力，能够使接触块与镜片的外表面相贴合，从而使板块能够对镜片上的水分进行吸收，并且能够对沙尘进行擦除。","长春工程学院"]
[null,578,"遥感卫星及航天航空技术","先进制造","一种基于地理信息系统的遥感影像处理装置","本发明提供一种基于地理信息系统的遥感影像处理装置，其结构包括，控制盒、电源端、处理端、传输块、拍摄器，控制盒与电源端为一体，处理端与电源端进行通电连接，本发明由拍摄器所装有的固定轴能提升镜头块的固定效果从而镜头块所装有的扩张块与伸缩体能在设备进行工作或者静止时进行相应的伸缩活动以至于扩张块在设备工作时能将自身的处理块在活动槽内进行扩张从而达到根据内部擦拭块的海绵垫进行对镜头的擦拭效果达到干燥与光洁的效果并且通过活动轮能够平衡自身的稳定性以至于能防止水分子的侵蚀产生的模糊现象降低影像的利用价值同时提升在静止时的密闭效果防止镜头与外界持续接触中产生的故障等现象。","长春工程学院"]
[null,579,"光电子及智能传感器","光电信息","一种非球面面形光学元件定位夹持机构","本实用新型涉及非球面面形光学元件技术领域，具体为一种非球面面形光学元件定位夹持机构，包括固定组件，还包括：连接组件，所述连接组件设置于固定组件上方，旋转连接组件能够与固定组件连接；夹持组件，所述夹持组件设置于连接组件上方，且夹持组件能够从非球面面形光学元件两侧将其固定。本实用新型为了便于更换非球面面形光学元件，通过将两个橡胶卡块掰弯，能够直接从夹持组件内将非球面面形光学元件取出，且吸盘和橡胶卡块能够避免污染损伤非球面面形光学元件表面的涂层，通过旋转连接组件能够与固定组件分离，将连接组件和夹持组件固定于其他零件上。","长春工程学院"]
[null,580,"汽车电子及新型汽车零部件","先进制造","一种用于汽车零件检测的气泡自动检测装置","本实用新型公开了一种用于汽车零件检测的气泡自动检测装置，包括底板、检测机构与传输机构，所述底板顶面中间固定安装有检测机构，所述底板顶面固定安装有传输机构，所述检测机构包括固定安装在底板顶面中间的定位框架，所述定位框架内壁顶端固定安装有电动伸缩杆，所述电动伸缩杆底端固定安装有防护框。本实用新型，通过电动伸缩杆，带动防护框向下运动，将传输带上的汽车零件进行覆盖，覆盖的同时，传输带继续运动，与超声波传感器进行配合，使用超声波对汽车零件的表面进行扫描，根据超声波脉冲计数来判断是否存在气泡，由防护框来对隔绝外界的影响，提高检测的准确性，从而能够在隔绝外界的影响，保证检测的准确性。","长春工程学院"]
[null,581,"汽车电子及新型汽车零部件","先进制造","一种方程式赛车汽车进气歧管","本实用新型提供了一种方程式赛车汽车进气歧管，所属进气歧管技术领域，包括：分配通道、四个分支管道、四个连接管、第一连接部和防护组件；分配通道设有一个进气总口和四个进气支口；分支管道的外壁设有防护套，分支管道一端的内壁设有内螺纹，分支管道的另一端通过固定件固定在分配通道上，且四个分支管道分别与四个进气支口相连通；连接管一端的外壁设有外螺纹，四个连接管分别与四个分支管道相连通，且外螺纹与内螺纹相配合；该装置通过防护部件吸收分支管道的震动且避免相互碰撞而造成的安全隐患，并将进气歧管设置为可拆卸安装结构，以便于对各个零部件进行检修保养。","长春工程学院"]
[null,{"$f":"ROW()-2","v":582},"汽车电子及新型汽车零部件","先进制造","一种方程式赛车可调悬架系统","本实用新型公开了一种方程式赛车可调悬架系统，包括：上侧梁、下侧梁、上A形横臂、下A形横臂、立柱、推杆、主悬挂减震机构以及备用减震机构；一对所述下侧梁位于一对上侧梁下方。上A形横臂以及下A形横臂组成双横臂悬架系统具有很好的操纵稳定性和舒适性，主悬挂减震机构能够调节悬架软硬，并能够及时更换备用减震机构。通过上A形横臂以及下A形横臂与立柱进行连接，由上A形横臂以及下A形横臂组合成的双横臂悬架系统具有很好的操纵稳定性和舒适性，如果悬架系统中的一套减震器出现故障时，可迅速更换另一套减震器系统，高效且节省时间。","长春工程学院"]
[null,583,"其他","新材料","寒区预制建筑工业化关键技术的研究与应用","（1）预制装配式型钢混凝土剪力墙结构技术的创新研究：提出了新型装配式型钢混凝土剪力墙结构，包括内置型钢的预制剪力墙和预制拱形连梁。提升了剪力墙结构的抗震性能，减少了预制节点连接的现浇量，提高了施工效率。\n（2）适应寒冷地区的预制装配式保温墙板的创新研究：提出了一种施工装配快速、造价较低、保温性能较好的新型装配式模塑钢骨架墙板。提出的PVC生态木覆面轻钢龙骨组合保温墙板和预制保温墙板与主体结构连接技术，保温效果好，连接方式可靠。\n（3）适用寒区的新型烧结注孔保温砌块填充墙研发：根据北方寒冷地区对新型墙体材料的应用需求，提出一种注孔保温砌块墙体，具有良好的保温及防火功能","长春工程学院"]
[null,584,"其他","信息技术","基于语义感知的电力作业智能协同增强现实系统及方法","本发明公开了基于语义感知的电力作业智能协同增强现实系统及方法，包括获取世界坐标系下增强现实设备AR1和AR2在各自运动空间的运动位姿；获取目标像素点，采用deeplabv3+语义分割法，对场景中的目标进行像素点提取，得到分割后的点云；对点云处理之后，利用质心计算公式得到点云的质心坐标C，质心坐标C即为目标点，根据目标点分别得到增强现实设备AR1和AR2的位姿变换；根据增强现实设备AR1和AR2的位姿变换，以及不同时刻下目标点C相对于世界坐标系中x和y轴的旋转角度，得到之间的协同位姿估计；在协同位姿估计之后对累积误差进行消除，消除时对每一个协同位姿进行回环检测，根据回环检测的约束，得到轨迹图。","长春工程学院"]
[null,585,"生物医药及先进医疗器械","信息技术","基于改进EMD-ICA的EEG信号处理方法、设备及存储介质","本发明公开了一种基于改进EMD‑ICA的EEG信号处理方法、设备及存储介质，涉及信号处理技术领域，该方法利用改进经验模式分解法EMD对脑电信号EEG进行分解，得到本征模态分量IMFS和余量；对得到的所有符合要求的本征模态分量IMFS进行叠加重构，对重构后的脑电信号通过ICA法进行信号分离，消除噪声，得到去噪后的脑电信号；利用连续小波变换将去噪后的脑电信号变成二维时频图，并将生成的二维时频图输入卷积神经网络模型；采用卷积神经网络模型对步骤S3中的二维时频图进行特征提取，并进行分类。该方法基于改进的EMD‑ICA对脑电信号进行去噪，采用去噪后的信号再进行特征提取和分类，使得运动想象脑电信号分类准确","长春工程学院"]
[null,586,"其他","信息技术"," 输电线路状态数据无线传输装置","本实用新型涉及输电线路技术领域，且公开了输电线路状态数据无线传输装置，解决了目前市场上输电线路状态数据无线传输在雨雪天气时容易对该无线模块造成影响，同时湿气容易对无线传输电路造成损耗的问题，其包括防护箱，防护箱的顶部开设有传输天线孔，防护箱的一侧开设有电线孔，防护箱的一侧传动连接有外壳盖；通过挡板防止雨水等进入防护箱内对传输天线造成损耗，且通过密封胶圈避免雨水等沿着缝隙进入防护箱内，延长了该传输天线对输电线路检测的使用寿命，利用物料屉内的除湿剂持续进行除湿，且通过电机驱动扇叶对防护箱内进行排风，将通风箱内堆积的潮气或热量等气体排出防护箱外，提高了该无线传输装置的实用性。","长春工程学院"]
[null,587,"其他","建筑工程","一种铁尾矿砂复合矿物掺合料混合装置","本实用新型公开了一种铁尾矿砂复合矿物掺合料混合装置，涉及尾矿砂处理技术领域，包括：支腿和混合筒，所述混合筒固定安置在多个所述支腿的顶端，其中所述混合筒整体呈倒圆台形状，所述混合筒的顶端设置有两个开口和与开口位置对应的可开合顶盖；混合机构，所述混合机构安置在所述混合筒的内腔中，所述混合机构的顶端为驱动端；驱动机构，所述驱动机构安置在所述混合筒的外壁上，并与所述混合机构的驱动端相连接；混料释放机构，所述混料释放机构固定设置在所述混合筒的内腔顶端，并与所述混合机构相连接。该铁尾矿砂复合矿物掺合料混合装置，本装置能够在较短的时间内实现较为均匀的混合效果，其混合性能得到提升。","长春工程学院"]
[null,588,"其他","先进制造","水轮发电机定子绕组铁磁谐振过电压监测装置","本实用新型公开了水轮发电机定子绕组铁磁谐振过电压监测装置，包括传感器、散热箱和设于传感器内对水轮发电机定子绕组进行检测的监测单元，所述散热箱通过固定机构安装于传感器的一侧，所述散热箱内设有对传感器散热的冷却单元。本实用新型使得产生铁磁谐振过电压可以第一时间通知工作人员，降低损失，能够实时监测水轮发电机定子绕组铁磁谐振过电压，并且能时刻向后台传输监测到的电压数据，病情该装置不干涉设备的正常用电且不用人工监控，自主性高的设置，同时配合着冷却单元的设置，方便了对传感器内部的散热工作，增加散热箱的使用寿命，又通过固定机构的设置，方便了对散热箱的拆装工作。","长春工程学院"]
[null,589,"生物医药及先进医疗器械","生物医药"," 移动式急救应急监护装置","本实用新型公开了移动式急救应急监护装置，包括转运架与设置在转运架上的担架；所述担架包括底板与固定在底板前后两端的手持架，所述手持架安装有肩带，所述底板底部安装有多个滚轮，所述转运架包括固定板与固定在固定板底部的滑轮架，所述固定板上端安装有卡块，所述底板底部设有卡槽，所述卡槽与卡块活动连接且契合，本实用新型通过肩带可以在通过担架转运伤员时，将肩带挂在肩膀上，避免意外脱手导致伤员摔伤，通过设置在底板下的滚轮可以方便的将担架移入救护车内，且通过卡块与卡槽可以使担架稳定的固定在转运架上，提高了伤员转运的效率。","长春工程学院"]
[null,590,"精密仪器及先进装备","现代农业","智慧灌区节水减排关键技术研发与应用","该项目以农业灌溉“按需供水”为目标，融合计算机技术、控制技术、信息技术、量水技术、数据挖掘技术、仿生技术开发了智慧灌溉系统，有效提高灌溉水利用效率，并减少含化肥农药污水的排放量，既达到节水的目的，又可减轻土壤、水污染，服务国家节水行动方案，助力经济社会持续健康发展。项目关键技术已被纳入吉林省生态环境保护实用技术目录，水利部松辽水利委员会推荐申报水利部“水利先进实用技术重点推广指导目录”，现已在国内多个灌区开展了推广应用，对智慧灌区建设、科学开展灌区节水增效、农业生态环境改善均起到了重要的作用。","长春工程学院"]
[null,591,"其他","信息技术","基于异构数据融合输变电设备多状态感知和辅助预警关键技术应用","现代电网系统是电力工程与先进信息技术有机结合复杂系统，隐患排查变得更困难。基于异构数据融合的输变电设备多状态感知技术实现电网运行状态监测，提前发现故障隐患，及时排除和处理故障。","长春工程学院"]
[null,{"$f":"ROW()-2","v":592},"精密仪器及先进装备","现代农业","智慧农业环境管控关键技术及应用","该项目将农业大数据采集传输与云存储技术、智能作物生长管控技术和精准环境控制技术等技术集成，发展技术集成模式研究与示范项目聚焦“一控（水）二减（化肥、农药）”，在保证农作物产量、品质的同时，最大限度地节约水资源，合理使用药、肥，为提高北方温室精准调控高质种植技术提供示范。通过生产环境的精准管控，降低了季节变化对农业生产的影响，提高农产品的品质和产量。","长春工程学院"]
[null,593,"其他","信息技术","高压输电线路导线状态监测及风险预警研究与应用","（1）研发基于MEMS高精度传感器的输电线路导线状态检测终端，实现输电线路运行状态参数实时采集及异常报警，形成适用于高压输电线路巡检的新产品。（2）研究基于多层异构无线网络的输电线路监测数据可靠传输技术，建立自主路径选择算法，实现复杂环境下无信号区域监测数据的低时延、高速率、高可靠传输。\n（3）研究基于轻量级边缘计算的导线状态数据实时处理与分析技术，构建多参量融合算法，实现导线异常状态实时监测。\n（4）研究基于朴素贝叶斯算法的输电线路导线状态预测及风险预警技术，构建基于时序分析的导线状态预测模型，实现输电线路导线异常状态预测、风险预警和运检建议推送等。","长春工程学院"]
[null,594,"其他","信息技术","复杂工程地质条件下地铁工程施工关键技术及风险评估研究","（1）建立了基于灰色理论和BP神经网络的深基坑沉降预测模型，构建了深基坑开挖安全可拓评价模型，研发了一种深基坑降水井设计方法和封井装置，设计了新型基坑监测标志，研制了一种绿色环保的旋挖钻成孔无固相冲洗液，提出了在考虑支护结构刚度、变形对土压力分布影响条件下的深基坑支护设计方法及通过建立单元体微分方程组求解结构内力的计算方法。\n（2）提出了富水砂卵石地层中盾构掘进参数的建议值，提出了45%大开口率复合刀盘+带式螺旋输送机的盾构施工技术，研发了不同渣土级配条件下的改良配方，研制了同步注浆初凝装置等","长春工程学院"]
[null,595,"精密仪器及先进装备","环保与资源","推流式竖向双循环工艺处理城市污水的装置及方法","本发明推流式竖向双循环工艺处理城市污水的装置及方法，包括依次连接设置的城市生活污水水箱、推流式竖向双循环曝气池、竖流式沉淀池，所述推流式竖向双循环曝气池出水口通过管道与竖流式沉淀池顶部中心进水口相连接，所述竖流式沉淀池上方一侧设置有溢流堰，所述竖流式沉淀池底部设置有排泥管，所述城市生活污水水箱与推流式竖向双循环曝气池的底部进水口相连接，城市生活污水水箱与推流式竖向双循环曝气池的底部进水口之间设置有进水泵所述推流式竖向双循环曝气池底部进水口设置有进水管。本发明加大了氧的利用率，有机物去除率提高5％‑10％，氨氮去除率提高10％‑20％，总氮去除率提高20％‑30％。","长春工程学院"]
[null,596,"其他","建筑工程","太阳能季节性相变蓄能室温自动调控系统","本发明公开了一种太阳能季节性相变蓄能室温自动调控系统，包括有相变材料、太阳能集热器、风道、水管和控制器，其中相变材料均布在建筑物围护结构对应建筑物的室内一侧的容器内，风道和水管交替设置在相变材料内，风道的出风口设在建筑物的室内，太阳能集热器设在建筑物的室外，相变材料内所布设水管的一端与太阳能集热器相连通，太阳能集热器还连接有蓄热水箱，相变材料内所布设水管的另一端与蓄热水箱相连通，蓄热水箱的内腔与建筑物的室内之间设有换热装置用于热量的传递，换热装置与控制器连接并由控制器控制工作。有益效果：太阳能及房间夏季余热均通过本系统存储在相变材料当中，实现了室温调控的零碳排放或近零碳排放。","长春工程学院"]
[null,597,"精密仪器及先进装备","环保与资源","推流式竖向三循环工艺处理城市污水的装置及方法","本发明推流式竖向三循环工艺处理城市污水的装置及方法，包括依次连接的城市生活污水水箱、推流式竖向三循环曝气池和竖流式沉淀池，城市生活污水水箱出水口通过管道与推流式竖向三循环曝气池一侧底部的进水口连通，推流式竖向三循环曝气池另一侧顶部的出水口通过管道与竖流式沉淀池连通，竖流式沉淀池底部通过污泥回流泵与推流式竖向三循环曝气池进水口处连通。本发明减小了曝气区体积增加了缺氧区体积，在保证好氧区处理效率的前提下，提高了缺氧区处理能力，强化了反应器反硝化、同步硝化反硝化的能力，对于大水量低碳氮比污水更加适合。","长春工程学院"]
[null,598,"其他","环保与资源","微氧化法废机油再生装置及再生工艺","微氧化法废机油再生装置及再生工艺，属于化学法再生废机油技术领域，包括沉降槽、过滤槽、蒸馏塔、多级阻流槽、冷却液泵、截留油罐、尾气塔以及真空泵，所述沉降槽通过管路与过滤槽下部入口端连接，管路上设置有油泵Ⅰ；本发明将废机油中部分杂油快速不完全氧化后形成絮凝核，通过絮凝核对油液中杂质的吸附凝聚沉积处理。再对油进行化学精制，以达到再生废机油的目的，本工艺能耗低，原材料易得，不引入新污染物，废料可回收利用，具有操作简单回收率高的特点，具有较高的市场空间，具有较高的使用价值与经济价值。","长春工程学院"]
[null,599,"其他","环保与资源","用于潮流能机组叶轮强度检测的装置及其使用方法","本发明提供用于潮流能机组叶轮强度检测的装置及其使用方法，涉及水力发电机组中叶轮强度检测技术领域，包括潮流模拟装置、叶轮部署装置和叶轮本体，所述叶轮本体磁力连接在叶轮部署装置的底部，所述叶轮部署装置活动安装在潮流模拟装置的两侧，所述潮流模拟装置包括水箱主体，所述水箱主体的两侧均活动安装有激光接收面板。本发明利用潮流模拟装置来模拟出一个类似涨潮和落潮的环境，以便于更加贴近真实的潮流状况，并用这种状态的水流对叶轮本体进行冲击，可以获得更多的测试数据，从而提升叶轮强度检测结果的准确性，同时所此潮流模拟装置可以提前记录水流的速度，以便于将水流的速度与叶轮的形变量进行对应。","长春工程学院"]
[null,600,"其他","建筑工程","带螺旋箍筋芯柱的混合配筋预制混凝土柱及其装配方法","本发明公开了带螺旋箍筋芯柱的混合配筋预制混凝土柱及其装配方法，属于地下或水下结构物领域，该方案通过上预制混凝土柱与下预制混凝土柱上下叠合，竖向斜撑钢筋连接柱体达到支撑上预制混凝土柱柱身的目的，再间隔布置附加箍筋与纵筋连接，起到约束作用，最后在连接区浇筑超高性能混凝土完成预制混凝土柱的拼接。通过超高性能混凝土浇筑连接区，能有效传递剪力和轴力，提高柱的承载能力和保证柱的变形能力。此外，本发明预制混凝土柱及连接构件均可在工厂预制加工完成，现场拼装；在保证连接强度和质量的基础上，采用超高性能混凝土可以缩短筋材搭接连接区段长度，减少筋材用量，节约成本，提高装配效率。","长春工程学院"]
[null,601,"其他","环保与资源","一种多联离子交换实验装置","本发明公开了一种多联离子交换实验装置，属于离子交换技术领域，包括储液瓶、过滤器、中空旋塞、吸附包、多孔挡板、引流槽、层析柱、离子交换树脂、砂板、第一缓冲球、三通阀、一级出水口、下级连接口、第二缓冲球、进气阀、泵连接口、蠕动泵及软化水出口，本发明采用多级层析柱串联的结构，通过在层析柱中设置气体洗脱专用的砂板，通过蠕动泵反向泵气产生气泡，对填料进行洗脱再生，不仅使吸附‑洗脱过程在一套装置中完成，同时较传统的浸泡洗脱方式，洗脱时间缩短至2h～4h，大大减小了实验教师的工作量。","长春工程学院"]
[null,{"$f":"ROW()-2","v":602},"其他","建筑工程","一种矿山安全风险预警预测系统","本发明提供了一种矿山安全风险预警预测系统，属于安全预警技术领域，包括：图像建模模块，用于对矿山山体进行图像建模得到初步山体结构模型；范围确定模块，用于确定出区域修正范围；激光建模模块，用于对区域修正范围进行建模，获得区域修正范围模型；方位确定模块，确定出区域修正范围模型在初步山体结构模型中的融合方位；区域确定模块，用于基于完整山体结构模型确定出矿山的形变区域；危险预测模块，用于基于当前曲率和形变区域在预设山体结构模型中对应的初始曲率预测出矿山危险区域；危险预警模块，用于基于矿山危险区域位置发送预警信号；本发明用来在脱离与地面接触的硬件的前提下，实现对可能出现地表凹陷危险的区域的更精准预警。","长春工程学院"]
[null,603,"其他","建筑工程","一种矿山开采用碎石分选机","本发明涉及碎石分选技术领域，公开了一种矿山开采用碎石分选机，包括底板、矿石输送机构和分选机构；分选机构，包括设置于底板中部的导向柱，导向柱远离底板的一端固定连接有与底板平行的固定板，固定板靠近底板中心的位置设有开口向上的分选槽，分选槽的底部为圆弧面并且设有筛孔；矿石输送机构，包括设置于底板上且与底板平行的横向传送组件，还包括在分选槽和横向传送组件之间倾斜设置的导料板。本发明适用于一种矿山开采用碎石分选机，通过在分选槽中设置左右摆动的推板带动石料滚动，从而使得大块石料表面附着的小石块脱落，并且通过卸料板控制卸料口的开启和关闭，使得石料被分成两个尺寸分别通过导料板和传送带排出。","长春工程学院"]
[null,604,"其他","建筑工程","一种高速绕线成卷装置","本发明公开了一种高速绕线成卷装置，包括放线机构、排线支撑机构、升降式排线臂、排线监控机构、走行机构和绕线机构；将线缆从放线组件上，穿过排线支撑结构固定在绕线机构上，绕线机构转动连接在走行机构上，走行机构通过第一驱动组件提供的动力能够做往复直线运动，且通过走行机构与升降气缸、升降大臂、升降小臂和导向轮组的配合设置，能够保证线缆在绕线机构上的紧密绕线和多层绕线，同时通过排线监控机构能够对线缆绕线过程中的倾斜角度进行检测，便于工作人员及时修正线缆的角度，提升线缆绕线质量；本发明结构简单，具备防止线缆发生叠线、塌边而造成的线缆挤压、摩擦，提升线缆品质及使用寿命的性能。","长春工程学院"]
[null,605,"其他","建筑工程","一种智能化矿山管理方法及系统","本发明提供了一种智能化矿山管理方法及系统，其方法包括：生成待管理矿山的全尺度表面区域；基于预设全覆盖占地网格对待管理矿山的全尺度表面区域进行网格划分获得多个局部尺度网格区域；基于每个局部尺度网格区域中的凹面区域和凸面区域以及局部尺度网格区域的占地面积，计算出局部尺度网格区域的局部凹度和局部凸度；基于同一占地网格在相邻采集周期中对应的两个局部尺度网格区域的局部凹度和局部凸度，计算出占地网格在对应相邻采集周期的形态变化度；基于所有占地网格的形态变化度，确定出待管理矿山的当前危险区，并矿山维护管理；用以对矿山表面的形态变化情况的分析和进行针对性维护管理，实现对矿山的智能化维护管理。","长春工程学院"]
[null,606,"精密仪器及先进装备","环保与资源","竖向内外三循环连续流工艺处理城市污水的装置及方法","本发明竖向内外三循环连续流工艺处理城市污水的装置及方法，包括依次设置的城市污水水箱、竖向内外三循环曝气池和竖流式沉淀池，所述城市污水水箱顶部出水口与竖向内外三循环曝气池顶部一侧进水口通过水管连通，所述水管上设置有进水泵且插入至竖向内外三循环曝气池底部，所述竖向内外三循环曝气池另一侧顶部出水口与竖流式沉淀池顶部的进水口相连通。本发明竖向内外三循环反应器与传统反应器相比，相当于减小了曝气区体积增加了缺氧区体积，在保证好氧区处理效率的前提下，提高了缺氧区处理能力，强化了反应器反硝化、同步硝化反硝化的能力，对于低碳氮比污水更加适合。","长春工程学院"]
[null,607,"精密仪器及先进装备","环保与资源","一种交替好氧-厌氧一体化生物处理装置、方法及应用","本发明属于污水生物处理技术领域，公开了一种交替好氧‑厌氧一体化生物处理装置、方法及应用，交替好氧‑厌氧一体化生物处理装置包括调节池、曝气池、厌氧池和沉淀池；调节池内嵌格栅；曝气池底部进水口与调节池底部相连接，中间设置逆止阀，曝气池一侧设置曝气装置，曝气装置由风机和流量计相连接，曝气池一侧为倾斜壁面；厌氧池设置在曝气池倾斜壁面的上方，曝气池出水从上端出口流入厌氧池；沉淀池设置在厌氧池一侧，下端污泥回流区与曝气池和厌氧池底部相连接。本发明采用合建结构，组合调节池、曝气池、厌氧池和沉淀池于一体，结构紧凑占地面积小，设备少，运行简单，大大降低运行维护和投资费用，对于乡镇污水更加适合。","长春工程学院"]
[null,608,"其他","建筑工程","一种硅藻土过滤提纯装置","本发明公开了一种硅藻土过滤提纯装置，其结构包括固定板、进料口、处理装置、支撑架，本发明进行使用时，通过对接口将硅藻土导入过滤筒内部，将酸洗液注入过滤筒内部，驱动电机带动过滤筒快速转动，使得硅藻土可以充分与硅藻土酸洗液接触去除杂质，将酸洗液从过滤筒流出导出，然后再将清水倒入过滤筒内部对硅藻土水洗，硅藻土在清洗完成后，转动过滤筒，利用离心力将附着在硅藻土上的水甩出，在甩干过程中，通过旋动组件对过滤筒内壁进行清刮，防止硅藻土堵塞住滤孔，从而得到较干燥的硅藻土，便于硅藻土进行下一步制作","长春工程学院"]
[null,609,"光电子及智能传感器","光电信息","硅基Mic ro-LED显示芯片技术","LED芯片尺寸小于100um称作Micro-LED。Micro-LED被誉为继LCD、OLED之后的下一代显示技术（终极显示技术）。Micro LED应用覆盖所有显示领域，尤其在微投影、AR眼镜、HUD、 矩阵车灯等方面，其具有高效率、低成本、高可靠性和小体积的特点，这些优势的根本原因在于其光效高、功耗低。该技术的难点在于巨量转移，该技术采用小屏幕采用晶圆键合的技术路径，即硅基Micro-LED显示芯片。该技术的核心技术为：高良率单片晶圆级集成工艺、高效率的Micro LED芯片结构和无损的量子点色转化技术。","光机所"]
[null,610,"汽车电子及新型汽车零部件","汽车工业技术","基于先进光学成像技术的AI检测系统","团队经过近三年的技术攻关和技术迭代，基于大视场低畸变光学技术、可控波长照明技术、采用长光辰芯的高分辨率大靶面Cmos芯片的AI缺陷智能检测系统达到了应用级水平，解决了完全无规律的复杂图像处理问题、提高了检测的抗干扰能力，通过AI深度学习识别算法将检测准确率大幅度提高，提升了行业智能化、自动化水平。为汽车制造、机械加工等多领域提供了可信赖的解决方案，实现智能制造设备国产化。检测准确率99.5%以上；过检率低于1%；为企业降低人工成本50%以上\n；训练时间缩短了60%以上。\n","光机所"]
[null,611,"光电子及智能传感器","光电信息","大视场三线阵立体航测相机","大视场三线阵立体航测相机焦面布置有多条探测器，可对目标进行多视角、多光谱成像，可形成高精度的4D产品，为用户提供高质量、高效率的航拍图像，可应用在岛礁、城市测绘、普查、农业、林业、环保等领域。相机打破了国外同类相机的技术垄断，主要技术指标达到了世界先进水平，有效的降低了飞行成本。相机具有完善的温控及姿态补偿系统，保障了良好的环境适用性，具有自动化的数据处理软件系统，保障了全链路的数据生产。","光机所"]
[null,{"$f":"ROW()-2","v":612},"光电子及智能传感器","光电信息","高精度光栅位移传感器","光栅位移测量技术通过采集、解读光栅栅距信息实现精准定位、定量测量，是超精密测量及超精准定位的核心技术。科技和创新的双重拓新，光栅尺作为高档数控机床的定位元件和光刻机的检测元件，在国际市场中代表了先进测量技术发展的最先进设备，在国际设备领域代表了高端设备领先技术，也代表了最前沿光栅测量技术发展趋势。","光机所"]
[null,613,"光电子及智能传感器","光电信息","微型LED数字光芯车用智慧照明及信息交互系统","提出以具有高效、节能、高分辨率的微型可见光LED数字光芯作为显示及通信光源，构建集人车/车车/车与环境(路灯信号发射源等)信息交互为一体的显示与通信集成系统，实现文字、图案等交互信息的显示、交互信息的路面或远距离投射显示以及通讯信号发送和接收，实现车对车的数字信号传输，快速传递/接收紧急刹车、危险警告等辅助驾驶信息，助力智慧汽车发展。","光机所"]
[null,614,"光电子及智能传感器","光电信息","图像传感器静动态像质评测系统","本项目聚焦各类图像传感器（CCD、CMOS）静动态成像能力的评价，基于全反式光学系统结合动态转镜的架构，配合全自主知识产权的精密控制及计算方法可实现覆盖市场上全部类型和规格的面阵图像传感器静态MTF和线阵/TDI图像传感器动态MTF高精度、自动化测试，具有测试精度高、通用性强、自动化程度高、可靠性强等特点，核心指标的测试精度达到国际一流水平。","光机所"]
[null,615,"光电子及智能传感器","光电信息","电路板组装元器件辅助定位系统","在科研院所电路板“多品种、小批量”生产模式下，针对SMT生产线加工过程中，手工摆件和人工检验工序元件定位查找效率低下的问题，开发了一款专用的电路板组装元器件辅助定位系统，解决上述两道工序中的效率瓶颈。","光机所"]
[null,616,"光电子及智能传感器","光电信息","千瓦级高重复频率大能量皮秒激光器","大能量皮秒激光光源基于薄片激光技术，重点突破极薄光学晶体制备与封接、光焦度不敏感激光谐振腔设计、激光高效再生放大与多通放大、高功率激光光束控制、高功率半导体泵浦源、高损伤阈值激光膜系等核心技术，实现大能量皮秒激光输出。该光源在超精密加工、远距离测距和科研等方面具有重要的应用。","光机所"]
[null,617,"光电子及智能传感器","光电信息","基于量子点色转化层的硅基Micro LED显示","量子点色转换技术是实现高分辨率Micro LED全彩显示的最佳途径。只需将量子点色转换膜结合蓝光Micro LED显示器即可实现全彩显示，其在转移难度和电路设计上明显优于RGB显示方案，可实现更低的功耗和更高的良率。在本项目中，我们提出一种基于微孔填充的量子点色转换膜的制备方法，成功制备了高分辨率的量子点色转换膜，适用于AR/VR近眼显示设备的应用,以及智能手表等小面积显示屏的应用。","光机所"]
[null,618,"光电子及智能传感器","光电信息","8K超高清摄像机","8K摄像机作为前端视频采集关键设备技术的突破，能够带动视频制作、编解码、存储以及传输、呈现等设备能力的提升，有效解决广播电视、文化娱乐、安防监控、医疗影像等领域的需求，有利于培育中高端消费新增长点，促进我国电子信息产业迈向全球价值链中高端。","光机所"]
[null,619,"光电子及智能传感器","光电信息","高分辨率视频高光谱成像技术","本项技术以像元级高光谱滤光片和高灵敏度的面阵CMOS图像传感器为基础，以实时高光谱图像获取为主要创新点，研制一款具有高时间、高空间和高光谱分辨力的高光谱成像仪。可用于工业产品分类、工业检测（产品缺陷）、生物试验检测、水质检测、农作物普查、食品药品检测、安全检查（毒品、炸药）、医疗、生物、文物鉴定等方向的应用","光机所"]
[null,620,"光电子及智能传感器","光电信息","AlGaN深紫外光电器件","目前已经掌握深紫外LED芯片外延生长，器件工艺以及封装技术，提升了我国在深紫外LED消杀灭活领域竞争力，解决了国外对我国高端芯片禁运的卡脖子问题。","光机所"]
[null,621,"光电子及智能传感器","光电信息","基于TDLAS技术的模块化激光气体检测系统","围绕TDLAS技术，采用DFB和VCSEL激光器作为核心光源，设计出高精度、多气体检测、可遥测等微型化模块化激光气体检测系统。该系统具有非接触、选择性好、检测速度快、灵敏度高、测量范围广、无耗材等优点。其检测工作效率相较于传统的气体检测设备可以提升几万倍，可用于大气环境监测、化工生产、燃爆安全和医疗检测等方面。","光机所"]
[null,{"$f":"ROW()-2","v":622},"光电子及智能传感器","光电信息","太阳光谱照明灯具","太阳主导了地球自然界的演化和发展，塑造了人类的生理系统。太阳光谱包含了特定比例的从紫外到可见到红外的所有颜色的光，而人造白光光源只包含蓝、黄两种颜色，由此导致了视力损害、情绪失调、节律紊乱等健康问题。本成果实现了一种从光谱层面与太阳光一致的照明灯具。突破荧光材料限制，实现全色发射，再现太阳光谱，并去除有害紫外光，可实现典型的早、午、晚太阳光。采用贴片式封装，小型、薄型、轻量化。","光机所"]
[null,623,"光电子及智能传感器","光电信息","高速摄像分析仪","解决高指标高速摄像产品对我国的禁运问题和高端测量仪器被国外垄断的卡脖子问题，突破了高速CMOS图像传感器的高速成像驱动技术、数据采集及高速存储技术，达到国际主流产品的顶级指标，实现自主可控，提升我国在高端制造、生物医疗、科学试验、汽车安全、交通运输等产业领域的竞争力。","光机所"]
[null,624,"光电子及智能传感器","光电信息","高功率半导体光放大器","研制出高功率低偏振半导体光放大器：输出功率最大达233mW，增益大于26dB，偏振度最低0.88dB，输出功率比国际同类低偏振器件高出一个数量级。","光机所"]
[null,625,"光电子及智能传感器","光电信息","闪光式激光雷达","分辨率：160×120\n探测距离：10m\n精度：±1.2cm\n视场角：65°×45°\n帧频：10-20fps","光机所"]
[null,626,"汽车电子及新型汽车零部件","汽车工业技术","汽车舱内激光雷达及光源","近年来，汽车行业普遍强调“智能座舱”，并且逐步发展成为诸多汽车企业的发展战略。智能座舱的前提是对座舱的感知探测，其中三维信息探测是实现驾驶员/乘员探测和手势交互等功能的基础。然而，以摄像头为代表的传统舱内三维信息探测技术需要极大的算力，具有高功耗、高成本、高延时等缺点。\n本所自主研发850nm高功率半导体激光芯片，配合飞行时间传感器和其他控制单元，构建低功耗、低成本、高分辨的激光雷达系统，实现舱内实时深度探测，满足驾驶员/乘员监测和手势交互使用需求。","光机所"]
[null,627,"汽车电子及新型汽车零部件","汽车工业技术","汽车线束智能制造装备研制","针对汽车线束组装测试工艺要求和多品种、小批量生产特点，突破线束柔性化智能布线、机器人多工艺全自动包胶、电气性能一体化测试等关键技术，建设适应多品种汽车线束制造的组装测试生产示范线，形成一套汽车线束智能制造解决方案，技术水平达到国内领先。","光机所"]
[null,628,"汽车电子及新型汽车零部件","汽车工业技术","非接触驾驶员监测系统","监测驾驶员的实时体征参数对于驾驶安全非常重要，光机所团队的驾驶员监测系统可以实现以非接触方式实时监测驾驶员的心率、呼吸频率、呼吸深度、血氧、心率变异性、疲劳状态等体征参数。当体征参数超出阈值范围则提示驾驶员注意休息。","光机所"]
[null,629,"汽车电子及新型汽车零部件","汽车工业技术","基于三维光学测量的汽车零部件及整车检测技术","\"汽车在生产、装配、维修、测试等环节中均需要对零部件及整车的自由曲面外形进行检测，传统的人工和三坐标测量仪只能检测曲面上的几个点，数据量远远不足，无法对自由曲面进行整体比对，而且检测过程非常耗时。\n长春光机所已经研制完成了手持式和自动化两大类的三维激光扫描仪产品，覆盖了汽车行业的全部使用需求。针对无法移动的重型模具、钣金以及抽检产品使用便携性的手持式三维扫描仪，针对要求批量检测的汽车零部件使用能够与生产线相结合的全自动三维扫描仪。\"","光机所"]
[null,630,"光电子及智能传感器","现代农业","霉菌类污染物检测装备","已建立小麦赤霉病光谱数据库，并可实现普查检测，已在中粮生化（公主岭）有限公司开展粮食入库检测应用示范，目前该类产品已实现1000万销售收入，正在开展覆盖黄曲霉、赭曲霉、赤霉、烟曲霉四大类霉菌检测技术开发，在霉菌类污染物检测领域已形成“装备开发-数据反演应用-产品升级”的良性循环","光机所"]
[null,631,"光电子及智能传感器","环保与资源","光电混合水下连接器","光电混合水下连接器可在水下完成湿插拔运动。可应明于水下光、电信号的传输，以及海底观测网、海洋石油生产平台、水下工程机械和水下电力分配等海洋领域。和国外同类产品的核心设计不同，结构布局以及密封方式等均自主研制，不会被国外卡脖子问题困扰。可同时连光、电插针，具有多芯、大功率的特点，保证功能性的同时，让结构更加简单精密、安全实用。","光机所"]
[null,{"$f":"ROW()-2","v":632},"光电子及智能传感器","光电信息","低空无人机多光谱遥感装备","突破了机载小型光谱仪器系统设计、敏捷性嵌入式多源视觉融合、复杂场景智能调光、环境光同步校正等关键技术，在通道型多光谱遥感装备领域开发了自主知识产权的系列产品，填补国内空白，成果入选中国科学院成果转化亮点工作，产品入选山东省“首台套”目录。","光机所"]
[null,633,"光电子及智能传感器","现代农业","种子活力无损检测分选设备","种子活力无损检测分选设备结合近红外光谱技术和机器学习技术，通过数学模的构建开发了一套较为精准且无损单粒活力评价技术体系与设备，能够分选发芽率高的种子，分选后种子发芽率显著提升，从而提高粮食亩产量，解决农业增产及国家粮食安全的重大问题。","光机所"]
[null,634,"光电子及智能传感器","现代农业","高端经济作物智能化采收设备","为提高农业劳动生产效率与智能化水平，面向蓝莓、茶叶，菌类等高经济价值作物，突破农作物自动快速识别、农作物等级分类，自动无损采摘等关键技术，促进我国农业科技进步，加速农业现代化进程有着重大的现实意义。","光机所"]
[null,635,"光电子及智能传感器","现代农业","荧光检测与分析技术","本研究提出并构建了一种基于高均匀度激光光源的多级、多滑道自动化检测设备，以实现第三代杂交水稻繁殖系种子的荧光检测和分选。可应用于第三代杂交水稻繁殖系种子分选。\n本仪器解决了人工分选效率低，工作强度大，分选标准因人因时而异造成的一致性差等问题，实现了高效率、高精度的检测筛选目标。满足了第三代杂交水稻非转基因种子100%分选及大批量推广种植的需求，为该技术的推广应用提供了有力的技术和安全保障。","光机所"]
[null,636,"光电子及智能传感器","光电信息","中阶梯光栅光谱仪","光谱分析技术通过获取、解读物料光谱信息实现定性、定量检测，是光谱及分析行业的重要分支。随科技的发展，光谱仪器作为先进光谱分析系统核心单元，已跳出科学实验范畴，应用覆盖国民经济社会发展众多领域。中阶梯光栅光谱仪作为全谱直读型高端光谱仪器，是LIPS、MPT、Raman及ICP等一众先进分析设备的核心分光方案，在光谱分析测试领域占重要地位，代表现代先进光谱技术发展趋势。\n","光机所"]
[null,637,"光电子及智能传感器","光电信息","微型光纤光谱仪","光谱仪器是光谱与光谱分析学的基本分析工具，现代光谱仪器的一个重要发展趋势是仪器的小型化、集成化。微型光纤光谱仪具有快速、低成本、高分辨率、高通量、高灵敏度、装置微型化、便携等优点，它的出现使光谱仪的体积和价格都缩减为原来的几十分之一，模块化的微型光谱仪可以像积木一样灵活搭建成各种基于光谱测量的应用系统，从此光谱仪走出实验室，作为便携或手持设备出现在需要检测的任何现场。","光机所"]
[null,638,"光电子及智能传感器","光电信息","棱镜-光栅成像光谱仪","棱镜-光栅成像光谱仪以自主设计的棱镜-光栅作为分光组件，该分光组件具有小型化、直线性的特点，系统全波段全视场均具有较高的成像质量，像差得到较好校正，整机机械结构在设计时考虑进行减重，在不影响仪器性能的前提下进行了轻量化设计和优化设计，整个系统具有体积小、重量轻、结构简单等优点，便于与其他系统进行组合开发，可广泛应用于航空航天、环境保护、气候监测、农业、工业生产、医药制造、科研实验室等领域。","光机所"]
[null,639,"光电子及智能传感器","光电信息","大面积高精度衍射光栅","光栅具有优异的色散功能，是光谱仪器的核心器件。光栅中心已研制出多种大面积中阶梯光栅及高精度全息光栅，其工程化技术日趋成熟。光栅中心研制的高精度光栅已成功应用于二氧化碳探测（用于碳卫星）、火星表面成分探测、（用于火星探测器）、太阳物质探测（用于FASOT）、太阳辐照度探测（用于FY3E太阳辐照度光谱仪）等空间探测技术，同时也广泛应用于原子光谱仪、分子光谱仪及生化分析仪等各种民用高性能分析测试仪器。","光机所"]
[null,640,"光电子及智能传感器","光电信息","便携式电缆检测仪","便携式电缆检测仪用于检测电缆故障，帮助检测人员快速、高效地掌握被测电缆状态，最多支持112通道的通断检测、短路检测等功能，检测精度≤0.1Ω，检测电压≤±12V，检测电流≤5mA。触控操作界面与检测逻辑可根据用户需求定制开发。\n设备可用于电缆生产厂家的电缆出厂检验，航空一线维护保障人员对原位机上电缆的排故，航天热控加热片、热电偶等回路的检测等场合。","光机所"]
[null,641,"光电子及智能传感器","环保与资源","新一代高性能海洋防腐材料的飞秒激光制备","针对现有涂层防腐技术的局限性，提出利用飞秒激光极端光场条件对金属表面进行形性调控获得材料自身高效防腐的新方法，通过微纳结构产生及其物化改性的协同构建等关键技术，实现金属表面对海水的高效自身防护，满足战略性涉海工程装备（例如：船舶、潜水器和舰载机等）及其关键部件防腐防污应用需求，解决钢架桥梁、高铁交通等重大设施中金属表面严重腐蚀的共性难题。飞秒激光加工后金属表面呈现的持久超疏水性能，使其在航空设备防覆冰和减阻等方面具有重要应用价值。","光机所"]
[null,{"$f":"ROW()-2","v":642},"光电子及智能传感器","光电信息","自动对焦技术","本成果是一款高精度、高效率、产品化的生物与工业成像激光自动对焦系统，通常用于材料或生物显微镜，专注于半导体晶片、固定载玻片、培养皿和孔板、薄膜和膜、药丸，还可用于带有反射表面的样品，包括冶金，半导体，LCD和其他带有多个反射层的样品，不会受到用户使用时的对比度，样品平坦度，图像采集的影响，可以实时的保持对样品的聚焦，是市场上保持聚焦图像的优秀解决方案，从根本上解决了成像过程中存在的多层反射面同时成像造成的无法自动对焦问题。本成果几乎可以使用任何物镜并对大量样品进行成像，因为它几乎可以适应任何无限远校正光学配置的显微镜系统中。","光机所"]
[null,643,"光电子及智能传感器","环保与资源","人机共存紫外消杀技术","本系列产品采用先进的新风系统与紫外安全消杀技术相融合，根据Trace-Pro专业光学建模软件获得最佳光能分布，实现产品内部高速、有效、安全的灭菌、杀毒效果，产品主要包括：地面立式消杀仪、台面消杀仪、紫外消杀口罩。","光机所"]
[null,644,"光电子及智能传感器","环保与资源","水下同步相移动态全息显微成像测量系统","一台用于深海原位微生物三维显微成像的动态全息显微成像系统。该系统采用先进的集成光学技术实现动态全息的光学组成，动态数字全息凭借其本身的数字自动聚焦、测量精度高、非扫描式成像、无标记等优势，可在无干扰状态直接对深海微生物、颗粒和微塑料等微尺度物体以及其周围的流场进行实时微米级三维观测。该系统可应用于水质检测、深海微生物形态、群落、生存环境和深海微生物制药乃至深海和极地生态环境探测、探查海洋可开采资源分布和地外生命探测等领域。","光机所"]
[null,645,"光电子及智能传感器","环保与资源","抗粘附材料制备技术","微纳光子学与材料国际实验室基于飞秒激光制备超疏水材料技术，开发了金属基材及聚合物基材的多种抗粘附材料，其中金属基底主要采用不锈钢及钛，聚合物基底主要采用PTFE或PEEK，该抗粘附材料可在不粘炊具替代特氟龙等化学涂层，可在食品生产设备实现粘性食材易脱离设备接触表面，可使医疗器材及设备实现血液等人体组织的抗粘附，起到抗菌防护作用。在卫生行业可应用于厕具接触尿液粪便表面，降低用于清洗的用水量，减少污水处理规模。","光机所"]
[null,646,"光电子及智能传感器","环保与资源","温室气体监测仪","基于激光光谱技术的温室气体监测仪是一种利用波长调制离轴腔增强技术实现二氧化碳、甲烷及其同位素等温室气体的高精度实时监测设备，具有小型化、高精度、非侵入、快速响应等优点，适用于地基气象气候监测网站中的二氧化碳、甲烷等温室气体的长期监测，陆地生态系统包括农田，草地，森林等碳源、碳汇的识别与监测，工业生产主包括火电、钢铁、化工及废弃物处理等重点行业固定点源及高架点源等工业点源排放监测。","光机所"]
[null,647,"光电子及智能传感器","环保与资源","多功能太阳辐射测量仪","基于课题组多年来在太阳绝对辐射测量领域的技术积累，研制多功能辐射测量仪器，能够在不需要太阳跟踪装置的前提下，同时测量太阳总辐射、散射辐射、直射辐射和日照时数。测量精度能够满足气象工作站的使用要求，能够有效替代工作站中的多种测量仪器，在不增采购和使用成本的前提下，获取更多的辐射测量要素值。","光机所"]
[null,648,"光电子及智能传感器","环保与资源","大摆扫行程三轴通用惯性稳定平台","本三轴惯性稳定平台可实现大于150度纵向视场角宽收容摆扫成像，具有目标搜索及跟踪、测绘成像及宽收容详查等多种模式。针对复杂灾害场景应用需求，研发多种光谱组合成像与探测组配，采取模块化设计与惯性稳定平台集成方案相结合，实现多传感器在平台上即插即用，突破多传感器集成互换技术，实现各组配模块10分钟内快速换装，极大提升了灾害现场信息获取效率。","光机所"]
[null,649,"农产品加工及绿色食品","现代农业","激光植物补光灯","激光植物补光技术，利用激光的相干性强、光谱线宽窄和光能量集中等优势，降低植物光合作用的补偿点，根据特定作物在不同生长周期对红蓝光的需求量差异，自动调整光质和光强，达到高效准确的调控植物在不同生长周期的生长速率和形貌特征的目的，实现设施农业中经济作物的生长调控，相比于LED或高压钠灯等主流植物补光技术，该技术的光合光子通量密度仅需要LED的三十之一，即可达到相同的补光效果，可大幅提高单位电能的光补偿效果，是一种低功耗的新型补光技术，为现代精准农业提供了一种高效的“光肥”获取技术。","光机所"]
[null,650,"生物医药及先进医疗器械","生物医药","三维成像与增强现实技术在人工髋关节置换术中的应用","本研究的初期目标是构建髋关节的三维成像，针对三维成像和增强现实技术在人工髋关节置换手术前的应用和教学进行研究，初步建立增强系统，利用AR显示头盔进行髋关节的初步显示，为青年骨科医师提供理想的培训平台，通过虚拟的髋部三维影像和现实世界结合，可以使受训的医生仿佛在完成一台真实的髋关节手术，可有效增加了青年骨科医师动手操作、训练的机会。进一步的目标是在模型骨或尸体骨上进行增强现实技术在髋关节置换术中可视化进行应用，将髋关节虚拟场景与真实的手术场景进行叠加，将AR辅助手术与实际现实手术进行比对，逐步完善对髋关节置换手术的精准操作，为未来将AR辅助手术用于人工全髋关节置换的临床应用打下良好的基础。","光机所"]
[null,651,"生物医药及先进医疗器械","生物医药","面向智能诊疗的智能分析技术","利用人工智能技术辅助诊疗是医疗发展的重要方向，本团队针对医学图像特有的暗弱特性，攻克弱目标的分割、自动提取、智能识别、及细粒度分类等数项难题，实现了对于医学图像的实时智能处理，并已在染色体核型分析上进行了应用，使核型分析由人工30分钟变为1分钟内自动完成，该技术检测识别准确率高、分割精度高、处理速度快、适用范围广，可应用在Fish图像、CT图像、X光、显微镜图像等多种医疗影像的病灶提取、面积体积评估、病灶等级划分等，同时本团队在嵌入式板卡开发及赋能方面有丰富经验，可根据应用场景迅速进行小型化、高集成智能产品的研制及整合，从而实现灵巧便携智能处理。","光机所"]
[null,652,"生物医药及先进医疗器械","生物医药","腹腔镜镜头智能冲洗装置","本项成果是一款手术用腹腔镜镜头自动清洗装置，在原有腹腔镜镜头不做改变的前提下，保证其适应于目前所有常规腹腔镜产品。设计结构为外套管形式，可根据腹腔镜型号进行灵活适配。通过对腹腔镜图像进行实时处理，分析当前成像质量，为智能冲洗提供参考判据。通过在镜头端安装具有一定夹角的喷头，在不遮挡视野的情况下可对镜头进行冲洗。结合水流控制技术，实现随污随冲。最终实现在不取出腹腔镜或不进行组织擦拭的基础上，在手术过程中实现对腹腔镜的智能冲洗，全程保障高质量成像。该项成果具有成本更低、通用性更强、智能化程度更高等优点，可解决镜头污染问题、缩短手术时间、提高手术的安全性。","光机所"]
[null,653,"生物医药及先进医疗器械","生物医药","力反馈医疗机器人控制系统","力反馈医疗机器人控制系统是面向智能化医疗手术及操作需求研发的机器人控制系统，具有可远程操作、控制精度高、带有力触觉反馈、操作自由度多、贴合医生/患者操作习惯等突出优势，已经在角膜移植关键步骤微操作机器人、腹腔镜智能冲洗系统、主从式介入手术机器人、面向手功能康复的外骨骼系统等眼科、胃肠外科、神经血管外科、康复科的医疗手术及操作中进行了成功的应用探索，设计了多款满足不同手术需求的原理样机并已完成医学/动物实验。","光机所"]
[null,654,"生物医药及先进医疗器械","生物医药","烧伤后瘢痕及瘢痕疙瘩的飞秒激光治疗","皮肤是人体最大的器官，在外层起到保护深层组织的作用，在遭受各种外伤、手术后必然会形成不同程度的瘢痕，光学治疗是近几年获得迅速发展的新兴治疗手段，对于类似的瘢痕同样经过一年治疗，效果却不同，而且目前激光治疗设备的核心技术被国外几家公司垄断。所以本成果从飞秒激光瘢痕治疗机理出发，进一步搭建飞秒激光瘢痕治疗系统，对治疗效果及安全性进行了全面的验证。","光机所"]
[null,655,"生物医药及先进医疗器械","生物医药","多波长半导体激光复合治疗仪技术","多波长半导体激光复合治疗仪以不同波长激光的不同生物效应为依据，采用波长合束技术实现多波长激光的单光纤输出，可实现多台单波长激光治疗仪共同作用、复合治疗的效果，具有切割、止血、气化、凝固、止痛、杀菌、消毒等多种临床应用功能，应用领域涵盖口腔科、皮肤科、血管外科、耳鼻喉科、泌尿外科等多个科室，可满足日益多元化的临床应用需要，并能不断催生新型治疗方案。","光机所"]
[null,656,"生物医药及先进医疗器械","生物医药","医用高清3D内窥镜","本成果的医用高清3D内窥镜，用于微创医学检查和微创手术，为医生提供高清三维图像信息，提升检查精准度，提高手术效率。目前已完成了高清3D内窥镜样机研制，实现1920×1080分辨率高清三维显示，系统视场角大于75°，分辨率大于7lp/mm，并进行了初步动物实验。首次采用变焦、分体式系统，实现3D内窥镜的自主调焦功能，满足不同距离目标的观测需求；同时实现了3D内窥镜的分体功能，镜身可拆卸，独立进行等离子消毒。采用独立开发的3D图像处理算法，通过自主编程进行3D图像信息融合，实现高清3D图像的高精度还原，解决3D眩晕感的问题，提高用户体验。 3）首次设计并研制出反射式高清双目取景器系统","光机所"]

{"sheet":"看板","index":1,"n_rows":13,"n_cols":8,"rows_kept":13,"cut":false,"hidden":true,"merged":[]}
["光电信息",{"$f":"93+17","v":110}]
["环保与资源",73]
["建筑工程",16]
["能源动力领域",3,null,null,null,"吉林大学",287,{"$f":"G4/656","v":0.4375}]
["汽车工业技术",45,null,null,null,"光机所",48,{"$f":"G5/656","v":0.0731707317073171}]
["生物医药",{"$f":"36+41","v":77},null,null,null,"东北师大",73,0.111280487804878]
["先进制造",73,null,null,null,"应化所",9,0.013719512195122]
["现代农业",46,null,null,null,"长春工程大学",57,0.086890243902439]
["新材料",111,null,null,null,"长春工业大学",5,0.00762195121951219]
["新能源",11,null,null,null,"长春理工大学",177,0.269817073170732]
["信息技术",86,{"$nulls":4},{"$f":"SUM(G4:G10)","v":656}]
["医药、医疗设备",5]
[null,{"$f":"SUM(B1:B12)","v":656}]